Workbook

Sheet Introduction
C4: Joint Monitoring Programme for Water Supply, Sanitation and Hygiene
C6: Estimates on household water, sanitation and hygiene by wealth quintile and sub-national region in
C7: =+Water!B5 -> Honduras
C9: Updated May 2021
C11: Follow the links below to find the following information:
C13: JMP Estimates
C14: WASH status and trends by wealth quintile (customized quintiles made without water and sanitation assets)
C15: Water
C16: Sanitation
C17: Hygiene
C19: Data inputs
C20: customized wealth quintiles and subnational data:
C21: =IF(INDIRECT(CONCATENATE("Water","!B105"))=0,"",INDIRECT(CONCATENATE("Water","!B105"))) -> EPHPM01
C22: =IF(INDIRECT(CONCATENATE("Water","!B106"))=0,"",INDIRECT(CONCATENATE("Water","!B106"))) -> EPHPM03
C23: =IF(INDIRECT(CONCATENATE("Water","!B107"))=0,"",INDIRECT(CONCATENATE("Water","!B107"))) -> EPHPM04
C24: =IF(INDIRECT(CONCATENATE("Water","!B108"))=0,"",INDIRECT(CONCATENATE("Water","!B108"))) -> EPHPM05
C25: =IF(INDIRECT(CONCATENATE("Water","!B109"))=0,"",INDIRECT(CONCATENATE("Water","!B109"))) -> EPHPM06
C26: =IF(INDIRECT(CONCATENATE("Water","!B110"))=0,"",INDIRECT(CONCATENATE("Water","!B110"))) -> DHS06
C27: =IF(INDIRECT(CONCATENATE("Water","!B111"))=0,"",INDIRECT(CONCATENATE("Water","!B111"))) -> DHS12
C28: =IF(INDIRECT(CONCATENATE("Water","!B112"))=0,"",INDIRECT(CONCATENATE("Water","!B112"))) -> 
C29: =IF(INDIRECT(CONCATENATE("Water","!B113"))=0,"",INDIRECT(CONCATENATE("Water","!B113"))) -> 
C30: =IF(INDIRECT(CONCATENATE("Water","!B114"))=0,"",INDIRECT(CONCATENATE("Water","!B114"))) -> 
C31: =IF(INDIRECT(CONCATENATE("Water","!B115"))=0,"",INDIRECT(CONCATENATE("Water","!B115"))) -> 
C32: =IF(INDIRECT(CONCATENATE("Water","!B116"))=0,"",INDIRECT(CONCATENATE("Water","!B116"))) -> 
L55: =+IF(ISNUMBER(M48), "", "Insufficient data to estimate safely managed sanitation services at national level") -> Insufficient data to estimate safely managed sanitation services at national level

Sheet Water
A1: BGD
B4: Summary of trends in use of drinking water by wealth quintile (%)
B5: =IF(ISERROR(INDIRECT(CONCATENATE($B105,"!A2"))),"",INDIRECT(CONCATENATE($B105,"!A2"))) -> Honduras
B7: =B118 -> National use of drinking water sources, 2000–2018 | J7: =B218 -> Urban use of drinking water sources, 2000–2018 | R7: =B318 -> Rural use of drinking water sources, 2000–2018
B31: =IF(ISERROR(INDIRECT(CONCATENATE($B105,"!A2"))),"",INDIRECT(CONCATENATE($B105,"!A2"))) -> Honduras | F31: Poorest | J31: Poor | N31: Middle | R31: Rich | V31: Richest
F32: Basic | G32: Limited | H32: Unimproved | I32: Surface water | J32: Basic | K32: Limited | L32: Unimproved | M32: Surface water | N32: Basic | O32: Limited | P32: Unimproved | Q32: Surface water | R32: Basic | S32: Limited | T32: Unimproved | U32: Surface water | V32: Basic | W32: Limited | X32: Unimproved | Y32: Surface water
B33: NATIONAL | D33: Estimate | E33: =C99 -> 2000 | F33: =E99 -> 81.12613913 | G33: =F99 -> 0.9086107182 | H33: 15.57470504 | I33: 2.390545113 | J33: =J99 -> 83.49131433 | K33: =K99 -> 0.4795871207 | L33: 12.6780323 | M33: 3.351066244 | N33: =O99 -> 87.77741837 | O33: =P99 -> 0.4991251867 | P33: 8.123598682 | Q33: 3.599857764 | R33: =T99 -> 94.49373969 | S33: =U99 -> 0.4254020719 | T33: 3.865355396 | U33: 1.215502838 | V33: =Y99 -> 98.62729718 | W33: =Z99 -> 0.1561971012 | X33: 1.209764009 | Y33: 0.006741707892
E34: =C100 -> 2018 | F34: =E100 -> 94.45053183 | G34: 1.057843581 | H34: 1.692431748 | I34: 2.799192845 | J34: =J100 -> 96.73281469 | K34: 0.5556483622 | L34: 0.4794386576 | M34: 2.232098291 | N34: =O100 -> 99.43458911 | O34: 0.5654108856 | P34: 0 | Q34: 0 | R34: =T100 -> 99.55182689 | S34: 0.4481731124 | T34: 0 | U34: 0 | V34: =Y100 -> 99.83972038 | W34: 0.1581172288 | X34: 0 | Y34: 0.002162387847
B36: URBAN | D36: Estimate | E36: =C199 -> 2000 | F36: =E199 -> 89.06763228 | G36: =F199 -> 0.2194846566 | H36: 10.66226111 | I36: 0.05062195602 | J36: =J199 -> 96.17032373 | K36: =K199 -> 0.6304369517 | L36: 3.199239316 | M36: 0 | N36: =O199 -> 97.58332149 | O36: =P199 -> 0.2797614331 | P36: 2.136917074 | Q36: 0 | R36: =T199 -> 98.88348704 | S36: =U199 -> 0.07995858091 | T36: 1.034406592 | U36: 0.002147787312 | V36: =Y199 -> 99.53314251 | W36: =Z199 -> 0.219247633 | X36: 0.2476098597 | Y36: 0
E37: =C200 -> 2018 | F37: =E200 -> 99.50872294 | G37: 0.2452140842 | H37: 0.1168821632 | I37: 0.1291808139 | J37: =J200 -> 98.21907139 | K37: 0.6438673549 | L37: 1.024469612 | M37: 0.1125916442 | N37: =O200 -> 99.69486277 | O37: 0.2858150066 | P37: 0.01932222755 | Q37: 0 | R37: =T200 -> 99.48328589 | S37: 0.08044358671 | T37: 0.4307817366 | U37: 0.005488789798 | V37: =Y200 -> 99.65416203 | W37: 0.21951421 | X37: 0.1263237594 | Y37: 0
B39: RURAL | D39: Estimate | E39: =C299 -> 2000 | F39: =E299 -> 83.27818007 | G39: =F299 -> 1.483675258 | H39: 12.46457511 | I39: 2.77356956 | J39: =J299 -> 85.77880385 | K39: =K299 -> 0.3828947577 | L39: 10.98523158 | M39: 2.853069812 | N39: =O299 -> 89.02570582 | O39: =P299 -> 0.7924213892 | P39: 8.265131011 | Q39: 1.916741779 | R39: =T299 -> 89.63661129 | S39: =U299 -> 0.4955449318 | T39: 7.937558787 | U39: 1.93028499 | V39: =Y299 -> 91.01778816 | W39: =Z299 -> 0.4921987125 | X39: 7.140387299 | Y39: 1.349625825
E40: =C300 -> 2018 | F40: =E300 -> 87.3115543 | G40: 1.555533427 | H40: 8.33329587 | I40: 2.799616402 | J40: =J300 -> 88.41757535 | K40: 0.3946735624 | L40: 8.373171483 | M40: 2.814579604 | N40: =O300 -> 87.86366278 | O40: 0.7820779973 | P40: 7.223835854 | Q40: 4.130423366 | R40: =T300 -> 91.38426585 | S40: 0.5052066241 | T40: 4.296562364 | U40: 3.813965163 | V40: =Y300 -> 98.7177805 | W40: 0.533838115 | X40: 0 | Y40: 0.7483813878
A97: NATIONAL | D97: Poorest | I97: Poor | N97: Middle | S97: Rich | X97: Richest
D98: Improved | E98: Basic | F98: Limited | G98: Unimproved | H98: Surface water | I98: Improved | J98: Basic | K98: Limited | L98: Unimproved | M98: Surface water | N98: Improved | O98: Basic | P98: Limited | Q98: Unimproved | R98: Surface water | S98: Improved | T98: Basic | U98: Limited | V98: Unimproved | W98: Surface water | X98: Improved | Y98: Basic | Z98: Limited | AA98: Unimproved | AB98: Surface water
A99: Forecast period: | C99: =MinBase(C105:C116) -> 2000 | D99: =IF((D101+H101)>100,D101*100/(D101+H101),D101) -> 82.03474985 | E99: =D99*AVERAGEIF(E105:E116,">0")/100 -> 81.12613913 | F99: =D99*(100-AVERAGEIF(E105:E116,">0"))/100 -> 0.9086107182 | G99: =100-(E99+F99+H99) -> 15.57470504 | H99: =IF((D101+H101)>100,H101*100/(D101+H101),H101) -> 2.390545113 | I99: =IF((I101+M101)>100,I101*100/(I101+M101),I101) -> 83.97090145 | J99: =I99*AVERAGEIF(J105:J116,">0")/100 -> 83.49131433 | K99: =I99*(100-AVERAGEIF(J105:J116,">0"))/100 -> 0.4795871207 | L99: =100-(J99+K99+M99) -> 12.6780323 | M99: =IF((I101+M101)>100,M101*100/(I101+M101),M101) -> 3.351066244 | N99: =IF((N101+R101)>100,N101*100/(N101+R101),N101) -> 88.27654355 | O99: =N99*AVERAGEIF(O105:O116,">0")/100 -> 87.77741837 | P99: =N99*(100-AVERAGEIF(O105:O116,">0"))/100 -> 0.4991251867 | Q99: =100-(O99+P99+R99) -> 8.123598682 | R99: =IF((N101+R101)>100,R101*100/(N101+R101),R101) -> 3.599857764 | S99: =IF((S101+W101)>100,S101*100/(S101+W101),S101) -> 94.91914177 | T99: =S99*AVERAGEIF(T105:T116,">0")/100 -> 94.49373969 | U99: =S99*(100-AVERAGEIF(T105:T116,">0"))/100 -> 0.4254020719 | V99: =100-(T99+U99+W99) -> 3.865355396 | W99: =IF((S101+W101)>100,W101*100/(S101+W101),W101) -> 1.215502838 | X99: =IF((X101+AB101)>100,X101*100/(X101+AB101),X101) -> 98.78349428 | Y99: =X99*AVERAGEIF(Y105:Y116,">0")/100 -> 98.62729718 | Z99: =X99*(100-AVERAGEIF(Y105:Y116,">0"))/100 -> 0.1561971012 | AA99: =100-(Y99+Z99+AB99) -> 1.209764009 | AB99: =IF((X101+AB101)>100,AB101*100/(X101+AB101),AB101) -> 0.006741707892
C100: =MaxTarget(C105:C116) -> 2018 | D100: =IF((D102+H102)>100,D102*100/(D102+H102),D102) -> 95.50837541 | E100: =D100*AVERAGEIF(E105:E116,">0")/100 -> 94.45053183 | F100: =D100*(100-AVERAGEIF(E105:E116,">0"))/100 -> 1.057843581 | G100: =100-(E100+F100+H100) -> 1.692431748 | H100: =IF((D102+H102)>100,H102*100/(D102+H102),H102) -> 2.799192845 | I100: =IF((I102+M102)>100,I102*100/(I102+M102),I102) -> 97.28846305 | J100: =I100*AVERAGEIF(J105:J116,">0")/100 -> 96.73281469 | K100: =I100*(100-AVERAGEIF(J105:J116,">0"))/100 -> 0.5556483622 | L100: =100-(J100+K100+M100) -> 0.4794386576 | M100: =IF((I102+M102)>100,M102*100/(I102+M102),M102) -> 2.232098291 | N100: =IF((N102+R102)>100,N102*100/(N102+R102),N102) -> 100 | O100: =N100*AVERAGEIF(O105:O116,">0")/100 -> 99.43458911 | P100: =N100*(100-AVERAGEIF(O105:O116,">0"))/100 -> 0.5654108856 | Q100: =100-(O100+P100+R100) -> 0 | R100: =IF((N102+R102)>100,R102*100/(N102+R102),R102) -> 0 | S100: =IF((S102+W102)>100,S102*100/(S102+W102),S102) -> 100 | T100: =S100*AVERAGEIF(T105:T116,">0")/100 -> 99.55182689 | U100: =S100*(100-AVERAGEIF(T105:T116,">0"))/100 -> 0.4481731124 | V100: =100-(T100+U100+W100) -> 0 | W100: =IF((S102+W102)>100,W102*100/(S102+W102),W102) -> 0 | X100: =IF((X102+AB102)>100,X102*100/(X102+AB102),X102) -> 99.99783761 | Y100: =X100*AVERAGEIF(Y105:Y116,">0")/100 -> 99.83972038 | Z100: =X100*(100-AVERAGEIF(Y105:Y116,">0"))/100 -> 0.1581172288 | AA100: =100-(Y100+Z100+AB100) -> 0 | AB100: =IF((X102+AB102)>100,AB102*100/(X102+AB102),AB102) -> 0.002162387847
A101: Regression period: | C101: =MinRegYear(C99,C105:C116) -> 2002 | D101: =IF(MAX(C105:C116)-MIN(C105:C116)<5,AVERAGEIF(C105:C116,">0",D105:D116), IF(FORECAST($C101,D$105:D$116,$C$105:$C$116)<0,0, IF(FORECAST($C101,D$105:D$116,$C$105:$C$116)>100,100, FORECAST($C101,D$105:D$116,$C$105:$C$116)))) -> 82.03474985 | H101: =IF(MAX(C105:C116)-MIN(C105:C116)<5,AVERAGEIF(C105:C116,">0",H105:H116), IF(FORECAST($C101,H$105:H$116,$C$105:$C$116)<0,0, IF(FORECAST($C101,H$105:H$116,$C$105:$C$116)>100,100, FORECAST($C101,H$105:H$116,$C$105:$C$116)))) -> 2.390545113 | I101: =IF(MAX(C105:C116)-MIN(C105:C116)<5,AVERAGEIF(C105:C116,">0",I105:I116), IF(FORECAST($C101,I$105:I$116,$C$105:$C$116)<0,0, IF(FORECAST($C101,I$105:I$116,$C$105:$C$116)>100,100, FORECAST($C101,I$105:I$116,$C$105:$C$116)))) -> 83.97090145 | M101: =IF(MAX(C105:C116)-MIN(C105:C116)<5,AVERAGEIF(C105:C116,">0",M105:M116), IF(FORECAST($C101,M$105:M$116,$C$105:$C$116)<0,0, IF(FORECAST($C101,M$105:M$116,$C$105:$C$116)>100,100, FORECAST($C101,M$105:M$116,$C$105:$C$116)))) -> 3.351066244 | N101: =IF(MAX(C105:C116)-MIN(C105:C116)<5,AVERAGEIF(C105:C116,">0",N105:N116), IF(FORECAST($C101,N$105:N$116,$C$105:$C$116)<0,0, IF(FORECAST($C101,N$105:N$116,$C$105:$C$116)>100,100, FORECAST($C101,N$105:N$116,$C$105:$C$116)))) -> 88.27654355 | R101: =IF(MAX(C105:C116)-MIN(C105:C116)<5,AVERAGEIF(C105:C116,">0",R105:R116), IF(FORECAST($C101,R$105:R$116,$C$105:$C$116)<0,0, IF(FORECAST($C101,R$105:R$116,$C$105:$C$116)>100,100, FORECAST($C101,R$105:R$116,$C$105:$C$116)))) -> 3.599857764 | S101: =IF(MAX(C105:C116)-MIN(C105:C116)<5,AVERAGEIF(C105:C116,">0",S105:S116), IF(FORECAST($C101,S$105:S$116,$C$105:$C$116)<0,0, IF(FORECAST($C101,S$105:S$116,$C$105:$C$116)>100,100, FORECAST($C101,S$105:S$116,$C$105:$C$116)))) -> 94.91914177 | W101: =IF(MAX(C105:C116)-MIN(C105:C116)<5,AVERAGEIF(C105:C116,">0",W105:W116), IF(FORECAST($C101,W$105:W$116,$C$105:$C$116)<0,0, IF(FORECAST($C101,W$105:W$116,$C$105:$C$116)>100,100, FORECAST($C101,W$105:W$116,$C$105:$C$116)))) -> 1.215502838 | X101: =IF(MAX(C105:C116)-MIN(C105:C116)<5,AVERAGEIF(C105:C116,">0",X105:X116), IF(FORECAST($C101,X$105:X$116,$C$105:$C$116)<0,0, IF(FORECAST($C101,X$105:X$116,$C$105:$C$116)>100,100, FORECAST($C101,X$105:X$116,$C$105:$C$116)))) -> 98.78349428 | AB101: =IF(MAX(C105:C116)-MIN(C105:C116)<5,AVERAGEIF(C105:C116,">0",AB105:AB116), IF(FORECAST($C101,AB$105:AB$116,$C$105:$C$116)<0,0, IF(FORECAST($C101,AB$105:AB$116,$C$105:$C$116)>100,100, FORECAST($C101,AB$105:AB$116,$C$105:$C$116)))) -> 0.006741707892
C102: =MaxRegYear(C100,C105:C116) -> 2014 | D102: =IF(MAX(C105:C116)-MIN(C105:C116)<5,AVERAGEIF(C105:C116,">0",D105:D116), IF(FORECAST($C102,D$105:D$116,$C$105:$C$116)<0,0, IF(FORECAST($C102,D$105:D$116,$C$105:$C$116)>100,100, FORECAST($C102,D$105:D$116,$C$105:$C$116)))) -> 95.50837541 | H102: =IF(MAX(C105:C116)-MIN(C105:C116)<5,AVERAGEIF(C105:C116,">0",H105:H116), IF(FORECAST($C102,H$105:H$116,$C$105:$C$116)<0,0, IF(FORECAST($C102,H$105:H$116,$C$105:$C$116)>100,100, FORECAST($C102,H$105:H$116,$C$105:$C$116)))) -> 2.799192845 | I102: =IF(MAX(C105:C116)-MIN(C105:C116)<5,AVERAGEIF(C105:C116,">0",I105:I116), IF(FORECAST($C102,I$105:I$116,$C$105:$C$116)<0,0, IF(FORECAST($C102,I$105:I$116,$C$105:$C$116)>100,100, FORECAST($C102,I$105:I$116,$C$105:$C$116)))) -> 97.28846305 | M102: =IF(MAX(C105:C116)-MIN(C105:C116)<5,AVERAGEIF(C105:C116,">0",M105:M116), IF(FORECAST($C102,M$105:M$116,$C$105:$C$116)<0,0, IF(FORECAST($C102,M$105:M$116,$C$105:$C$116)>100,100, FORECAST($C102,M$105:M$116,$C$105:$C$116)))) -> 2.232098291 | N102: =IF(MAX(C105:C116)-MIN(C105:C116)<5,AVERAGEIF(C105:C116,">0",N105:N116), IF(FORECAST($C102,N$105:N$116,$C$105:$C$116)<0,0, IF(FORECAST($C102,N$105:N$116,$C$105:$C$116)>100,100, FORECAST($C102,N$105:N$116,$C$105:$C$116)))) -> 100 | R102: =IF(MAX(C105:C116)-MIN(C105:C116)<5,AVERAGEIF(C105:C116,">0",R105:R116), IF(FORECAST($C102,R$105:R$116,$C$105:$C$116)<0,0, IF(FORECAST($C102,R$105:R$116,$C$105:$C$116)>100,100, FORECAST($C102,R$105:R$116,$C$105:$C$116)))) -> 0 | S102: =IF(MAX(C105:C116)-MIN(C105:C116)<5,AVERAGEIF(C105:C116,">0",S105:S116), IF(FORECAST($C102,S$105:S$116,$C$105:$C$116)<0,0, IF(FORECAST($C102,S$105:S$116,$C$105:$C$116)>100,100, FORECAST($C102,S$105:S$116,$C$105:$C$116)))) -> 100 | W102: =IF(MAX(C105:C116)-MIN(C105:C116)<5,AVERAGEIF(C105:C116,">0",W105:W116), IF(FORECAST($C102,W$105:W$116,$C$105:$C$116)<0,0, IF(FORECAST($C102,W$105:W$116,$C$105:$C$116)>100,100, FORECAST($C102,W$105:W$116,$C$105:$C$116)))) -> 0 | X102: =IF(MAX(C105:C116)-MIN(C105:C116)<5,AVERAGEIF(C105:C116,">0",X105:X116), IF(FORECAST($C102,X$105:X$116,$C$105:$C$116)<0,0, IF(FORECAST($C102,X$105:X$116,$C$105:$C$116)>100,100, FORECAST($C102,X$105:X$116,$C$105:$C$116)))) -> 100 | AB102: =IF(MAX(C105:C116)-MIN(C105:C116)<5,AVERAGEIF(C105:C116,">0",AB105:AB116), IF(FORECAST($C102,AB$105:AB$116,$C$105:$C$116)<0,0, IF(FORECAST($C102,AB$105:AB$116,$C$105:$C$116)>100,100, FORECAST($C102,AB$105:AB$116,$C$105:$C$116)))) -> 0.002162434607
B104: Survey | C104: Year | D104: Improved | E104: % Improved < = 30min | H104: Surface water | I104: Improved | J104: % Improved < = 30min | M104: Surface water | N104: Improved | O104: % Improved < = 30min | R104: Surface water | S104: Improved | T104: % Improved < = 30min | W104: Surface water | X104: Improved | Y104: % Improved < = 30min | AB104: Surface water
B105: EPHPM01 | D105: =IF(ISERROR(INDIRECT(CONCATENATE($B105,"!C16"))),"",INDIRECT(CONCATENATE($B105,"!C16"))) -> 93.16654227 | E105: =IF(ISERROR(INDIRECT(CONCATENATE($B105,"!C23"))),"",INDIRECT(CONCATENATE($B105,"!C23"))) -> N/A | H105: =IF(ISERROR(INDIRECT(CONCATENATE($B105,"!C21"))),"",INDIRECT(CONCATENATE($B105,"!C21"))) -> 2.265278192 | I105: =IF(ISERROR(INDIRECT(CONCATENATE($B105,"!D16"))),"",INDIRECT(CONCATENATE($B105,"!D16"))) -> 94.53209821 | J105: =IF(ISERROR(INDIRECT(CONCATENATE($B105,"!D23"))),"",INDIRECT(CONCATENATE($B105,"!D23"))) -> N/A | M105: =IF(ISERROR(INDIRECT(CONCATENATE($B105,"!D21"))),"",INDIRECT(CONCATENATE($B105,"!D21"))) -> 1.368349992 | N105: =IF(ISERROR(INDIRECT(CONCATENATE($B105,"!E16"))),"",INDIRECT(CONCATENATE($B105,"!E16"))) -> 96.75814213 | O105: =IF(ISERROR(INDIRECT(CONCATENATE($B105,"!E23"))),"",INDIRECT(CONCATENATE($B105,"!E23"))) -> N/A | R105: =IF(ISERROR(INDIRECT(CONCATENATE($B105,"!E21"))),"",INDIRECT(CONCATENATE($B105,"!E21"))) -> 0.2451108609 | S105: =IF(ISERROR(INDIRECT(CONCATENATE($B105,"!F16"))),"",INDIRECT(CONCATENATE($B105,"!F16"))) -> 97.59262987 | T105: =IF(ISERROR(INDIRECT(CONCATENATE($B105,"!F23"))),"",INDIRECT(CONCATENATE($B105,"!F23"))) -> N/A | W105: =IF(ISERROR(INDIRECT(CONCATENATE($B105,"!F21"))),"",INDIRECT(CONCATENATE($B105,"!F21"))) -> 0.03599442359 | X105: =IF(ISERROR(INDIRECT(CONCATENATE($B105,"!G16"))),"",INDIRECT(CONCATENATE($B105,"!G16"))) -> 99.02879895 | Y105: =IF(ISERROR(INDIRECT(CONCATENATE($B105,"!G23"))),"",INDIRECT(CONCATENATE($B105,"!G23"))) -> N/A | AB105: =IF(ISERROR(INDIRECT(CONCATENATE($B105,"!G221"))),"",INDIRECT(CONCATENATE($B105,"!G21"))) -> 0
B106: EPHPM03 | D106: 90.49816482 | E106: N/A | H106: 2.188719961 | I106: 87.58717739 | J106: N/A | M106: 3.328060319 | N106: 84.29067071 | O106: N/A | R106: 4.788095495 | S106: 96.51246656 | T106: N/A | W106: 0.02124612781 | X106: 99.5930999 | Y106: N/A | AB106: 0
B107: EPHPM04 | C107: 2004 | D107: 89.88571847 | E107: N/A | H107: 0.788274637 | I107: 86.05052083 | J107: N/A | M107: 5.020697666 | N107: 85.03981336 | O107: N/A | R107: 6.408343107 | S107: 92.44890868 | T107: N/A | W107: 2.342349902 | X107: 98.35580912 | Y107: N/A | AB107: 0
B108: EPHPM05 | C108: 2005 | D108: 83.41580063 | E108: N/A | H108: 3.246954572 | I108: 85.66702358 | J108: N/A | M108: 2.247514394 | N108: 92.85929237 | O108: N/A | R108: 1.161148017 | S108: 97.65361121 | T108: N/A | W108: 0.1476427555 | X108: 99.59750433 | Y108: N/A | AB108: 0
B109: EPHPM06 | C109: 2006 | D109: 92.95491821 | E109: N/A | H109: 3.067515533 | I109: 94.27870421 | J109: N/A | M109: 2.780596468 | N109: 97.42216488 | O109: N/A | R109: 1.197493719 | S109: 99.27375368 | T109: N/A | W109: 0.1842340293 | X109: 99.89873302 | Y109: N/A | AB109: 0
B110: DHS06 | C110: 2006 | D110: 74.94176091 | E110: 98.89240752 | H110: 3.333222308 | I110: 84.63358503 | J110: 99.4288651 | M110: 1.661834114 | N110: 93.71849161 | O110: 99.43458911 | R110: 0.4043724109 | S110: 98.20332886 | T110: 99.55182689 | W110: 0.04454081294 | X110: 99.01031316 | Y110: 99.84187935 | AB110: 0.024931599
B111: DHS12 | C111: 2012 | D111: =IF(ISERROR(INDIRECT(CONCATENATE($B111,"!C16"))),"",INDIRECT(CONCATENATE($B111,"!C16"))) -> 94.8 | E111: =IF(ISERROR(INDIRECT(CONCATENATE($B111,"!C23"))),"",INDIRECT(CONCATENATE($B111,"!C23"))) -> N/A | H111: =IF(ISERROR(INDIRECT(CONCATENATE($B111,"!C21"))),"",INDIRECT(CONCATENATE($B111,"!C21"))) -> 2.3 | I111: =IF(ISERROR(INDIRECT(CONCATENATE($B111,"!D16"))),"",INDIRECT(CONCATENATE($B111,"!D16"))) -> 94.75 | J111: =IF(ISERROR(INDIRECT(CONCATENATE($B111,"!D23"))),"",INDIRECT(CONCATENATE($B111,"!D23"))) -> N/A | M111: =IF(ISERROR(INDIRECT(CONCATENATE($B111,"!D21"))),"",INDIRECT(CONCATENATE($B111,"!D21"))) -> 2.9 | N111: =IF(ISERROR(INDIRECT(CONCATENATE($B111,"!E16"))),"",INDIRECT(CONCATENATE($B111,"!E16"))) -> 97.7 | O111: =IF(ISERROR(INDIRECT(CONCATENATE($B111,"!E23"))),"",INDIRECT(CONCATENATE($B111,"!E23"))) -> N/A | R111: =IF(ISERROR(INDIRECT(CONCATENATE($B111,"!E21"))),"",INDIRECT(CONCATENATE($B111,"!E21"))) -> 1.2 | S111: =IF(ISERROR(INDIRECT(CONCATENATE($B111,"!F16"))),"",INDIRECT(CONCATENATE($B111,"!F16"))) -> 99.25 | T111: =IF(ISERROR(INDIRECT(CONCATENATE($B111,"!F23"))),"",INDIRECT(CONCATENATE($B111,"!F23"))) -> N/A | W111: =IF(ISERROR(INDIRECT(CONCATENATE($B111,"!F21"))),"",INDIRECT(CONCATENATE($B111,"!F21"))) -> 0.2 | X111: =IF(ISERROR(INDIRECT(CONCATENATE($B111,"!G16"))),"",INDIRECT(CONCATENATE($B111,"!G16"))) -> 99.85 | Y111: =IF(ISERROR(INDIRECT(CONCATENATE($B111,"!G23"))),"",INDIRECT(CONCATENATE($B111,"!G23"))) -> N/A | AB111: =IF(ISERROR(INDIRECT(CONCATENATE($B111,"!G221"))),"",INDIRECT(CONCATENATE($B111,"!G21"))) -> 0
D112: =IF(ISERROR(INDIRECT(CONCATENATE($B112,"!C16"))),"",INDIRECT(CONCATENATE($B112,"!C16"))) ->  | E112: =IF(ISERROR(INDIRECT(CONCATENATE($B112,"!C23"))),"",INDIRECT(CONCATENATE($B112,"!C23"))) ->  | H112: =IF(ISERROR(INDIRECT(CONCATENATE($B112,"!C21"))),"",INDIRECT(CONCATENATE($B112,"!C21"))) ->  | I112: =IF(ISERROR(INDIRECT(CONCATENATE($B112,"!D16"))),"",INDIRECT(CONCATENATE($B112,"!D16"))) ->  | J112: =IF(ISERROR(INDIRECT(CONCATENATE($B112,"!D23"))),"",INDIRECT(CONCATENATE($B112,"!D23"))) ->  | M112: =IF(ISERROR(INDIRECT(CONCATENATE($B112,"!D21"))),"",INDIRECT(CONCATENATE($B112,"!D21"))) ->  | N112: =IF(ISERROR(INDIRECT(CONCATENATE($B112,"!E16"))),"",INDIRECT(CONCATENATE($B112,"!E16"))) ->  | O112: =IF(ISERROR(INDIRECT(CONCATENATE($B112,"!E23"))),"",INDIRECT(CONCATENATE($B112,"!E23"))) ->  | R112: =IF(ISERROR(INDIRECT(CONCATENATE($B112,"!E21"))),"",INDIRECT(CONCATENATE($B112,"!E21"))) ->  | S112: =IF(ISERROR(INDIRECT(CONCATENATE($B112,"!F16"))),"",INDIRECT(CONCATENATE($B112,"!F16"))) ->  | T112: =IF(ISERROR(INDIRECT(CONCATENATE($B112,"!F23"))),"",INDIRECT(CONCATENATE($B112,"!F23"))) ->  | W112: =IF(ISERROR(INDIRECT(CONCATENATE($B112,"!F21"))),"",INDIRECT(CONCATENATE($B112,"!F21"))) ->  | X112: =IF(ISERROR(INDIRECT(CONCATENATE($B112,"!G16"))),"",INDIRECT(CONCATENATE($B112,"!G16"))) ->  | Y112: =IF(ISERROR(INDIRECT(CONCATENATE($B112,"!G23"))),"",INDIRECT(CONCATENATE($B112,"!G23"))) ->  | AB112: =IF(ISERROR(INDIRECT(CONCATENATE($B112,"!G221"))),"",INDIRECT(CONCATENATE($B112,"!G21"))) -> 
B118: =CONCATENATE("National use of drinking water sources, ",C99,"–",C100) -> National use of drinking water sources, 2000–2018 | S118: Data points used for regression
E153: =IF(ISERROR(INDIRECT(CONCATENATE($B153,"!M18"))),"",INDIRECT(CONCATENATE($B153,"!M18"))) ->  | F153: =IF(ISERROR(INDIRECT(CONCATENATE($B153,"!M19"))),"",INDIRECT(CONCATENATE($B153,"!M19"))) ->  | G153: =IF(ISERROR(INDIRECT(CONCATENATE($B153,"!M20"))),"",INDIRECT(CONCATENATE($B153,"!M20"))) ->  | H153: =IF(ISERROR(INDIRECT(CONCATENATE($B153,"!M21"))),"",INDIRECT(CONCATENATE($B153,"!M21"))) ->  | J153: =IF(ISERROR(INDIRECT(CONCATENATE($B153,"!N18"))),"",INDIRECT(CONCATENATE($B153,"!N18"))) ->  | K153: =IF(ISERROR(INDIRECT(CONCATENATE($B153,"!N19"))),"",INDIRECT(CONCATENATE($B153,"!N19"))) ->  | L153: =IF(ISERROR(INDIRECT(CONCATENATE($B153,"!N20"))),"",INDIRECT(CONCATENATE($B153,"!N20"))) ->  | M153: =IF(ISERROR(INDIRECT(CONCATENATE($B153,"!N21"))),"",INDIRECT(CONCATENATE($B153,"!N21"))) ->  | O153: =IF(ISERROR(INDIRECT(CONCATENATE($B153,"!O18"))),"",INDIRECT(CONCATENATE($B153,"!O18"))) ->  | P153: =IF(ISERROR(INDIRECT(CONCATENATE($B153,"!O19"))),"",INDIRECT(CONCATENATE($B153,"!O19"))) ->  | Q153: =IF(ISERROR(INDIRECT(CONCATENATE($B153,"!O20"))),"",INDIRECT(CONCATENATE($B153,"!O20"))) ->  | R153: =IF(ISERROR(INDIRECT(CONCATENATE($B153,"!O21"))),"",INDIRECT(CONCATENATE($B153,"!O21"))) ->  | T153: =IF(ISERROR(INDIRECT(CONCATENATE($B153,"!P18"))),"",INDIRECT(CONCATENATE($B153,"!P18"))) ->  | U153: =IF(ISERROR(INDIRECT(CONCATENATE($B153,"!P19"))),"",INDIRECT(CONCATENATE($B153,"!P19"))) ->  | V153: =IF(ISERROR(INDIRECT(CONCATENATE($B153,"!P20"))),"",INDIRECT(CONCATENATE($B153,"!P20"))) ->  | W153: =IF(ISERROR(INDIRECT(CONCATENATE($B153,"!P21"))),"",INDIRECT(CONCATENATE($B153,"!P21"))) ->  | Y153: =IF(ISERROR(INDIRECT(CONCATENATE($B153,"!Q18"))),"",INDIRECT(CONCATENATE($B153,"!Q18"))) ->  | Z153: =IF(ISERROR(INDIRECT(CONCATENATE($B153,"!Q19"))),"",INDIRECT(CONCATENATE($B153,"!Q19"))) ->  | AA153: =IF(ISERROR(INDIRECT(CONCATENATE($B153,"!Q20"))),"",INDIRECT(CONCATENATE($B153,"!Q20"))) ->  | AB153: =IF(ISERROR(INDIRECT(CONCATENATE($B153,"!Q21"))),"",INDIRECT(CONCATENATE($B153,"!Q1"))) -> 
A197: URBAN | D197: Poorest | I197: Poor | N197: Middle | S197: Rich | X197: Richest
D198: Improved | E198: Basic | F198: Limited | G198: Unimproved | H198: Surface water | I198: Improved | J198: Basic | K198: Limited | L198: Unimproved | M198: Surface water | N198: Improved | O198: Basic | P198: Limited | Q198: Unimproved | R198: Surface water | S198: Improved | T198: Basic | U198: Limited | V198: Unimproved | W198: Surface water | X198: Improved | Y198: Basic | Z198: Limited | AA198: Unimproved | AB198: Surface water
A199: Forecast period: | C199: 2000 | D199: =IF((D201+H201)>100,D201*100/(D201+H201),D201) -> 89.28711694 | E199: =D199*AVERAGEIF(E205:E216,">0")/100 -> 89.06763228 | F199: =D199*(100-AVERAGEIF(E205:E216,">0"))/100 -> 0.2194846566 | G199: =100-(E199+F199+H199) -> 10.66226111 | H199: =IF((D201+H201)>100,H201*100/(D201+H201),H201) -> 0.05062195602 | I199: =IF((I201+M201)>100,I201*100/(I201+M201),I201) -> 96.80076068 | J199: =I199*AVERAGEIF(J205:J216,">0")/100 -> 96.17032373 | K199: =I199*(100-AVERAGEIF(J205:J216,">0"))/100 -> 0.6304369517 | L199: =100-(J199+K199+M199) -> 3.199239316 | M199: =IF((I201+M201)>100,M201*100/(I201+M201),M201) -> 0 | N199: =IF((N201+R201)>100,N201*100/(N201+R201),N201) -> 97.86308293 | O199: =N199*AVERAGEIF(O205:O216,">0")/100 -> 97.58332149 | P199: =N199*(100-AVERAGEIF(O205:O216,">0"))/100 -> 0.2797614331 | Q199: =100-(O199+P199+R199) -> 2.136917074 | R199: =IF((N201+R201)>100,R201*100/(N201+R201),R201) -> 0 | S199: =IF((S201+W201)>100,S201*100/(S201+W201),S201) -> 98.96344562 | T199: =S199*AVERAGEIF(T205:T216,">0")/100 -> 98.88348704 | U199: =S199*(100-AVERAGEIF(T205:T216,">0"))/100 -> 0.07995858091 | V199: =100-(T199+U199+W199) -> 1.034406592 | W199: =IF((S201+W201)>100,W201*100/(S201+W201),W201) -> 0.002147787312 | X199: =IF((X201+AB201)>100,X201*100/(X201+AB201),X201) -> 99.75239014 | Y199: =X199*AVERAGEIF(Y205:Y216,">0")/100 -> 99.53314251 | Z199: =X199*(100-AVERAGEIF(Y205:Y216,">0"))/100 -> 0.219247633 | AA199: =100-(Y199+Z199+AB199) -> 0.2476098597 | AB199: =IF((X201+AB201)>100,AB201*100/(X201+AB201),AB201) -> 0
C200: 2018 | D200: =IF((D202+H202)>100,D202*100/(D202+H202),D202) -> 99.75393702 | E200: =D200*AVERAGEIF(E205:E216,">0")/100 -> 99.50872294 | F200: =D200*(100-AVERAGEIF(E205:E216,">0"))/100 -> 0.2452140842 | G200: =100-(E200+F200+H200) -> 0.1168821632 | H200: =IF((D202+H202)>100,H202*100/(D202+H202),H202) -> 0.1291808139 | I200: =IF((I202+M202)>100,I202*100/(I202+M202),I202) -> 98.86293874 | J200: =I200*AVERAGEIF(J205:J216,">0")/100 -> 98.21907139 | K200: =I200*(100-AVERAGEIF(J205:J216,">0"))/100 -> 0.6438673549 | L200: =100-(J200+K200+M200) -> 1.024469612 | M200: =IF((I202+M202)>100,M202*100/(I202+M202),M202) -> 0.1125916442 | N200: =IF((N202+R202)>100,N202*100/(N202+R202),N202) -> 99.98067777 | O200: =N200*AVERAGEIF(O205:O216,">0")/100 -> 99.69486277 | P200: =N200*(100-AVERAGEIF(O205:O216,">0"))/100 -> 0.2858150066 | Q200: =100-(O200+P200+R200) -> 0.01932222755 | R200: =IF((N202+R202)>100,R202*100/(N202+R202),R202) -> 0 | S200: =IF((S202+W202)>100,S202*100/(S202+W202),S202) -> 99.56372947 | T200: =S200*AVERAGEIF(T205:T216,">0")/100 -> 99.48328589 | U200: =S200*(100-AVERAGEIF(T205:T216,">0"))/100 -> 0.08044358671 | V200: =100-(T200+U200+W200) -> 0.4307817366 | W200: =IF((S202+W202)>100,W202*100/(S202+W202),W202) -> 0.005488789798 | X200: =IF((X202+AB202)>100,X202*100/(X202+AB202),X202) -> 99.87367624 | Y200: =X200*AVERAGEIF(Y205:Y216,">0")/100 -> 99.65416203 | Z200: =X200*(100-AVERAGEIF(Y205:Y216,">0"))/100 -> 0.21951421 | AA200: =100-(Y200+Z200+AB200) -> 0.1263237594 | AB200: =IF((X202+AB202)>100,AB202*100/(X202+AB202),AB202) -> 0
A201: Regression period: | C201: =MinRegYear(C199,C205:C216) -> 2000 | D201: =IF(MAX(C205:C216)-MIN(C205:C216)<5,AVERAGEIF(C205:C216,">0",D205:D216), IF(FORECAST($C201,D$205:D$216,$C$205:$C$216)<0,0, IF(FORECAST($C201,D$205:D$216,$C$205:$C$216)>100,100, FORECAST($C201,D$205:D$216,$C$205:$C$216)))) -> 89.28711694 | H201: =IF(MAX(C205:C216)-MIN(C205:C216)<5,AVERAGEIF(C205:C216,">0",H205:H216), IF(FORECAST($C201,H$205:H$216,$C$205:$C$216)<0,0, IF(FORECAST($C201,H$205:H$216,$C$205:$C$216)>100,100, FORECAST($C201,H$205:H$216,$C$205:$C$216)))) -> 0.05062195602 | I201: =IF(MAX(C205:C216)-MIN(C205:C216)<5,AVERAGEIF(C205:C216,">0",I205:I216), IF(FORECAST($C201,I$205:I$216,$C$205:$C$216)<0,0, IF(FORECAST($C201,I$205:I$216,$C$205:$C$216)>100,100, FORECAST($C201,I$205:I$216,$C$205:$C$216)))) -> 96.80076068 | M201: =IF(MAX(C205:C216)-MIN(C205:C216)<5,AVERAGEIF(C205:C216,">0",M205:M216), IF(FORECAST($C201,M$205:M$216,$C$205:$C$216)<0,0, IF(FORECAST($C201,M$205:M$216,$C$205:$C$216)>100,100, FORECAST($C201,M$205:M$216,$C$205:$C$216)))) -> 0 | N201: =IF(MAX(C205:C216)-MIN(C205:C216)<5,AVERAGEIF(C205:C216,">0",N205:N216), IF(FORECAST($C201,N$205:N$216,$C$205:$C$216)<0,0, IF(FORECAST($C201,N$205:N$216,$C$205:$C$216)>100,100, FORECAST($C201,N$205:N$216,$C$205:$C$216)))) -> 97.86308293 | R201: =IF(MAX(C205:C216)-MIN(C205:C216)<5,AVERAGEIF(C205:C216,">0",R205:R216), IF(FORECAST($C201,R$205:R$216,$C$205:$C$216)<0,0, IF(FORECAST($C201,R$205:R$216,$C$205:$C$216)>100,100, FORECAST($C201,R$205:R$216,$C$205:$C$216)))) -> 0 | S201: =IF(MAX(C205:C216)-MIN(C205:C216)<5,AVERAGEIF(C205:C216,">0",S205:S216), IF(FORECAST($C201,S$205:S$216,$C$205:$C$216)<0,0, IF(FORECAST($C201,S$205:S$216,$C$205:$C$216)>100,100, FORECAST($C201,S$205:S$216,$C$205:$C$216)))) -> 98.96344562 | W201: =IF(MAX(C205:C216)-MIN(C205:C216)<5,AVERAGEIF(C205:C216,">0",W205:W216), IF(FORECAST($C201,W$205:W$216,$C$205:$C$216)<0,0, IF(FORECAST($C201,W$205:W$216,$C$205:$C$216)>100,100, FORECAST($C201,W$205:W$216,$C$205:$C$216)))) -> 0.002147787312 | X201: =IF(MAX(C205:C216)-MIN(C205:C216)<5,AVERAGEIF(C205:C216,">0",X205:X216), IF(FORECAST($C201,X$205:X$216,$C$205:$C$216)<0,0, IF(FORECAST($C201,X$205:X$216,$C$205:$C$216)>100,100, FORECAST($C201,X$205:X$216,$C$205:$C$216)))) -> 99.75239014 | AB201: =IF(MAX(C205:C216)-MIN(C205:C216)<5,AVERAGEIF(C205:C216,">0",AB205:AB216), IF(FORECAST($C201,AB$205:AB$216,$C$205:$C$216)<0,0, IF(FORECAST($C201,AB$205:AB$216,$C$205:$C$216)>100,100, FORECAST($C201,AB$205:AB$216,$C$205:$C$216)))) -> 0
C202: =MaxRegYear(C200,C205:C216) -> 2014 | D202: =IF(MAX(C205:C216)-MIN(C205:C216)<5,AVERAGEIF(C205:C216,">0",D205:D216), IF(FORECAST($C202,D$205:D$216,$C$205:$C$216)<0,0, IF(FORECAST($C202,D$205:D$216,$C$205:$C$216)>100,100, FORECAST($C202,D$205:D$216,$C$205:$C$216)))) -> 99.75393702 | H202: =IF(MAX(C205:C216)-MIN(C205:C216)<5,AVERAGEIF(C205:C216,">0",H205:H216), IF(FORECAST($C202,H$205:H$216,$C$205:$C$216)<0,0, IF(FORECAST($C202,H$205:H$216,$C$205:$C$216)>100,100, FORECAST($C202,H$205:H$216,$C$205:$C$216)))) -> 0.1291808139 | I202: =IF(MAX(C205:C216)-MIN(C205:C216)<5,AVERAGEIF(C205:C216,">0",I205:I216), IF(FORECAST($C202,I$205:I$216,$C$205:$C$216)<0,0, IF(FORECAST($C202,I$205:I$216,$C$205:$C$216)>100,100, FORECAST($C202,I$205:I$216,$C$205:$C$216)))) -> 98.86293874 | M202: =IF(MAX(C205:C216)-MIN(C205:C216)<5,AVERAGEIF(C205:C216,">0",M205:M216), IF(FORECAST($C202,M$205:M$216,$C$205:$C$216)<0,0, IF(FORECAST($C202,M$205:M$216,$C$205:$C$216)>100,100, FORECAST($C202,M$205:M$216,$C$205:$C$216)))) -> 0.1125916442 | N202: =IF(MAX(C205:C216)-MIN(C205:C216)<5,AVERAGEIF(C205:C216,">0",N205:N216), IF(FORECAST($C202,N$205:N$216,$C$205:$C$216)<0,0, IF(FORECAST($C202,N$205:N$216,$C$205:$C$216)>100,100, FORECAST($C202,N$205:N$216,$C$205:$C$216)))) -> 99.98067777 | R202: =IF(MAX(C205:C216)-MIN(C205:C216)<5,AVERAGEIF(C205:C216,">0",R205:R216), IF(FORECAST($C202,R$205:R$216,$C$205:$C$216)<0,0, IF(FORECAST($C202,R$205:R$216,$C$205:$C$216)>100,100, FORECAST($C202,R$205:R$216,$C$205:$C$216)))) -> 0 | S202: =IF(MAX(C205:C216)-MIN(C205:C216)<5,AVERAGEIF(C205:C216,">0",S205:S216), IF(FORECAST($C202,S$205:S$216,$C$205:$C$216)<0,0, IF(FORECAST($C202,S$205:S$216,$C$205:$C$216)>100,100, FORECAST($C202,S$205:S$216,$C$205:$C$216)))) -> 99.56372947 | W202: =IF(MAX(C205:C216)-MIN(C205:C216)<5,AVERAGEIF(C205:C216,">0",W205:W216), IF(FORECAST($C202,W$205:W$216,$C$205:$C$216)<0,0, IF(FORECAST($C202,W$205:W$216,$C$205:$C$216)>100,100, FORECAST($C202,W$205:W$216,$C$205:$C$216)))) -> 0.005488789798 | X202: =IF(MAX(C205:C216)-MIN(C205:C216)<5,AVERAGEIF(C205:C216,">0",X205:X216), IF(FORECAST($C202,X$205:X$216,$C$205:$C$216)<0,0, IF(FORECAST($C202,X$205:X$216,$C$205:$C$216)>100,100, FORECAST($C202,X$205:X$216,$C$205:$C$216)))) -> 99.87367624 | AB202: =IF(MAX(C205:C216)-MIN(C205:C216)<5,AVERAGEIF(C205:C216,">0",AB205:AB216), IF(FORECAST($C202,AB$205:AB$216,$C$205:$C$216)<0,0, IF(FORECAST($C202,AB$205:AB$216,$C$205:$C$216)>100,100, FORECAST($C202,AB$205:AB$216,$C$205:$C$216)))) -> 0
B204: Survey | C204: Year | D204: Improved | E204: % Improved < = 30min | H204: Surface water | I204: Improved | J204: % Improved < = 30min | M204: Surface water | N204: Improved | O204: % Improved < = 30min | R204: Surface water | S204: Improved | T204: % Improved < = 30min | W204: Surface water | X204: Improved | Y204: % Improved < = 30min | AB204: Surface water
B205: EPHPM01 | C205: 2001 | D205: =IF(ISERROR(INDIRECT(CONCATENATE($B205,"!H16"))),"",INDIRECT(CONCATENATE($B205,"!H16"))) -> 95.14774042 | E205: =IF(ISERROR(INDIRECT(CONCATENATE($B205,"!H23"))),"",INDIRECT(CONCATENATE($B205,"!H23"))) -> N/A | H205: =IF(ISERROR(INDIRECT(CONCATENATE($B205,"!H21"))),"",INDIRECT(CONCATENATE($B205,"!H21"))) -> 0.01372036286 | I205: =IF(ISERROR(INDIRECT(CONCATENATE($B205,"!I16"))),"",INDIRECT(CONCATENATE($B205,"!I16"))) -> 99.00711696 | J205: =IF(ISERROR(INDIRECT(CONCATENATE($B205,"!I23"))),"",INDIRECT(CONCATENATE($B205,"!I23"))) -> N/A | M205: =IF(ISERROR(INDIRECT(CONCATENATE($B205,"!I21"))),"",INDIRECT(CONCATENATE($B205,"!I21"))) -> 0 | N205: =IF(ISERROR(INDIRECT(CONCATENATE($B205,"!J16"))),"",INDIRECT(CONCATENATE($B205,"!J16"))) -> 98.81188856 | O205: =IF(ISERROR(INDIRECT(CONCATENATE($B205,"!J23"))),"",INDIRECT(CONCATENATE($B205,"!J23"))) -> N/A | R205: =IF(ISERROR(INDIRECT(CONCATENATE($B205,"!J21"))),"",INDIRECT(CONCATENATE($B205,"!J21"))) -> 0 | S205: =IF(ISERROR(INDIRECT(CONCATENATE($B205,"!K16"))),"",INDIRECT(CONCATENATE($B205,"!K16"))) -> 99.57186615 | T205: =IF(ISERROR(INDIRECT(CONCATENATE($B205,"!K23"))),"",INDIRECT(CONCATENATE($B205,"!K23"))) -> N/A | W205: =IF(ISERROR(INDIRECT(CONCATENATE($B205,"!K21"))),"",INDIRECT(CONCATENATE($B205,"!K21"))) -> 0 | X205: =IF(ISERROR(INDIRECT(CONCATENATE($B205,"!L16"))),"",INDIRECT(CONCATENATE($B205,"!L16"))) -> 99.81440722 | Y205: =IF(ISERROR(INDIRECT(CONCATENATE($B205,"!L23"))),"",INDIRECT(CONCATENATE($B205,"!L23"))) -> N/A | AB205: =IF(ISERROR(INDIRECT(CONCATENATE($B205,"!L221"))),"",INDIRECT(CONCATENATE($B205,"!L21"))) -> 0
B206: EPHPM03 | C206: 2003 | D206: 88.98869693 | E206: N/A | H206: 0.07405410319 | I206: 96.62752348 | J206: N/A | M206: 0 | N206: 98.16374758 | O206: N/A | R206: 0 | S206: 99.1795385 | T206: N/A | W206: 0 | X206: 100 | Y206: N/A | AB206: 0
B207: EPHPM04 | C207: 2004 | D207: 87.63291068 | E207: N/A | H207: 0.1136207781 | I207: 94.04405397 | J207: N/A | M207: 0.06141824693 | N207: 97.35067139 | O207: N/A | R207: 0 | S207: 98.00852239 | T207: N/A | W207: 0 | X207: 99.50732055 | Y207: N/A | AB207: 0
B208: EPHPM05 | C208: 2005 | D208: 90.02162018 | E208: N/A | H208: 0.08259348532 | I208: 97.46911077 | J208: N/A | M208: 0.02972383601 | N208: 98.05683145 | O208: N/A | R208: 0 | S208: 99.37275328 | T208: N/A | W208: 0 | X208: 99.68542533 | Y208: N/A | AB208: 0
B209: EPHPM06 | C209: 2006 | D209: 98.12294629 | E209: N/A | H209: 0.06099113522 | I209: 99.28544977 | J209: N/A | M209: 0.02127358646 | N209: 99.42225884 | O209: N/A | R209: 0 | S209: 99.85693658 | T209: N/A | W209: 0 | X209: 99.99119007 | Y209: N/A | AB209: 0
B210: DHS06 | C210: 2006 | D210: 93.55821429 | E210: 99.75418105 | H210: 0.1169936663 | I210: 97.77211186 | J210: 99.34872728 | M210: 0.03977565414 | N210: 99.03268332 | O210: 99.71412976 | R210: 0 | S210: 98.69096691 | T210: 99.91920392 | W210: 0.02386430347 | X210: 99.68892965 | Y210: 99.78020814 | AB210: 0
B211: DHS12 | C211: 2012 | D211: 99.2 | E211: N/A | H211: 0.1 | I211: 98.85 | J211: N/A | M211: 0.1 | N211: 99.8 | O211: N/A | R211: 0 | S211: 99.65 | T211: N/A | W211: 0 | X211: 99.9 | Y211: N/A | AB211: 0
B218: =CONCATENATE("Urban use of drinking water sources, ",C199,"–",C200) -> Urban use of drinking water sources, 2000–2018 | S218: Data points used for regression
E253: =IF(ISERROR(INDIRECT(CONCATENATE($B253,"!M18"))),"",INDIRECT(CONCATENATE($B253,"!M18"))) ->  | F253: =IF(ISERROR(INDIRECT(CONCATENATE($B253,"!M19"))),"",INDIRECT(CONCATENATE($B253,"!M19"))) ->  | G253: =IF(ISERROR(INDIRECT(CONCATENATE($B253,"!M20"))),"",INDIRECT(CONCATENATE($B253,"!M20"))) ->  | H253: =IF(ISERROR(INDIRECT(CONCATENATE($B253,"!M21"))),"",INDIRECT(CONCATENATE($B253,"!M21"))) ->  | J253: =IF(ISERROR(INDIRECT(CONCATENATE($B253,"!N18"))),"",INDIRECT(CONCATENATE($B253,"!N18"))) ->  | K253: =IF(ISERROR(INDIRECT(CONCATENATE($B253,"!N19"))),"",INDIRECT(CONCATENATE($B253,"!N19"))) ->  | L253: =IF(ISERROR(INDIRECT(CONCATENATE($B253,"!N20"))),"",INDIRECT(CONCATENATE($B253,"!N20"))) ->  | M253: =IF(ISERROR(INDIRECT(CONCATENATE($B253,"!N21"))),"",INDIRECT(CONCATENATE($B253,"!N21"))) ->  | O253: =IF(ISERROR(INDIRECT(CONCATENATE($B253,"!O18"))),"",INDIRECT(CONCATENATE($B253,"!O18"))) ->  | P253: =IF(ISERROR(INDIRECT(CONCATENATE($B253,"!O19"))),"",INDIRECT(CONCATENATE($B253,"!O19"))) ->  | Q253: =IF(ISERROR(INDIRECT(CONCATENATE($B253,"!O20"))),"",INDIRECT(CONCATENATE($B253,"!O20"))) ->  | R253: =IF(ISERROR(INDIRECT(CONCATENATE($B253,"!O21"))),"",INDIRECT(CONCATENATE($B253,"!O21"))) ->  | T253: =IF(ISERROR(INDIRECT(CONCATENATE($B253,"!P18"))),"",INDIRECT(CONCATENATE($B253,"!P18"))) ->  | U253: =IF(ISERROR(INDIRECT(CONCATENATE($B253,"!P19"))),"",INDIRECT(CONCATENATE($B253,"!P19"))) ->  | V253: =IF(ISERROR(INDIRECT(CONCATENATE($B253,"!P20"))),"",INDIRECT(CONCATENATE($B253,"!P20"))) ->  | W253: =IF(ISERROR(INDIRECT(CONCATENATE($B253,"!P21"))),"",INDIRECT(CONCATENATE($B253,"!P21"))) ->  | Y253: =IF(ISERROR(INDIRECT(CONCATENATE($B253,"!Q18"))),"",INDIRECT(CONCATENATE($B253,"!Q18"))) ->  | Z253: =IF(ISERROR(INDIRECT(CONCATENATE($B253,"!Q19"))),"",INDIRECT(CONCATENATE($B253,"!Q19"))) ->  | AA253: =IF(ISERROR(INDIRECT(CONCATENATE($B253,"!Q20"))),"",INDIRECT(CONCATENATE($B253,"!Q20"))) ->  | AB253: =IF(ISERROR(INDIRECT(CONCATENATE($B253,"!Q21"))),"",INDIRECT(CONCATENATE($B253,"!Q1"))) -> 
E254: =IF(ISERROR(INDIRECT(CONCATENATE($B254,"!M18"))),"",INDIRECT(CONCATENATE($B254,"!M18"))) ->  | F254: =IF(ISERROR(INDIRECT(CONCATENATE($B254,"!M19"))),"",INDIRECT(CONCATENATE($B254,"!M19"))) ->  | G254: =IF(ISERROR(INDIRECT(CONCATENATE($B254,"!M20"))),"",INDIRECT(CONCATENATE($B254,"!M20"))) ->  | H254: =IF(ISERROR(INDIRECT(CONCATENATE($B254,"!M21"))),"",INDIRECT(CONCATENATE($B254,"!M21"))) ->  | J254: =IF(ISERROR(INDIRECT(CONCATENATE($B254,"!N18"))),"",INDIRECT(CONCATENATE($B254,"!N18"))) ->  | K254: =IF(ISERROR(INDIRECT(CONCATENATE($B254,"!N19"))),"",INDIRECT(CONCATENATE($B254,"!N19"))) ->  | L254: =IF(ISERROR(INDIRECT(CONCATENATE($B254,"!N20"))),"",INDIRECT(CONCATENATE($B254,"!N20"))) ->  | M254: =IF(ISERROR(INDIRECT(CONCATENATE($B254,"!N21"))),"",INDIRECT(CONCATENATE($B254,"!N21"))) ->  | O254: =IF(ISERROR(INDIRECT(CONCATENATE($B254,"!O18"))),"",INDIRECT(CONCATENATE($B254,"!O18"))) ->  | P254: =IF(ISERROR(INDIRECT(CONCATENATE($B254,"!O19"))),"",INDIRECT(CONCATENATE($B254,"!O19"))) ->  | Q254: =IF(ISERROR(INDIRECT(CONCATENATE($B254,"!O20"))),"",INDIRECT(CONCATENATE($B254,"!O20"))) ->  | R254: =IF(ISERROR(INDIRECT(CONCATENATE($B254,"!O21"))),"",INDIRECT(CONCATENATE($B254,"!O21"))) ->  | T254: =IF(ISERROR(INDIRECT(CONCATENATE($B254,"!P18"))),"",INDIRECT(CONCATENATE($B254,"!P18"))) ->  | U254: =IF(ISERROR(INDIRECT(CONCATENATE($B254,"!P19"))),"",INDIRECT(CONCATENATE($B254,"!P19"))) ->  | V254: =IF(ISERROR(INDIRECT(CONCATENATE($B254,"!P20"))),"",INDIRECT(CONCATENATE($B254,"!P20"))) ->  | W254: =IF(ISERROR(INDIRECT(CONCATENATE($B254,"!P21"))),"",INDIRECT(CONCATENATE($B254,"!P21"))) ->  | Y254: =IF(ISERROR(INDIRECT(CONCATENATE($B254,"!Q18"))),"",INDIRECT(CONCATENATE($B254,"!Q18"))) ->  | Z254: =IF(ISERROR(INDIRECT(CONCATENATE($B254,"!Q19"))),"",INDIRECT(CONCATENATE($B254,"!Q19"))) ->  | AA254: =IF(ISERROR(INDIRECT(CONCATENATE($B254,"!Q20"))),"",INDIRECT(CONCATENATE($B254,"!Q20"))) ->  | AB254: =IF(ISERROR(INDIRECT(CONCATENATE($B254,"!Q21"))),"",INDIRECT(CONCATENATE($B254,"!Q1"))) -> 
E255: =IF(ISERROR(INDIRECT(CONCATENATE($B255,"!M18"))),"",INDIRECT(CONCATENATE($B255,"!M18"))) ->  | F255: =IF(ISERROR(INDIRECT(CONCATENATE($B255,"!M19"))),"",INDIRECT(CONCATENATE($B255,"!M19"))) ->  | G255: =IF(ISERROR(INDIRECT(CONCATENATE($B255,"!M20"))),"",INDIRECT(CONCATENATE($B255,"!M20"))) ->  | H255: =IF(ISERROR(INDIRECT(CONCATENATE($B255,"!M21"))),"",INDIRECT(CONCATENATE($B255,"!M21"))) ->  | J255: =IF(ISERROR(INDIRECT(CONCATENATE($B255,"!N18"))),"",INDIRECT(CONCATENATE($B255,"!N18"))) ->  | K255: =IF(ISERROR(INDIRECT(CONCATENATE($B255,"!N19"))),"",INDIRECT(CONCATENATE($B255,"!N19"))) ->  | L255: =IF(ISERROR(INDIRECT(CONCATENATE($B255,"!N20"))),"",INDIRECT(CONCATENATE($B255,"!N20"))) ->  | M255: =IF(ISERROR(INDIRECT(CONCATENATE($B255,"!N21"))),"",INDIRECT(CONCATENATE($B255,"!N21"))) ->  | O255: =IF(ISERROR(INDIRECT(CONCATENATE($B255,"!O18"))),"",INDIRECT(CONCATENATE($B255,"!O18"))) ->  | P255: =IF(ISERROR(INDIRECT(CONCATENATE($B255,"!O19"))),"",INDIRECT(CONCATENATE($B255,"!O19"))) ->  | Q255: =IF(ISERROR(INDIRECT(CONCATENATE($B255,"!O20"))),"",INDIRECT(CONCATENATE($B255,"!O20"))) ->  | R255: =IF(ISERROR(INDIRECT(CONCATENATE($B255,"!O21"))),"",INDIRECT(CONCATENATE($B255,"!O21"))) ->  | T255: =IF(ISERROR(INDIRECT(CONCATENATE($B255,"!P18"))),"",INDIRECT(CONCATENATE($B255,"!P18"))) ->  | U255: =IF(ISERROR(INDIRECT(CONCATENATE($B255,"!P19"))),"",INDIRECT(CONCATENATE($B255,"!P19"))) ->  | V255: =IF(ISERROR(INDIRECT(CONCATENATE($B255,"!P20"))),"",INDIRECT(CONCATENATE($B255,"!P20"))) ->  | W255: =IF(ISERROR(INDIRECT(CONCATENATE($B255,"!P21"))),"",INDIRECT(CONCATENATE($B255,"!P21"))) ->  | Y255: =IF(ISERROR(INDIRECT(CONCATENATE($B255,"!Q18"))),"",INDIRECT(CONCATENATE($B255,"!Q18"))) ->  | Z255: =IF(ISERROR(INDIRECT(CONCATENATE($B255,"!Q19"))),"",INDIRECT(CONCATENATE($B255,"!Q19"))) ->  | AA255: =IF(ISERROR(INDIRECT(CONCATENATE($B255,"!Q20"))),"",INDIRECT(CONCATENATE($B255,"!Q20"))) ->  | AB255: =IF(ISERROR(INDIRECT(CONCATENATE($B255,"!Q21"))),"",INDIRECT(CONCATENATE($B255,"!Q1"))) -> 
E256: =IF(ISERROR(INDIRECT(CONCATENATE($B256,"!M18"))),"",INDIRECT(CONCATENATE($B256,"!M18"))) ->  | F256: =IF(ISERROR(INDIRECT(CONCATENATE($B256,"!M19"))),"",INDIRECT(CONCATENATE($B256,"!M19"))) ->  | G256: =IF(ISERROR(INDIRECT(CONCATENATE($B256,"!M20"))),"",INDIRECT(CONCATENATE($B256,"!M20"))) ->  | H256: =IF(ISERROR(INDIRECT(CONCATENATE($B256,"!M21"))),"",INDIRECT(CONCATENATE($B256,"!M21"))) ->  | J256: =IF(ISERROR(INDIRECT(CONCATENATE($B256,"!N18"))),"",INDIRECT(CONCATENATE($B256,"!N18"))) ->  | K256: =IF(ISERROR(INDIRECT(CONCATENATE($B256,"!N19"))),"",INDIRECT(CONCATENATE($B256,"!N19"))) ->  | L256: =IF(ISERROR(INDIRECT(CONCATENATE($B256,"!N20"))),"",INDIRECT(CONCATENATE($B256,"!N20"))) ->  | M256: =IF(ISERROR(INDIRECT(CONCATENATE($B256,"!N21"))),"",INDIRECT(CONCATENATE($B256,"!N21"))) ->  | O256: =IF(ISERROR(INDIRECT(CONCATENATE($B256,"!O18"))),"",INDIRECT(CONCATENATE($B256,"!O18"))) ->  | P256: =IF(ISERROR(INDIRECT(CONCATENATE($B256,"!O19"))),"",INDIRECT(CONCATENATE($B256,"!O19"))) ->  | Q256: =IF(ISERROR(INDIRECT(CONCATENATE($B256,"!O20"))),"",INDIRECT(CONCATENATE($B256,"!O20"))) ->  | R256: =IF(ISERROR(INDIRECT(CONCATENATE($B256,"!O21"))),"",INDIRECT(CONCATENATE($B256,"!O21"))) ->  | T256: =IF(ISERROR(INDIRECT(CONCATENATE($B256,"!P18"))),"",INDIRECT(CONCATENATE($B256,"!P18"))) ->  | U256: =IF(ISERROR(INDIRECT(CONCATENATE($B256,"!P19"))),"",INDIRECT(CONCATENATE($B256,"!P19"))) ->  | V256: =IF(ISERROR(INDIRECT(CONCATENATE($B256,"!P20"))),"",INDIRECT(CONCATENATE($B256,"!P20"))) ->  | W256: =IF(ISERROR(INDIRECT(CONCATENATE($B256,"!P21"))),"",INDIRECT(CONCATENATE($B256,"!P21"))) ->  | Y256: =IF(ISERROR(INDIRECT(CONCATENATE($B256,"!Q18"))),"",INDIRECT(CONCATENATE($B256,"!Q18"))) ->  | Z256: =IF(ISERROR(INDIRECT(CONCATENATE($B256,"!Q19"))),"",INDIRECT(CONCATENATE($B256,"!Q19"))) ->  | AA256: =IF(ISERROR(INDIRECT(CONCATENATE($B256,"!Q20"))),"",INDIRECT(CONCATENATE($B256,"!Q20"))) ->  | AB256: =IF(ISERROR(INDIRECT(CONCATENATE($B256,"!Q21"))),"",INDIRECT(CONCATENATE($B256,"!Q1"))) -> 
E257: =IF(ISERROR(INDIRECT(CONCATENATE($B257,"!M18"))),"",INDIRECT(CONCATENATE($B257,"!M18"))) ->  | F257: =IF(ISERROR(INDIRECT(CONCATENATE($B257,"!M19"))),"",INDIRECT(CONCATENATE($B257,"!M19"))) ->  | G257: =IF(ISERROR(INDIRECT(CONCATENATE($B257,"!M20"))),"",INDIRECT(CONCATENATE($B257,"!M20"))) ->  | H257: =IF(ISERROR(INDIRECT(CONCATENATE($B257,"!M21"))),"",INDIRECT(CONCATENATE($B257,"!M21"))) ->  | J257: =IF(ISERROR(INDIRECT(CONCATENATE($B257,"!N18"))),"",INDIRECT(CONCATENATE($B257,"!N18"))) ->  | K257: =IF(ISERROR(INDIRECT(CONCATENATE($B257,"!N19"))),"",INDIRECT(CONCATENATE($B257,"!N19"))) ->  | L257: =IF(ISERROR(INDIRECT(CONCATENATE($B257,"!N20"))),"",INDIRECT(CONCATENATE($B257,"!N20"))) ->  | M257: =IF(ISERROR(INDIRECT(CONCATENATE($B257,"!N21"))),"",INDIRECT(CONCATENATE($B257,"!N21"))) ->  | O257: =IF(ISERROR(INDIRECT(CONCATENATE($B257,"!O18"))),"",INDIRECT(CONCATENATE($B257,"!O18"))) ->  | P257: =IF(ISERROR(INDIRECT(CONCATENATE($B257,"!O19"))),"",INDIRECT(CONCATENATE($B257,"!O19"))) ->  | Q257: =IF(ISERROR(INDIRECT(CONCATENATE($B257,"!O20"))),"",INDIRECT(CONCATENATE($B257,"!O20"))) ->  | R257: =IF(ISERROR(INDIRECT(CONCATENATE($B257,"!O21"))),"",INDIRECT(CONCATENATE($B257,"!O21"))) ->  | T257: =IF(ISERROR(INDIRECT(CONCATENATE($B257,"!P18"))),"",INDIRECT(CONCATENATE($B257,"!P18"))) ->  | U257: =IF(ISERROR(INDIRECT(CONCATENATE($B257,"!P19"))),"",INDIRECT(CONCATENATE($B257,"!P19"))) ->  | V257: =IF(ISERROR(INDIRECT(CONCATENATE($B257,"!P20"))),"",INDIRECT(CONCATENATE($B257,"!P20"))) ->  | W257: =IF(ISERROR(INDIRECT(CONCATENATE($B257,"!P21"))),"",INDIRECT(CONCATENATE($B257,"!P21"))) ->  | Y257: =IF(ISERROR(INDIRECT(CONCATENATE($B257,"!Q18"))),"",INDIRECT(CONCATENATE($B257,"!Q18"))) ->  | Z257: =IF(ISERROR(INDIRECT(CONCATENATE($B257,"!Q19"))),"",INDIRECT(CONCATENATE($B257,"!Q19"))) ->  | AA257: =IF(ISERROR(INDIRECT(CONCATENATE($B257,"!Q20"))),"",INDIRECT(CONCATENATE($B257,"!Q20"))) ->  | AB257: =IF(ISERROR(INDIRECT(CONCATENATE($B257,"!Q21"))),"",INDIRECT(CONCATENATE($B257,"!Q1"))) -> 
A297: RURAL | D297: Poorest | I297: Poor | N297: Middle | S297: Rich | X297: Richest
D298: Improved | E298: Basic | F298: Limited | G298: Unimproved | H298: Surface water | I298: Improved | J298: Basic | K298: Limited | L298: Unimproved | M298: Surface water | N298: Improved | O298: Basic | P298: Limited | Q298: Unimproved | R298: Surface water | S298: Improved | T298: Basic | U298: Limited | V298: Unimproved | W298: Surface water | X298: Improved | Y298: Basic | Z298: Limited | AA298: Unimproved | AB298: Surface water
A299: Forecast period: | C299: 2000 | D299: =IF((D301+H301)>100,D301*100/(D301+H301),D301) -> 84.76185533 | E299: =D299*AVERAGEIF(E305:E316,">0")/100 -> 83.27818007 | F299: =D299*(100-AVERAGEIF(E305:E316,">0"))/100 -> 1.483675258 | G299: =100-(E299+F299+H299) -> 12.46457511 | H299: =IF((D301+H301)>100,H301*100/(D301+H301),H301) -> 2.77356956 | I299: =IF((I301+M301)>100,I301*100/(I301+M301),I301) -> 86.1616986 | J299: =I299*AVERAGEIF(J305:J316,">0")/100 -> 85.77880385 | K299: =I299*(100-AVERAGEIF(J305:J316,">0"))/100 -> 0.3828947577 | L299: =100-(J299+K299+M299) -> 10.98523158 | M299: =IF((I301+M301)>100,M301*100/(I301+M301),M301) -> 2.853069812 | N299: =IF((N301+R301)>100,N301*100/(N301+R301),N301) -> 89.81812721 | O299: =N299*AVERAGEIF(O305:O316,">0")/100 -> 89.02570582 | P299: =N299*(100-AVERAGEIF(O305:O316,">0"))/100 -> 0.7924213892 | Q299: =100-(O299+P299+R299) -> 8.265131011 | R299: =IF((N301+R301)>100,R301*100/(N301+R301),R301) -> 1.916741779 | S299: =IF((S301+W301)>100,S301*100/(S301+W301),S301) -> 90.13215622 | T299: =S299*AVERAGEIF(T305:T316,">0")/100 -> 89.63661129 | U299: =S299*(100-AVERAGEIF(T305:T316,">0"))/100 -> 0.4955449318 | V299: =100-(T299+U299+W299) -> 7.937558787 | W299: =IF((S301+W301)>100,W301*100/(S301+W301),W301) -> 1.93028499 | X299: =IF((X301+AB301)>100,X301*100/(X301+AB301),X301) -> 91.50998688 | Y299: =X299*AVERAGEIF(Y305:Y316,">0")/100 -> 91.01778816 | Z299: =X299*(100-AVERAGEIF(Y305:Y316,">0"))/100 -> 0.4921987125 | AA299: =100-(Y299+Z299+AB299) -> 7.140387299 | AB299: =IF((X301+AB301)>100,AB301*100/(X301+AB301),AB301) -> 1.349625825
C300: 2018 | D300: =IF((D302+H302)>100,D302*100/(D302+H302),D302) -> 88.86708773 | E300: =D300*AVERAGEIF(E305:E316,">0")/100 -> 87.3115543 | F300: =D300*(100-AVERAGEIF(E305:E316,">0"))/100 -> 1.555533427 | G300: =100-(E300+F300+H300) -> 8.33329587 | H300: =IF((D302+H302)>100,H302*100/(D302+H302),H302) -> 2.799616402 | I300: =IF((I302+M302)>100,I302*100/(I302+M302),I302) -> 88.81224891 | J300: =I300*AVERAGEIF(J305:J316,">0")/100 -> 88.41757535 | K300: =I300*(100-AVERAGEIF(J305:J316,">0"))/100 -> 0.3946735624 | L300: =100-(J300+K300+M300) -> 8.373171483 | M300: =IF((I302+M302)>100,M302*100/(I302+M302),M302) -> 2.814579604 | N300: =IF((N302+R302)>100,N302*100/(N302+R302),N302) -> 88.64574078 | O300: =N300*AVERAGEIF(O305:O316,">0")/100 -> 87.86366278 | P300: =N300*(100-AVERAGEIF(O305:O316,">0"))/100 -> 0.7820779973 | Q300: =100-(O300+P300+R300) -> 7.223835854 | R300: =IF((N302+R302)>100,R302*100/(N302+R302),R302) -> 4.130423366 | S300: =IF((S302+W302)>100,S302*100/(S302+W302),S302) -> 91.88947247 | T300: =S300*AVERAGEIF(T305:T316,">0")/100 -> 91.38426585 | U300: =S300*(100-AVERAGEIF(T305:T316,">0"))/100 -> 0.5052066241 | V300: =100-(T300+U300+W300) -> 4.296562364 | W300: =IF((S302+W302)>100,W302*100/(S302+W302),W302) -> 3.813965163 | X300: =IF((X302+AB302)>100,X302*100/(X302+AB302),X302) -> 99.25161861 | Y300: =X300*AVERAGEIF(Y305:Y316,">0")/100 -> 98.7177805 | Z300: =X300*(100-AVERAGEIF(Y305:Y316,">0"))/100 -> 0.533838115 | AA300: =100-(Y300+Z300+AB300) -> 0 | AB300: =IF((X302+AB302)>100,AB302*100/(X302+AB302),AB302) -> 0.7483813878
A301: Regression period: | C301: =MinRegYear(C299,C305:C316) -> 2000 | D301: =IF(MAX(C305:C316)-MIN(C305:C316)<5,AVERAGEIF(C305:C316,">0",D305:D316), IF(FORECAST($C301,D$305:D$316,$C$305:$C$316)<0,0, IF(FORECAST($C301,D$305:D$316,$C$305:$C$316)>100,100, FORECAST($C301,D$305:D$316,$C$305:$C$316)))) -> 84.76185533 | H301: =IF(MAX(C305:C316)-MIN(C305:C316)<5,AVERAGEIF(C305:C316,">0",H305:H316), IF(FORECAST($C301,H$305:H$316,$C$305:$C$316)<0,0, IF(FORECAST($C301,H$305:H$316,$C$305:$C$316)>100,100, FORECAST($C301,H$305:H$316,$C$305:$C$316)))) -> 2.77356956 | I301: =IF(MAX(C305:C316)-MIN(C305:C316)<5,AVERAGEIF(C305:C316,">0",I305:I316), IF(FORECAST($C301,I$305:I$316,$C$305:$C$316)<0,0, IF(FORECAST($C301,I$305:I$316,$C$305:$C$316)>100,100, FORECAST($C301,I$305:I$316,$C$305:$C$316)))) -> 86.1616986 | M301: =IF(MAX(C305:C316)-MIN(C305:C316)<5,AVERAGEIF(C305:C316,">0",M305:M316), IF(FORECAST($C301,M$305:M$316,$C$305:$C$316)<0,0, IF(FORECAST($C301,M$305:M$316,$C$305:$C$316)>100,100, FORECAST($C301,M$305:M$316,$C$305:$C$316)))) -> 2.853069812 | N301: =IF(MAX(C305:C316)-MIN(C305:C316)<5,AVERAGEIF(C305:C316,">0",N305:N316), IF(FORECAST($C301,N$305:N$316,$C$305:$C$316)<0,0, IF(FORECAST($C301,N$305:N$316,$C$305:$C$316)>100,100, FORECAST($C301,N$305:N$316,$C$305:$C$316)))) -> 89.81812721 | R301: =IF(MAX(C305:C316)-MIN(C305:C316)<5,AVERAGEIF(C305:C316,">0",R305:R316), IF(FORECAST($C301,R$305:R$316,$C$305:$C$316)<0,0, IF(FORECAST($C301,R$305:R$316,$C$305:$C$316)>100,100, FORECAST($C301,R$305:R$316,$C$305:$C$316)))) -> 1.916741779 | S301: =IF(MAX(C305:C316)-MIN(C305:C316)<5,AVERAGEIF(C305:C316,">0",S305:S316), IF(FORECAST($C301,S$305:S$316,$C$305:$C$316)<0,0, IF(FORECAST($C301,S$305:S$316,$C$305:$C$316)>100,100, FORECAST($C301,S$305:S$316,$C$305:$C$316)))) -> 90.13215622 | W301: =IF(MAX(C305:C316)-MIN(C305:C316)<5,AVERAGEIF(C305:C316,">0",W305:W316), IF(FORECAST($C301,W$305:W$316,$C$305:$C$316)<0,0, IF(FORECAST($C301,W$305:W$316,$C$305:$C$316)>100,100, FORECAST($C301,W$305:W$316,$C$305:$C$316)))) -> 1.93028499 | X301: =IF(MAX(C305:C316)-MIN(C305:C316)<5,AVERAGEIF(C305:C316,">0",X305:X316), IF(FORECAST($C301,X$305:X$316,$C$305:$C$316)<0,0, IF(FORECAST($C301,X$305:X$316,$C$305:$C$316)>100,100, FORECAST($C301,X$305:X$316,$C$305:$C$316)))) -> 91.50998688 | AB301: =IF(MAX(C305:C316)-MIN(C305:C316)<5,AVERAGEIF(C305:C316,">0",AB305:AB316), IF(FORECAST($C301,AB$305:AB$316,$C$305:$C$316)<0,0, IF(FORECAST($C301,AB$305:AB$316,$C$305:$C$316)>100,100, FORECAST($C301,AB$305:AB$316,$C$305:$C$316)))) -> 1.349625825
C302: =MaxRegYear(C300,C305:C316) -> 2014 | D302: =IF(MAX(C305:C316)-MIN(C305:C316)<5,AVERAGEIF(C305:C316,">0",D305:D316), IF(FORECAST($C302,D$305:D$316,$C$305:$C$316)<0,0, IF(FORECAST($C302,D$305:D$316,$C$305:$C$316)>100,100, FORECAST($C302,D$305:D$316,$C$305:$C$316)))) -> 88.86708773 | H302: =IF(MAX(C305:C316)-MIN(C305:C316)<5,AVERAGEIF(C305:C316,">0",H305:H316), IF(FORECAST($C302,H$305:H$316,$C$305:$C$316)<0,0, IF(FORECAST($C302,H$305:H$316,$C$305:$C$316)>100,100, FORECAST($C302,H$305:H$316,$C$305:$C$316)))) -> 2.799616402 | I302: =IF(MAX(C305:C316)-MIN(C305:C316)<5,AVERAGEIF(C305:C316,">0",I305:I316), IF(FORECAST($C302,I$305:I$316,$C$305:$C$316)<0,0, IF(FORECAST($C302,I$305:I$316,$C$305:$C$316)>100,100, FORECAST($C302,I$305:I$316,$C$305:$C$316)))) -> 88.81224891 | M302: =IF(MAX(C305:C316)-MIN(C305:C316)<5,AVERAGEIF(C305:C316,">0",M305:M316), IF(FORECAST($C302,M$305:M$316,$C$305:$C$316)<0,0, IF(FORECAST($C302,M$305:M$316,$C$305:$C$316)>100,100, FORECAST($C302,M$305:M$316,$C$305:$C$316)))) -> 2.814579604 | N302: =IF(MAX(C305:C316)-MIN(C305:C316)<5,AVERAGEIF(C305:C316,">0",N305:N316), IF(FORECAST($C302,N$305:N$316,$C$305:$C$316)<0,0, IF(FORECAST($C302,N$305:N$316,$C$305:$C$316)>100,100, FORECAST($C302,N$305:N$316,$C$305:$C$316)))) -> 88.64574078 | R302: =IF(MAX(C305:C316)-MIN(C305:C316)<5,AVERAGEIF(C305:C316,">0",R305:R316), IF(FORECAST($C302,R$305:R$316,$C$305:$C$316)<0,0, IF(FORECAST($C302,R$305:R$316,$C$305:$C$316)>100,100, FORECAST($C302,R$305:R$316,$C$305:$C$316)))) -> 4.130423366 | S302: =IF(MAX(C305:C316)-MIN(C305:C316)<5,AVERAGEIF(C305:C316,">0",S305:S316), IF(FORECAST($C302,S$305:S$316,$C$305:$C$316)<0,0, IF(FORECAST($C302,S$305:S$316,$C$305:$C$316)>100,100, FORECAST($C302,S$305:S$316,$C$305:$C$316)))) -> 91.88947247 | W302: =IF(MAX(C305:C316)-MIN(C305:C316)<5,AVERAGEIF(C305:C316,">0",W305:W316), IF(FORECAST($C302,W$305:W$316,$C$305:$C$316)<0,0, IF(FORECAST($C302,W$305:W$316,$C$305:$C$316)>100,100, FORECAST($C302,W$305:W$316,$C$305:$C$316)))) -> 3.813965163 | X302: =IF(MAX(C305:C316)-MIN(C305:C316)<5,AVERAGEIF(C305:C316,">0",X305:X316), IF(FORECAST($C302,X$305:X$316,$C$305:$C$316)<0,0, IF(FORECAST($C302,X$305:X$316,$C$305:$C$316)>100,100, FORECAST($C302,X$305:X$316,$C$305:$C$316)))) -> 99.33041261 | AB302: =IF(MAX(C305:C316)-MIN(C305:C316)<5,AVERAGEIF(C305:C316,">0",AB305:AB316), IF(FORECAST($C302,AB$305:AB$316,$C$305:$C$316)<0,0, IF(FORECAST($C302,AB$305:AB$316,$C$305:$C$316)>100,100, FORECAST($C302,AB$305:AB$316,$C$305:$C$316)))) -> 0.7489755137
B304: Survey | C304: Year | D304: Improved | E304: % Improved < = 30min | H304: Surface water | I304: Improved | J304: % Improved < = 30min | M304: Surface water | N304: Improved | O304: % Improved < = 30min | R304: Surface water | S304: Improved | T304: % Improved < = 30min | W304: Surface water | X304: Improved | Y304: % Improved < = 30min | AB304: Surface water
B305: EPHPM01 | C305: 2001 | D305: =IF(ISERROR(INDIRECT(CONCATENATE($B305,"!M16"))),"",INDIRECT(CONCATENATE($B305,"!M16"))) -> 92.86842674 | E305: =IF(ISERROR(INDIRECT(CONCATENATE($B305,"!M23"))),"",INDIRECT(CONCATENATE($B305,"!M23"))) -> N/A | H305: =IF(ISERROR(INDIRECT(CONCATENATE($B305,"!M21"))),"",INDIRECT(CONCATENATE($B305,"!M21"))) -> 2.100228631 | I305: =IF(ISERROR(INDIRECT(CONCATENATE($B305,"!N16"))),"",INDIRECT(CONCATENATE($B305,"!N16"))) -> 93.61390357 | J305: =IF(ISERROR(INDIRECT(CONCATENATE($B305,"!N23"))),"",INDIRECT(CONCATENATE($B305,"!N23"))) -> N/A | M305: =IF(ISERROR(INDIRECT(CONCATENATE($B305,"!N21"))),"",INDIRECT(CONCATENATE($B305,"!N21"))) -> 2.30032548 | N305: =IF(ISERROR(INDIRECT(CONCATENATE($B305,"!O16"))),"",INDIRECT(CONCATENATE($B305,"!O16"))) -> 96.02909755 | O305: =IF(ISERROR(INDIRECT(CONCATENATE($B305,"!O23"))),"",INDIRECT(CONCATENATE($B305,"!O23"))) -> N/A | R305: =IF(ISERROR(INDIRECT(CONCATENATE($B305,"!O21"))),"",INDIRECT(CONCATENATE($B305,"!O21"))) -> 1.488133152 | S305: =IF(ISERROR(INDIRECT(CONCATENATE($B305,"!P16"))),"",INDIRECT(CONCATENATE($B305,"!P16"))) -> 96.78061021 | T305: =IF(ISERROR(INDIRECT(CONCATENATE($B305,"!P23"))),"",INDIRECT(CONCATENATE($B305,"!P23"))) -> N/A | W305: =IF(ISERROR(INDIRECT(CONCATENATE($B305,"!P21"))),"",INDIRECT(CONCATENATE($B305,"!P21"))) -> 0.676743788 | X305: =IF(ISERROR(INDIRECT(CONCATENATE($B305,"!Q16"))),"",INDIRECT(CONCATENATE($B305,"!Q16"))) -> 93.03114615 | Y305: =IF(ISERROR(INDIRECT(CONCATENATE($B305,"!Q23"))),"",INDIRECT(CONCATENATE($B305,"!Q23"))) -> N/A | AB305: =IF(ISERROR(INDIRECT(CONCATENATE($B305,"!Q221"))),"",INDIRECT(CONCATENATE($B305,"!Q21"))) -> 0.3478999361
B306: EPHPM03 | D306: 90.17863337 | E306: N/A | H306: 1.828903128 | I306: 91.0585041 | J306: N/A | M306: 2.722285377 | N306: 87.44641512 | O306: N/A | R306: 2.918356409 | S306: 83.27436843 | T306: N/A | W306: 6.49370373 | X306: 85.75837083 | Y306: N/A | AB306: 5.270473902
B307: EPHPM04 | C307: 2004 | D307: 88.8836057 | E307: N/A | H307: 2.56910107 | I307: 86.75551398 | J307: N/A | M307: 3.306339944 | N307: 89.3376466 | O307: N/A | R307: 3.963664477 | S307: 84.40910072 | T307: N/A | W307: 5.587439119 | X307: 90.30573923 | Y307: N/A | AB307: 3.774667572
B308: EPHPM05 | C308: 2005 | D308: 81.87989776 | E308: N/A | H308: 3.607327436 | I308: 84.81930019 | J308: N/A | M308: 2.740294568 | N308: 85.43753544 | O308: N/A | R308: 2.727002727 | S308: 89.56484014 | T308: N/A | W308: 2.436349278 | X308: 96.28826531 | Y308: N/A | AB308: 0.5272108844
B309: EPHPM06 | D309: 92.7148498 | E309: N/A | H309: 2.635856204 | I309: 93.32121472 | J309: N/A | M309: 3.337375628 | N309: 94.00314418 | O309: N/A | R309: 3.298475982 | S309: 95.74445387 | T309: N/A | W309: 2.301388311 | X309: 98.97831057 | Y309: N/A | AB309: 0.6184707502
B310: DHS06 | C310: 2006 | D310: 73.33781126 | E310: 98.24959559 | H310: 3.343284347 | I310: 76.8708759 | J310: 99.55560909 | M310: 3.341408651 | N310: 82.59158361 | O310: 99.11774893 | R310: 2.032271713 | S310: 88.62086255 | T310: 99.45020185 | W310: 1.318253111 | X310: 95.36563515 | Y310: 99.46213662 | AB310: 0.09705011057
B311: DHS12 | C311: 2012 | D311: 95.05 | E311: N/A | H311: 2.3 | I311: 94.05 | J311: N/A | M311: 2.5 | N311: 93.35 | O311: N/A | R311: 3.8 | S311: 94.8 | T311: N/A | W311: 3.4 | X311: 98.2 | Y311: N/A | AB311: 0.8
B318: =CONCATENATE("Rural use of drinking water sources, ",C299,"–",C300) -> Rural use of drinking water sources, 2000–2018 | S318: Data points used for regression

Sheet Sanitation
B4: Summary of trends in use of sanitation facilities by wealth quintile (%)
B5: =IF(ISERROR(INDIRECT(CONCATENATE($B105,"!A2"))),"",INDIRECT(CONCATENATE($B105,"!A2"))) -> Honduras
B7: =B118 -> National use of sanitation facilities, 2000–2018 | J7: =B218 -> Urban use of sanitation facilities, 2000–2018 | R7: =B318 -> Rural use of sanitation facilities, 2000–2018
B31: =IF(ISERROR(INDIRECT(CONCATENATE($B105,"!A2"))),"",INDIRECT(CONCATENATE($B105,"!A2"))) -> Honduras | F31: Poorest | J31: Poor | N31: Middle | R31: Rich | V31: Richest
F32: Basic | G32: Limited | H32: Unimproved | I32: Open defecation | J32: Basic | K32: Limited | L32: Unimproved | M32: Open defecation | N32: Basic | O32: Limited | P32: Unimproved | Q32: Open defecation | R32: Basic | S32: Limited | T32: Unimproved | U32: Open defecation | V32: Basic | W32: Limited | X32: Unimproved | Y32: Open defecation
B33: NATIONAL | D33: Estimate | E33: =C99 -> 2000 | F33: =E99 -> 43.22958989 | G33: =F99 -> 4.520051141 | H33: 11.52179597 | I33: 40.728563 | J33: =J99 -> 50.17173297 | K33: =K99 -> 4.070627442 | L33: 11.16455519 | M33: 34.59308439 | N33: =O99 -> 54.23038126 | O33: =P99 -> 7.365828515 | P33: 10.51292613 | Q33: 27.8908641 | R33: =T99 -> 72.27254593 | S33: =U99 -> 9.158046237 | T33: 8.732705333 | U33: 9.836702497 | V33: =Y99 -> 90.39411367 | W33: =Z99 -> 4.066070402 | X33: 2.626096682 | Y33: 2.913719251
E34: =C100 -> 2018 | F34: =E100 -> 53.57381603 | G34: 5.601635104 | H34: 9.332367031 | I34: 31.49218184 | J34: =J100 -> 67.85413803 | K34: 5.505269601 | L34: 11.61732073 | M34: 15.02327164 | N34: =O100 -> 80.21626013 | O34: 10.89535428 | P34: 8.888385594 | Q34: 0 | R34: =T100 -> 84.00740999 | S34: 10.6450345 | T34: 5.347555509 | U34: 0 | V34: =Y100 -> 94.00517303 | W34: 4.228501572 | X34: 1.766325401 | Y34: 0
B36: URBAN | D36: Estimate | E36: =C199 -> 2000 | F36: =E199 -> 48.79510619 | G36: =F199 -> 15.13879744 | H36: 18.14933814 | I36: 17.91675824 | J36: =J199 -> 63.87940196 | K36: =K199 -> 15.56063396 | L36: 16.06694353 | M36: 4.493020552 | N36: =O199 -> 79.03557695 | O36: =P199 -> 9.778847878 | P36: 9.887568502 | Q36: 1.298006671 | R36: =T199 -> 88.14338879 | S36: =U199 -> 5.362882532 | T36: 5.250463483 | U36: 1.243265192 | V36: =Y199 -> 96.12855873 | W36: =Z199 -> 2.714892492 | X36: 0.9606847519 | Y36: 0.1958640304
E37: =C200 -> 2018 | F37: =E200 -> 62.93179961 | G37: 19.52474011 | H37: 13.88942779 | I37: 3.654032487 | J37: =J200 -> 76.16317678 | K37: 18.55288683 | L37: 4.422606828 | M37: 0.8613295664 | N37: =O200 -> 82.97265139 | O37: 10.26597094 | P37: 5.623071207 | Q37: 1.138306462 | R37: =T200 -> 91.25990518 | S37: 5.55249983 | T37: 3.057343458 | U37: 0.130251534 | V37: =Y200 -> 94.90169925 | W37: 2.680243147 | X37: 2.302646758 | Y37: 0.1154108426
B39: RURAL | D39: Estimate | E39: =C299 -> 2000 | F39: =E299 -> 35.65463226 | G39: =F299 -> 2.063262073 | H39: 8.978037222 | I39: 53.30406845 | J39: =J299 -> 37.68104573 | K39: =K299 -> 1.912829608 | L39: 10.80839259 | M39: 49.59773208 | N39: =O299 -> 57.91447308 | O39: =P299 -> 3.360185118 | P39: 10.85182793 | Q39: 27.87351387 | R39: =T299 -> 66.79491843 | S39: =U299 -> 4.534007464 | T39: 11.63754636 | U39: 17.03352774 | V39: =Y299 -> 79.41421692 | W39: =Z299 -> 6.435856738 | X39: 6.381828483 | Y39: 7.768097858
E40: =C300 -> 2018 | F40: =E300 -> 53.1801955 | G40: 3.077431275 | H40: 10.19566782 | I40: 33.54670541 | J40: =J300 -> 63.34467343 | K40: 3.215610515 | L40: 8.677696402 | M40: 24.76201966 | N40: =O300 -> 65.40128566 | O40: 3.794568354 | P40: 10.00401128 | Q40: 20.8001347 | R40: =T300 -> 75.72957498 | S40: 5.140487724 | T40: 9.061118987 | U40: 10.06881831 | V40: =Y300 -> 86.78853365 | W40: 7.033483306 | X40: 6.177983047 | Y40: 0
A97: NATIONAL | D97: Poorest | I97: Poor | N97: Middle | S97: Rich | X97: Richest
D98: Improved | E98: Basic | F98: Limited | G98: Unimproved | H98: Open defecation | I98: Improved | J98: Basic | K98: Limited | L98: Unimproved | M98: Open defecation | N98: Improved | O98: Basic | P98: Limited | Q98: Unimproved | R98: Open defecation | S98: Improved | T98: Basic | U98: Limited | V98: Unimproved | W98: Open defecation | X98: Improved | Y98: Basic | Z98: Limited | AA98: Unimproved | AB98: Open defecation
A99: Forecast period: | C99: 2000 | D99: =IF((D101+H101)>100,D101*100/(D101+H101),D101) -> 47.74964104 | E99: =D99*AVERAGEIF(E105:E116,">0")/100 -> 43.22958989 | F99: =D99*(100-AVERAGEIF(E105:E116,">0"))/100 -> 4.520051141 | G99: =100-(E99+F99+H99) -> 11.52179597 | H99: =IF((D101+H101)>100,H101*100/(D101+H101),H101) -> 40.728563 | I99: =IF((I101+M101)>100,I101*100/(I101+M101),I101) -> 54.24236041 | J99: =I99*AVERAGEIF(J105:J116,">0")/100 -> 50.17173297 | K99: =I99*(100-AVERAGEIF(J105:J116,">0"))/100 -> 4.070627442 | L99: =100-(J99+K99+M99) -> 11.16455519 | M99: =IF((I101+M101)>100,M101*100/(I101+M101),M101) -> 34.59308439 | N99: =IF((N101+R101)>100,N101*100/(N101+R101),N101) -> 61.59620977 | O99: =N99*AVERAGEIF(O105:O116,">0")/100 -> 54.23038126 | P99: =N99*(100-AVERAGEIF(O105:O116,">0"))/100 -> 7.365828515 | Q99: =100-(O99+P99+R99) -> 10.51292613 | R99: =IF((N101+R101)>100,R101*100/(N101+R101),R101) -> 27.8908641 | S99: =IF((S101+W101)>100,S101*100/(S101+W101),S101) -> 81.43059217 | T99: =S99*AVERAGEIF(T105:T116,">0")/100 -> 72.27254593 | U99: =S99*(100-AVERAGEIF(T105:T116,">0"))/100 -> 9.158046237 | V99: =100-(T99+U99+W99) -> 8.732705333 | W99: =IF((S101+W101)>100,W101*100/(S101+W101),W101) -> 9.836702497 | X99: =IF((X101+AB101)>100,X101*100/(X101+AB101),X101) -> 94.46018407 | Y99: =X99*AVERAGEIF(Y105:Y116,">0")/100 -> 90.39411367 | Z99: =X99*(100-AVERAGEIF(Y105:Y116,">0"))/100 -> 4.066070402 | AA99: =100-(Y99+Z99+AB99) -> 2.626096682 | AB99: =IF((X101+AB101)>100,AB101*100/(X101+AB101),AB101) -> 2.913719251
C100: 2018 | D100: =IF((D102+H102)>100,D102*100/(D102+H102),D102) -> 59.17545113 | E100: =D100*AVERAGEIF(E105:E116,">0")/100 -> 53.57381603 | F100: =D100*(100-AVERAGEIF(E105:E116,">0"))/100 -> 5.601635104 | G100: =100-(E100+F100+H100) -> 9.332367031 | H100: =IF((D102+H102)>100,H102*100/(D102+H102),H102) -> 31.49218184 | I100: =IF((I102+M102)>100,I102*100/(I102+M102),I102) -> 73.35940763 | J100: =I100*AVERAGEIF(J105:J116,">0")/100 -> 67.85413803 | K100: =I100*(100-AVERAGEIF(J105:J116,">0"))/100 -> 5.505269601 | L100: =100-(J100+K100+M100) -> 11.61732073 | M100: =IF((I102+M102)>100,M102*100/(I102+M102),M102) -> 15.02327164 | N100: =IF((N102+R102)>100,N102*100/(N102+R102),N102) -> 91.11161441 | O100: =N100*AVERAGEIF(O105:O116,">0")/100 -> 80.21626013 | P100: =N100*(100-AVERAGEIF(O105:O116,">0"))/100 -> 10.89535428 | Q100: =100-(O100+P100+R100) -> 8.888385594 | R100: =IF((N102+R102)>100,R102*100/(N102+R102),R102) -> 0 | S100: =IF((S102+W102)>100,S102*100/(S102+W102),S102) -> 94.65244449 | T100: =S100*AVERAGEIF(T105:T116,">0")/100 -> 84.00740999 | U100: =S100*(100-AVERAGEIF(T105:T116,">0"))/100 -> 10.6450345 | V100: =100-(T100+U100+W100) -> 5.347555509 | W100: =IF((S102+W102)>100,W102*100/(S102+W102),W102) -> 0 | X100: =IF((X102+AB102)>100,X102*100/(X102+AB102),X102) -> 98.2336746 | Y100: =X100*AVERAGEIF(Y105:Y116,">0")/100 -> 94.00517303 | Z100: =X100*(100-AVERAGEIF(Y105:Y116,">0"))/100 -> 4.228501572 | AA100: =100-(Y100+Z100+AB100) -> 1.766325401 | AB100: =IF((X102+AB102)>100,AB102*100/(X102+AB102),AB102) -> 0
A101: Regression period: | C101: =MinRegYear(C99,C105:C116) -> 2000 | D101: =IF(MAX(C105:C116)-MIN(C105:C116)<5,AVERAGEIF(C105:C116,">0",D105:D116), IF(FORECAST($C101,D$105:D$116,$C$105:$C$116)<0,0, IF(FORECAST($C101,D$105:D$116,$C$105:$C$116)>100,100, FORECAST($C101,D$105:D$116,$C$105:$C$116)))) -> 47.74964104 | H101: =IF(MAX(C105:C116)-MIN(C105:C116)<5,AVERAGEIF(C105:C116,">0",H105:H116), IF(FORECAST($C101,H$105:H$116,$C$105:$C$116)<0,0, IF(FORECAST($C101,H$105:H$116,$C$105:$C$116)>100,100, FORECAST($C101,H$105:H$116,$C$105:$C$116)))) -> 40.728563 | I101: =IF(MAX(C105:C116)-MIN(C105:C116)<5,AVERAGEIF(C105:C116,">0",I105:I116), IF(FORECAST($C101,I$105:I$116,$C$105:$C$116)<0,0, IF(FORECAST($C101,I$105:I$116,$C$105:$C$116)>100,100, FORECAST($C101,I$105:I$116,$C$105:$C$116)))) -> 54.24236041 | M101: =IF(MAX(C105:C116)-MIN(C105:C116)<5,AVERAGEIF(C105:C116,">0",M105:M116), IF(FORECAST($C101,M$105:M$116,$C$105:$C$116)<0,0, IF(FORECAST($C101,M$105:M$116,$C$105:$C$116)>100,100, FORECAST($C101,M$105:M$116,$C$105:$C$116)))) -> 34.59308439 | N101: =IF(MAX(C105:C116)-MIN(C105:C116)<5,AVERAGEIF(C105:C116,">0",N105:N116), IF(FORECAST($C101,N$105:N$116,$C$105:$C$116)<0,0, IF(FORECAST($C101,N$105:N$116,$C$105:$C$116)>100,100, FORECAST($C101,N$105:N$116,$C$105:$C$116)))) -> 61.59620977 | R101: =IF(MAX(C105:C116)-MIN(C105:C116)<5,AVERAGEIF(C105:C116,">0",R105:R116), IF(FORECAST($C101,R$105:R$116,$C$105:$C$116)<0,0, IF(FORECAST($C101,R$105:R$116,$C$105:$C$116)>100,100, FORECAST($C101,R$105:R$116,$C$105:$C$116)))) -> 27.8908641 | S101: =IF(MAX(C105:C116)-MIN(C105:C116)<5,AVERAGEIF(C105:C116,">0",S105:S116), IF(FORECAST($C101,S$105:S$116,$C$105:$C$116)<0,0, IF(FORECAST($C101,S$105:S$116,$C$105:$C$116)>100,100, FORECAST($C101,S$105:S$116,$C$105:$C$116)))) -> 81.43059217 | W101: =IF(MAX(C105:C116)-MIN(C105:C116)<5,AVERAGEIF(C105:C116,">0",W105:W116), IF(FORECAST($C101,W$105:W$116,$C$105:$C$116)<0,0, IF(FORECAST($C101,W$105:W$116,$C$105:$C$116)>100,100, FORECAST($C101,W$105:W$116,$C$105:$C$116)))) -> 9.836702497 | X101: =IF(MAX(C105:C116)-MIN(C105:C116)<5,AVERAGEIF(C105:C116,">0",X105:X116), IF(FORECAST($C101,X$105:X$116,$C$105:$C$116)<0,0, IF(FORECAST($C101,X$105:X$116,$C$105:$C$116)>100,100, FORECAST($C101,X$105:X$116,$C$105:$C$116)))) -> 94.46018407 | AB101: =IF(MAX(C105:C116)-MIN(C105:C116)<5,AVERAGEIF(C105:C116,">0",AB105:AB116), IF(FORECAST($C101,AB$105:AB$116,$C$105:$C$116)<0,0, IF(FORECAST($C101,AB$105:AB$116,$C$105:$C$116)>100,100, FORECAST($C101,AB$105:AB$116,$C$105:$C$116)))) -> 2.913719251
C102: =MaxRegYear(C100,C105:C116) -> 2014 | D102: =IF(MAX(C105:C116)-MIN(C105:C116)<5,AVERAGEIF(C105:C116,">0",D105:D116), IF(FORECAST($C102,D$105:D$116,$C$105:$C$116)<0,0, IF(FORECAST($C102,D$105:D$116,$C$105:$C$116)>100,100, FORECAST($C102,D$105:D$116,$C$105:$C$116)))) -> 59.17545113 | H102: =IF(MAX(C105:C116)-MIN(C105:C116)<5,AVERAGEIF(C105:C116,">0",H105:H116), IF(FORECAST($C102,H$105:H$116,$C$105:$C$116)<0,0, IF(FORECAST($C102,H$105:H$116,$C$105:$C$116)>100,100, FORECAST($C102,H$105:H$116,$C$105:$C$116)))) -> 31.49218184 | I102: =IF(MAX(C105:C116)-MIN(C105:C116)<5,AVERAGEIF(C105:C116,">0",I105:I116), IF(FORECAST($C102,I$105:I$116,$C$105:$C$116)<0,0, IF(FORECAST($C102,I$105:I$116,$C$105:$C$116)>100,100, FORECAST($C102,I$105:I$116,$C$105:$C$116)))) -> 73.35940763 | M102: =IF(MAX(C105:C116)-MIN(C105:C116)<5,AVERAGEIF(C105:C116,">0",M105:M116), IF(FORECAST($C102,M$105:M$116,$C$105:$C$116)<0,0, IF(FORECAST($C102,M$105:M$116,$C$105:$C$116)>100,100, FORECAST($C102,M$105:M$116,$C$105:$C$116)))) -> 15.02327164 | N102: =IF(MAX(C105:C116)-MIN(C105:C116)<5,AVERAGEIF(C105:C116,">0",N105:N116), IF(FORECAST($C102,N$105:N$116,$C$105:$C$116)<0,0, IF(FORECAST($C102,N$105:N$116,$C$105:$C$116)>100,100, FORECAST($C102,N$105:N$116,$C$105:$C$116)))) -> 91.11161441 | R102: =IF(MAX(C105:C116)-MIN(C105:C116)<5,AVERAGEIF(C105:C116,">0",R105:R116), IF(FORECAST($C102,R$105:R$116,$C$105:$C$116)<0,0, IF(FORECAST($C102,R$105:R$116,$C$105:$C$116)>100,100, FORECAST($C102,R$105:R$116,$C$105:$C$116)))) -> 0 | S102: =IF(MAX(C105:C116)-MIN(C105:C116)<5,AVERAGEIF(C105:C116,">0",S105:S116), IF(FORECAST($C102,S$105:S$116,$C$105:$C$116)<0,0, IF(FORECAST($C102,S$105:S$116,$C$105:$C$116)>100,100, FORECAST($C102,S$105:S$116,$C$105:$C$116)))) -> 94.65244449 | W102: =IF(MAX(C105:C116)-MIN(C105:C116)<5,AVERAGEIF(C105:C116,">0",W105:W116), IF(FORECAST($C102,W$105:W$116,$C$105:$C$116)<0,0, IF(FORECAST($C102,W$105:W$116,$C$105:$C$116)>100,100, FORECAST($C102,W$105:W$116,$C$105:$C$116)))) -> 0 | X102: =IF(MAX(C105:C116)-MIN(C105:C116)<5,AVERAGEIF(C105:C116,">0",X105:X116), IF(FORECAST($C102,X$105:X$116,$C$105:$C$116)<0,0, IF(FORECAST($C102,X$105:X$116,$C$105:$C$116)>100,100, FORECAST($C102,X$105:X$116,$C$105:$C$116)))) -> 98.2336746 | AB102: =IF(MAX(C105:C116)-MIN(C105:C116)<5,AVERAGEIF(C105:C116,">0",AB105:AB116), IF(FORECAST($C102,AB$105:AB$116,$C$105:$C$116)<0,0, IF(FORECAST($C102,AB$105:AB$116,$C$105:$C$116)>100,100, FORECAST($C102,AB$105:AB$116,$C$105:$C$116)))) -> 0
B104: Survey | C104: Year | D104: Improved | E104: Not shared | H104: Open defecation | I104: Improved | J104: Not shared | M104: Open defecation | N104: Improved | O104: Not shared | R104: Open defecation | S104: Improved | T104: Not shared | W104: Open defecation | X104: Improved | Y104: Not shared | AB104: Open defecation
B105: EPHPM01 | C105: 2001 | D105: =IF(ISERROR(INDIRECT(CONCATENATE($B105,"!C122"))),"",INDIRECT(CONCATENATE($B105,"!C122"))) -> 47.58659913 | E105: =IF(ISERROR(INDIRECT(CONCATENATE($B105,"!C129"))),"",INDIRECT(CONCATENATE($B105,"!C129"))) -> N/A | H105: =IF(ISERROR(INDIRECT(CONCATENATE($B105,"!C127"))),"",INDIRECT(CONCATENATE($B105,"!C127"))) -> 42.49699779 | I105: =IF(ISERROR(INDIRECT(CONCATENATE($B105,"!D122"))),"",INDIRECT(CONCATENATE($B105,"!D122"))) -> 60.4999081 | J105: =IF(ISERROR(INDIRECT(CONCATENATE($B105,"!D129"))),"",INDIRECT(CONCATENATE($B105,"!D129"))) -> N/A | M105: =IF(ISERROR(INDIRECT(CONCATENATE($B105,"!D127"))),"",INDIRECT(CONCATENATE($B105,"!D127"))) -> 29.38371023 | N105: =IF(ISERROR(INDIRECT(CONCATENATE($B105,"!E122"))),"",INDIRECT(CONCATENATE($B105,"!E122"))) -> 74.45527058 | O105: =IF(ISERROR(INDIRECT(CONCATENATE($B105,"!E129"))),"",INDIRECT(CONCATENATE($B105,"!E129"))) -> N/A | R105: =IF(ISERROR(INDIRECT(CONCATENATE($B105,"!E127"))),"",INDIRECT(CONCATENATE($B105,"!E127"))) -> 20.09682153 | S105: =IF(ISERROR(INDIRECT(CONCATENATE($B105,"!F122"))),"",INDIRECT(CONCATENATE($B105,"!F122"))) -> 87.35915147 | T105: =IF(ISERROR(INDIRECT(CONCATENATE($B105,"!F129"))),"",INDIRECT(CONCATENATE($B105,"!F129"))) -> N/A | W105: =IF(ISERROR(INDIRECT(CONCATENATE($B105,"!F127"))),"",INDIRECT(CONCATENATE($B105,"!F127"))) -> 10.08134799 | X105: =IF(ISERROR(INDIRECT(CONCATENATE($B105,"!G122"))),"",INDIRECT(CONCATENATE($B105,"!G122"))) -> 93.58288129 | Y105: =IF(ISERROR(INDIRECT(CONCATENATE($B105,"!G129"))),"",INDIRECT(CONCATENATE($B105,"!G129"))) -> N/A | AB105: =IF(ISERROR(INDIRECT(CONCATENATE($B105,"!G2127"))),"",INDIRECT(CONCATENATE($B105,"!G127"))) -> 5.276463477
B106: EPHPM03 | C106: 2003 | D106: 56.18679969 | E106: 96.34945587 | H106: 31.61761799 | I106: 59.76385951 | J106: 95.7282555 | M106: 29.57592617 | N106: 55.70712371 | O106: 88.56603731 | R106: 30.84150542 | S106: 82.87847085 | T106: 85.43313142 | W106: 3.85940087 | X106: 95.70085459 | Y106: 98.00083385 | AB106: 0.8312240583
B107: EPHPM04 | C107: 2004 | D107: 67.08525146 | E107: 72.44143218 | H107: 19.16638296 | I107: 48.1787282 | J107: 96.8713243 | M107: 40.93294302 | N107: 54.16916259 | O107: 95.73239085 | R107: 34.62606173 | S107: 71.88025491 | T107: 87.8893242 | W107: 16.9495563 | X107: 92.88813024 | Y107: 91.77867068 | AB107: 1.191998614
B108: EPHPM05 | C108: 2005 | D108: 44.1085521 | E108: 95.93759655 | H108: 46.67484604 | I108: 63.77745771 | J108: 91.85302198 | M108: 24.71292305 | N108: 80.25796499 | O108: 84.61620011 | R108: 7.811697469 | S108: 90.32051538 | T108: 91.12033735 | W108: 1.211883802 | X108: 97.46259171 | Y108: 98.62079086 | AB108: 0.2235212505
B109: EPHPM06 | C109: 2006 | D109: 45.68934005 | E109: 98.30468305 | H109: 44.15859971 | I109: 64.42653024 | J109: 95.58707433 | M109: 24.01810966 | N109: 81.02695469 | O109: 89.02147999 | R109: 8.167230838 | S109: 90.95235291 | T109: 93.47210352 | W109: 1.803865032 | X109: 97.52259073 | Y109: 98.4778466 | AB109: 0.4513802272
B110: DHS06 | C110: 2006 | D110: 39.99605154 | E110: 92.36995125 | H110: 50.07268192 | I110: 61.54668344 | J110: 89.03321874 | M110: 24.08163466 | N110: 77.74800499 | O110: 82.61439407 | R110: 7.35477515 | S110: 89.09052564 | T110: 88.30643738 | W110: 1.598542088 | X110: 97.68970653 | Y110: 97.49465615 | AB110: 0.03910930983
B111: DHS12 | C111: 2012 | D111: 63.79167712 | E111: 87.8 | H111: 26.50237864 | I111: 72.02698047 | J111: 85.9 | M111: 17.72612454 | N111: 85.8139848 | O111: 87.7 | R111: 5.354025727 | S111: 92.47634088 | T111: 86.3 | W111: 1.536188232 | X111: 96.34732979 | Y111: 89.8 | AB111: 0.3878335273
B118: =CONCATENATE("National use of sanitation facilities, ",C99,"–",C100) -> National use of sanitation facilities, 2000–2018 | S118: Data points used for regression
A197: URBAN | D197: Poorest | I197: Poor | N197: Middle | S197: Rich | X197: Richest
D198: Improved | E198: Basic | F198: Limited | G198: Unimproved | H198: Open defecation | I198: Improved | J198: Basic | K198: Limited | L198: Unimproved | M198: Open defecation | N198: Improved | O198: Basic | P198: Limited | Q198: Unimproved | R198: Open defecation | S198: Improved | T198: Basic | U198: Limited | V198: Unimproved | W198: Open defecation | X198: Improved | Y198: Basic | Z198: Limited | AA198: Unimproved | AB198: Open defecation
A199: Forecast period: | C199: =MinBase(C205:C216) -> 2000 | D199: =IF((D201+H201)>100,D201*100/(D201+H201),D201) -> 63.93390362 | E199: =D199*AVERAGEIF(E205:E216,">0")/100 -> 48.79510619 | F199: =D199*(100-AVERAGEIF(E205:E216,">0"))/100 -> 15.13879744 | G199: =100-(E199+F199+H199) -> 18.14933814 | H199: =IF((D201+H201)>100,H201*100/(D201+H201),H201) -> 17.91675824 | I199: =IF((I201+M201)>100,I201*100/(I201+M201),I201) -> 79.44003591 | J199: =I199*AVERAGEIF(J205:J216,">0")/100 -> 63.87940196 | K199: =I199*(100-AVERAGEIF(J205:J216,">0"))/100 -> 15.56063396 | L199: =100-(J199+K199+M199) -> 16.06694353 | M199: =IF((I201+M201)>100,M201*100/(I201+M201),M201) -> 4.493020552 | N199: =IF((N201+R201)>100,N201*100/(N201+R201),N201) -> 88.81442483 | O199: =N199*AVERAGEIF(O205:O216,">0")/100 -> 79.03557695 | P199: =N199*(100-AVERAGEIF(O205:O216,">0"))/100 -> 9.778847878 | Q199: =100-(O199+P199+R199) -> 9.887568502 | R199: =IF((N201+R201)>100,R201*100/(N201+R201),R201) -> 1.298006671 | S199: =IF((S201+W201)>100,S201*100/(S201+W201),S201) -> 93.50627132 | T199: =S199*AVERAGEIF(T205:T216,">0")/100 -> 88.14338879 | U199: =S199*(100-AVERAGEIF(T205:T216,">0"))/100 -> 5.362882532 | V199: =100-(T199+U199+W199) -> 5.250463483 | W199: =IF((S201+W201)>100,W201*100/(S201+W201),W201) -> 1.243265192 | X199: =IF((X201+AB201)>100,X201*100/(X201+AB201),X201) -> 98.84345122 | Y199: =X199*AVERAGEIF(Y205:Y216,">0")/100 -> 96.12855873 | Z199: =X199*(100-AVERAGEIF(Y205:Y216,">0"))/100 -> 2.714892492 | AA199: =100-(Y199+Z199+AB199) -> 0.9606847519 | AB199: =IF((X201+AB201)>100,AB201*100/(X201+AB201),AB201) -> 0.1958640304
C200: =MaxTarget(C205:C216) -> 2018 | D200: =IF((D202+H202)>100,D202*100/(D202+H202),D202) -> 82.45653972 | E200: =D200*AVERAGEIF(E205:E216,">0")/100 -> 62.93179961 | F200: =D200*(100-AVERAGEIF(E205:E216,">0"))/100 -> 19.52474011 | G200: =100-(E200+F200+H200) -> 13.88942779 | H200: =IF((D202+H202)>100,H202*100/(D202+H202),H202) -> 3.654032487 | I200: =IF((I202+M202)>100,I202*100/(I202+M202),I202) -> 94.71606361 | J200: =I200*AVERAGEIF(J205:J216,">0")/100 -> 76.16317678 | K200: =I200*(100-AVERAGEIF(J205:J216,">0"))/100 -> 18.55288683 | L200: =100-(J200+K200+M200) -> 4.422606828 | M200: =IF((I202+M202)>100,M202*100/(I202+M202),M202) -> 0.8613295664 | N200: =IF((N202+R202)>100,N202*100/(N202+R202),N202) -> 93.23862233 | O200: =N200*AVERAGEIF(O205:O216,">0")/100 -> 82.97265139 | P200: =N200*(100-AVERAGEIF(O205:O216,">0"))/100 -> 10.26597094 | Q200: =100-(O200+P200+R200) -> 5.623071207 | R200: =IF((N202+R202)>100,R202*100/(N202+R202),R202) -> 1.138306462 | S200: =IF((S202+W202)>100,S202*100/(S202+W202),S202) -> 96.81240501 | T200: =S200*AVERAGEIF(T205:T216,">0")/100 -> 91.25990518 | U200: =S200*(100-AVERAGEIF(T205:T216,">0"))/100 -> 5.55249983 | V200: =100-(T200+U200+W200) -> 3.057343458 | W200: =IF((S202+W202)>100,W202*100/(S202+W202),W202) -> 0.130251534 | X200: =IF((X202+AB202)>100,X202*100/(X202+AB202),X202) -> 97.5819424 | Y200: =X200*AVERAGEIF(Y205:Y216,">0")/100 -> 94.90169925 | Z200: =X200*(100-AVERAGEIF(Y205:Y216,">0"))/100 -> 2.680243147 | AA200: =100-(Y200+Z200+AB200) -> 2.302646758 | AB200: =IF((X202+AB202)>100,AB202*100/(X202+AB202),AB202) -> 0.1154108426
A201: Regression period: | C201: =MinRegYear(C199,C205:C216) -> 2001 | D201: =IF(MAX(C205:C216)-MIN(C205:C216)<5,AVERAGEIF(C205:C216,">0",D205:D216), IF(FORECAST($C201,D$205:D$216,$C$205:$C$216)<0,0, IF(FORECAST($C201,D$205:D$216,$C$205:$C$216)>100,100, FORECAST($C201,D$205:D$216,$C$205:$C$216)))) -> 63.93390362 | H201: =IF(MAX(C205:C216)-MIN(C205:C216)<5,AVERAGEIF(C205:C216,">0",H205:H216), IF(FORECAST($C201,H$205:H$216,$C$205:$C$216)<0,0, IF(FORECAST($C201,H$205:H$216,$C$205:$C$216)>100,100, FORECAST($C201,H$205:H$216,$C$205:$C$216)))) -> 17.91675824 | I201: =IF(MAX(C205:C216)-MIN(C205:C216)<5,AVERAGEIF(C205:C216,">0",I205:I216), IF(FORECAST($C201,I$205:I$216,$C$205:$C$216)<0,0, IF(FORECAST($C201,I$205:I$216,$C$205:$C$216)>100,100, FORECAST($C201,I$205:I$216,$C$205:$C$216)))) -> 79.44003591 | M201: =IF(MAX(C205:C216)-MIN(C205:C216)<5,AVERAGEIF(C205:C216,">0",M205:M216), IF(FORECAST($C201,M$205:M$216,$C$205:$C$216)<0,0, IF(FORECAST($C201,M$205:M$216,$C$205:$C$216)>100,100, FORECAST($C201,M$205:M$216,$C$205:$C$216)))) -> 4.493020552 | N201: =IF(MAX(C205:C216)-MIN(C205:C216)<5,AVERAGEIF(C205:C216,">0",N205:N216), IF(FORECAST($C201,N$205:N$216,$C$205:$C$216)<0,0, IF(FORECAST($C201,N$205:N$216,$C$205:$C$216)>100,100, FORECAST($C201,N$205:N$216,$C$205:$C$216)))) -> 88.81442483 | R201: =IF(MAX(C205:C216)-MIN(C205:C216)<5,AVERAGEIF(C205:C216,">0",R205:R216), IF(FORECAST($C201,R$205:R$216,$C$205:$C$216)<0,0, IF(FORECAST($C201,R$205:R$216,$C$205:$C$216)>100,100, FORECAST($C201,R$205:R$216,$C$205:$C$216)))) -> 1.298006671 | S201: =IF(MAX(C205:C216)-MIN(C205:C216)<5,AVERAGEIF(C205:C216,">0",S205:S216), IF(FORECAST($C201,S$205:S$216,$C$205:$C$216)<0,0, IF(FORECAST($C201,S$205:S$216,$C$205:$C$216)>100,100, FORECAST($C201,S$205:S$216,$C$205:$C$216)))) -> 93.50627132 | W201: =IF(MAX(C205:C216)-MIN(C205:C216)<5,AVERAGEIF(C205:C216,">0",W205:W216), IF(FORECAST($C201,W$205:W$216,$C$205:$C$216)<0,0, IF(FORECAST($C201,W$205:W$216,$C$205:$C$216)>100,100, FORECAST($C201,W$205:W$216,$C$205:$C$216)))) -> 1.243265192 | X201: =IF(MAX(C205:C216)-MIN(C205:C216)<5,AVERAGEIF(C205:C216,">0",X205:X216), IF(FORECAST($C201,X$205:X$216,$C$205:$C$216)<0,0, IF(FORECAST($C201,X$205:X$216,$C$205:$C$216)>100,100, FORECAST($C201,X$205:X$216,$C$205:$C$216)))) -> 98.84345122 | AB201: =IF(MAX(C205:C216)-MIN(C205:C216)<5,AVERAGEIF(C205:C216,">0",AB205:AB216), IF(FORECAST($C201,AB$205:AB$216,$C$205:$C$216)<0,0, IF(FORECAST($C201,AB$205:AB$216,$C$205:$C$216)>100,100, FORECAST($C201,AB$205:AB$216,$C$205:$C$216)))) -> 0.1958640304
C202: =MaxRegYear(C200,C205:C216) -> 2014 | D202: =IF(MAX(C205:C216)-MIN(C205:C216)<5,AVERAGEIF(C205:C216,">0",D205:D216), IF(FORECAST($C202,D$205:D$216,$C$205:$C$216)<0,0, IF(FORECAST($C202,D$205:D$216,$C$205:$C$216)>100,100, FORECAST($C202,D$205:D$216,$C$205:$C$216)))) -> 82.45653972 | H202: =IF(MAX(C205:C216)-MIN(C205:C216)<5,AVERAGEIF(C205:C216,">0",H205:H216), IF(FORECAST($C202,H$205:H$216,$C$205:$C$216)<0,0, IF(FORECAST($C202,H$205:H$216,$C$205:$C$216)>100,100, FORECAST($C202,H$205:H$216,$C$205:$C$216)))) -> 3.654032487 | I202: =IF(MAX(C205:C216)-MIN(C205:C216)<5,AVERAGEIF(C205:C216,">0",I205:I216), IF(FORECAST($C202,I$205:I$216,$C$205:$C$216)<0,0, IF(FORECAST($C202,I$205:I$216,$C$205:$C$216)>100,100, FORECAST($C202,I$205:I$216,$C$205:$C$216)))) -> 94.71606361 | M202: =IF(MAX(C205:C216)-MIN(C205:C216)<5,AVERAGEIF(C205:C216,">0",M205:M216), IF(FORECAST($C202,M$205:M$216,$C$205:$C$216)<0,0, IF(FORECAST($C202,M$205:M$216,$C$205:$C$216)>100,100, FORECAST($C202,M$205:M$216,$C$205:$C$216)))) -> 0.8613295664 | N202: =IF(MAX(C205:C216)-MIN(C205:C216)<5,AVERAGEIF(C205:C216,">0",N205:N216), IF(FORECAST($C202,N$205:N$216,$C$205:$C$216)<0,0, IF(FORECAST($C202,N$205:N$216,$C$205:$C$216)>100,100, FORECAST($C202,N$205:N$216,$C$205:$C$216)))) -> 93.23862233 | R202: =IF(MAX(C205:C216)-MIN(C205:C216)<5,AVERAGEIF(C205:C216,">0",R205:R216), IF(FORECAST($C202,R$205:R$216,$C$205:$C$216)<0,0, IF(FORECAST($C202,R$205:R$216,$C$205:$C$216)>100,100, FORECAST($C202,R$205:R$216,$C$205:$C$216)))) -> 1.138306462 | S202: =IF(MAX(C205:C216)-MIN(C205:C216)<5,AVERAGEIF(C205:C216,">0",S205:S216), IF(FORECAST($C202,S$205:S$216,$C$205:$C$216)<0,0, IF(FORECAST($C202,S$205:S$216,$C$205:$C$216)>100,100, FORECAST($C202,S$205:S$216,$C$205:$C$216)))) -> 96.81240501 | W202: =IF(MAX(C205:C216)-MIN(C205:C216)<5,AVERAGEIF(C205:C216,">0",W205:W216), IF(FORECAST($C202,W$205:W$216,$C$205:$C$216)<0,0, IF(FORECAST($C202,W$205:W$216,$C$205:$C$216)>100,100, FORECAST($C202,W$205:W$216,$C$205:$C$216)))) -> 0.130251534 | X202: =IF(MAX(C205:C216)-MIN(C205:C216)<5,AVERAGEIF(C205:C216,">0",X205:X216), IF(FORECAST($C202,X$205:X$216,$C$205:$C$216)<0,0, IF(FORECAST($C202,X$205:X$216,$C$205:$C$216)>100,100, FORECAST($C202,X$205:X$216,$C$205:$C$216)))) -> 97.5819424 | AB202: =IF(MAX(C205:C216)-MIN(C205:C216)<5,AVERAGEIF(C205:C216,">0",AB205:AB216), IF(FORECAST($C202,AB$205:AB$216,$C$205:$C$216)<0,0, IF(FORECAST($C202,AB$205:AB$216,$C$205:$C$216)>100,100, FORECAST($C202,AB$205:AB$216,$C$205:$C$216)))) -> 0.1154108426
B204: Survey | C204: Year | D204: Improved | E204: Not shared | H204: Open defecation | I204: Improved | J204: Not shared | M204: Open defecation | N204: Improved | O204: Not shared | R204: Open defecation | S204: Improved | T204: Not shared | W204: Open defecation | X204: Improved | Y204: Not shared | AB204: Open defecation
B205: EPHPM01 | D205: =IF(ISERROR(INDIRECT(CONCATENATE($B205,"!H122"))),"",INDIRECT(CONCATENATE($B205,"!H122"))) -> 63.45479968 | E205: =IF(ISERROR(INDIRECT(CONCATENATE($B205,"!H129"))),"",INDIRECT(CONCATENATE($B205,"!H129"))) -> N/A | H205: =IF(ISERROR(INDIRECT(CONCATENATE($B205,"!H127"))),"",INDIRECT(CONCATENATE($B205,"!H127"))) -> 31.69212161 | I205: =IF(ISERROR(INDIRECT(CONCATENATE($B205,"!I122"))),"",INDIRECT(CONCATENATE($B205,"!I122"))) -> 80.75831218 | J205: =IF(ISERROR(INDIRECT(CONCATENATE($B205,"!I129"))),"",INDIRECT(CONCATENATE($B205,"!I129"))) -> N/A | M205: =IF(ISERROR(INDIRECT(CONCATENATE($B205,"!I127"))),"",INDIRECT(CONCATENATE($B205,"!I127"))) -> 18.04970864 | N205: =IF(ISERROR(INDIRECT(CONCATENATE($B205,"!J122"))),"",INDIRECT(CONCATENATE($B205,"!J122"))) -> 90.73119306 | O205: =IF(ISERROR(INDIRECT(CONCATENATE($B205,"!J129"))),"",INDIRECT(CONCATENATE($B205,"!J129"))) -> N/A | R205: =IF(ISERROR(INDIRECT(CONCATENATE($B205,"!J127"))),"",INDIRECT(CONCATENATE($B205,"!J127"))) -> 6.656123108 | S205: =IF(ISERROR(INDIRECT(CONCATENATE($B205,"!K122"))),"",INDIRECT(CONCATENATE($B205,"!K122"))) -> 92.37956365 | T205: =IF(ISERROR(INDIRECT(CONCATENATE($B205,"!K129"))),"",INDIRECT(CONCATENATE($B205,"!K129"))) -> N/A | W205: =IF(ISERROR(INDIRECT(CONCATENATE($B205,"!K127"))),"",INDIRECT(CONCATENATE($B205,"!K127"))) -> 6.582999965 | X205: =IF(ISERROR(INDIRECT(CONCATENATE($B205,"!L122"))),"",INDIRECT(CONCATENATE($B205,"!L122"))) -> 97.4516053 | Y205: =IF(ISERROR(INDIRECT(CONCATENATE($B205,"!L129"))),"",INDIRECT(CONCATENATE($B205,"!L129"))) -> N/A | AB205: =IF(ISERROR(INDIRECT(CONCATENATE($B205,"!L2127"))),"",INDIRECT(CONCATENATE($B205,"!L127"))) -> 2.288560057
B206: EPHPM03 | C206: 2003 | D206: 65.49618653 | E206: 78.23572827 | H206: 16.32631864 | I206: 81.55767976 | J206: 83.18285744 | M206: 4.276279646 | N206: 89.61532791 | O206: 92.9749929 | R206: 1.253185142 | S206: 93.7334093 | T206: 97.29311045 | W206: 1.349532168 | X206: 97.98436831 | Y206: 99.09237881 | AB206: 0.4679305046
B207: EPHPM04 | C207: 2004 | D207: 67.35449642 | E207: 71.0458832 | H207: 15.5812769 | I207: 80.57627164 | J207: 65.02512744 | M207: 5.55127648 | N207: 87.42810347 | O207: 81.86167911 | R207: 2.617709531 | S207: 90.95597777 | T207: 89.22416648 | W207: 1.767271078 | X207: 96.95792594 | Y207: 97.69412578 | AB207: 0.1472982198
B208: EPHPM05 | C208: 2005 | D208: 72.60445987 | E208: 73.91485776 | H208: 12.54064326 | I208: 85.02738705 | J208: 82.26101349 | M208: 2.745968536 | N208: 90.57652594 | O208: 91.21606342 | R208: 0.4758119298 | S208: 95.55582087 | T208: 97.50116393 | W208: 0.4855311057 | X208: 99.69586728 | Y208: 99.46932635 | AB208: 0
B209: EPHPM06 | C209: 2006 | D209: 72.66781906 | E209: 79.39420212 | H209: 11.46863252 | I209: 88.97794642 | J209: 85.00658575 | M209: 1.354860639 | N209: 92.92608663 | O209: 94.99771435 | R209: 0.8280648482 | S209: 96.57403773 | T209: 97.04184923 | W209: 0.5740244658 | X209: 98.98554745 | Y209: 99.64398118 | AB209: 0.1428021529
B210: DHS06 | C210: 2006 | D210: 69.05118465 | E210: 69.43637599 | H210: 12.36544303 | I210: 84.1521485 | J210: 78.49702219 | M210: 2.530692962 | N210: 90.66771474 | O210: 88.48698507 | R210: 0.7686371587 | S210: 96.61727102 | T210: 95.22779856 | W210: 0.08343127643 | X210: 99.40701294 | Y210: 99.32023424 | AB210: 0
B211: DHS12 | C211: 2012 | D211: 79.17382006 | E211: 85.9 | H211: 6.304252577 | I211: 91.60115371 | J211: 88.5 | M211: 2.118219697 | N211: 91.88247681 | O211: 84.4 | R211: 1.476092474 | S211: 95.23065052 | T211: 89.3 | W211: 0.6313080008 | X211: 97.11881118 | Y211: 88.3 | AB211: 0.2314921026
B218: =CONCATENATE("Urban use of sanitation facilities, ",C199,"–",C200) -> Urban use of sanitation facilities, 2000–2018 | S218: Data points used for regression
A297: RURAL | D297: Poorest | I297: Poor | N297: Middle | S297: Rich | X297: Richest
D298: Improved | E298: Basic | F298: Limited | G298: Unimproved | H298: Open defecation | I298: Improved | J298: Basic | K298: Limited | L298: Unimproved | M298: Open defecation | N298: Improved | O298: Basic | P298: Limited | Q298: Unimproved | R298: Open defecation | S298: Improved | T298: Basic | U298: Limited | V298: Unimproved | W298: Open defecation | X298: Improved | Y298: Basic | Z298: Limited | AA298: Unimproved | AB298: Open defecation
A299: Forecast period: | C299: =MinBase(C305:C316) -> 2000 | D299: =IF((D301+H301)>100,D301*100/(D301+H301),D301) -> 37.71789433 | E299: =D299*AVERAGEIF(E305:E316,">0")/100 -> 35.65463226 | F299: =D299*(100-AVERAGEIF(E305:E316,">0"))/100 -> 2.063262073 | G299: =100-(E299+F299+H299) -> 8.978037222 | H299: =IF((D301+H301)>100,H301*100/(D301+H301),H301) -> 53.30406845 | I299: =IF((I301+M301)>100,I301*100/(I301+M301),I301) -> 39.59387533 | J299: =I299*AVERAGEIF(J305:J316,">0")/100 -> 37.68104573 | K299: =I299*(100-AVERAGEIF(J305:J316,">0"))/100 -> 1.912829608 | L299: =100-(J299+K299+M299) -> 10.80839259 | M299: =IF((I301+M301)>100,M301*100/(I301+M301),M301) -> 49.59773208 | N299: =IF((N301+R301)>100,N301*100/(N301+R301),N301) -> 61.2746582 | O299: =N299*AVERAGEIF(O305:O316,">0")/100 -> 57.91447308 | P299: =N299*(100-AVERAGEIF(O305:O316,">0"))/100 -> 3.360185118 | Q299: =100-(O299+P299+R299) -> 10.85182793 | R299: =IF((N301+R301)>100,R301*100/(N301+R301),R301) -> 27.87351387 | S299: =IF((S301+W301)>100,S301*100/(S301+W301),S301) -> 71.3289259 | T299: =S299*AVERAGEIF(T305:T316,">0")/100 -> 66.79491843 | U299: =S299*(100-AVERAGEIF(T305:T316,">0"))/100 -> 4.534007464 | V299: =100-(T299+U299+W299) -> 11.63754636 | W299: =IF((S301+W301)>100,W301*100/(S301+W301),W301) -> 17.03352774 | X299: =IF((X301+AB301)>100,X301*100/(X301+AB301),X301) -> 85.85007366 | Y299: =X299*AVERAGEIF(Y305:Y316,">0")/100 -> 79.41421692 | Z299: =X299*(100-AVERAGEIF(Y305:Y316,">0"))/100 -> 6.435856738 | AA299: =100-(Y299+Z299+AB299) -> 6.381828483 | AB299: =IF((X301+AB301)>100,AB301*100/(X301+AB301),AB301) -> 7.768097858
C300: =MaxTarget(C305:C316) -> 2018 | D300: =IF((D302+H302)>100,D302*100/(D302+H302),D302) -> 56.25762678 | E300: =D300*AVERAGEIF(E305:E316,">0")/100 -> 53.1801955 | F300: =D300*(100-AVERAGEIF(E305:E316,">0"))/100 -> 3.077431275 | G300: =100-(E300+F300+H300) -> 10.19566782 | H300: =IF((D302+H302)>100,H302*100/(D302+H302),H302) -> 33.54670541 | I300: =IF((I302+M302)>100,I302*100/(I302+M302),I302) -> 66.56028394 | J300: =I300*AVERAGEIF(J305:J316,">0")/100 -> 63.34467343 | K300: =I300*(100-AVERAGEIF(J305:J316,">0"))/100 -> 3.215610515 | L300: =100-(J300+K300+M300) -> 8.677696402 | M300: =IF((I302+M302)>100,M302*100/(I302+M302),M302) -> 24.76201966 | N300: =IF((N302+R302)>100,N302*100/(N302+R302),N302) -> 69.19585402 | O300: =N300*AVERAGEIF(O305:O316,">0")/100 -> 65.40128566 | P300: =N300*(100-AVERAGEIF(O305:O316,">0"))/100 -> 3.794568354 | Q300: =100-(O300+P300+R300) -> 10.00401128 | R300: =IF((N302+R302)>100,R302*100/(N302+R302),R302) -> 20.8001347 | S300: =IF((S302+W302)>100,S302*100/(S302+W302),S302) -> 80.87006271 | T300: =S300*AVERAGEIF(T305:T316,">0")/100 -> 75.72957498 | U300: =S300*(100-AVERAGEIF(T305:T316,">0"))/100 -> 5.140487724 | V300: =100-(T300+U300+W300) -> 9.061118987 | W300: =IF((S302+W302)>100,W302*100/(S302+W302),W302) -> 10.06881831 | X300: =IF((X302+AB302)>100,X302*100/(X302+AB302),X302) -> 93.82201695 | Y300: =X300*AVERAGEIF(Y305:Y316,">0")/100 -> 86.78853365 | Z300: =X300*(100-AVERAGEIF(Y305:Y316,">0"))/100 -> 7.033483306 | AA300: =100-(Y300+Z300+AB300) -> 6.177983047 | AB300: =IF((X302+AB302)>100,AB302*100/(X302+AB302),AB302) -> 0
A301: Regression period: | C301: =MinRegYear(C299,C305:C316) -> 2000 | D301: =IF(MAX(C305:C316)-MIN(C305:C316)<5,AVERAGEIF(C305:C316,">0",D305:D316), IF(FORECAST($C301,D$305:D$316,$C$305:$C$316)<0,0, IF(FORECAST($C301,D$305:D$316,$C$305:$C$316)>100,100, FORECAST($C301,D$305:D$316,$C$305:$C$316)))) -> 37.71789433 | H301: =IF(MAX(C305:C316)-MIN(C305:C316)<5,AVERAGEIF(C305:C316,">0",H305:H316), IF(FORECAST($C301,H$305:H$316,$C$305:$C$316)<0,0, IF(FORECAST($C301,H$305:H$316,$C$305:$C$316)>100,100, FORECAST($C301,H$305:H$316,$C$305:$C$316)))) -> 53.30406845 | I301: =IF(MAX(C305:C316)-MIN(C305:C316)<5,AVERAGEIF(C305:C316,">0",I305:I316), IF(FORECAST($C301,I$305:I$316,$C$305:$C$316)<0,0, IF(FORECAST($C301,I$305:I$316,$C$305:$C$316)>100,100, FORECAST($C301,I$305:I$316,$C$305:$C$316)))) -> 39.59387533 | M301: =IF(MAX(C305:C316)-MIN(C305:C316)<5,AVERAGEIF(C305:C316,">0",M305:M316), IF(FORECAST($C301,M$305:M$316,$C$305:$C$316)<0,0, IF(FORECAST($C301,M$305:M$316,$C$305:$C$316)>100,100, FORECAST($C301,M$305:M$316,$C$305:$C$316)))) -> 49.59773208 | N301: =IF(MAX(C305:C316)-MIN(C305:C316)<5,AVERAGEIF(C305:C316,">0",N305:N316), IF(FORECAST($C301,N$305:N$316,$C$305:$C$316)<0,0, IF(FORECAST($C301,N$305:N$316,$C$305:$C$316)>100,100, FORECAST($C301,N$305:N$316,$C$305:$C$316)))) -> 61.2746582 | R301: =IF(MAX(C305:C316)-MIN(C305:C316)<5,AVERAGEIF(C305:C316,">0",R305:R316), IF(FORECAST($C301,R$305:R$316,$C$305:$C$316)<0,0, IF(FORECAST($C301,R$305:R$316,$C$305:$C$316)>100,100, FORECAST($C301,R$305:R$316,$C$305:$C$316)))) -> 27.87351387 | S301: =IF(MAX(C305:C316)-MIN(C305:C316)<5,AVERAGEIF(C305:C316,">0",S305:S316), IF(FORECAST($C301,S$305:S$316,$C$305:$C$316)<0,0, IF(FORECAST($C301,S$305:S$316,$C$305:$C$316)>100,100, FORECAST($C301,S$305:S$316,$C$305:$C$316)))) -> 71.3289259 | W301: =IF(MAX(C305:C316)-MIN(C305:C316)<5,AVERAGEIF(C305:C316,">0",W305:W316), IF(FORECAST($C301,W$305:W$316,$C$305:$C$316)<0,0, IF(FORECAST($C301,W$305:W$316,$C$305:$C$316)>100,100, FORECAST($C301,W$305:W$316,$C$305:$C$316)))) -> 17.03352774 | X301: =IF(MAX(C305:C316)-MIN(C305:C316)<5,AVERAGEIF(C305:C316,">0",X305:X316), IF(FORECAST($C301,X$305:X$316,$C$305:$C$316)<0,0, IF(FORECAST($C301,X$305:X$316,$C$305:$C$316)>100,100, FORECAST($C301,X$305:X$316,$C$305:$C$316)))) -> 85.85007366 | AB301: =IF(MAX(C305:C316)-MIN(C305:C316)<5,AVERAGEIF(C305:C316,">0",AB305:AB316), IF(FORECAST($C301,AB$305:AB$316,$C$305:$C$316)<0,0, IF(FORECAST($C301,AB$305:AB$316,$C$305:$C$316)>100,100, FORECAST($C301,AB$305:AB$316,$C$305:$C$316)))) -> 7.768097858
C302: =MaxRegYear(C300,C305:C316) -> 2014 | D302: =IF(MAX(C305:C316)-MIN(C305:C316)<5,AVERAGEIF(C305:C316,">0",D305:D316), IF(FORECAST($C302,D$305:D$316,$C$305:$C$316)<0,0, IF(FORECAST($C302,D$305:D$316,$C$305:$C$316)>100,100, FORECAST($C302,D$305:D$316,$C$305:$C$316)))) -> 56.25762678 | H302: =IF(MAX(C305:C316)-MIN(C305:C316)<5,AVERAGEIF(C305:C316,">0",H305:H316), IF(FORECAST($C302,H$305:H$316,$C$305:$C$316)<0,0, IF(FORECAST($C302,H$305:H$316,$C$305:$C$316)>100,100, FORECAST($C302,H$305:H$316,$C$305:$C$316)))) -> 33.54670541 | I302: =IF(MAX(C305:C316)-MIN(C305:C316)<5,AVERAGEIF(C305:C316,">0",I305:I316), IF(FORECAST($C302,I$305:I$316,$C$305:$C$316)<0,0, IF(FORECAST($C302,I$305:I$316,$C$305:$C$316)>100,100, FORECAST($C302,I$305:I$316,$C$305:$C$316)))) -> 66.56028394 | M302: =IF(MAX(C305:C316)-MIN(C305:C316)<5,AVERAGEIF(C305:C316,">0",M305:M316), IF(FORECAST($C302,M$305:M$316,$C$305:$C$316)<0,0, IF(FORECAST($C302,M$305:M$316,$C$305:$C$316)>100,100, FORECAST($C302,M$305:M$316,$C$305:$C$316)))) -> 24.76201966 | N302: =IF(MAX(C305:C316)-MIN(C305:C316)<5,AVERAGEIF(C305:C316,">0",N305:N316), IF(FORECAST($C302,N$305:N$316,$C$305:$C$316)<0,0, IF(FORECAST($C302,N$305:N$316,$C$305:$C$316)>100,100, FORECAST($C302,N$305:N$316,$C$305:$C$316)))) -> 69.19585402 | R302: =IF(MAX(C305:C316)-MIN(C305:C316)<5,AVERAGEIF(C305:C316,">0",R305:R316), IF(FORECAST($C302,R$305:R$316,$C$305:$C$316)<0,0, IF(FORECAST($C302,R$305:R$316,$C$305:$C$316)>100,100, FORECAST($C302,R$305:R$316,$C$305:$C$316)))) -> 20.8001347 | S302: =IF(MAX(C305:C316)-MIN(C305:C316)<5,AVERAGEIF(C305:C316,">0",S305:S316), IF(FORECAST($C302,S$305:S$316,$C$305:$C$316)<0,0, IF(FORECAST($C302,S$305:S$316,$C$305:$C$316)>100,100, FORECAST($C302,S$305:S$316,$C$305:$C$316)))) -> 80.87006271 | W302: =IF(MAX(C305:C316)-MIN(C305:C316)<5,AVERAGEIF(C305:C316,">0",W305:W316), IF(FORECAST($C302,W$305:W$316,$C$305:$C$316)<0,0, IF(FORECAST($C302,W$305:W$316,$C$305:$C$316)>100,100, FORECAST($C302,W$305:W$316,$C$305:$C$316)))) -> 10.06881831 | X302: =IF(MAX(C305:C316)-MIN(C305:C316)<5,AVERAGEIF(C305:C316,">0",X305:X316), IF(FORECAST($C302,X$305:X$316,$C$305:$C$316)<0,0, IF(FORECAST($C302,X$305:X$316,$C$305:$C$316)>100,100, FORECAST($C302,X$305:X$316,$C$305:$C$316)))) -> 93.82201695 | AB302: =IF(MAX(C305:C316)-MIN(C305:C316)<5,AVERAGEIF(C305:C316,">0",AB305:AB316), IF(FORECAST($C302,AB$305:AB$316,$C$305:$C$316)<0,0, IF(FORECAST($C302,AB$305:AB$316,$C$305:$C$316)>100,100, FORECAST($C302,AB$305:AB$316,$C$305:$C$316)))) -> 0
B304: Survey | C304: Year | D304: Improved | E304: Not shared | H304: Open defecation | I304: Improved | J304: Not shared | M304: Open defecation | N304: Improved | O304: Not shared | R304: Open defecation | S304: Improved | T304: Not shared | W304: Open defecation | X304: Improved | Y304: Not shared | AB304: Open defecation
B305: EPHPM01 | C305: 2001 | D305: =IF(ISERROR(INDIRECT(CONCATENATE($B305,"!M122"))),"",INDIRECT(CONCATENATE($B305,"!M122"))) -> 48.31303436 | E305: =IF(ISERROR(INDIRECT(CONCATENATE($B305,"!M129"))),"",INDIRECT(CONCATENATE($B305,"!M129"))) -> N/A | H305: =IF(ISERROR(INDIRECT(CONCATENATE($B305,"!M127"))),"",INDIRECT(CONCATENATE($B305,"!M127"))) -> 42.19814718 | I305: =IF(ISERROR(INDIRECT(CONCATENATE($B305,"!N122"))),"",INDIRECT(CONCATENATE($B305,"!N122"))) -> 45.35498535 | J305: =IF(ISERROR(INDIRECT(CONCATENATE($B305,"!N129"))),"",INDIRECT(CONCATENATE($B305,"!N129"))) -> N/A | M305: =IF(ISERROR(INDIRECT(CONCATENATE($B305,"!N127"))),"",INDIRECT(CONCATENATE($B305,"!N127"))) -> 43.93964733 | N305: =IF(ISERROR(INDIRECT(CONCATENATE($B305,"!O122"))),"",INDIRECT(CONCATENATE($B305,"!O122"))) -> 64.10333959 | O305: =IF(ISERROR(INDIRECT(CONCATENATE($B305,"!O129"))),"",INDIRECT(CONCATENATE($B305,"!O129"))) -> N/A | R305: =IF(ISERROR(INDIRECT(CONCATENATE($B305,"!O127"))),"",INDIRECT(CONCATENATE($B305,"!O127"))) -> 27.03392996 | S305: =IF(ISERROR(INDIRECT(CONCATENATE($B305,"!P122"))),"",INDIRECT(CONCATENATE($B305,"!P122"))) -> 71.6235455 | T305: =IF(ISERROR(INDIRECT(CONCATENATE($B305,"!P129"))),"",INDIRECT(CONCATENATE($B305,"!P129"))) -> N/A | W305: =IF(ISERROR(INDIRECT(CONCATENATE($B305,"!P127"))),"",INDIRECT(CONCATENATE($B305,"!P127"))) -> 17.96270608 | X305: =IF(ISERROR(INDIRECT(CONCATENATE($B305,"!Q122"))),"",INDIRECT(CONCATENATE($B305,"!Q122"))) -> 85.8049229 | Y305: =IF(ISERROR(INDIRECT(CONCATENATE($B305,"!Q129"))),"",INDIRECT(CONCATENATE($B305,"!Q129"))) -> N/A | AB305: =IF(ISERROR(INDIRECT(CONCATENATE($B305,"!Q2127"))),"",INDIRECT(CONCATENATE($B305,"!Q127"))) -> 9.371260861
B306: EPHPM03 | D306: 56.91835373 | E306: 96.21993145 | H306: 28.90753253 | I306: 55.44387206 | J306: 95.95910511 | M306: 35.21920552 | N306: 59.8071991 | O306: 96.17451172 | R306: 29.8103042 | S306: 56.0532856 | T306: 95.69239861 | W306: 32.90818316 | X306: 57.05196701 | Y306: 90.2452095 | AB306: 30.23149845
B307: EPHPM04 | D307: 46.50388811 | E307: 97.74937995 | H307: 44.77615746 | I307: 46.3193565 | J307: 98.50111803 | M307: 42.29052387 | N307: 56.62092519 | O307: 97.30559386 | R307: 32.0710042 | S307: 52.63066731 | T307: 95.78311143 | W307: 35.43012195 | X307: 69.10233667 | Y307: 89.01053422 | AB307: 19.86743835
B308: EPHPM05 | C308: 2005 | D308: 37.75995247 | E308: 94.59986988 | H308: 53.92156863 | I308: 50.08939213 | J308: 97.20837488 | M308: 39.95828367 | N308: 62.81556282 | O308: 96.43146796 | R308: 26.16572617 | S308: 77.38626227 | T308: 95.33447684 | W308: 13.02408564 | X308: 90.02085195 | Y308: 94.28306551 | AB308: 2.770330652
B309: EPHPM06 | C309: 2006 | D309: 45.48609903 | E309: 98.64428348 | H309: 44.57531577 | I309: 48.45275164 | J309: 98.01720235 | M309: 41.73634678 | N309: 65.86532639 | O309: 97.11985521 | R309: 23.42601083 | S309: 77.97360746 | T309: 96.67644184 | W309: 12.34616205 | X309: 90.78516998 | Y309: 97.05666231 | AB309: 3.077699294
B310: DHS06 | C310: 2006 | D310: 36.52010829 | E310: 91.86505181 | H310: 53.91886896 | I310: 45.80957792 | J310: 93.62744965 | M310: 44.1900332 | N310: 60.8277462 | O310: 93.96571825 | R310: 25.91625948 | S310: 70.48024149 | T310: 91.87470344 | W310: 14.91132378 | X310: 87.33052797 | Y310: 93.82478787 | AB310: 3.642615965
B311: DHS12 | C311: 2012 | D311: 60.23827561 | E311: 88.1 | H311: 29.56923518 | I311: 66.04783093 | J311: 87.7 | M311: 24.94496565 | N311: 69.73530704 | O311: 86.1 | R311: 21.66840185 | S311: 79.62626594 | T311: 86.5 | W311: 11.9989838 | X311: 92.39163113 | Y311: 90.6 | AB311: 2.119719768
B318: =CONCATENATE("Rural use of sanitation facilities, ",C299,"–",C300) -> Rural use of sanitation facilities, 2000–2018 | S318: Data points used for regression

Sheet Hygiene
B4: Access to hygiene facilities by wealth quintile (%)
B5: =IF(ISERROR(INDIRECT(CONCATENATE($E$32,"!A2"))),"",INDIRECT(CONCATENATE($E$32,"!A2"))) -> Honduras
B7: =CONCATENATE("National ",IF(ISERROR(INDIRECT(CONCATENATE($E$32,"!A2"))),"",INDIRECT(CONCATENATE($E$32,"!A210")))) -> National Access to hygiene facilities | K7: =CONCATENATE("Urban ",IF(ISERROR(INDIRECT(CONCATENATE($E$32,"!A2"))),"",INDIRECT(CONCATENATE($E$32,"!A210")))) -> Urban Access to hygiene facilities | S7: =CONCATENATE("Rural ",IF(ISERROR(INDIRECT(CONCATENATE($E$32,"!A2"))),"",INDIRECT(CONCATENATE($E$32,"!A210")))) -> Rural Access to hygiene facilities
E32: =INDEX(B88:B100,A88) -> DHS12 | G32: =IF(ISERROR(INDIRECT(CONCATENATE($E$32,"!A2"))),"",INDIRECT(CONCATENATE($E$32,"!A2"))) -> Honduras | K32: Poorest | N32: Poor | Q32: Middle | T32: Rich | W32: Richest
K33: Basic | L33: Limited | M33: No facility | N33: Basic | O33: Limited | P33: No facility | Q33: Basic | R33: Limited | S33: No facility | T33: Basic | U33: Limited | V33: No facility | W33: Basic | X33: Limited | Y33: No facility
B34: >>> Select Survey : | G34: NATIONAL | J34: =IF(ISERROR(INDIRECT(CONCATENATE(#REF!,"!A2"))),"",INDIRECT(CONCATENATE(#REF!,"!A210"))) ->  | K34: =IF(ISERROR(INDIRECT(CONCATENATE($E$32,"!C222"))),"",INDIRECT(CONCATENATE($E$32,"!C222"))) -> 74.85011189 | L34: =IF(ISERROR(INDIRECT(CONCATENATE($E$32,"!C223"))),"",INDIRECT(CONCATENATE($E$32,"!C223"))) -> 19.60026779 | M34: =IF(ISERROR(INDIRECT(CONCATENATE($E$32,"!C224"))),"",INDIRECT(CONCATENATE($E$32,"!C224"))) -> 5.54962032 | N34: =IF(ISERROR(INDIRECT(CONCATENATE($E$32,"!D222"))),"",INDIRECT(CONCATENATE($E$32,"!D222"))) -> 80.91469068 | O34: =IF(ISERROR(INDIRECT(CONCATENATE($E$32,"!D223"))),"",INDIRECT(CONCATENATE($E$32,"!D223"))) -> 14.40255962 | P34: =IF(ISERROR(INDIRECT(CONCATENATE($E$32,"!D224"))),"",INDIRECT(CONCATENATE($E$32,"!D224"))) -> 4.682749692 | Q34: =IF(ISERROR(INDIRECT(CONCATENATE($E$32,"!E222"))),"",INDIRECT(CONCATENATE($E$32,"!E222"))) -> 85.89093994 | R34: =IF(ISERROR(INDIRECT(CONCATENATE($E$32,"!E223"))),"",INDIRECT(CONCATENATE($E$32,"!E223"))) -> 8.801864062 | S34: =IF(ISERROR(INDIRECT(CONCATENATE($E$32,"!E224"))),"",INDIRECT(CONCATENATE($E$32,"!E224"))) -> 5.307195995 | T34: =IF(ISERROR(INDIRECT(CONCATENATE($E$32,"!F222"))),"",INDIRECT(CONCATENATE($E$32,"!F222"))) -> 87.73078542 | U34: =IF(ISERROR(INDIRECT(CONCATENATE($E$32,"!F223"))),"",INDIRECT(CONCATENATE($E$32,"!F223"))) -> 5.902464025 | V34: =IF(ISERROR(INDIRECT(CONCATENATE($E$32,"!F224"))),"",INDIRECT(CONCATENATE($E$32,"!F224"))) -> 6.366750556 | W34: =IF(ISERROR(INDIRECT(CONCATENATE($E$32,"!G222"))),"",INDIRECT(CONCATENATE($E$32,"!G222"))) -> 89.91632049 | X34: =IF(ISERROR(INDIRECT(CONCATENATE($E$32,"!G223"))),"",INDIRECT(CONCATENATE($E$32,"!G223"))) -> 4.356749853 | Y34: =IF(ISERROR(INDIRECT(CONCATENATE($E$32,"!G224"))),"",INDIRECT(CONCATENATE($E$32,"!G224"))) -> 5.726929658
G37: URBAN | J37: =IF(ISERROR(INDIRECT(CONCATENATE(#REF!,"!A2"))),"",INDIRECT(CONCATENATE(#REF!,"!A210"))) ->  | K37: =IF(ISERROR(INDIRECT(CONCATENATE($E$32,"!H222"))),"",INDIRECT(CONCATENATE($E$32,"!H222"))) -> 85.58868655 | L37: =IF(ISERROR(INDIRECT(CONCATENATE($E$32,"!H223"))),"",INDIRECT(CONCATENATE($E$32,"!H223"))) -> 9.534701509 | M37: =IF(ISERROR(INDIRECT(CONCATENATE($E$32,"!H224"))),"",INDIRECT(CONCATENATE($E$32,"!H224"))) -> 4.876611938 | N37: =IF(ISERROR(INDIRECT(CONCATENATE($E$32,"!I222"))),"",INDIRECT(CONCATENATE($E$32,"!I222"))) -> 85.13443457 | O37: =IF(ISERROR(INDIRECT(CONCATENATE($E$32,"!I223"))),"",INDIRECT(CONCATENATE($E$32,"!I223"))) -> 6.627481087 | P37: =IF(ISERROR(INDIRECT(CONCATENATE($E$32,"!I224"))),"",INDIRECT(CONCATENATE($E$32,"!I224"))) -> 8.238084343 | Q37: =IF(ISERROR(INDIRECT(CONCATENATE($E$32,"!J222"))),"",INDIRECT(CONCATENATE($E$32,"!J222"))) -> 87.48759389 | R37: =IF(ISERROR(INDIRECT(CONCATENATE($E$32,"!J223"))),"",INDIRECT(CONCATENATE($E$32,"!J223"))) -> 6.296727117 | S37: =IF(ISERROR(INDIRECT(CONCATENATE($E$32,"!J224"))),"",INDIRECT(CONCATENATE($E$32,"!J224"))) -> 6.215678993 | T37: =IF(ISERROR(INDIRECT(CONCATENATE($E$32,"!K222"))),"",INDIRECT(CONCATENATE($E$32,"!K222"))) -> 88.96495004 | U37: =IF(ISERROR(INDIRECT(CONCATENATE($E$32,"!K223"))),"",INDIRECT(CONCATENATE($E$32,"!K223"))) -> 4.194648338 | V37: =IF(ISERROR(INDIRECT(CONCATENATE($E$32,"!K224"))),"",INDIRECT(CONCATENATE($E$32,"!K224"))) -> 6.840401619 | W37: =IF(ISERROR(INDIRECT(CONCATENATE($E$32,"!L222"))),"",INDIRECT(CONCATENATE($E$32,"!L222"))) -> 89.49621509 | X37: =IF(ISERROR(INDIRECT(CONCATENATE($E$32,"!L223"))),"",INDIRECT(CONCATENATE($E$32,"!L223"))) -> 4.137505487 | Y37: =IF(ISERROR(INDIRECT(CONCATENATE($E$32,"!L224"))),"",INDIRECT(CONCATENATE($E$32,"!L224"))) -> 6.366279425
G40: RURAL | J40: =IF(ISERROR(INDIRECT(CONCATENATE(#REF!,"!A2"))),"",INDIRECT(CONCATENATE(#REF!,"!A210"))) ->  | K40: =IF(ISERROR(INDIRECT(CONCATENATE($E$32,"!M222"))),"",INDIRECT(CONCATENATE($E$32,"!M222"))) -> 72.47965694 | L40: =IF(ISERROR(INDIRECT(CONCATENATE($E$32,"!M223"))),"",INDIRECT(CONCATENATE($E$32,"!M223"))) -> 21.55855964 | M40: =IF(ISERROR(INDIRECT(CONCATENATE($E$32,"!M224"))),"",INDIRECT(CONCATENATE($E$32,"!M224"))) -> 5.961783424 | N40: =IF(ISERROR(INDIRECT(CONCATENATE($E$32,"!N222"))),"",INDIRECT(CONCATENATE($E$32,"!N222"))) -> 76.60664482 | O40: =IF(ISERROR(INDIRECT(CONCATENATE($E$32,"!N223"))),"",INDIRECT(CONCATENATE($E$32,"!N223"))) -> 18.06136333 | P40: =IF(ISERROR(INDIRECT(CONCATENATE($E$32,"!N224"))),"",INDIRECT(CONCATENATE($E$32,"!N224"))) -> 5.331991843 | Q40: =IF(ISERROR(INDIRECT(CONCATENATE($E$32,"!O222"))),"",INDIRECT(CONCATENATE($E$32,"!O222"))) -> 79.99187139 | R40: =IF(ISERROR(INDIRECT(CONCATENATE($E$32,"!O223"))),"",INDIRECT(CONCATENATE($E$32,"!O223"))) -> 15.35961286 | S40: =IF(ISERROR(INDIRECT(CONCATENATE($E$32,"!O224"))),"",INDIRECT(CONCATENATE($E$32,"!O224"))) -> 4.64851575 | T40: =IF(ISERROR(INDIRECT(CONCATENATE($E$32,"!P222"))),"",INDIRECT(CONCATENATE($E$32,"!P222"))) -> 82.91852862 | U40: =IF(ISERROR(INDIRECT(CONCATENATE($E$32,"!P223"))),"",INDIRECT(CONCATENATE($E$32,"!P223"))) -> 13.02243711 | V40: =IF(ISERROR(INDIRECT(CONCATENATE($E$32,"!P224"))),"",INDIRECT(CONCATENATE($E$32,"!P224"))) -> 4.059034266 | W40: =IF(ISERROR(INDIRECT(CONCATENATE($E$32,"!Q222"))),"",INDIRECT(CONCATENATE($E$32,"!Q222"))) -> 90.64794144 | X40: =IF(ISERROR(INDIRECT(CONCATENATE($E$32,"!Q223"))),"",INDIRECT(CONCATENATE($E$32,"!Q223"))) -> 6.145816639 | Y40: =IF(ISERROR(INDIRECT(CONCATENATE($E$32,"!Q224"))),"",INDIRECT(CONCATENATE($E$32,"!Q224"))) -> 3.206241917
A88: 7 | B88: EPHPM01
B89: EPHPM03
B90: EPHPM04
B91: EPHPM05
B92: EPHPM06
B93: DHS06
B94: DHS12
B95: Template

Sheet EPHPM01
A2: =A1026 -> Honduras
A3: =A1034 -> 2001
A4: Use of drinking water sources
A5: by wealth quintile and sub-national region
A6: Notes:
A7: WHO/UNICEF JMP customised wealth index excludes water,
A8: sanitation and hygiene assets.
A9: Survey used for analysis: | B9: =A1025 -> EPHPM01
A10: Springs among surface water: | B10: DHS12
A11: =B1027 -> Time to improved source based on: | B11: DHS06
A14: Use of drinking water sources | C14: NATIONAL wealth index quintile | H14: URBAN wealth index quintile | M14: RURAL wealth index quintile | R14: SUB-REGIONS: | BA14: Raw numbers of respondents: | BB14: Use of drinking water sources | BC14: NATIONAL wealth index quintile | BH14: URBAN wealth index quintile | BM14: RURAL wealth index quintile | BR14: SUB-REGIONS:
A15: Weighted percentage (used in graphs) | C15: Poorest | D15: Poor | E15: Middle | F15: Rich | G15: Richest | H15: Poorest | I15: Poor | J15: Middle | K15: Rich | L15: Richest | M15: Poorest | N15: Poor | O15: Middle | P15: Rich | Q15: Richest | R15: Atlantida | S15: Choluteca | T15: Colon | U15: Comayagua | V15: Copan | W15: Cortes | X15: El Paraiso | Y15: Francisco Morazan | Z15: Gracias a Dios | AA15: Intibuca | AB15: Islas de la Bahia | AC15: La Paz | AD15: Lempira | AE15: Ocotepeque | AF15: Olancho | AG15: Santa Barbara | AH15: Valle | AI15: Yoro | BA15: Water data, raw numbers (weighted) | BC15: Poorest | BD15: Poor | BE15: Middle | BF15: Rich | BG15: Richest | BH15: Poorest | BI15: Poor | BJ15: Middle | BK15: Rich | BL15: Richest | BM15: Poorest | BN15: Poor | BO15: Middle | BP15: Rich | BQ15: Richest | BR15: Atlantida | BS15: Choluteca | BT15: Colon | BU15: Comayagua | BV15: Copan | BW15: Cortes | BX15: El Paraiso | BY15: Francisco Morazan | BZ15: Gracias a Dios | CA15: Intibuca | CB15: Islas de la Bahia | CC15: La Paz | CD15: Lempira | CE15: Ocotepeque | CF15: Olancho | CG15: Santa Barbara | CH15: Valle | CI15: Yoro
A16: Water | B16: Improved | C16: =C58+C59+C60+C61*0.5+C62*'DHS12'!C25/100 -> 93.16654227 | D16: =D58+D59+D60+D61*0.5+D62*'DHS12'!D25/100 -> 94.53209821 | E16: =E58+E59+E60+E61*0.5+E62*'DHS12'!E25/100 -> 96.75814213 | F16: =F58+F59+F60+F61*0.5+F62*'DHS12'!F25/100 -> 97.59262987 | G16: =G58+G59+G60+G61*0.5+G62*'DHS12'!G25/100 -> 99.02879895 | H16: =H58+H59+H60+H61*0.5+H62*'DHS12'!H25/100 -> 95.14774042 | I16: =I58+I59+I60+I61*0.5+I62*'DHS12'!I25/100 -> 99.00711696 | J16: =J58+J59+J60+J61*0.5+J62*'DHS12'!J25/100 -> 98.81188856 | K16: =K58+K59+K60+K61*0.5+K62*'DHS12'!K25/100 -> 99.57186615 | L16: =L58+L59+L60+L61*0.5+L62*'DHS12'!L25/100 -> 99.81440722 | M16: =M58+M59+M60+M61*0.5+M62*'DHS12'!M25/100 -> 92.86842674 | N16: =N58+N59+N60+N61*0.5+N62*'DHS12'!N25/100 -> 93.61390357 | O16: =O58+O59+O60+O61*0.5+O62*'DHS12'!O25/100 -> 96.02909755 | P16: =P58+P59+P60+P61*0.5+P62*'DHS12'!P25/100 -> 96.78061021 | Q16: =Q58+Q59+Q60+Q61*0.5+Q62*'DHS12'!Q25/100 -> 93.03114615 | R16: =R58+R59+R60+R61*0.5+R62*'DHS12'!R25/100 -> 92.7541164 | S16: =S58+S59+S60+S61*0.5+S62*'DHS12'!S25/100 -> 93.81472327 | T16: =T58+T59+T60+T61*0.5+T62*'DHS12'!T25/100 -> 93.34753577 | U16: =U58+U59+U60+U61*0.5+U62*'DHS12'!U25/100 -> 98.62610619 | V16: =V58+V59+V60+V61*0.5+V62*'DHS12'!V25/100 -> 98.98466091 | W16: =W58+W59+W60+W61*0.5+W62*'DHS12'!W25/100 -> 95.92065545 | X16: =X58+X59+X60+X61*0.5+X62*'DHS12'!X25/100 -> 96.15817682 | Y16: =Y58+Y59+Y60+Y61*0.5+Y62*'DHS12'!Y25/100 -> 97.30995045 | Z16: N/A | AA16: =AA58+AA59+AA60+AA61*0.5+AA62*'DHS12'!AA25/100 -> 92.58645491 | AB16: N/A | AC16: =AC58+AC59+AC60+AC61*0.5+AC62*'DHS12'!AC25/100 -> 99.56615826 | AD16: =AD58+AD59+AD60+AD61*0.5+AD62*'DHS12'!AD25/100 -> 98.91342245 | AE16: =AE58+AE59+AE60+AE61*0.5+AE62*'DHS12'!AE25/100 -> 97.25504255 | AF16: =AF58+AF59+AF60+AF61*0.5+AF62*'DHS12'!AF25/100 -> 97.70917988 | AG16: =AG58+AG59+AG60+AG61*0.5+AG62*'DHS12'!AG25/100 -> 98.66645885 | AH16: =AH58+AH59+AH60+AH61*0.5+AH62*'DHS12'!AH25/100 -> 87.26693956 | AI16: =AI58+AI59+AI60+AI61*0.5+AI62*'DHS12'!AI25/100 -> 96.83192318 | BA16: Water | BB16: Improved | BC16: N/A | BD16: N/A | BE16: N/A | BF16: N/A | BG16: N/A | BH16: N/A | BI16: N/A | BJ16: N/A | BK16: N/A | BL16: N/A | BM16: N/A | BN16: N/A | BO16: N/A | BP16: N/A | BQ16: N/A | BR16: N/A | BS16: N/A | BT16: N/A | BU16: N/A | BV16: N/A | BW16: N/A | BX16: N/A | BY16: N/A | BZ16: N/A | CA16: N/A | CB16: N/A | CC16: N/A | CD16: N/A | CE16: N/A | CF16: N/A | CG16: N/A | CH16: N/A | CI16: N/A
B17: Not Improved | C17: =100-C16 -> 6.833457732 | D17: =100-D16 -> 5.467901788 | E17: 3.241857865 | F17: 2.407370135 | G17: 0.9712010478 | H17: 4.852259582 | I17: 0.9928830371 | J17: 1.188111445 | K17: 0.4281338531 | L17: 0.1855927808 | M17: 7.131573262 | N17: 6.386096427 | O17: 3.970902453 | P17: 3.219389789 | Q17: 6.968853852 | R17: 7.245883601 | S17: 6.185276729 | T17: 6.652464232 | U17: 1.373893808 | V17: 1.01533909 | W17: 4.07934455 | X17: 3.841823176 | Y17: 2.690049554 | Z17: N/A | AA17: =100-AA16 -> 7.413545087 | AB17: N/A | AC17: =100-AC16 -> 0.4338417403 | AD17: 1.086577546 | AE17: 2.744957448 | AF17: 2.29082012 | AG17: 1.333541147 | AH17: 12.73306044 | AI17: 3.168076824 | BB17: Not Improved | BC17: N/A | BD17: N/A | BE17: N/A | BF17: N/A | BG17: N/A | BH17: N/A | BI17: N/A | BJ17: N/A | BK17: N/A | BL17: N/A | BM17: N/A | BN17: N/A | BO17: N/A | BP17: N/A | BQ17: N/A | BR17: N/A | BS17: N/A | BT17: N/A | BU17: N/A | BV17: N/A | BW17: N/A | BX17: N/A | BY17: N/A | BZ17: N/A | CA17: N/A | CB17: N/A | CC17: N/A | CD17: N/A | CE17: N/A | CF17: N/A | CG17: N/A | CH17: N/A | CI17: N/A
A18: Water ladder | B18: Basic | C18: =C16*'DHS06'!C23/100 -> 92.13463665 | D18: =D16*'DHS06'!D23/100 -> 93.99219241 | E18: =E16*'DHS06'!E23/100 -> 96.21106107 | F18: =F16*'DHS06'!F23/100 -> 97.15524594 | G18: =G16*'DHS06'!G23/100 -> 98.87221397 | H18: =H16*'DHS06'!H23/100 -> 94.91384924 | I18: =I16*'DHS06'!I23/100 -> 98.36231061 | J18: =J16*'DHS06'!J23/100 -> 98.52941477 | K18: =K16*'DHS06'!K23/100 -> 99.49141599 | L18: =L16*'DHS06'!L23/100 -> 99.59502328 | M18: =M16*'DHS06'!M23/100 -> 91.2428537 | N18: =N16*'DHS06'!N23/100 -> 93.19789189 | O18: =O16*'DHS06'!O23/100 -> 95.18187981 | P18: =P16*'DHS06'!P23/100 -> 96.2485122 | Q18: =Q16*'DHS06'!Q23/100 -> 92.53076568 | R18: =R16*'DHS06'!R23/100 -> 92.39687522 | S18: =S16*'DHS06'!S23/100 -> 91.81034132 | T18: =T16*'DHS06'!T23/100 -> 93.34753577 | U18: =U16*'DHS06'!U23/100 -> 96.52845271 | V18: =V16*'DHS06'!V23/100 -> 98.98466091 | W18: =W16*'DHS06'!W23/100 -> 95.63223182 | X18: =X16*'DHS06'!X23/100 -> 95.62561658 | Y18: =Y16*'DHS06'!Y23/100 -> 96.77303859 | Z18: N/A | AA18: =AA16*'DHS06'!AA23/100 -> 92.58645491 | AB18: N/A | AC18: =AC16*'DHS06'!AC23/100 -> 99.24933826 | AD18: =AD16*'DHS06'!AD23/100 -> 98.75016268 | AE18: =AE16*'DHS06'!AE23/100 -> 96.84245265 | AF18: =AF16*'DHS06'!AF23/100 -> 97.70917988 | AG18: =AG16*'DHS06'!AG23/100 -> 98.66645885 | AH18: =AH16*'DHS06'!AH23/100 -> 0 | AI18: =AI16*'DHS06'!AI23/100 -> 0 | BA18: Water ladder | BB18: Basic | BC18: N/A | BD18: N/A | BE18: N/A | BF18: N/A | BG18: N/A | BH18: N/A | BI18: N/A | BJ18: N/A | BK18: N/A | BL18: N/A | BM18: N/A | BN18: N/A | BO18: N/A | BP18: N/A | BQ18: N/A | BR18: N/A | BS18: N/A | BT18: N/A | BU18: N/A | BV18: N/A | BW18: N/A | BX18: N/A | BY18: N/A | BZ18: N/A | CA18: N/A | CB18: N/A | CC18: N/A | CD18: N/A | CE18: N/A | CF18: N/A | CG18: N/A | CH18: N/A | CI18: N/A
B19: Limited | C19: =C16*'DHS06'!C22/100 -> 1.031905614 | D19: =D16*'DHS06'!D22/100 -> 0.5399058008 | E19: =E16*'DHS06'!E22/100 -> 0.5470810683 | F19: =F16*'DHS06'!F22/100 -> 0.4373839267 | G19: =G16*'DHS06'!G22/100 -> 0.1565849785 | H19: =H16*'DHS06'!H22/100 -> 0.2338911799 | I19: =I16*'DHS06'!I22/100 -> 0.6448063484 | J19: =J16*'DHS06'!J22/100 -> 0.2824737861 | K19: =K16*'DHS06'!K22/100 -> 0.08045016082 | L19: =L16*'DHS06'!L22/100 -> 0.2193839415 | M19: =M16*'DHS06'!M22/100 -> 1.625573041 | N19: =N16*'DHS06'!N22/100 -> 0.4160116793 | O19: =O16*'DHS06'!O22/100 -> 0.8472177415 | P19: =P16*'DHS06'!P22/100 -> 0.5320980091 | Q19: =Q16*'DHS06'!Q22/100 -> 0.5003804713 | R19: =R16*'DHS06'!R22/100 -> 0.3572411748 | S19: =S16*'DHS06'!S22/100 -> 2.004381951 | T19: =T16*'DHS06'!T22/100 -> 0 | U19: =U16*'DHS06'!U22/100 -> 2.097653478 | V19: =V16*'DHS06'!V22/100 -> 0 | W19: =W16*'DHS06'!W22/100 -> 0.2884236261 | X19: =X16*'DHS06'!X22/100 -> 0.5325602441 | Y19: =Y16*'DHS06'!Y22/100 -> 0.5369118597 | Z19: N/A | AA19: =AA16*'DHS06'!AA22/100 -> 0 | AB19: N/A | AC19: =AC16*'DHS06'!AC22/100 -> 0.3168199999 | AD19: =AD16*'DHS06'!AD22/100 -> 0.1632597715 | AE19: =AE16*'DHS06'!AE22/100 -> 0.4125899002 | AF19: =AF16*'DHS06'!AF22/100 -> 0 | AG19: =AG16*'DHS06'!AG22/100 -> 0 | AH19: =AH16*'DHS06'!AH22/100 -> 0 | AI19: =AI16*'DHS06'!AI22/100 -> 0 | BB19: Limited | BC19: N/A | BD19: N/A | BE19: N/A | BF19: N/A | BG19: N/A | BH19: N/A | BI19: N/A | BJ19: N/A | BK19: N/A | BL19: N/A | BM19: N/A | BN19: N/A | BO19: N/A | BP19: N/A | BQ19: N/A | BR19: N/A | BS19: N/A | BT19: N/A | BU19: N/A | BV19: N/A | BW19: N/A | BX19: N/A | BY19: N/A | BZ19: N/A | CA19: N/A | CB19: N/A | CC19: N/A | CD19: N/A | CE19: N/A | CF19: N/A | CG19: N/A | CH19: N/A | CI19: N/A
B20: Unimproved | C20: =100-(C18+C19+C21) -> 4.56817954 | D20: =100-(D18+D19+D21) -> 4.099551795 | E20: 2.996747005 | F20: 2.371375711 | G20: 0.9712010478 | H20: 4.838539219 | I20: 0.9928830371 | J20: 1.188111445 | K20: 0.4281338531 | L20: 0.1855927808 | M20: 5.031344631 | N20: 4.085770947 | O20: 2.482769301 | P20: 2.542646001 | Q20: 6.620953916 | R20: 6.573172267 | S20: 5.780016281 | T20: 5.97309837 | U20: 0.7357744133 | V20: 0.699682473 | W20: 3.681403683 | X20: 1.549400716 | Y20: 2.153033723 | Z20: N/A | AA20: =100-(AA18+AA19+AA21) -> 6.657180684 | AB20: N/A | AC20: =100-(AC18+AC19+AC21) -> 0.09274833647 | AD20: 0.5491252361 | AE20: 1.40336063 | AF20: 1.362851707 | AG20: 0.7252819285 | AH20: 99.7032298 | AI20: 98.91238125 | BB20: Unimproved | BC20: N/A | BD20: N/A | BE20: N/A | BF20: N/A | BG20: N/A | BH20: N/A | BI20: N/A | BJ20: N/A | BK20: N/A | BL20: N/A | BM20: N/A | BN20: N/A | BO20: N/A | BP20: N/A | BQ20: N/A | BR20: N/A | BS20: N/A | BT20: N/A | BU20: N/A | BV20: N/A | BW20: N/A | BX20: N/A | BY20: N/A | BZ20: N/A | CA20: N/A | CB20: N/A | CC20: N/A | CD20: N/A | CE20: N/A | CF20: N/A | CG20: N/A | CH20: N/A | CI20: N/A
B21: Surface water | C21: =C62*(100-'DHS12'!C25)/100 -> 2.265278192 | D21: =D62*(100-'DHS12'!D25)/100 -> 1.368349992 | E21: =E62*(100-'DHS12'!E25)/100 -> 0.2451108609 | F21: =F62*(100-'DHS12'!F25)/100 -> 0.03599442359 | G21: =G62*(100-'DHS12'!G25)/100 -> 0 | H21: =H62*(100-'DHS12'!H25)/100 -> 0.01372036286 | I21: =I62*(100-'DHS12'!I25)/100 -> 0 | J21: =J62*(100-'DHS12'!J25)/100 -> 0 | K21: =K62*(100-'DHS12'!K25)/100 -> 0 | L21: =L62*(100-'DHS12'!L25)/100 -> 0 | M21: =M62*(100-'DHS12'!M25)/100 -> 2.100228631 | N21: =N62*(100-'DHS12'!N25)/100 -> 2.30032548 | O21: =O62*(100-'DHS12'!O25)/100 -> 1.488133152 | P21: =P62*(100-'DHS12'!P25)/100 -> 0.676743788 | Q21: =Q62*(100-'DHS12'!Q25)/100 -> 0.3478999361 | R21: =R62*(100-'DHS12'!R25)/100 -> 0.6727113341 | S21: =S62*(100-'DHS12'!S25)/100 -> 0.4052604481 | T21: =T62*(100-'DHS12'!T25)/100 -> 0.6793658621 | U21: =U62*(100-'DHS12'!U25)/100 -> 0.638119395 | V21: =V62*(100-'DHS12'!V25)/100 -> 0.3156566169 | W21: =W62*(100-'DHS12'!W25)/100 -> 0.3979408672 | X21: =X62*(100-'DHS12'!X25)/100 -> 2.29242246 | Y21: =Y62*(100-'DHS12'!Y25)/100 -> 0.5370158306 | Z21: N/A | AA21: =AA62*(100-'DHS12'!AA25)/100 -> 0.7563644027 | AB21: N/A | AC21: =AC62*(100-'DHS12'!AC25)/100 -> 0.3410934038 | AD21: =AD62*(100-'DHS12'!AD25)/100 -> 0.5374523095 | AE21: =AE62*(100-'DHS12'!AE25)/100 -> 1.341596818 | AF21: =AF62*(100-'DHS12'!AF25)/100 -> 0.9279684127 | AG21: =AG62*(100-'DHS12'!AG25)/100 -> 0.6082592189 | AH21: =AH62*(100-'DHS12'!AH25)/100 -> 0.2967701962 | AI21: =AI62*(100-'DHS12'!AI25)/100 -> 1.08761875 | BB21: Surface water | BC21: N/A | BD21: N/A | BE21: N/A | BF21: N/A | BG21: N/A | BH21: N/A | BI21: N/A | BJ21: N/A | BK21: N/A | BL21: N/A | BM21: N/A | BN21: N/A | BO21: N/A | BP21: N/A | BQ21: N/A | BR21: N/A | BS21: N/A | BT21: N/A | BU21: N/A | BV21: N/A | BW21: N/A | BX21: N/A | BY21: N/A | BZ21: N/A | CA21: N/A | CB21: N/A | CC21: N/A | CD21: N/A | CE21: N/A | CF21: N/A | CG21: N/A | CH21: N/A | CI21: N/A
A22: Improved water point at more than 30 minutes | B22: Yes | C22: N/A | D22: N/A | E22: N/A | F22: N/A | G22: N/A | H22: N/A | I22: N/A | J22: N/A | K22: N/A | L22: N/A | M22: N/A | N22: N/A | O22: N/A | P22: N/A | Q22: N/A | R22: N/A | S22: N/A | T22: N/A | U22: N/A | V22: N/A | W22: N/A | X22: N/A | Y22: N/A | Z22: N/A | AA22: N/A | AB22: N/A | AC22: N/A | AD22: N/A | AE22: N/A | AF22: N/A | AG22: N/A | AH22: N/A | AI22: N/A | BA22: Improved water point at more than 30 minutes | BB22: Yes | BC22: N/A | BD22: N/A | BE22: N/A | BF22: N/A | BG22: N/A | BH22: N/A | BI22: N/A | BJ22: N/A | BK22: N/A | BL22: N/A | BM22: N/A | BN22: N/A | BO22: N/A | BP22: N/A | BQ22: N/A | BR22: N/A | BS22: N/A | BT22: N/A | BU22: N/A | BV22: N/A | BW22: N/A | BX22: N/A | BY22: N/A | BZ22: N/A | CA22: N/A | CB22: N/A | CC22: N/A | CD22: N/A | CE22: N/A | CF22: N/A | CG22: N/A | CH22: N/A | CI22: N/A
B23: No | C23: N/A | D23: N/A | E23: N/A | F23: N/A | G23: N/A | H23: N/A | I23: N/A | J23: N/A | K23: N/A | L23: N/A | M23: N/A | N23: N/A | O23: N/A | P23: N/A | Q23: N/A | R23: N/A | S23: N/A | T23: N/A | U23: N/A | V23: N/A | W23: N/A | X23: N/A | Y23: N/A | Z23: N/A | AA23: N/A | AB23: N/A | AC23: N/A | AD23: N/A | AE23: N/A | AF23: N/A | AG23: N/A | AH23: N/A | AI23: N/A | BB23: No | BC23: N/A | BD23: N/A | BE23: N/A | BF23: N/A | BG23: N/A | BH23: N/A | BI23: N/A | BJ23: N/A | BK23: N/A | BL23: N/A | BM23: N/A | BN23: N/A | BO23: N/A | BP23: N/A | BQ23: N/A | BR23: N/A | BS23: N/A | BT23: N/A | BU23: N/A | BV23: N/A | BW23: N/A | BX23: N/A | BY23: N/A | BZ23: N/A | CA23: N/A | CB23: N/A | CC23: N/A | CD23: N/A | CE23: N/A | CF23: N/A | CG23: N/A | CH23: N/A | CI23: N/A
A24: Manually calculated ratios | B24: Improved wells
B25: Improved springs
B26: Other
C27: NATIONAL wealth index quintile | H27: URBAN wealth index quintile | M27: RURAL wealth index quintile | R27: SUB-REGIONS: | BA27: Raw numbers of respondents: | BB27: Use of drinking water sources | BC27: NATIONAL wealth index quintile | BH27: URBAN wealth index quintile | BM27: RURAL wealth index quintile | BR27: SUB-REGIONS:
A28: Percentage based on weighted population | C28: Poorest | D28: Poor | E28: Middle | F28: Rich | G28: Richest | H28: Poorest | I28: Poor | J28: Middle | K28: Rich | L28: Richest | M28: Poorest | N28: Poor | O28: Middle | P28: Rich | Q28: Richest | R28: Atlantida | S28: Choluteca | T28: Colon | U28: Comayagua | V28: Copan | W28: Cortes | X28: El Paraiso | Y28: Francisco Morazan | Z28: Gracias a Dios | AA28: Intibuca | AB28: Islas de la Bahia | AC28: La Paz | AD28: Lempira | AE28: Ocotepeque | AF28: Olancho | AG28: Santa Barbara | AH28: Valle | AI28: Yoro | BA28: Water data, raw numbers (weighted) | BC28: Poorest | BD28: Poor | BE28: Middle | BF28: Rich | BG28: Richest | BH28: Poorest | BI28: Poor | BJ28: Middle | BK28: Rich | BL28: Richest | BM28: Poorest | BN28: Poor | BO28: Middle | BP28: Rich | BQ28: Richest | BR28: Atlantida | BS28: Choluteca | BT28: Colon | BU28: Comayagua | BV28: Copan | BW28: Cortes | BX28: El Paraiso | BY28: Francisco Morazan | BZ28: Gracias a Dios | CA28: Intibuca | CB28: Islas de la Bahia | CC28: La Paz | CD28: Lempira | CE28: Ocotepeque | CF28: Olancho | CG28: Santa Barbara | CH28: Valle | CI28: Yoro
A29: Piped water | B29: Yes | C29: 68.36159028 | D29: 84.77894566 | E29: 93.90165734 | F29: 95.47649627 | G29: 98.16120782 | H29: 91.84361731 | I29: 98.39303448 | J29: 98.11636996 | K29: 99.39306392 | L29: 99.62881444 | M29: 66.79312942 | N29: 71.57835386 | O29: 87.40009248 | P29: 92.77889802 | Q29: 85.69172997 | R29: 85.57196888 | S29: 78.4741475 | T29: 85.52004719 | U29: 91.18925502 | V29: 89.2098507 | W29: 91.84694574 | X29: 73.98998235 | Y29: 92.36232354 | Z29: N/A | AA29: 74.48463374 | AB29: N/A | AC29: 94.96139731 | AD29: 84.90677176 | AE29: 83.50899119 | AF29: 93.13116639 | AG29: 96.31277049 | AH29: 69.66684791 | AI29: 91.37673128 | BA29: Piped water | BB29: Yes | BC29: N/A | BD29: N/A | BE29: N/A | BF29: N/A | BG29: N/A | BH29: N/A | BI29: N/A | BJ29: N/A | BK29: N/A | BL29: N/A | BM29: N/A | BN29: N/A | BO29: N/A | BP29: N/A | BQ29: N/A | BR29: N/A | BS29: N/A | BT29: N/A | BU29: N/A | BV29: N/A | BW29: N/A | BX29: N/A | BY29: N/A | BZ29: N/A | CA29: N/A | CB29: N/A | CC29: N/A | CD29: N/A | CE29: N/A | CF29: N/A | CG29: N/A | CH29: N/A | CI29: N/A
B30: No | C30: 31.63840972 | D30: 15.22105434 | E30: 6.098342657 | F30: 4.523503732 | G30: 1.838792176 | H30: 8.156382692 | I30: 1.606965523 | J30: 1.883630036 | K30: 0.6069360759 | L30: 0.3711855615 | M30: 33.20687058 | N30: 28.42164614 | O30: 12.59990752 | P30: 7.221101977 | Q30: 14.30827003 | R30: 14.42803112 | S30: 21.5258525 | T30: 14.47995281 | U30: 8.810744975 | V30: 10.7901493 | W30: 8.153054259 | X30: 26.01001765 | Y30: 7.637676464 | Z30: N/A | AA30: 25.51536626 | AB30: N/A | AC30: 5.038602692 | AD30: 15.09322824 | AE30: 16.49100881 | AF30: 6.868833614 | AG30: 3.687229509 | AH30: 30.33315209 | AI30: 8.623268715 | BB30: No | BC30: N/A | BD30: N/A | BE30: N/A | BF30: N/A | BG30: N/A | BH30: N/A | BI30: N/A | BJ30: N/A | BK30: N/A | BL30: N/A | BM30: N/A | BN30: N/A | BO30: N/A | BP30: N/A | BQ30: N/A | BR30: N/A | BS30: N/A | BT30: N/A | BU30: N/A | BV30: N/A | BW30: N/A | BX30: N/A | BY30: N/A | BZ30: N/A | CA30: N/A | CB30: N/A | CC30: N/A | CD30: N/A | CE30: N/A | CF30: N/A | CG30: N/A | CH30: N/A | CI30: N/A
A31: Piped water on premises | B31: Yes | C31: 62.654115 | D31: 81.14795332 | E31: 90.62199786 | F31: 93.11908058 | G31: 96.60890805 | H31: 83.79076809 | I31: 94.31885605 | J31: 96.42885118 | K31: 97.86219974 | L31: 97.70849812 | M31: 62.08372533 | N31: 65.2855555 | O31: 84.78979504 | P31: 91.19815565 | Q31: 84.92002243 | R31: 85.09073714 | S31: 70.68619414 | T31: 80.88191034 | U31: 86.33797591 | V31: 85.00661487 | W31: 89.67883852 | X31: 70.94573026 | Y31: 86.75679023 | Z31: N/A | AA31: 71.51396135 | AB31: N/A | AC31: 91.42519878 | AD31: 83.0620326 | AE31: 81.50715912 | AF31: 92.26607591 | AG31: 95.38419806 | AH31: 67.97646121 | AI31: 90.16151818 | BA31: Piped water on premises | BB31: Yes | BC31: N/A | BD31: N/A | BE31: N/A | BF31: N/A | BG31: N/A | BH31: N/A | BI31: N/A | BJ31: N/A | BK31: N/A | BL31: N/A | BM31: N/A | BN31: N/A | BO31: N/A | BP31: N/A | BQ31: N/A | BR31: N/A | BS31: N/A | BT31: N/A | BU31: N/A | BV31: N/A | BW31: N/A | BX31: N/A | BY31: N/A | BZ31: N/A | CA31: N/A | CB31: N/A | CC31: N/A | CD31: N/A | CE31: N/A | CF31: N/A | CG31: N/A | CH31: N/A | CI31: N/A
B32: No | C32: 37.345885 | D32: 18.85204668 | E32: 9.378002141 | F32: 6.88091942 | G32: 3.391091953 | H32: 16.20923191 | I32: 5.681143953 | J32: 3.571148821 | K32: 2.137800259 | L32: 2.291501875 | M32: 37.91627467 | N32: 34.7144445 | O32: 15.21020496 | P32: 8.801844346 | Q32: 15.07997757 | R32: 14.90926286 | S32: 29.31380586 | T32: 19.11808966 | U32: 13.66202409 | V32: 14.99338513 | W32: 10.32116148 | X32: 29.05426974 | Y32: 13.24320977 | Z32: N/A | AA32: 28.48603865 | AB32: N/A | AC32: 8.574801215 | AD32: 16.9379674 | AE32: 18.49284088 | AF32: 7.733924088 | AG32: 4.615801937 | AH32: 32.02353879 | AI32: 9.838481821 | BB32: No | BC32: N/A | BD32: N/A | BE32: N/A | BF32: N/A | BG32: N/A | BH32: N/A | BI32: N/A | BJ32: N/A | BK32: N/A | BL32: N/A | BM32: N/A | BN32: N/A | BO32: N/A | BP32: N/A | BQ32: N/A | BR32: N/A | BS32: N/A | BT32: N/A | BU32: N/A | BV32: N/A | BW32: N/A | BX32: N/A | BY32: N/A | BZ32: N/A | CA32: N/A | CB32: N/A | CC32: N/A | CD32: N/A | CE32: N/A | CF32: N/A | CG32: N/A | CH32: N/A | CI32: N/A
A33: Piped water into dwelling | B33: Yes | C33: N/A | D33: N/A | E33: N/A | F33: N/A | G33: N/A | H33: N/A | I33: N/A | J33: N/A | K33: N/A | L33: N/A | M33: N/A | N33: N/A | O33: N/A | P33: N/A | Q33: N/A | R33: N/A | S33: N/A | T33: N/A | U33: N/A | V33: N/A | W33: N/A | X33: N/A | Y33: N/A | Z33: N/A | AA33: N/A | AB33: N/A | AC33: N/A | AD33: N/A | AE33: N/A | AF33: N/A | AG33: N/A | AH33: N/A | AI33: N/A | BA33: Piped water into dwelling | BB33: Yes | BC33: N/A | BD33: N/A | BE33: N/A | BF33: N/A | BG33: N/A | BH33: N/A | BI33: N/A | BJ33: N/A | BK33: N/A | BL33: N/A | BM33: N/A | BN33: N/A | BO33: N/A | BP33: N/A | BQ33: N/A | BR33: N/A | BS33: N/A | BT33: N/A | BU33: N/A | BV33: N/A | BW33: N/A | BX33: N/A | BY33: N/A | BZ33: N/A | CA33: N/A | CB33: N/A | CC33: N/A | CD33: N/A | CE33: N/A | CF33: N/A | CG33: N/A | CH33: N/A | CI33: N/A
B34: No | C34: N/A | D34: N/A | E34: N/A | F34: N/A | G34: N/A | H34: N/A | I34: N/A | J34: N/A | K34: N/A | L34: N/A | M34: N/A | N34: N/A | O34: N/A | P34: N/A | Q34: N/A | R34: N/A | S34: N/A | T34: N/A | U34: N/A | V34: N/A | W34: N/A | X34: N/A | Y34: N/A | Z34: N/A | AA34: N/A | AB34: N/A | AC34: N/A | AD34: N/A | AE34: N/A | AF34: N/A | AG34: N/A | AH34: N/A | AI34: N/A | BB34: No | BC34: N/A | BD34: N/A | BE34: N/A | BF34: N/A | BG34: N/A | BH34: N/A | BI34: N/A | BJ34: N/A | BK34: N/A | BL34: N/A | BM34: N/A | BN34: N/A | BO34: N/A | BP34: N/A | BQ34: N/A | BR34: N/A | BS34: N/A | BT34: N/A | BU34: N/A | BV34: N/A | BW34: N/A | BX34: N/A | BY34: N/A | BZ34: N/A | CA34: N/A | CB34: N/A | CC34: N/A | CD34: N/A | CE34: N/A | CF34: N/A | CG34: N/A | CH34: N/A | CI34: N/A
A35: Water source on premises | B35: Yes | C35: N/A | D35: N/A | E35: N/A | F35: N/A | G35: N/A | H35: N/A | I35: N/A | J35: N/A | K35: N/A | L35: N/A | M35: N/A | N35: N/A | O35: N/A | P35: N/A | Q35: N/A | R35: N/A | S35: N/A | T35: N/A | U35: N/A | V35: N/A | W35: N/A | X35: N/A | Y35: N/A | Z35: N/A | AA35: N/A | AB35: N/A | AC35: N/A | AD35: N/A | AE35: N/A | AF35: N/A | AG35: N/A | AH35: N/A | AI35: N/A | BA35: Water source on premises | BB35: Yes | BC35: N/A | BD35: N/A | BE35: N/A | BF35: N/A | BG35: N/A | BH35: N/A | BI35: N/A | BJ35: N/A | BK35: N/A | BL35: N/A | BM35: N/A | BN35: N/A | BO35: N/A | BP35: N/A | BQ35: N/A | BR35: N/A | BS35: N/A | BT35: N/A | BU35: N/A | BV35: N/A | BW35: N/A | BX35: N/A | BY35: N/A | BZ35: N/A | CA35: N/A | CB35: N/A | CC35: N/A | CD35: N/A | CE35: N/A | CF35: N/A | CG35: N/A | CH35: N/A | CI35: N/A
B36: No | C36: N/A | D36: N/A | E36: N/A | F36: N/A | G36: N/A | H36: N/A | I36: N/A | J36: N/A | K36: N/A | L36: N/A | M36: N/A | N36: N/A | O36: N/A | P36: N/A | Q36: N/A | R36: N/A | S36: N/A | T36: N/A | U36: N/A | V36: N/A | W36: N/A | X36: N/A | Y36: N/A | Z36: N/A | AA36: N/A | AB36: N/A | AC36: N/A | AD36: N/A | AE36: N/A | AF36: N/A | AG36: N/A | AH36: N/A | AI36: N/A | BB36: No | BC36: N/A | BD36: N/A | BE36: N/A | BF36: N/A | BG36: N/A | BH36: N/A | BI36: N/A | BJ36: N/A | BK36: N/A | BL36: N/A | BM36: N/A | BN36: N/A | BO36: N/A | BP36: N/A | BQ36: N/A | BR36: N/A | BS36: N/A | BT36: N/A | BU36: N/A | BV36: N/A | BW36: N/A | BX36: N/A | BY36: N/A | BZ36: N/A | CA36: N/A | CB36: N/A | CC36: N/A | CD36: N/A | CE36: N/A | CF36: N/A | CG36: N/A | CH36: N/A | CI36: N/A
A37: Improved Water source on premises | B37: Yes | C37: N/A | D37: N/A | E37: N/A | F37: N/A | G37: N/A | H37: N/A | I37: N/A | J37: N/A | K37: N/A | L37: N/A | M37: N/A | N37: N/A | O37: N/A | P37: N/A | Q37: N/A | R37: N/A | S37: N/A | T37: N/A | U37: N/A | V37: N/A | W37: N/A | X37: N/A | Y37: N/A | Z37: N/A | AA37: N/A | AB37: N/A | AC37: N/A | AD37: N/A | AE37: N/A | AF37: N/A | AG37: N/A | AH37: N/A | AI37: N/A | BA37: Improved water source on premises | BB37: Yes | BC37: N/A | BD37: N/A | BE37: N/A | BF37: N/A | BG37: N/A | BH37: N/A | BI37: N/A | BJ37: N/A | BK37: N/A | BL37: N/A | BM37: N/A | BN37: N/A | BO37: N/A | BP37: N/A | BQ37: N/A | BR37: N/A | BS37: N/A | BT37: N/A | BU37: N/A | BV37: N/A | BW37: N/A | BX37: N/A | BY37: N/A | BZ37: N/A | CA37: N/A | CB37: N/A | CC37: N/A | CD37: N/A | CE37: N/A | CF37: N/A | CG37: N/A | CH37: N/A | CI37: N/A
B38: No | C38: N/A | D38: N/A | E38: N/A | F38: N/A | G38: N/A | H38: N/A | I38: N/A | J38: N/A | K38: N/A | L38: N/A | M38: N/A | N38: N/A | O38: N/A | P38: N/A | Q38: N/A | R38: N/A | S38: N/A | T38: N/A | U38: N/A | V38: N/A | W38: N/A | X38: N/A | Y38: N/A | Z38: N/A | AA38: N/A | AB38: N/A | AC38: N/A | AD38: N/A | AE38: N/A | AF38: N/A | AG38: N/A | AH38: N/A | AI38: N/A | BB38: No | BC38: N/A | BD38: N/A | BE38: N/A | BF38: N/A | BG38: N/A | BH38: N/A | BI38: N/A | BJ38: N/A | BK38: N/A | BL38: N/A | BM38: N/A | BN38: N/A | BO38: N/A | BP38: N/A | BQ38: N/A | BR38: N/A | BS38: N/A | BT38: N/A | BU38: N/A | BV38: N/A | BW38: N/A | BX38: N/A | BY38: N/A | BZ38: N/A | CA38: N/A | CB38: N/A | CC38: N/A | CD38: N/A | CE38: N/A | CF38: N/A | CG38: N/A | CH38: N/A | CI38: N/A
A39: Piped water on premises available when needed | B39: Yes | C39: N/A | D39: N/A | E39: N/A | F39: N/A | G39: N/A | H39: N/A | I39: N/A | J39: N/A | K39: N/A | L39: N/A | M39: N/A | N39: N/A | O39: N/A | P39: N/A | Q39: N/A | R39: N/A | S39: N/A | T39: N/A | U39: N/A | V39: N/A | W39: N/A | X39: N/A | Y39: N/A | Z39: N/A | AA39: N/A | AB39: N/A | AC39: N/A | AD39: N/A | AE39: N/A | AF39: N/A | AG39: N/A | AH39: N/A | AI39: N/A | BA39: Piped water on premises available when needed | BB39: Yes | BC39: N/A | BD39: N/A | BE39: N/A | BF39: N/A | BG39: N/A | BH39: N/A | BI39: N/A | BJ39: N/A | BK39: N/A | BL39: N/A | BM39: N/A | BN39: N/A | BO39: N/A | BP39: N/A | BQ39: N/A | BR39: N/A | BS39: N/A | BT39: N/A | BU39: N/A | BV39: N/A | BW39: N/A | BX39: N/A | BY39: N/A | BZ39: N/A | CA39: N/A | CB39: N/A | CC39: N/A | CD39: N/A | CE39: N/A | CF39: N/A | CG39: N/A | CH39: N/A | CI39: N/A
B40: No | C40: N/A | D40: N/A | E40: N/A | F40: N/A | G40: N/A | H40: N/A | I40: N/A | J40: N/A | K40: N/A | L40: N/A | M40: N/A | N40: N/A | O40: N/A | P40: N/A | Q40: N/A | R40: N/A | S40: N/A | T40: N/A | U40: N/A | V40: N/A | W40: N/A | X40: N/A | Y40: N/A | Z40: N/A | AA40: N/A | AB40: N/A | AC40: N/A | AD40: N/A | AE40: N/A | AF40: N/A | AG40: N/A | AH40: N/A | AI40: N/A | BB40: No | BC40: N/A | BD40: N/A | BE40: N/A | BF40: N/A | BG40: N/A | BH40: N/A | BI40: N/A | BJ40: N/A | BK40: N/A | BL40: N/A | BM40: N/A | BN40: N/A | BO40: N/A | BP40: N/A | BQ40: N/A | BR40: N/A | BS40: N/A | BT40: N/A | BU40: N/A | BV40: N/A | BW40: N/A | BX40: N/A | BY40: N/A | BZ40: N/A | CA40: N/A | CB40: N/A | CC40: N/A | CD40: N/A | CE40: N/A | CF40: N/A | CG40: N/A | CH40: N/A | CI40: N/A
A41: Water point at more than 30 minutes | B41: Yes | C41: N/A | D41: N/A | E41: N/A | F41: N/A | G41: N/A | H41: N/A | I41: N/A | J41: N/A | K41: N/A | L41: N/A | M41: N/A | N41: N/A | O41: N/A | P41: N/A | Q41: N/A | R41: N/A | S41: N/A | T41: N/A | U41: N/A | V41: N/A | W41: N/A | X41: N/A | Y41: N/A | Z41: N/A | AA41: N/A | AB41: N/A | AC41: N/A | AD41: N/A | AE41: N/A | AF41: N/A | AG41: N/A | AH41: N/A | AI41: N/A | BA41: Water point at more than 30 minutes | BB41: Yes | BC41: N/A | BD41: N/A | BE41: N/A | BF41: N/A | BG41: N/A | BH41: N/A | BI41: N/A | BJ41: N/A | BK41: N/A | BL41: N/A | BM41: N/A | BN41: N/A | BO41: N/A | BP41: N/A | BQ41: N/A | BR41: N/A | BS41: N/A | BT41: N/A | BU41: N/A | BV41: N/A | BW41: N/A | BX41: N/A | BY41: N/A | BZ41: N/A | CA41: N/A | CB41: N/A | CC41: N/A | CD41: N/A | CE41: N/A | CF41: N/A | CG41: N/A | CH41: N/A | CI41: N/A
B42: No | C42: N/A | D42: N/A | E42: N/A | F42: N/A | G42: N/A | H42: N/A | I42: N/A | J42: N/A | K42: N/A | L42: N/A | M42: N/A | N42: N/A | O42: N/A | P42: N/A | Q42: N/A | R42: N/A | S42: N/A | T42: N/A | U42: N/A | V42: N/A | W42: N/A | X42: N/A | Y42: N/A | Z42: N/A | AA42: N/A | AB42: N/A | AC42: N/A | AD42: N/A | AE42: N/A | AF42: N/A | AG42: N/A | AH42: N/A | AI42: N/A | BB42: No | BC42: N/A | BD42: N/A | BE42: N/A | BF42: N/A | BG42: N/A | BH42: N/A | BI42: N/A | BJ42: N/A | BK42: N/A | BL42: N/A | BM42: N/A | BN42: N/A | BO42: N/A | BP42: N/A | BQ42: N/A | BR42: N/A | BS42: N/A | BT42: N/A | BU42: N/A | BV42: N/A | BW42: N/A | BX42: N/A | BY42: N/A | BZ42: N/A | CA42: N/A | CB42: N/A | CC42: N/A | CD42: N/A | CE42: N/A | CF42: N/A | CG42: N/A | CH42: N/A | CI42: N/A
A43: Water source available when needed | B43: Yes | C43: N/A | D43: N/A | E43: N/A | F43: N/A | G43: N/A | H43: N/A | I43: N/A | J43: N/A | K43: N/A | L43: N/A | M43: N/A | N43: N/A | O43: N/A | P43: N/A | Q43: N/A | R43: N/A | S43: N/A | T43: N/A | U43: N/A | V43: N/A | W43: N/A | X43: N/A | Y43: N/A | Z43: N/A | AA43: N/A | AB43: N/A | AC43: N/A | AD43: N/A | AE43: N/A | AF43: N/A | AG43: N/A | AH43: N/A | AI43: N/A | BA43: Water source available when needed | BB43: Yes | BC43: N/A | BD43: N/A | BE43: N/A | BF43: N/A | BG43: N/A | BH43: N/A | BI43: N/A | BJ43: N/A | BK43: N/A | BL43: N/A | BM43: N/A | BN43: N/A | BO43: N/A | BP43: N/A | BQ43: N/A | BR43: N/A | BS43: N/A | BT43: N/A | BU43: N/A | BV43: N/A | BW43: N/A | BX43: N/A | BY43: N/A | BZ43: N/A | CA43: N/A | CB43: N/A | CC43: N/A | CD43: N/A | CE43: N/A | CF43: N/A | CG43: N/A | CH43: N/A | CI43: N/A
B44: No | C44: N/A | D44: N/A | E44: N/A | F44: N/A | G44: N/A | H44: N/A | I44: N/A | J44: N/A | K44: N/A | L44: N/A | M44: N/A | N44: N/A | O44: N/A | P44: N/A | Q44: N/A | R44: N/A | S44: N/A | T44: N/A | U44: N/A | V44: N/A | W44: N/A | X44: N/A | Y44: N/A | Z44: N/A | AA44: N/A | AB44: N/A | AC44: N/A | AD44: N/A | AE44: N/A | AF44: N/A | AG44: N/A | AH44: N/A | AI44: N/A | BB44: No | BC44: N/A | BD44: N/A | BE44: N/A | BF44: N/A | BG44: N/A | BH44: N/A | BI44: N/A | BJ44: N/A | BK44: N/A | BL44: N/A | BM44: N/A | BN44: N/A | BO44: N/A | BP44: N/A | BQ44: N/A | BR44: N/A | BS44: N/A | BT44: N/A | BU44: N/A | BV44: N/A | BW44: N/A | BX44: N/A | BY44: N/A | BZ44: N/A | CA44: N/A | CB44: N/A | CC44: N/A | CD44: N/A | CE44: N/A | CF44: N/A | CG44: N/A | CH44: N/A | CI44: N/A
A45: Improved water source available when needed | B45: Yes | C45: N/A | D45: N/A | E45: N/A | F45: N/A | G45: N/A | H45: N/A | I45: N/A | J45: N/A | K45: N/A | L45: N/A | M45: N/A | N45: N/A | O45: N/A | P45: N/A | Q45: N/A | R45: N/A | S45: N/A | T45: N/A | U45: N/A | V45: N/A | W45: N/A | X45: N/A | Y45: N/A | Z45: N/A | AA45: N/A | AB45: N/A | AC45: N/A | AD45: N/A | AE45: N/A | AF45: N/A | AG45: N/A | AH45: N/A | AI45: N/A | BA45: Improved water source available when needed | BB45: Yes | BC45: N/A | BD45: N/A | BE45: N/A | BF45: N/A | BG45: N/A | BH45: N/A | BI45: N/A | BJ45: N/A | BK45: N/A | BL45: N/A | BM45: N/A | BN45: N/A | BO45: N/A | BP45: N/A | BQ45: N/A | BR45: N/A | BS45: N/A | BT45: N/A | BU45: N/A | BV45: N/A | BW45: N/A | BX45: N/A | BY45: N/A | BZ45: N/A | CA45: N/A | CB45: N/A | CC45: N/A | CD45: N/A | CE45: N/A | CF45: N/A | CG45: N/A | CH45: N/A | CI45: N/A
B46: No | C46: N/A | D46: N/A | E46: N/A | F46: N/A | G46: N/A | H46: N/A | I46: N/A | J46: N/A | K46: N/A | L46: N/A | M46: N/A | N46: N/A | O46: N/A | P46: N/A | Q46: N/A | R46: N/A | S46: N/A | T46: N/A | U46: N/A | V46: N/A | W46: N/A | X46: N/A | Y46: N/A | Z46: N/A | AA46: N/A | AB46: N/A | AC46: N/A | AD46: N/A | AE46: N/A | AF46: N/A | AG46: N/A | AH46: N/A | AI46: N/A | BB46: No | BC46: N/A | BD46: N/A | BE46: N/A | BF46: N/A | BG46: N/A | BH46: N/A | BI46: N/A | BJ46: N/A | BK46: N/A | BL46: N/A | BM46: N/A | BN46: N/A | BO46: N/A | BP46: N/A | BQ46: N/A | BR46: N/A | BS46: N/A | BT46: N/A | BU46: N/A | BV46: N/A | BW46: N/A | BX46: N/A | BY46: N/A | BZ46: N/A | CA46: N/A | CB46: N/A | CC46: N/A | CD46: N/A | CE46: N/A | CF46: N/A | CG46: N/A | CH46: N/A | CI46: N/A
A47: Microbiological quality at point of collection | B47: Not contaminated (No E. coli in 100 mL) | C47: N/A | D47: N/A | E47: N/A | F47: N/A | G47: N/A | H47: N/A | I47: N/A | J47: N/A | K47: N/A | L47: N/A | M47: N/A | N47: N/A | O47: N/A | P47: N/A | Q47: N/A | R47: N/A | S47: N/A | T47: N/A | U47: N/A | V47: N/A | W47: N/A | X47: N/A | Y47: N/A | Z47: N/A | AA47: N/A | AB47: N/A | AC47: N/A | AD47: N/A | AE47: N/A | AF47: N/A | AG47: N/A | AH47: N/A | AI47: N/A | BA47: Microbiological quality at point of collection | BB47: Not contaminated (No E. coli in 100 mL) | BC47: N/A | BD47: N/A | BE47: N/A | BF47: N/A | BG47: N/A | BH47: N/A | BI47: N/A | BJ47: N/A | BK47: N/A | BL47: N/A | BM47: N/A | BN47: N/A | BO47: N/A | BP47: N/A | BQ47: N/A | BR47: N/A | BS47: N/A | BT47: N/A | BU47: N/A | BV47: N/A | BW47: N/A | BX47: N/A | BY47: N/A | BZ47: N/A | CA47: N/A | CB47: N/A | CC47: N/A | CD47: N/A | CE47: N/A | CF47: N/A | CG47: N/A | CH47: N/A | CI47: N/A
B48: Contaminated (E. coli detected in 100 mL) | C48: N/A | D48: N/A | E48: N/A | F48: N/A | G48: N/A | H48: N/A | I48: N/A | J48: N/A | K48: N/A | L48: N/A | M48: N/A | N48: N/A | O48: N/A | P48: N/A | Q48: N/A | R48: N/A | S48: N/A | T48: N/A | U48: N/A | V48: N/A | W48: N/A | X48: N/A | Y48: N/A | Z48: N/A | AA48: N/A | AB48: N/A | AC48: N/A | AD48: N/A | AE48: N/A | AF48: N/A | AG48: N/A | AH48: N/A | AI48: N/A | BB48: Contaminated (E. coli detected in 100 mL) | BC48: N/A | BD48: N/A | BE48: N/A | BF48: N/A | BG48: N/A | BH48: N/A | BI48: N/A | BJ48: N/A | BK48: N/A | BL48: N/A | BM48: N/A | BN48: N/A | BO48: N/A | BP48: N/A | BQ48: N/A | BR48: N/A | BS48: N/A | BT48: N/A | BU48: N/A | BV48: N/A | BW48: N/A | BX48: N/A | BY48: N/A | BZ48: N/A | CA48: N/A | CB48: N/A | CC48: N/A | CD48: N/A | CE48: N/A | CF48: N/A | CG48: N/A | CH48: N/A | CI48: N/A
B49: Highly contaminated (>100 CFU/100 mL) | C49: N/A | D49: N/A | E49: N/A | F49: N/A | G49: N/A | H49: N/A | I49: N/A | J49: N/A | K49: N/A | L49: N/A | M49: N/A | N49: N/A | O49: N/A | P49: N/A | Q49: N/A | R49: N/A | S49: N/A | T49: N/A | U49: N/A | V49: N/A | W49: N/A | X49: N/A | Y49: N/A | Z49: N/A | AA49: N/A | AB49: N/A | AC49: N/A | AD49: N/A | AE49: N/A | AF49: N/A | AG49: N/A | AH49: N/A | AI49: N/A | BB49: Highly contaminated (>100 CFU/100 mL) | BC49: N/A | BD49: N/A | BE49: N/A | BF49: N/A | BG49: N/A | BH49: N/A | BI49: N/A | BJ49: N/A | BK49: N/A | BL49: N/A | BM49: N/A | BN49: N/A | BO49: N/A | BP49: N/A | BQ49: N/A | BR49: N/A | BS49: N/A | BT49: N/A | BU49: N/A | BV49: N/A | BW49: N/A | BX49: N/A | BY49: N/A | BZ49: N/A | CA49: N/A | CB49: N/A | CC49: N/A | CD49: N/A | CE49: N/A | CF49: N/A | CG49: N/A | CH49: N/A | CI49: N/A
A50: Microbiological quality of improved water sources at point of collection | B50: Not contaminated (No E. coli in 100 mL) | C50: N/A | D50: N/A | E50: N/A | F50: N/A | G50: N/A | H50: N/A | I50: N/A | J50: N/A | K50: N/A | L50: N/A | M50: N/A | N50: N/A | O50: N/A | P50: N/A | Q50: N/A | R50: N/A | S50: N/A | T50: N/A | U50: N/A | V50: N/A | W50: N/A | X50: N/A | Y50: N/A | Z50: N/A | AA50: N/A | AB50: N/A | AC50: N/A | AD50: N/A | AE50: N/A | AF50: N/A | AG50: N/A | AH50: N/A | AI50: N/A | BA50: Microbiological quality of improved water sources at point of collection | BB50: Not contaminated (No E. coli in 100 mL) | BC50: N/A | BD50: N/A | BE50: N/A | BF50: N/A | BG50: N/A | BH50: N/A | BI50: N/A | BJ50: N/A | BK50: N/A | BL50: N/A | BM50: N/A | BN50: N/A | BO50: N/A | BP50: N/A | BQ50: N/A | BR50: N/A | BS50: N/A | BT50: N/A | BU50: N/A | BV50: N/A | BW50: N/A | BX50: N/A | BY50: N/A | BZ50: N/A | CA50: N/A | CB50: N/A | CC50: N/A | CD50: N/A | CE50: N/A | CF50: N/A | CG50: N/A | CH50: N/A | CI50: N/A
B51: Contaminated (E. coli detected in 100 mL) | C51: N/A | D51: N/A | E51: N/A | F51: N/A | G51: N/A | H51: N/A | I51: N/A | J51: N/A | K51: N/A | L51: N/A | M51: N/A | N51: N/A | O51: N/A | P51: N/A | Q51: N/A | R51: N/A | S51: N/A | T51: N/A | U51: N/A | V51: N/A | W51: N/A | X51: N/A | Y51: N/A | Z51: N/A | AA51: N/A | AB51: N/A | AC51: N/A | AD51: N/A | AE51: N/A | AF51: N/A | AG51: N/A | AH51: N/A | AI51: N/A | BB51: Contaminated (E. coli detected in 100 mL) | BC51: N/A | BD51: N/A | BE51: N/A | BF51: N/A | BG51: N/A | BH51: N/A | BI51: N/A | BJ51: N/A | BK51: N/A | BL51: N/A | BM51: N/A | BN51: N/A | BO51: N/A | BP51: N/A | BQ51: N/A | BR51: N/A | BS51: N/A | BT51: N/A | BU51: N/A | BV51: N/A | BW51: N/A | BX51: N/A | BY51: N/A | BZ51: N/A | CA51: N/A | CB51: N/A | CC51: N/A | CD51: N/A | CE51: N/A | CF51: N/A | CG51: N/A | CH51: N/A | CI51: N/A
B52: Highly contaminated (>100 CFU/100 mL) | C52: N/A | D52: N/A | E52: N/A | F52: N/A | G52: N/A | H52: N/A | I52: N/A | J52: N/A | K52: N/A | L52: N/A | M52: N/A | N52: N/A | O52: N/A | P52: N/A | Q52: N/A | R52: N/A | S52: N/A | T52: N/A | U52: N/A | V52: N/A | W52: N/A | X52: N/A | Y52: N/A | Z52: N/A | AA52: N/A | AB52: N/A | AC52: N/A | AD52: N/A | AE52: N/A | AF52: N/A | AG52: N/A | AH52: N/A | AI52: N/A | BB52: Highly contaminated (>100 CFU/100 mL) | BC52: N/A | BD52: N/A | BE52: N/A | BF52: N/A | BG52: N/A | BH52: N/A | BI52: N/A | BJ52: N/A | BK52: N/A | BL52: N/A | BM52: N/A | BN52: N/A | BO52: N/A | BP52: N/A | BQ52: N/A | BR52: N/A | BS52: N/A | BT52: N/A | BU52: N/A | BV52: N/A | BW52: N/A | BX52: N/A | BY52: N/A | BZ52: N/A | CA52: N/A | CB52: N/A | CC52: N/A | CD52: N/A | CE52: N/A | CF52: N/A | CG52: N/A | CH52: N/A | CI52: N/A
A53: Microbiological quality of piped on premises at point of collection | B53: Not contaminated (No E. coli in 100 mL) | C53: N/A | D53: N/A | E53: N/A | F53: N/A | G53: N/A | H53: N/A | I53: N/A | J53: N/A | K53: N/A | L53: N/A | M53: N/A | N53: N/A | O53: N/A | P53: N/A | Q53: N/A | R53: N/A | S53: N/A | T53: N/A | U53: N/A | V53: N/A | W53: N/A | X53: N/A | Y53: N/A | Z53: N/A | AA53: N/A | AB53: N/A | AC53: N/A | AD53: N/A | AE53: N/A | AF53: N/A | AG53: N/A | AH53: N/A | AI53: N/A | BA53: Microbiological quality of piped on premises at point of collection | BB53: Not contaminated (No E. coli in 100 mL) | BC53: N/A | BD53: N/A | BE53: N/A | BF53: N/A | BG53: N/A | BH53: N/A | BI53: N/A | BJ53: N/A | BK53: N/A | BL53: N/A | BM53: N/A | BN53: N/A | BO53: N/A | BP53: N/A | BQ53: N/A | BR53: N/A | BS53: N/A | BT53: N/A | BU53: N/A | BV53: N/A | BW53: N/A | BX53: N/A | BY53: N/A | BZ53: N/A | CA53: N/A | CB53: N/A | CC53: N/A | CD53: N/A | CE53: N/A | CF53: N/A | CG53: N/A | CH53: N/A | CI53: N/A
B54: Contaminated (E. coli detected in 100 mL) | C54: N/A | D54: N/A | E54: N/A | F54: N/A | G54: N/A | H54: N/A | I54: N/A | J54: N/A | K54: N/A | L54: N/A | M54: N/A | N54: N/A | O54: N/A | P54: N/A | Q54: N/A | R54: N/A | S54: N/A | T54: N/A | U54: N/A | V54: N/A | W54: N/A | X54: N/A | Y54: N/A | Z54: N/A | AA54: N/A | AB54: N/A | AC54: N/A | AD54: N/A | AE54: N/A | AF54: N/A | AG54: N/A | AH54: N/A | AI54: N/A | BB54: Contaminated (E. coli detected in 100 mL) | BC54: N/A | BD54: N/A | BE54: N/A | BF54: N/A | BG54: N/A | BH54: N/A | BI54: N/A | BJ54: N/A | BK54: N/A | BL54: N/A | BM54: N/A | BN54: N/A | BO54: N/A | BP54: N/A | BQ54: N/A | BR54: N/A | BS54: N/A | BT54: N/A | BU54: N/A | BV54: N/A | BW54: N/A | BX54: N/A | BY54: N/A | BZ54: N/A | CA54: N/A | CB54: N/A | CC54: N/A | CD54: N/A | CE54: N/A | CF54: N/A | CG54: N/A | CH54: N/A | CI54: N/A
B55: Highly contaminated (>100 CFU/100 mL) | C55: N/A | D55: N/A | E55: N/A | F55: N/A | G55: N/A | H55: N/A | I55: N/A | J55: N/A | K55: N/A | L55: N/A | M55: N/A | N55: N/A | O55: N/A | P55: N/A | Q55: N/A | R55: N/A | S55: N/A | T55: N/A | U55: N/A | V55: N/A | W55: N/A | X55: N/A | Y55: N/A | Z55: N/A | AA55: N/A | AB55: N/A | AC55: N/A | AD55: N/A | AE55: N/A | AF55: N/A | AG55: N/A | AH55: N/A | AI55: N/A | BB55: Highly contaminated (>100 CFU/100 mL) | BC55: N/A | BD55: N/A | BE55: N/A | BF55: N/A | BG55: N/A | BH55: N/A | BI55: N/A | BJ55: N/A | BK55: N/A | BL55: N/A | BM55: N/A | BN55: N/A | BO55: N/A | BP55: N/A | BQ55: N/A | BR55: N/A | BS55: N/A | BT55: N/A | BU55: N/A | BV55: N/A | BW55: N/A | BX55: N/A | BY55: N/A | BZ55: N/A | CA55: N/A | CB55: N/A | CC55: N/A | CD55: N/A | CE55: N/A | CF55: N/A | CG55: N/A | CH55: N/A | CI55: N/A
C56: NATIONAL wealth index quintile | H56: URBAN wealth index quintile | M56: RURAL wealth index quintile | R56: SUB-REGIONS: | BA56: Raw numbers of respondents: | BB56: Use of drinking water sources | BC56: NATIONAL wealth index quintile | BH56: URBAN wealth index quintile | BM56: RURAL wealth index quintile | BR56: SUB-REGIONS:
A57: Percentage based on weighted population | C57: Poorest | D57: Poor | E57: Middle | F57: Rich | G57: Richest | H57: Poorest | I57: Poor | J57: Middle | K57: Rich | L57: Richest | M57: Poorest | N57: Poor | O57: Middle | P57: Rich | Q57: Richest | R57: Atlantida | S57: Choluteca | T57: Colon | U57: Comayagua | V57: Copan | W57: Cortes | X57: El Paraiso | Y57: Francisco Morazan | Z57: Gracias a Dios | AA57: Intibuca | AB57: Islas de la Bahia | AC57: La Paz | AD57: Lempira | AE57: Ocotepeque | AF57: Olancho | AG57: Santa Barbara | AH57: Valle | AI57: Yoro | BA57: Water data, raw numbers (weighted) | BC57: Poorest | BD57: Poor | BE57: Middle | BF57: Rich | BG57: Richest | BH57: Poorest | BI57: Poor | BJ57: Middle | BK57: Rich | BL57: Richest | BM57: Poorest | BN57: Poor | BO57: Middle | BP57: Rich | BQ57: Richest | BR57: Atlantida | BS57: Choluteca | BT57: Colon | BU57: Comayagua | BV57: Copan | BW57: Cortes | BX57: El Paraiso | BY57: Francisco Morazan | BZ57: Gracias a Dios | CA57: Intibuca | CB57: Islas de la Bahia | CC57: La Paz | CD57: Lempira | CE57: Ocotepeque | CF57: Olancho | CG57: Santa Barbara | CH57: Valle | CI57: Yoro
A58: Water | B58: Servicio dentro la vivienda | C58: 1.675938548 | D58: 10.11062315 | E58: 16.75877074 | F58: 37.43831803 | G58: 65.12162501 | H58: 9.030889216 | I58: 23.13147439 | J58: 42.04996769 | K58: 61.08431895 | L58: 75.9507179 | M58: 0.5780686091 | N58: 3.993768204 | O58: 9.253020467 | P58: 17.74289332 | Q58: 35.5871537 | R58: 47.33528301 | S58: 6.519286952 | T58: 21.04054217 | U58: 16.12891736 | V58: 20.9410432 | W58: 36.80262193 | X58: 17.15008252 | Y58: 36.39864599 | Z58: N/A | AA58: 13.35081013 | AB58: N/A | AC58: 11.15281388 | AD58: 20.03494476 | AE58: 30.34888019 | AF58: 20.44413066 | AG58: 23.60814345 | AH58: 7.341502242 | AI58: 22.06705981
B59: Servicio fuera de vivienda pero dentro propiedad | C59: 60.97817645 | D59: 71.03733017 | E59: 73.86322712 | F59: 55.68076255 | G59: 31.48728304 | H59: 74.75987888 | I59: 71.18738165 | J59: 54.37888349 | K59: 36.77788079 | L59: 21.75778022 | M59: 61.50565672 | N59: 61.29178729 | O59: 75.53677457 | P59: 73.45526234 | Q59: 49.33286873 | R59: 37.75545413 | S59: 64.16690719 | T59: 59.84136817 | U59: 70.20905855 | V59: 64.06557167 | W59: 52.87621659 | X59: 53.79564775 | Y59: 50.35814424 | Z59: N/A | AA59: 58.16315122 | AB59: N/A | AC59: 80.2723849 | AD59: 63.02708784 | AE59: 51.15827893 | AF59: 71.82194525 | AG59: 71.77605461 | AH59: 60.63495897 | AI59: 68.09445837
B60: Servicio fuera de la propiedad | C60: 5.707475288 | D60: 3.630992341 | E60: 3.279659484 | F60: 2.357415688 | G60: 1.552299777 | H60: 8.052849213 | I60: 4.07417843 | J60: 1.687518785 | K60: 1.530864183 | L60: 1.920316314 | M60: 4.709404092 | N60: 6.292798366 | O60: 2.61029744 | P60: 1.580742369 | Q60: 0.7717075387 | R60: 0.4812317367 | S60: 7.787953354 | T60: 4.638136852 | U60: 4.851279119 | V60: 4.203235831 | W60: 2.168107224 | X60: 3.044252082 | Y60: 5.605533306 | Z60: N/A | AA60: 2.970672396 | AB60: N/A | AC60: 3.536198523 | AD60: 1.84473916 | AE60: 2.001832077 | AF60: 0.8650904739 | AG60: 0.9285724277 | AH60: 1.690386695 | AI60: 1.215213106
B61: Pozo malacate/con bomba | C61: 7.653012233 | D61: 6.672125867 | E61: 4.569118899 | F61: 3.980306228 | G61: 1.735182256 | H61: 6.004550255 | I61: 1.228164972 | J61: 1.205780293 | K61: 0.3576044456 | L61: 0.3711855615 | M61: 7.954479088 | N61: 7.449917782 | O61: 3.864811771 | P61: 4.500280063 | Q61: 12.93933267 | R61: 12.81705897 | S61: 11.36373686 | T61: 11.86993878 | U61: 1.34557116 | V61: 1.399364946 | W61: 6.328261168 | X61: 2.191083727 | Y61: 2.377032191 | Z61: N/A | AA61: 7.966037972 | AB61: N/A | AC61: 0 | AD61: 0.9871281107 | AE61: 2.806721259 | AF61: 2.255749047 | AG61: 0.7770863865 | AH61: 24.87258048 | AI61: 2.042107823
B62: Rio/riachuelo/manantial/ojo de agua | C62: 23.24372406 | D62: 7.785439611 | E62: 0.817036203 | F62: 0.1619749062 | G62: 0 | H62: 0.3155683459 | I62: 0 | J62: 0.09262844449 | K62: 0 | L62: 0 | M62: 24.1982864 | N62: 20.6109163 | O62: 8.184732334 | P62: 2.428315945 | Q62: 1.217649776 | R62: 1.446329368 | S62: 10.06396779 | T62: 2.571885049 | U62: 7.402184982 | V62: 9.390784353 | W62: 1.307519992 | X62: 23.36507508 | Y62: 4.296126645 | Z62: N/A | AA62: 14.87516659 | AB62: N/A | AC62: 4.945854356 | AD62: 14.05053895 | AE62: 13.68428755 | AF62: 4.378107383 | AG62: 2.573404387 | AH62: 5.46057161 | AI62: 5.521756729
B63: Otro | C63: 0.7416734238 | D63: 0.7634888622 | E63: 0.712187555 | F63: 0.3812225972 | G63: 0.1036099196 | H63: 1.836264091 | I63: 0.3788005512 | J63: 0.5852212985 | K63: 0.2493316303 | L63: 0 | M63: 1.054105087 | N63: 0.3608120564 | O63: 0.5503634157 | P63: 0.2925059696 | Q63: 0.151287579 | R63: 0.1646427801 | S63: 0.09814785282 | T63: 0.03812898229 | U63: 0.06298883338 | V63: 0 | W63: 0.5172730989 | X63: 0.4538588523 | Y63: 0.9645176274 | Z63: N/A | AA63: 2.674161698 | AB63: N/A | AC63: 0.09274833647 | AD63: 0.05556118072 | AE63: 0 | AF63: 0.2349771836 | AG63: 0.3367387352 | AH63: 0 | AI63: 1.059404163
A108: =A1026 -> Honduras
A109: =A1034 -> 2001
A110: Use of sanitation facilities
A111: by wealth quintile and sub-national region
A112: Notes:
A113: WHO/UNICEF JMP customised wealth index excludes water,
A114: sanitation and hygiene assets.
A115: Survey used for analysis: | B115: =A1025 -> EPHPM01
A116: Shared among improved based on: | B116: EPHPM03
A117: Ratio of Improved latrines based on: | B117: 50% Rule
A120: Use of sanitation facilities | C120: NATIONAL wealth index quintile | H120: URBAN wealth index quintile | M120: RURAL wealth index quintile | R120: SUB-REGIONS: | BA120: Raw numbers of respondents: | BB120: Use of sanitation facilities | BC120: NATIONAL wealth index quintile | BH120: URBAN wealth index quintile | BM120: RURAL wealth index quintile | BR120: SUB-REGIONS:
A121: Weighted percentage (used in graphs) | C121: Poorest | D121: Poor | E121: Middle | F121: Rich | G121: Richest | H121: Poorest | I121: Poor | J121: Middle | K121: Rich | L121: Richest | M121: Poorest | N121: Poor | O121: Middle | P121: Rich | Q121: Richest | R121: Atlantida | S121: Choluteca | T121: Colon | U121: Comayagua | V121: Copan | W121: Cortes | X121: El Paraiso | Y121: Francisco Morazan | Z121: Gracias a Dios | AA121: Intibuca | AB121: Islas de la Bahia | AC121: La Paz | AD121: Lempira | AE121: Ocotepeque | AF121: Olancho | AG121: Santa Barbara | AH121: Valle | AI121: Yoro | BA121: Sanitation data, raw numbers (weighted) | BC121: Poorest | BD121: Poor | BE121: Middle | BF121: Rich | BG121: Richest | BH121: Poorest | BI121: Poor | BJ121: Middle | BK121: Rich | BL121: Richest | BM121: Poorest | BN121: Poor | BO121: Middle | BP121: Rich | BQ121: Richest | BR121: Atlantida | BS121: Choluteca | BT121: Colon | BU121: Comayagua | BV121: Copan | BW121: Cortes | BX121: El Paraiso | BY121: Francisco Morazan | BZ121: Gracias a Dios | CA121: Intibuca | CB121: Islas de la Bahia | CC121: La Paz | CD121: Lempira | CE121: Ocotepeque | CF121: Olancho | CG121: Santa Barbara | CH121: Valle | CI121: Yoro
A122: Sanitation | B122: Improved | C122: =C153+C154+C155+C156+C157*0.5 -> 47.58659913 | D122: =D153+D154+D155+D156+D157*0.5 -> 60.4999081 | E122: 74.45527058 | F122: 87.35915147 | G122: 93.58288129 | H122: 63.45479968 | I122: 80.75831218 | J122: 90.73119306 | K122: 92.37956365 | L122: 97.4516053 | M122: 48.31303436 | N122: 45.35498535 | O122: 64.10333959 | P122: 71.6235455 | Q122: 85.8049229 | R122: 81.1691768 | S122: 41.98869102 | T122: 70.57117802 | U122: 56.53147361 | V122: 65.68149151 | W122: 88.87752805 | X122: 74.25122263 | Y122: 81.08122845 | Z122: N/A | AA122: 78.53662424 | AB122: N/A | AC122: 80.74582259 | AD122: 69.90117855 | AE122: 64.34704646 | AF122: 48.84850484 | AG122: 80.30914574 | AH122: 48.2534107 | AI122: 74.20844537 | BA122: Sanitation | BB122: Improved | BC122: 4587.314637 | BD122: 5600.180833 | BE122: 6333.879882 | BF122: 7352.844245 | BG122: 7429.69403 | BH122: 2415.392231 | BI122: 2838.090588 | BJ122: 3300.503659 | BK122: 3044.828958 | BL122: 3656.380548 | BM122: 2671.643394 | BN122: 2420.101119 | BO122: 3248.145651 | BP122: 3657.411209 | BQ122: 4051.416271 | BR122: 1940.409701 | BS122: 1117.252725 | BT122: 1147.041931 | BU122: 1429.400552 | BV122: 1302.791112 | BW122: 5985.241954 | BX122: 1827.76143 | BY122: 6644.618767 | BZ122: N/A | CA122: 1250.223046 | CB122: N/A | CC122: 700.7133074 | CD122: 1114.075694 | CE122: 590.4494238 | CF122: 1411.308844 | CG122: 1542.855523 | CH122: 589.0688304 | CI122: 2710.700787
B123: Not Improved | C123: =100-C122 -> 52.41340087 | D123: =100-D122 -> 39.5000919 | E123: 25.54472942 | F123: 12.64084853 | G123: 6.41711871 | H123: 36.54520032 | I123: 19.24168782 | J123: 9.268806937 | K123: 7.620436347 | L123: 2.548394698 | M123: 51.68696564 | N123: 54.64501465 | O123: 35.89666041 | P123: 28.3764545 | Q123: 14.1950771 | R123: 18.8308232 | S123: 58.01130898 | T123: 29.42882198 | U123: 43.46852639 | V123: 34.31850849 | W123: 11.12247195 | X123: 25.74877737 | Y123: 18.91877155 | Z123: N/A | AA123: 21.46337576 | AB123: N/A | AC123: 19.25417741 | AD123: 30.09882145 | AE123: 35.65295354 | AF123: 51.15149516 | AG123: 19.69085426 | AH123: 51.7465893 | AI123: 25.79155463 | BB123: Not Improved | BC123: 3390.207337 | BD123: 2330.25682 | BE123: 1593.063705 | BF123: 824.3738077 | BG123: 413.8623898 | BH123: 1120.645321 | BI123: 625.094888 | BJ123: 235.3508276 | BK123: 214.5659668 | BL123: 85.63834983 | BM123: 1950.428847 | BN123: 1896.855524 | BO123: 1203.438009 | BP123: 800.8187424 | BQ123: 418.9275841 | BR123: 211.5363985 | BS123: 1376.728978 | BT123: 292.6175274 | BU123: 824.8718629 | BV123: 481.8784648 | BW123: 605.6002662 | BX123: 349.4456773 | BY123: 1277.902739 | BZ123: N/A | CA123: 286.8771512 | CB123: N/A | CC123: 104.4021878 | CD123: 398.1607508 | CE123: 109.4497734 | CF123: 1367.658032 | CG123: 224.4326103 | CH123: 335.1027428 | CI123: 305.0988982
A124: Sanitation ladder | B124: Basic | C124: =C122*EPHPM03!C129/100 -> 45.84942933 | D124: =D122*EPHPM03!D129/100 -> 57.9155066 | E124: =E122*EPHPM03!E129/100 -> 65.94208272 | F124: =F122*EPHPM03!F129/100 -> 74.63365868 | G124: =G122*EPHPM03!G129/100 -> 91.712004 | H124: =H122*EPHPM03!H129/100 -> 49.64432465 | I124: =I122*EPHPM03!I129/100 -> 67.1770717 | J124: =J122*EPHPM03!J129/100 -> 84.35732031 | K124: =K122*EPHPM03!K129/100 -> 89.8789509 | L124: =L122*EPHPM03!L129/100 -> 96.56711388 | M124: =M122*EPHPM03!M129/100 -> 46.48676854 | N124: =N122*EPHPM03!N129/100 -> 43.52223807 | O124: =O122*EPHPM03!O129/100 -> 61.65107385 | P124: =P122*EPHPM03!P129/100 -> 68.53828865 | Q124: =Q122*EPHPM03!Q129/100 -> 77.43483243 | R124: =R122*EPHPM03!R129/100 -> 77.66725972 | S124: =S122*EPHPM03!S129/100 -> 38.93258191 | T124: =T122*EPHPM03!T129/100 -> 66.51236501 | U124: =U122*EPHPM03!U129/100 -> 55.06665 | V124: =V122*EPHPM03!V129/100 -> 64.54575822 | W124: =W122*EPHPM03!W129/100 -> 78.98434946 | X124: =X122*EPHPM03!X129/100 -> 72.54927247 | Y124: =Y122*EPHPM03!Y129/100 -> 72.79378825 | Z124: N/A | AA124: =AA122*EPHPM03!AA129/100 -> 75.52880908 | AB124: N/A | AC124: =AC122*EPHPM03!AC129/100 -> 77.40503013 | AD124: =AD122*EPHPM03!AD129/100 -> 69.26321113 | AE124: =AE122*EPHPM03!AE129/100 -> 60.85299243 | AF124: =AF122*EPHPM03!AF129/100 -> 46.06269594 | AG124: =AG122*EPHPM03!AG129/100 -> 79.37822103 | AH124: =AH122*EPHPM03!AH129/100 -> 43.65791421 | AI124: =AI122*EPHPM03!AI129/100 -> 69.95417562 | BA124: Sanitation ladder | BB124: Basic | BC124: 3390.207337 | BD124: 2330.25682 | BE124: 1593.063705 | BF124: 824.3738077 | BG124: 413.8623898 | BH124: 1120.645321 | BI124: 625.094888 | BJ124: 235.3508276 | BK124: 214.5659668 | BL124: 85.63834983 | BM124: 1950.428847 | BN124: 1896.855524 | BO124: 1203.438009 | BP124: 800.8187424 | BQ124: 418.9275841 | BR124: 211.5363985 | BS124: 1376.728978 | BT124: 292.6175274 | BU124: 824.8718629 | BV124: 481.8784648 | BW124: 605.6002662 | BX124: 349.4456773 | BY124: 1277.902739 | BZ124: N/A | CA124: 286.8771512 | CB124: N/A | CC124: 104.4021878 | CD124: 398.1607508 | CE124: 109.4497734 | CF124: 1367.658032 | CG124: 224.4326103 | CH124: 335.1027428 | CI124: 305.0988982
B125: Limited | C125: =C122*EPHPM03!C128/100 -> 1.7371698 | D125: =D122*EPHPM03!D128/100 -> 2.584401496 | E125: =E122*EPHPM03!E128/100 -> 8.513187861 | F125: =F122*EPHPM03!F128/100 -> 12.72549279 | G125: =G122*EPHPM03!G128/100 -> 1.870877288 | H125: =H122*EPHPM03!H128/100 -> 13.81047503 | I125: =I122*EPHPM03!I128/100 -> 13.58124049 | J125: =J122*EPHPM03!J128/100 -> 6.373872753 | K125: =K122*EPHPM03!K128/100 -> 2.500612754 | L125: =L122*EPHPM03!L128/100 -> 0.8844914224 | M125: =M122*EPHPM03!M128/100 -> 1.826265815 | N125: =N122*EPHPM03!N128/100 -> 1.832747284 | O125: =O122*EPHPM03!O128/100 -> 2.452265745 | P125: =P122*EPHPM03!P128/100 -> 3.085256842 | Q125: =Q122*EPHPM03!Q128/100 -> 8.370090469 | R125: =R122*EPHPM03!R128/100 -> 3.50191708 | S125: =S122*EPHPM03!S128/100 -> 3.056109109 | T125: =T122*EPHPM03!T128/100 -> 4.058813016 | U125: =U122*EPHPM03!U128/100 -> 1.464823612 | V125: =V122*EPHPM03!V128/100 -> 1.135733297 | W125: =W122*EPHPM03!W128/100 -> 9.893178586 | X125: =X122*EPHPM03!X128/100 -> 1.701950162 | Y125: =Y122*EPHPM03!Y128/100 -> 8.287440195 | Z125: N/A | AA125: =AA122*EPHPM03!AA128/100 -> 3.007815163 | AB125: N/A | AC125: =AC122*EPHPM03!AC128/100 -> 3.340792461 | AD125: =AD122*EPHPM03!AD128/100 -> 0.6379674184 | AE125: =AE122*EPHPM03!AE128/100 -> 3.494054039 | AF125: =AF122*EPHPM03!AF128/100 -> 2.785808906 | AG125: =AG122*EPHPM03!AG128/100 -> 0.9309247098 | AH125: =AH122*EPHPM03!AH128/100 -> 4.595496494 | AI125: =AI122*EPHPM03!AI128/100 -> 4.254269753 | BB125: Limited | BC125: 6.784441391 | BD125: 257.4334349 | BE125: 1877.728379 | BF125: 3225.337241 | BG125: 5515.757406 | BH125: 1220.495117 | BI125: 1584.787519 | BJ125: 1673.213991 | BK125: 2296.752645 | BL125: 2957.165957 | BM125: 0 | BN125: 6.784441391 | BO125: 87.28179945 | BP125: 401.4418135 | BQ125: 655.1176176 | BR125: 413.6085009 | BS125: 156.2154111 | BT125: 126.807229 | BU125: 223.1431085 | BV125: 345.4172645 | BW125: 3042.311251 | BX125: 486.4272396 | BY125: 4179.577527 | BZ125: N/A | CA125: 158.3707258 | CB125: N/A | CC125: 105.9212552 | CD125: 74.34012116 | CE125: 79.01401052 | CF125: 457.0984618 | CG125: 216.9913723 | CH125: 83.72928091 | CI125: 734.0681427
B126: Unimproved | C126: =100-(C124+C125+C127) -> 9.916403083 | D126: =100-(D124+D125+D127) -> 10.11638167 | E126: 5.44790789 | F126: 2.559500538 | G126: 1.140655233 | H126: 4.853078704 | I126: 1.19197918 | J126: 2.61268383 | K126: 1.037436381 | L126: 0.259834641 | M126: 9.488818463 | N126: 10.70536732 | O126: 8.862730445 | P126: 10.41374843 | Q126: 4.823816236 | R126: 9.000818692 | S126: 2.809260935 | T126: 9.10335364 | U126: 6.877036484 | V126: 7.317517872 | W126: 1.933960895 | X126: 9.698596559 | Y126: 2.788771303 | Z126: N/A | AA126: 2.799846098 | AB126: N/A | AC126: 6.286821998 | AD126: 3.769555793 | AE126: 20.0150197 | AF126: 1.936873581 | AG126: 6.991588867 | AH126: 15.4867916 | AI126: 15.67487149 | BB126: Unimproved | BC126: 1180.935053 | BD126: 1524.788788 | BE126: 1853.495813 | BF126: 2289.157575 | BG126: 958.1558905 | BH126: 222.5222049 | BI126: 618.3938735 | BJ126: 934.9223202 | BK126: 276.6423759 | BL126: 447.8282531 | BM126: 676.7638975 | BN126: 621.9008879 | BO126: 929.1689753 | BP126: 1145.154328 | BQ126: 1933.236004 | BR126: 822.2964508 | BS126: 92.7566414 | BT126: 418.0013114 | BU126: 632.224036 | BV126: 290.1324406 | BW126: 1745.010262 | BX126: 552.935161 | BY126: 585.1582586 | BZ126: N/A | CA126: 561.0056152 | CB126: N/A | CC126: 369.2076188 | CD126: 288.6260535 | CE126: 106.4583178 | CF126: 482.6049255 | CG126: 362.2814697 | CH126: 66.72250703 | CI126: 431.112051
B127: Open defecation | C127: =C158 -> 42.49699779 | D127: =D158 -> 29.38371023 | E127: 20.09682153 | F127: 10.08134799 | G127: 5.276463477 | H127: 31.69212161 | I127: 18.04970864 | J127: 6.656123108 | K127: 6.582999965 | L127: 2.288560057 | M127: 42.19814718 | N127: 43.93964733 | O127: 27.03392996 | P127: 17.96270608 | Q127: 9.371260861 | R127: 9.830004505 | S127: 55.20204804 | T127: 20.32546834 | U127: 36.5914899 | V127: 27.00099061 | W127: 9.188511058 | X127: 16.05018081 | Y127: 16.13000025 | Z127: N/A | AA127: 18.66352966 | AB127: N/A | AC127: 12.96735541 | AD127: 26.32926566 | AE127: 15.63793383 | AF127: 49.21462158 | AG127: 12.69926539 | AH127: 36.25979769 | AI127: 10.11668314 | BB127: Open defecation | BC127: 169.6026778 | BD127: 185.030275 | BE127: 235.477472 | BF127: 179.1641678 | BG127: 269.276986 | BH127: 53.67913231 | BI127: 74.72623573 | BJ127: 30.64748384 | BK127: 195.7179478 | BL127: 22.17360531 | BM127: 105.5577134 | BN127: 64.04496441 | BO127: 123.8433529 | BP127: 132.671208 | BQ127: 235.4899349 | BR127: 93.82258446 | BS127: 7.170955405 | BT127: 68.1746442 | BU127: 37.3969212 | BV127: 125.3952843 | BW127: 247.2534188 | BX127: 4.906197225 | BY127: 132.1166099 | BZ127: N/A | CA127: 80.2829165 | CB127: N/A | CC127: 20.64215904 | CD127: 102.2959057 | CE127: 0 | CF127: 0 | CG127: 114.4090565 | CH127: 0 | CI127: 4.684925494
A128: Shared among Improved Sanitation | B128: Yes | C128: N/A | D128: N/A | E128: N/A | F128: N/A | G128: N/A | H128: N/A | I128: N/A | J128: N/A | K128: N/A | L128: N/A | M128: N/A | N128: N/A | O128: N/A | P128: N/A | Q128: N/A | R128: N/A | S128: N/A | T128: N/A | U128: N/A | V128: N/A | W128: N/A | X128: N/A | Y128: N/A | Z128: N/A | AA128: N/A | AB128: N/A | AC128: N/A | AD128: N/A | AE128: N/A | AF128: N/A | AG128: N/A | AH128: N/A | AI128: N/A | BA128: Shared among improved sanitation facilities | BB128: Yes | BC128: N/A | BD128: N/A | BE128: N/A | BF128: N/A | BG128: N/A | BH128: N/A | BI128: N/A | BJ128: N/A | BK128: N/A | BL128: N/A | BM128: N/A | BN128: N/A | BO128: N/A | BP128: N/A | BQ128: N/A | BR128: N/A | BS128: N/A | BT128: N/A | BU128: N/A | BV128: N/A | BW128: N/A | BX128: N/A | BY128: N/A | BZ128: N/A | CA128: N/A | CB128: N/A | CC128: N/A | CD128: N/A | CE128: N/A | CF128: N/A | CG128: N/A | CH128: N/A | CI128: N/A
B129: No | C129: N/A | D129: N/A | E129: N/A | F129: N/A | G129: N/A | H129: N/A | I129: N/A | J129: N/A | K129: N/A | L129: N/A | M129: N/A | N129: N/A | O129: N/A | P129: N/A | Q129: N/A | R129: N/A | S129: N/A | T129: N/A | U129: N/A | V129: N/A | W129: N/A | X129: N/A | Y129: N/A | Z129: N/A | AA129: N/A | AB129: N/A | AC129: N/A | AD129: N/A | AE129: N/A | AF129: N/A | AG129: N/A | AH129: N/A | AI129: N/A | BB129: No | BC129: N/A | BD129: N/A | BE129: N/A | BF129: N/A | BG129: N/A | BH129: N/A | BI129: N/A | BJ129: N/A | BK129: N/A | BL129: N/A | BM129: N/A | BN129: N/A | BO129: N/A | BP129: N/A | BQ129: N/A | BR129: N/A | BS129: N/A | BT129: N/A | BU129: N/A | BV129: N/A | BW129: N/A | BX129: N/A | BY129: N/A | BZ129: N/A | CA129: N/A | CB129: N/A | CC129: N/A | CD129: N/A | CE129: N/A | CF129: N/A | CG129: N/A | CH129: N/A | CI129: N/A
A130: Manually calculated ratios | B130: Improved latrines
B131: Other
B132: Other
C133: NATIONAL wealth index quintile | H133: URBAN wealth index quintile | M133: RURAL wealth index quintile | R133: SUB-REGIONS: | BA133: Raw numbers of respondents: | BB133: Use of sanitation facilities | BC133: NATIONAL wealth index quintile | BH133: URBAN wealth index quintile | BM133: RURAL wealth index quintile | BR133: SUB-REGIONS:
A134: Percentage based on weighted population | C134: Poorest | D134: Poor | E134: Middle | F134: Rich | G134: Richest | H134: Poorest | I134: Poor | J134: Middle | K134: Rich | L134: Richest | M134: Poorest | N134: Poor | O134: Middle | P134: Rich | Q134: Richest | R134: Atlantida | S134: Choluteca | T134: Colon | U134: Comayagua | V134: Copan | W134: Cortes | X134: El Paraiso | Y134: Francisco Morazan | Z134: Gracias a Dios | AA134: Intibuca | AB134: Islas de la Bahia | AC134: La Paz | AD134: Lempira | AE134: Ocotepeque | AF134: Olancho | AG134: Santa Barbara | AH134: Valle | AI134: Yoro | BA134: Sanitation data, raw numbers (weighted) | BC134: Poorest | BD134: Poor | BE134: Middle | BF134: Rich | BG134: Richest | BH134: Poorest | BI134: Poor | BJ134: Middle | BK134: Rich | BL134: Richest | BM134: Poorest | BN134: Poor | BO134: Middle | BP134: Rich | BQ134: Richest | BR134: Atlantida | BS134: Choluteca | BT134: Colon | BU134: Comayagua | BV134: Copan | BW134: Cortes | BX134: El Paraiso | BY134: Francisco Morazan | BZ134: Gracias a Dios | CA134: Intibuca | CB134: Islas de la Bahia | CC134: La Paz | CD134: Lempira | CE134: Ocotepeque | CF134: Olancho | CG134: Santa Barbara | CH134: Valle | CI134: Yoro
A135: Sanitation type | B135: Sewer connection | C135: 0.08504447136 | D135: 3.246144112 | E135: 23.68792408 | F135: 39.44296483 | G135: 70.32214866 | H135: 34.51589808 | I135: 45.76097729 | J135: 47.32134757 | K135: 70.46561397 | L135: 79.0259493 | M135: 0 | N135: 0.1571579692 | O135: 1.960690983 | P135: 9.00451116 | Q135: 14.6547478 | R135: 19.22020728 | S135: 6.263695155 | T135: 8.808140582 | U135: 9.898675381 | V135: 19.35469003 | W135: 46.15967353 | X135: 22.34179918 | Y135: 52.75564761 | Z135: N/A | AA135: 10.3032142 | AB135: N/A | AC135: 13.15603238 | AD135: 4.915905938 | AE135: 11.2893415 | AF135: 16.44850343 | AG135: 12.27821135 | AH135: 9.059928193 | AI135: 24.34074605 | BA135: Sanitation type | BB135: Sewer connection | BC135: N/A | BD135: N/A | BE135: N/A | BF135: N/A | BG135: N/A | BH135: N/A | BI135: N/A | BJ135: N/A | BK135: N/A | BL135: N/A | BM135: N/A | BN135: N/A | BO135: N/A | BP135: N/A | BQ135: N/A | BR135: N/A | BS135: N/A | BT135: N/A | BU135: N/A | BV135: N/A | BW135: N/A | BX135: N/A | BY135: N/A | BZ135: N/A | CA135: N/A | CB135: N/A | CC135: N/A | CD135: N/A | CE135: N/A | CF135: N/A | CG135: N/A | CH135: N/A | CI135: N/A
B136: Septic tank connection | C136: 14.80328173 | D136: 19.22704465 | E136: 23.38222535 | F136: 27.99433207 | G136: 12.21583475 | H136: 6.292981949 | I136: 17.85621584 | J136: 26.44119897 | K136: 8.487537789 | L136: 11.96755723 | M136: 14.64200173 | N136: 14.40600264 | O136: 20.87277351 | P136: 25.68630018 | Q136: 43.24580092 | R136: 38.21175869 | S136: 3.719219002 | T136: 29.03473519 | U136: 28.04559165 | V136: 16.25692758 | W136: 26.4762864 | X136: 25.39653481 | Y136: 7.386010352 | Z136: N/A | AA136: 36.49766073 | AB136: N/A | AC136: 45.85772116 | AD136: 19.08604006 | AE136: 15.21052149 | AF136: 17.36634321 | AG136: 20.49928717 | AH136: 7.219709951 | AI136: 14.29511559 | BB136: Septic tank connection | BC136: N/A | BD136: N/A | BE136: N/A | BF136: N/A | BG136: N/A | BH136: N/A | BI136: N/A | BJ136: N/A | BK136: N/A | BL136: N/A | BM136: N/A | BN136: N/A | BO136: N/A | BP136: N/A | BQ136: N/A | BR136: N/A | BS136: N/A | BT136: N/A | BU136: N/A | BV136: N/A | BW136: N/A | BX136: N/A | BY136: N/A | BZ136: N/A | CA136: N/A | CB136: N/A | CC136: N/A | CD136: N/A | CE136: N/A | CF136: N/A | CG136: N/A | CH136: N/A | CI136: N/A
B137: Improved latrines | C137: N/A | D137: N/A | E137: N/A | F137: N/A | G137: N/A | H137: N/A | I137: N/A | J137: N/A | K137: N/A | L137: N/A | M137: N/A | N137: N/A | O137: N/A | P137: N/A | Q137: N/A | R137: N/A | S137: N/A | T137: N/A | U137: N/A | V137: N/A | W137: N/A | X137: N/A | Y137: N/A | Z137: N/A | AA137: N/A | AB137: N/A | AC137: N/A | AD137: N/A | AE137: N/A | AF137: N/A | AG137: N/A | AH137: N/A | AI137: N/A | BB137: Improved latrines | BC137: N/A | BD137: N/A | BE137: N/A | BF137: N/A | BG137: N/A | BH137: N/A | BI137: N/A | BJ137: N/A | BK137: N/A | BL137: N/A | BM137: N/A | BN137: N/A | BO137: N/A | BP137: N/A | BQ137: N/A | BR137: N/A | BS137: N/A | BT137: N/A | BU137: N/A | BV137: N/A | BW137: N/A | BX137: N/A | BY137: N/A | BZ137: N/A | CA137: N/A | CB137: N/A | CC137: N/A | CD137: N/A | CE137: N/A | CF137: N/A | CG137: N/A | CH137: N/A | CI137: N/A
B138: Unimproved facilities | C138: N/A | D138: N/A | E138: N/A | F138: N/A | G138: N/A | H138: N/A | I138: N/A | J138: N/A | K138: N/A | L138: N/A | M138: N/A | N138: N/A | O138: N/A | P138: N/A | Q138: N/A | R138: N/A | S138: N/A | T138: N/A | U138: N/A | V138: N/A | W138: N/A | X138: N/A | Y138: N/A | Z138: N/A | AA138: N/A | AB138: N/A | AC138: N/A | AD138: N/A | AE138: N/A | AF138: N/A | AG138: N/A | AH138: N/A | AI138: N/A | BB138: Unimproved facilities | BC138: N/A | BD138: N/A | BE138: N/A | BF138: N/A | BG138: N/A | BH138: N/A | BI138: N/A | BJ138: N/A | BK138: N/A | BL138: N/A | BM138: N/A | BN138: N/A | BO138: N/A | BP138: N/A | BQ138: N/A | BR138: N/A | BS138: N/A | BT138: N/A | BU138: N/A | BV138: N/A | BW138: N/A | BX138: N/A | BY138: N/A | BZ138: N/A | CA138: N/A | CB138: N/A | CC138: N/A | CD138: N/A | CE138: N/A | CF138: N/A | CG138: N/A | CH138: N/A | CI138: N/A
B139: Open defecation | C139: 42.49699779 | D139: 29.38371023 | E139: 20.09682153 | F139: 10.08134799 | G139: 5.276463477 | H139: 31.69212161 | I139: 18.04970864 | J139: 6.656123108 | K139: 6.582999965 | L139: 2.288560057 | M139: 42.19814718 | N139: 43.93964733 | O139: 27.03392996 | P139: 17.96270608 | Q139: 9.371260861 | R139: 9.830004505 | S139: 55.20204804 | T139: 20.32546834 | U139: 36.5914899 | V139: 27.00099061 | W139: 9.188511058 | X139: 16.05018081 | Y139: 16.13000025 | Z139: N/A | AA139: 18.66352966 | AB139: N/A | AC139: 12.96735541 | AD139: 26.32926566 | AE139: 15.63793383 | AF139: 49.21462158 | AG139: 12.69926539 | AH139: 36.25979769 | AI139: 10.11668314 | BB139: Open defecation | BC139: N/A | BD139: N/A | BE139: N/A | BF139: N/A | BG139: N/A | BH139: N/A | BI139: N/A | BJ139: N/A | BK139: N/A | BL139: N/A | BM139: N/A | BN139: N/A | BO139: N/A | BP139: N/A | BQ139: N/A | BR139: N/A | BS139: N/A | BT139: N/A | BU139: N/A | BV139: N/A | BW139: N/A | BX139: N/A | BY139: N/A | BZ139: N/A | CA139: N/A | CB139: N/A | CC139: N/A | CD139: N/A | CE139: N/A | CF139: N/A | CG139: N/A | CH139: N/A | CI139: N/A
A140: Septic tank emptying practices | B140: Not emptied/treated and disposed in situ | C140: N/A | D140: N/A | E140: N/A | F140: N/A | G140: N/A | H140: N/A | I140: N/A | J140: N/A | K140: N/A | L140: N/A | M140: N/A | N140: N/A | O140: N/A | P140: N/A | Q140: N/A | R140: N/A | S140: N/A | T140: N/A | U140: N/A | V140: N/A | W140: N/A | X140: N/A | Y140: N/A | Z140: N/A | AA140: N/A | AB140: N/A | AC140: N/A | AD140: N/A | AE140: N/A | AF140: N/A | AG140: N/A | AH140: N/A | AI140: N/A | BA140: Septic tank emptying practices | BB140: Not emptied/treated and disposed in situ | BC140: N/A | BD140: N/A | BE140: N/A | BF140: N/A | BG140: N/A | BH140: N/A | BI140: N/A | BJ140: N/A | BK140: N/A | BL140: N/A | BM140: N/A | BN140: N/A | BO140: N/A | BP140: N/A | BQ140: N/A | BR140: N/A | BS140: N/A | BT140: N/A | BU140: N/A | BV140: N/A | BW140: N/A | BX140: N/A | BY140: N/A | BZ140: N/A | CA140: N/A | CB140: N/A | CC140: N/A | CD140: N/A | CE140: N/A | CF140: N/A | CG140: N/A | CH140: N/A | CI140: N/A
B141: Emptied and buried on site | C141: N/A | D141: N/A | E141: N/A | F141: N/A | G141: N/A | H141: N/A | I141: N/A | J141: N/A | K141: N/A | L141: N/A | M141: N/A | N141: N/A | O141: N/A | P141: N/A | Q141: N/A | R141: N/A | S141: N/A | T141: N/A | U141: N/A | V141: N/A | W141: N/A | X141: N/A | Y141: N/A | Z141: N/A | AA141: N/A | AB141: N/A | AC141: N/A | AD141: N/A | AE141: N/A | AF141: N/A | AG141: N/A | AH141: N/A | AI141: N/A | BB141: Emptied and buried on site | BC141: N/A | BD141: N/A | BE141: N/A | BF141: N/A | BG141: N/A | BH141: N/A | BI141: N/A | BJ141: N/A | BK141: N/A | BL141: N/A | BM141: N/A | BN141: N/A | BO141: N/A | BP141: N/A | BQ141: N/A | BR141: N/A | BS141: N/A | BT141: N/A | BU141: N/A | BV141: N/A | BW141: N/A | BX141: N/A | BY141: N/A | BZ141: N/A | CA141: N/A | CB141: N/A | CC141: N/A | CD141: N/A | CE141: N/A | CF141: N/A | CG141: N/A | CH141: N/A | CI141: N/A
B142: Emptied and discharged locally | C142: N/A | D142: N/A | E142: N/A | F142: N/A | G142: N/A | H142: N/A | I142: N/A | J142: N/A | K142: N/A | L142: N/A | M142: N/A | N142: N/A | O142: N/A | P142: N/A | Q142: N/A | R142: N/A | S142: N/A | T142: N/A | U142: N/A | V142: N/A | W142: N/A | X142: N/A | Y142: N/A | Z142: N/A | AA142: N/A | AB142: N/A | AC142: N/A | AD142: N/A | AE142: N/A | AF142: N/A | AG142: N/A | AH142: N/A | AI142: N/A | BB142: Emptied and discharged locally | BC142: N/A | BD142: N/A | BE142: N/A | BF142: N/A | BG142: N/A | BH142: N/A | BI142: N/A | BJ142: N/A | BK142: N/A | BL142: N/A | BM142: N/A | BN142: N/A | BO142: N/A | BP142: N/A | BQ142: N/A | BR142: N/A | BS142: N/A | BT142: N/A | BU142: N/A | BV142: N/A | BW142: N/A | BX142: N/A | BY142: N/A | BZ142: N/A | CA142: N/A | CB142: N/A | CC142: N/A | CD142: N/A | CE142: N/A | CF142: N/A | CG142: N/A | CH142: N/A | CI142: N/A
B143: Emptied and removed offsite | C143: N/A | D143: N/A | E143: N/A | F143: N/A | G143: N/A | H143: N/A | I143: N/A | J143: N/A | K143: N/A | L143: N/A | M143: N/A | N143: N/A | O143: N/A | P143: N/A | Q143: N/A | R143: N/A | S143: N/A | T143: N/A | U143: N/A | V143: N/A | W143: N/A | X143: N/A | Y143: N/A | Z143: N/A | AA143: N/A | AB143: N/A | AC143: N/A | AD143: N/A | AE143: N/A | AF143: N/A | AG143: N/A | AH143: N/A | AI143: N/A | BB143: Emptied and removed offsite | BC143: N/A | BD143: N/A | BE143: N/A | BF143: N/A | BG143: N/A | BH143: N/A | BI143: N/A | BJ143: N/A | BK143: N/A | BL143: N/A | BM143: N/A | BN143: N/A | BO143: N/A | BP143: N/A | BQ143: N/A | BR143: N/A | BS143: N/A | BT143: N/A | BU143: N/A | BV143: N/A | BW143: N/A | BX143: N/A | BY143: N/A | BZ143: N/A | CA143: N/A | CB143: N/A | CC143: N/A | CD143: N/A | CE143: N/A | CF143: N/A | CG143: N/A | CH143: N/A | CI143: N/A
A144: Latrine emptying practices | B144: Not emptied/treated and disposed in situ | C144: N/A | D144: N/A | E144: N/A | F144: N/A | G144: N/A | H144: N/A | I144: N/A | J144: N/A | K144: N/A | L144: N/A | M144: N/A | N144: N/A | O144: N/A | P144: N/A | Q144: N/A | R144: N/A | S144: N/A | T144: N/A | U144: N/A | V144: N/A | W144: N/A | X144: N/A | Y144: N/A | Z144: N/A | AA144: N/A | AB144: N/A | AC144: N/A | AD144: N/A | AE144: N/A | AF144: N/A | AG144: N/A | AH144: N/A | AI144: N/A | BA144: Latrine emptying practices | BB144: Not emptied/treated and disposed in situ | BC144: N/A | BD144: N/A | BE144: N/A | BF144: N/A | BG144: N/A | BH144: N/A | BI144: N/A | BJ144: N/A | BK144: N/A | BL144: N/A | BM144: N/A | BN144: N/A | BO144: N/A | BP144: N/A | BQ144: N/A | BR144: N/A | BS144: N/A | BT144: N/A | BU144: N/A | BV144: N/A | BW144: N/A | BX144: N/A | BY144: N/A | BZ144: N/A | CA144: N/A | CB144: N/A | CC144: N/A | CD144: N/A | CE144: N/A | CF144: N/A | CG144: N/A | CH144: N/A | CI144: N/A
B145: Emptied and buried on site | C145: N/A | D145: N/A | E145: N/A | F145: N/A | G145: N/A | H145: N/A | I145: N/A | J145: N/A | K145: N/A | L145: N/A | M145: N/A | N145: N/A | O145: N/A | P145: N/A | Q145: N/A | R145: N/A | S145: N/A | T145: N/A | U145: N/A | V145: N/A | W145: N/A | X145: N/A | Y145: N/A | Z145: N/A | AA145: N/A | AB145: N/A | AC145: N/A | AD145: N/A | AE145: N/A | AF145: N/A | AG145: N/A | AH145: N/A | AI145: N/A | BB145: Emptied and buried on site | BC145: N/A | BD145: N/A | BE145: N/A | BF145: N/A | BG145: N/A | BH145: N/A | BI145: N/A | BJ145: N/A | BK145: N/A | BL145: N/A | BM145: N/A | BN145: N/A | BO145: N/A | BP145: N/A | BQ145: N/A | BR145: N/A | BS145: N/A | BT145: N/A | BU145: N/A | BV145: N/A | BW145: N/A | BX145: N/A | BY145: N/A | BZ145: N/A | CA145: N/A | CB145: N/A | CC145: N/A | CD145: N/A | CE145: N/A | CF145: N/A | CG145: N/A | CH145: N/A | CI145: N/A
B146: Emptied and discharged locally | C146: N/A | D146: N/A | E146: N/A | F146: N/A | G146: N/A | H146: N/A | I146: N/A | J146: N/A | K146: N/A | L146: N/A | M146: N/A | N146: N/A | O146: N/A | P146: N/A | Q146: N/A | R146: N/A | S146: N/A | T146: N/A | U146: N/A | V146: N/A | W146: N/A | X146: N/A | Y146: N/A | Z146: N/A | AA146: N/A | AB146: N/A | AC146: N/A | AD146: N/A | AE146: N/A | AF146: N/A | AG146: N/A | AH146: N/A | AI146: N/A | BB146: Emptied and discharged locally | BC146: N/A | BD146: N/A | BE146: N/A | BF146: N/A | BG146: N/A | BH146: N/A | BI146: N/A | BJ146: N/A | BK146: N/A | BL146: N/A | BM146: N/A | BN146: N/A | BO146: N/A | BP146: N/A | BQ146: N/A | BR146: N/A | BS146: N/A | BT146: N/A | BU146: N/A | BV146: N/A | BW146: N/A | BX146: N/A | BY146: N/A | BZ146: N/A | CA146: N/A | CB146: N/A | CC146: N/A | CD146: N/A | CE146: N/A | CF146: N/A | CG146: N/A | CH146: N/A | CI146: N/A
B147: Emptied and removed offsite | C147: N/A | D147: N/A | E147: N/A | F147: N/A | G147: N/A | H147: N/A | I147: N/A | J147: N/A | K147: N/A | L147: N/A | M147: N/A | N147: N/A | O147: N/A | P147: N/A | Q147: N/A | R147: N/A | S147: N/A | T147: N/A | U147: N/A | V147: N/A | W147: N/A | X147: N/A | Y147: N/A | Z147: N/A | AA147: N/A | AB147: N/A | AC147: N/A | AD147: N/A | AE147: N/A | AF147: N/A | AG147: N/A | AH147: N/A | AI147: N/A | BB147: Emptied and removed offsite | BC147: N/A | BD147: N/A | BE147: N/A | BF147: N/A | BG147: N/A | BH147: N/A | BI147: N/A | BJ147: N/A | BK147: N/A | BL147: N/A | BM147: N/A | BN147: N/A | BO147: N/A | BP147: N/A | BQ147: N/A | BR147: N/A | BS147: N/A | BT147: N/A | BU147: N/A | BV147: N/A | BW147: N/A | BX147: N/A | BY147: N/A | BZ147: N/A | CA147: N/A | CB147: N/A | CC147: N/A | CD147: N/A | CE147: N/A | CF147: N/A | CG147: N/A | CH147: N/A | CI147: N/A
A148: Shared among improved sanitation facilities | B148: Yes | C148: N/A | D148: N/A | E148: N/A | F148: N/A | G148: N/A | H148: N/A | I148: N/A | J148: N/A | K148: N/A | L148: N/A | M148: N/A | N148: N/A | O148: N/A | P148: N/A | Q148: N/A | R148: N/A | S148: N/A | T148: N/A | U148: N/A | V148: N/A | W148: N/A | X148: N/A | Y148: N/A | Z148: N/A | AA148: N/A | AB148: N/A | AC148: N/A | AD148: N/A | AE148: N/A | AF148: N/A | AG148: N/A | AH148: N/A | AI148: N/A | BA148: Shared among improved sanitation facilities | BB148: Yes | BC148: N/A | BD148: N/A | BE148: N/A | BF148: N/A | BG148: N/A | BH148: N/A | BI148: N/A | BJ148: N/A | BK148: N/A | BL148: N/A | BM148: N/A | BN148: N/A | BO148: N/A | BP148: N/A | BQ148: N/A | BR148: N/A | BS148: N/A | BT148: N/A | BU148: N/A | BV148: N/A | BW148: N/A | BX148: N/A | BY148: N/A | BZ148: N/A | CA148: N/A | CB148: N/A | CC148: N/A | CD148: N/A | CE148: N/A | CF148: N/A | CG148: N/A | CH148: N/A | CI148: N/A
B149: No | C149: N/A | D149: N/A | E149: N/A | F149: N/A | G149: N/A | H149: N/A | I149: N/A | J149: N/A | K149: N/A | L149: N/A | M149: N/A | N149: N/A | O149: N/A | P149: N/A | Q149: N/A | R149: N/A | S149: N/A | T149: N/A | U149: N/A | V149: N/A | W149: N/A | X149: N/A | Y149: N/A | Z149: N/A | AA149: N/A | AB149: N/A | AC149: N/A | AD149: N/A | AE149: N/A | AF149: N/A | AG149: N/A | AH149: N/A | AI149: N/A | BB149: No | BC149: N/A | BD149: N/A | BE149: N/A | BF149: N/A | BG149: N/A | BH149: N/A | BI149: N/A | BJ149: N/A | BK149: N/A | BL149: N/A | BM149: N/A | BN149: N/A | BO149: N/A | BP149: N/A | BQ149: N/A | BR149: N/A | BS149: N/A | BT149: N/A | BU149: N/A | BV149: N/A | BW149: N/A | BX149: N/A | BY149: N/A | BZ149: N/A | CA149: N/A | CB149: N/A | CC149: N/A | CD149: N/A | CE149: N/A | CF149: N/A | CG149: N/A | CH149: N/A | CI149: N/A
B150: DK/missing | C150: N/A | D150: N/A | E150: N/A | F150: N/A | G150: N/A | H150: N/A | I150: N/A | J150: N/A | K150: N/A | L150: N/A | M150: N/A | N150: N/A | O150: N/A | P150: N/A | Q150: N/A | R150: N/A | S150: N/A | T150: N/A | U150: N/A | V150: N/A | W150: N/A | X150: N/A | Y150: N/A | Z150: N/A | AA150: N/A | AB150: N/A | AC150: N/A | AD150: N/A | AE150: N/A | AF150: N/A | AG150: N/A | AH150: N/A | AI150: N/A | BB150: DK/missing | BC150: N/A | BD150: N/A | BE150: N/A | BF150: N/A | BG150: N/A | BH150: N/A | BI150: N/A | BJ150: N/A | BK150: N/A | BL150: N/A | BM150: N/A | BN150: N/A | BO150: N/A | BP150: N/A | BQ150: N/A | BR150: N/A | BS150: N/A | BT150: N/A | BU150: N/A | BV150: N/A | BW150: N/A | BX150: N/A | BY150: N/A | BZ150: N/A | CA150: N/A | CB150: N/A | CC150: N/A | CD150: N/A | CE150: N/A | CF150: N/A | CG150: N/A | CH150: N/A | CI150: N/A
A151: Shared among all sanitation facilities | B151: Yes | C151: N/A | D151: N/A | E151: N/A | F151: N/A | G151: N/A | H151: N/A | I151: N/A | J151: N/A | K151: N/A | L151: N/A | M151: N/A | N151: N/A | O151: N/A | P151: N/A | Q151: N/A | R151: N/A | S151: N/A | T151: N/A | U151: N/A | V151: N/A | W151: N/A | X151: N/A | Y151: N/A | Z151: N/A | AA151: N/A | AB151: N/A | AC151: N/A | AD151: N/A | AE151: N/A | AF151: N/A | AG151: N/A | AH151: N/A | AI151: N/A | BA151: Shared among all sanitation facilities | BB151: Yes | BC151: N/A | BD151: N/A | BE151: N/A | BF151: N/A | BG151: N/A | BH151: N/A | BI151: N/A | BJ151: N/A | BK151: N/A | BL151: N/A | BM151: N/A | BN151: N/A | BO151: N/A | BP151: N/A | BQ151: N/A | BR151: N/A | BS151: N/A | BT151: N/A | BU151: N/A | BV151: N/A | BW151: N/A | BX151: N/A | BY151: N/A | BZ151: N/A | CA151: N/A | CB151: N/A | CC151: N/A | CD151: N/A | CE151: N/A | CF151: N/A | CG151: N/A | CH151: N/A | CI151: N/A
B152: No | C152: N/A | D152: N/A | E152: N/A | F152: N/A | G152: N/A | H152: N/A | I152: N/A | J152: N/A | K152: N/A | L152: N/A | M152: N/A | N152: N/A | O152: N/A | P152: N/A | Q152: N/A | R152: N/A | S152: N/A | T152: N/A | U152: N/A | V152: N/A | W152: N/A | X152: N/A | Y152: N/A | Z152: N/A | AA152: N/A | AB152: N/A | AC152: N/A | AD152: N/A | AE152: N/A | AF152: N/A | AG152: N/A | AH152: N/A | AI152: N/A | BB152: No | BC152: N/A | BD152: N/A | BE152: N/A | BF152: N/A | BG152: N/A | BH152: N/A | BI152: N/A | BJ152: N/A | BK152: N/A | BL152: N/A | BM152: N/A | BN152: N/A | BO152: N/A | BP152: N/A | BQ152: N/A | BR152: N/A | BS152: N/A | BT152: N/A | BU152: N/A | BV152: N/A | BW152: N/A | BX152: N/A | BY152: N/A | BZ152: N/A | CA152: N/A | CB152: N/A | CC152: N/A | CD152: N/A | CE152: N/A | CF152: N/A | CG152: N/A | CH152: N/A | CI152: N/A
A153: V05A. Servicio sanitario. Tipo | B153: Inodoro conectado ared de alcantarilla | C153: 0.08504447136 | D153: 3.246144112 | E153: 23.68792408 | F153: 39.44296483 | G153: 70.32214866 | H153: 34.51589808 | I153: 45.76097729 | J153: 47.32134757 | K153: 70.46561397 | L153: 79.0259493 | M153: 0 | N153: 0.1571579692 | O153: 1.960690983 | P153: 9.00451116 | Q153: 14.6547478 | R153: 19.22020728 | S153: 6.263695155 | T153: 8.808140582 | U153: 9.898675381 | V153: 19.35469003 | W153: 46.15967353 | X153: 22.34179918 | Y153: 52.75564761 | Z153: N/A | AA153: 10.3032142 | AB153: N/A | AC153: 13.15603238 | AD153: 4.915905938 | AE153: 11.2893415 | AF153: 16.44850343 | AG153: 12.27821135 | AH153: 9.059928193 | AI153: 24.34074605 | BA153: V05A. Servicio sanitario. Tipo | BB153: Inodoro conectado ared de alcantarilla | BC153: 6.784441391 | BD153: 257.4334349 | BE153: 1877.728379 | BF153: 3225.337241 | BG153: 5515.757406 | BH153: 1220.495117 | BI153: 1584.787519 | BJ153: 1673.213991 | BK153: 2296.752645 | BL153: 2957.165957 | BM153: 0 | BN153: 6.784441391 | BO153: 87.28179945 | BP153: 401.4418135 | BQ153: 655.1176176 | BR153: 413.6085009 | BS153: 156.2154111 | BT153: 126.807229 | BU153: 223.1431085 | BV153: 345.4172645 | BW153: 3042.311251 | BX153: 486.4272396 | BY153: 4179.577527 | BZ153: N/A | CA153: 158.3707258 | CB153: N/A | CC153: 105.9212552 | CD153: 74.34012116 | CE153: 79.01401052 | CF153: 457.0984618 | CG153: 216.9913723 | CH153: 83.72928091 | CI153: 734.0681427
B154: Inodoro conectado a pozo septico | C154: 14.80328173 | D154: 19.22704465 | E154: 23.38222535 | F154: 27.99433207 | G154: 12.21583475 | H154: 6.292981949 | I154: 17.85621584 | J154: 26.44119897 | K154: 8.487537789 | L154: 11.96755723 | M154: 14.64200173 | N154: 14.40600264 | O154: 20.87277351 | P154: 25.68630018 | Q154: 43.24580092 | R154: 38.21175869 | S154: 3.719219002 | T154: 29.03473519 | U154: 28.04559165 | V154: 16.25692758 | W154: 26.4762864 | X154: 25.39653481 | Y154: 7.386010352 | Z154: N/A | AA154: 36.49766073 | AB154: N/A | AC154: 45.85772116 | AD154: 19.08604006 | AE154: 15.21052149 | AF154: 17.36634321 | AG154: 20.49928717 | AH154: 7.219709951 | AI154: 14.29511559 | BB154: Inodoro conectado a pozo septico | BC154: 1180.935053 | BD154: 1524.788788 | BE154: 1853.495813 | BF154: 2289.157575 | BG154: 958.1558905 | BH154: 222.5222049 | BI154: 618.3938735 | BJ154: 934.9223202 | BK154: 276.6423759 | BL154: 447.8282531 | BM154: 676.7638975 | BN154: 621.9008879 | BO154: 929.1689753 | BP154: 1145.154328 | BQ154: 1933.236004 | BR154: 822.2964508 | BS154: 92.7566414 | BT154: 418.0013114 | BU154: 632.224036 | BV154: 290.1324406 | BW154: 1745.010262 | BX154: 552.935161 | BY154: 585.1582586 | BZ154: N/A | CA154: 561.0056152 | CB154: N/A | CC154: 369.2076188 | CD154: 288.6260535 | CE154: 106.4583178 | CF154: 482.6049255 | CG154: 362.2814697 | CH154: 66.72250703 | CI154: 431.112051
B155: Letrina con cierre hidraulico | C155: 2.126007027 | D155: 2.333166 | E155: 2.970596036 | F155: 2.191016146 | G155: 3.433098094 | H155: 1.518058887 | I155: 2.157731263 | J155: 0.8667631531 | K155: 6.004732544 | L155: 0.5925572775 | M155: 2.283774633 | N155: 1.483567469 | O155: 2.782006638 | P155: 2.975871803 | Q155: 5.267825978 | R155: 4.359894724 | S155: 0.2875303935 | T155: 4.73547017 | U155: 1.658935316 | V155: 7.026246534 | W155: 3.751469244 | X155: 0.2253436161 | Y155: 1.667608094 | Z155: N/A | AA155: 5.223011267 | AB155: N/A | AC155: 2.563875514 | AD155: 6.764544396 | AE155: 0 | AF155: 0 | AG155: 6.473707048 | AH155: 0 | AI155: 0.1553460436 | BB155: Letrina con cierre hidraulico | BC155: 169.6026778 | BD155: 185.030275 | BE155: 235.477472 | BF155: 179.1641678 | BG155: 269.276986 | BH155: 53.67913231 | BI155: 74.72623573 | BJ155: 30.64748384 | BK155: 195.7179478 | BL155: 22.17360531 | BM155: 105.5577134 | BN155: 64.04496441 | BO155: 123.8433529 | BP155: 132.671208 | BQ155: 235.4899349 | BR155: 93.82258446 | BS155: 7.170955405 | BT155: 68.1746442 | BU155: 37.3969212 | BV155: 125.3952843 | BW155: 247.2534188 | BX155: 4.906197225 | BY155: 132.1166099 | BZ155: N/A | CA155: 80.2829165 | CB155: N/A | CC155: 20.64215904 | CD155: 102.2959057 | CE155: 0 | CF155: 0 | CG155: 114.4090565 | CH155: 0 | CI155: 4.684925494
B156: Letrina con pozo septico | C156: 20.65586281 | D156: 25.57717167 | E156: 18.96661723 | F156: 15.17133789 | G156: 6.471144553 | H156: 16.27478206 | I156: 13.79140861 | J156: 13.48919954 | K156: 6.384242964 | L156: 5.605706859 | M156: 21.89843953 | N156: 18.60288996 | O156: 29.62513801 | P156: 23.54311392 | Q156: 17.81273197 | R156: 10.37649742 | S156: 28.90898554 | T156: 18.88947844 | U156: 10.05123479 | V156: 15.7261095 | W156: 10.55613798 | X156: 16.58894847 | Y156: 16.48319109 | Z156: N/A | AA156: 23.71289195 | AB156: N/A | AC156: 12.88137154 | AD156: 35.36513237 | AE156: 17.83216378 | AF156: 13.09678462 | AG156: 34.0663513 | AH156: 16.48698096 | AI156: 19.7423662 | BB156: Letrina con pozo septico | BC156: 1647.825995 | BD156: 2028.381653 | BE156: 1503.473048 | BF156: 1240.593381 | BG156: 507.567874 | BH156: 575.4824053 | BI156: 477.6220598 | BJ156: 476.9584672 | BK156: 208.0876912 | BL156: 209.76661 | BM156: 1012.161695 | BN156: 803.0786938 | BO156: 1318.787803 | BP156: 1049.606156 | BQ156: 796.2903691 | BR156: 223.2966314 | BS156: 720.9848099 | BT156: 271.944163 | BU156: 226.5822131 | BV156: 280.6590919 | BW156: 695.7383989 | BX156: 361.1757651 | BY156: 1305.884359 | BZ156: N/A | CA156: 364.490909 | CB156: N/A | CC156: 103.7099183 | CD156: 534.8044203 | CE156: 124.8071711 | CF156: 363.9553065 | CG156: 602.0505842 | CH156: 152.3679913 | CI156: 595.3902177
B157: Pozo negro | C157: 19.83280617 | D157: 20.23276334 | E157: 10.89581578 | F157: 5.119001077 | G157: 2.281310466 | H157: 9.706157409 | I157: 2.383958361 | J157: 5.225367659 | K157: 2.074872762 | L157: 0.519669282 | M157: 18.97763693 | N157: 21.41073464 | O157: 17.72546089 | P157: 20.82749685 | Q157: 9.647632472 | R157: 18.00163738 | S157: 5.618521869 | T157: 18.20670728 | U157: 13.75407297 | V157: 14.63503574 | W157: 3.867921791 | X157: 19.39719312 | Y157: 5.577542606 | Z157: N/A | AA157: 5.599692196 | AB157: N/A | AC157: 12.573644 | AD157: 7.539111586 | AE157: 40.0300394 | AF157: 3.873747163 | AG157: 13.98317773 | AH157: 30.97358321 | AI157: 31.34974298 | BB157: Pozo negro | BC157: 1582.16647 | BD157: 1604.546682 | BE157: 863.7051703 | BF157: 418.5918802 | BG157: 178.9358735 | BH157: 343.2133708 | BI157: 82.5608997 | BJ157: 184.7613968 | BK157: 67.6282975 | BL157: 19.44612274 | BM157: 877.1600883 | BN157: 924.2921312 | BO157: 789.0637207 | BP157: 928.5377026 | BQ157: 431.2823454 | BR157: 387.3855336 | BS157: 140.1249074 | BT157: 262.1145834 | BU157: 310.0542728 | BV157: 261.1870304 | BW157: 254.9286224 | BX157: 422.3170672 | BY157: 441.8820124 | BZ157: N/A | CA157: 86.07287981 | CB157: N/A | CC157: 101.2323561 | CD157: 114.009193 | CE157: 280.1699244 | CF157: 107.6501505 | CG157: 247.1230408 | CH157: 286.2490512 | CI157: 945.4454503
B158: No tiene | C158: 42.49699779 | D158: 29.38371023 | E158: 20.09682153 | F158: 10.08134799 | G158: 5.276463477 | H158: 31.69212161 | I158: 18.04970864 | J158: 6.656123108 | K158: 6.582999965 | L158: 2.288560057 | M158: 42.19814718 | N158: 43.93964733 | O158: 27.03392996 | P158: 17.96270608 | Q158: 9.371260861 | R158: 9.830004505 | S158: 55.20204804 | T158: 20.32546834 | U158: 36.5914899 | V158: 27.00099061 | W158: 9.188511058 | X158: 16.05018081 | Y158: 16.13000025 | Z158: N/A | AA158: 18.66352966 | AB158: N/A | AC158: 12.96735541 | AD158: 26.32926566 | AE158: 15.63793383 | AF158: 49.21462158 | AG158: 12.69926539 | AH158: 36.25979769 | AI158: 10.11668314 | BB158: No tiene | BC158: 3390.207337 | BD158: 2330.25682 | BE158: 1593.063705 | BF158: 824.3738077 | BG158: 413.8623898 | BH158: 1120.645321 | BI158: 625.094888 | BJ158: 235.3508276 | BK158: 214.5659668 | BL158: 85.63834983 | BM158: 1950.428847 | BN158: 1896.855524 | BO158: 1203.438009 | BP158: 800.8187424 | BQ158: 418.9275841 | BR158: 211.5363985 | BS158: 1376.728978 | BT158: 292.6175274 | BU158: 824.8718629 | BV158: 481.8784648 | BW158: 605.6002662 | BX158: 349.4456773 | BY158: 1277.902739 | BZ158: N/A | CA158: 286.8771512 | CB158: N/A | CC158: 104.4021878 | CD158: 398.1607508 | CE158: 109.4497734 | CF158: 1367.658032 | CG158: 224.4326103 | CH158: 335.1027428 | CI158: 305.0988982
BB159: Total | BC159: 7977.521974 | BD159: 7930.437653 | BE159: 7926.943588 | BF159: 8177.218053 | BG159: 7843.55642 | BH159: 3536.037552 | BI159: 3463.185476 | BJ159: 3535.854487 | BK159: 3259.394925 | BL159: 3742.018898 | BM159: 4622.072241 | BN159: 4316.956643 | BO159: 4451.583661 | BP159: 4458.229951 | BQ159: 4470.343855 | BR159: 2151.9461 | BS159: 2493.981703 | BT159: 1439.659458 | BU159: 2254.272414 | BV159: 1784.669577 | BW159: 6590.84222 | BX159: 2177.207108 | BY159: 7922.521506 | BZ159: N/A | CA159: 1537.100197 | CB159: N/A | CC159: 805.1154952 | CD159: 1512.236444 | CE159: 699.8991972 | CF159: 2778.966876 | CG159: 1767.288134 | CH159: 924.1715731 | CI159: 3015.799685
A208: =A1026 -> Honduras
A209: =A1034 -> 2001
A210: Access to hygiene facilities
A211: by wealth quintile and sub-national region
A212: Notes:
A213: WHO/UNICEF JMP customised wealth index excludes water,
A214: sanitation and hygiene assets.
A215: Survey used for analysis: | B215: =A1025 -> EPHPM01
A220: Access to handwashing | C220: NATIONAL wealth index quintile | H220: URBAN wealth index quintile | M220: RURAL wealth index quintile | R220: SUB-REGIONS: | BA220: Raw numbers of respondents: | BB220: Access to handwashing | BC220: NATIONAL wealth index quintile | BH220: URBAN wealth index quintile | BM220: RURAL wealth index quintile | BR220: SUB-REGIONS:
A221: Weighted percentage (used in graphs) | C221: Poorest | D221: Poor | E221: Middle | F221: Rich | G221: Richest | H221: Poorest | I221: Poor | J221: Middle | K221: Rich | L221: Richest | M221: Poorest | N221: Poor | O221: Middle | P221: Rich | Q221: Richest | R221: Atlantida | S221: Choluteca | T221: Colon | U221: Comayagua | V221: Copan | W221: Cortes | X221: El Paraiso | Y221: Francisco Morazan | Z221: Gracias a Dios | AA221: Intibuca | AB221: Islas de la Bahia | AC221: La Paz | AD221: Lempira | AE221: Ocotepeque | AF221: Olancho | AG221: Santa Barbara | AH221: Valle | AI221: Yoro | BA221: Hygiene data, raw numbers (weighted) | BC221: Poorest | BD221: Poor | BE221: Middle | BF221: Rich | BG221: Richest | BH221: Poorest | BI221: Poor | BJ221: Middle | BK221: Rich | BL221: Richest | BM221: Poorest | BN221: Poor | BO221: Middle | BP221: Rich | BQ221: Richest | BR221: Atlantida | BS221: Choluteca | BT221: Colon | BU221: Comayagua | BV221: Copan | BW221: Cortes | BX221: El Paraiso | BY221: Francisco Morazan | BZ221: Gracias a Dios | CA221: Intibuca | CB221: Islas de la Bahia | CC221: La Paz | CD221: Lempira | CE221: Ocotepeque | CF221: Olancho | CG221: Santa Barbara | CH221: Valle | CI221: Yoro
A222: Hygiene ladder | B222: Basic | C222: N/A | D222: N/A | E222: N/A | F222: N/A | G222: N/A | H222: N/A | I222: N/A | J222: N/A | K222: N/A | L222: N/A | M222: N/A | N222: N/A | O222: N/A | P222: N/A | Q222: N/A | R222: N/A | S222: N/A | T222: N/A | U222: N/A | V222: N/A | W222: N/A | X222: N/A | Y222: N/A | Z222: N/A | AA222: N/A | AB222: N/A | AC222: N/A | AD222: N/A | AE222: N/A | AF222: N/A | AG222: N/A | AH222: N/A | AI222: N/A | BA222: Hygiene ladder | BB222: Basic | BC222: N/A | BD222: N/A | BE222: N/A | BF222: N/A | BG222: N/A | BH222: N/A | BI222: N/A | BJ222: N/A | BK222: N/A | BL222: N/A | BM222: N/A | BN222: N/A | BO222: N/A | BP222: N/A | BQ222: N/A | BR222: N/A | BS222: N/A | BT222: N/A | BU222: N/A | BV222: N/A | BW222: N/A | BX222: N/A | BY222: N/A | BZ222: N/A | CA222: N/A | CB222: N/A | CC222: N/A | CD222: N/A | CE222: N/A | CF222: N/A | CG222: N/A | CH222: N/A | CI222: N/A
B223: Limited | C223: N/A | D223: N/A | E223: N/A | F223: N/A | G223: N/A | H223: N/A | I223: N/A | J223: N/A | K223: N/A | L223: N/A | M223: N/A | N223: N/A | O223: N/A | P223: N/A | Q223: N/A | R223: N/A | S223: N/A | T223: N/A | U223: N/A | V223: N/A | W223: N/A | X223: N/A | Y223: N/A | Z223: N/A | AA223: N/A | AB223: N/A | AC223: N/A | AD223: N/A | AE223: N/A | AF223: N/A | AG223: N/A | AH223: N/A | AI223: N/A | BB223: Limited | BC223: N/A | BD223: N/A | BE223: N/A | BF223: N/A | BG223: N/A | BH223: N/A | BI223: N/A | BJ223: N/A | BK223: N/A | BL223: N/A | BM223: N/A | BN223: N/A | BO223: N/A | BP223: N/A | BQ223: N/A | BR223: N/A | BS223: N/A | BT223: N/A | BU223: N/A | BV223: N/A | BW223: N/A | BX223: N/A | BY223: N/A | BZ223: N/A | CA223: N/A | CB223: N/A | CC223: N/A | CD223: N/A | CE223: N/A | CF223: N/A | CG223: N/A | CH223: N/A | CI223: N/A
B224: No facility | C224: N/A | D224: N/A | E224: N/A | F224: N/A | G224: N/A | H224: N/A | I224: N/A | J224: N/A | K224: N/A | L224: N/A | M224: N/A | N224: N/A | O224: N/A | P224: N/A | Q224: N/A | R224: N/A | S224: N/A | T224: N/A | U224: N/A | V224: N/A | W224: N/A | X224: N/A | Y224: N/A | Z224: N/A | AA224: N/A | AB224: N/A | AC224: N/A | AD224: N/A | AE224: N/A | AF224: N/A | AG224: N/A | AH224: N/A | AI224: N/A | BB224: No facility | BC224: N/A | BD224: N/A | BE224: N/A | BF224: N/A | BG224: N/A | BH224: N/A | BI224: N/A | BJ224: N/A | BK224: N/A | BL224: N/A | BM224: N/A | BN224: N/A | BO224: N/A | BP224: N/A | BQ224: N/A | BR224: N/A | BS224: N/A | BT224: N/A | BU224: N/A | BV224: N/A | BW224: N/A | BX224: N/A | BY224: N/A | BZ224: N/A | CA224: N/A | CB224: N/A | CC224: N/A | CD224: N/A | CE224: N/A | CF224: N/A | CG224: N/A | CH224: N/A | CI224: N/A
BA225: Observed handwashing place | BB225: Fixed | BC225: N/A | BD225: N/A | BE225: N/A | BF225: N/A | BG225: N/A | BH225: N/A | BI225: N/A | BJ225: N/A | BK225: N/A | BL225: N/A | BM225: N/A | BN225: N/A | BO225: N/A | BP225: N/A | BQ225: N/A | BR225: N/A | BS225: N/A | BT225: N/A | BU225: N/A | BV225: N/A | BW225: N/A | BX225: N/A | BY225: N/A | BZ225: N/A | CA225: N/A | CB225: N/A | CC225: N/A | CD225: N/A | CE225: N/A | CF225: N/A | CG225: N/A | CH225: N/A | CI225: N/A
BB226: Mobile | BC226: N/A | BD226: N/A | BE226: N/A | BF226: N/A | BG226: N/A | BH226: N/A | BI226: N/A | BJ226: N/A | BK226: N/A | BL226: N/A | BM226: N/A | BN226: N/A | BO226: N/A | BP226: N/A | BQ226: N/A | BR226: N/A | BS226: N/A | BT226: N/A | BU226: N/A | BV226: N/A | BW226: N/A | BX226: N/A | BY226: N/A | BZ226: N/A | CA226: N/A | CB226: N/A | CC226: N/A | CD226: N/A | CE226: N/A | CF226: N/A | CG226: N/A | CH226: N/A | CI226: N/A
BA227: Water / Soap | BB227: Water and soap | BC227: N/A | BD227: N/A | BE227: N/A | BF227: N/A | BG227: N/A | BH227: N/A | BI227: N/A | BJ227: N/A | BK227: N/A | BL227: N/A | BM227: N/A | BN227: N/A | BO227: N/A | BP227: N/A | BQ227: N/A | BR227: N/A | BS227: N/A | BT227: N/A | BU227: N/A | BV227: N/A | BW227: N/A | BX227: N/A | BY227: N/A | BZ227: N/A | CA227: N/A | CB227: N/A | CC227: N/A | CD227: N/A | CE227: N/A | CF227: N/A | CG227: N/A | CH227: N/A | CI227: N/A
BB228: Water only | BC228: N/A | BD228: N/A | BE228: N/A | BF228: N/A | BG228: N/A | BH228: N/A | BI228: N/A | BJ228: N/A | BK228: N/A | BL228: N/A | BM228: N/A | BN228: N/A | BO228: N/A | BP228: N/A | BQ228: N/A | BR228: N/A | BS228: N/A | BT228: N/A | BU228: N/A | BV228: N/A | BW228: N/A | BX228: N/A | BY228: N/A | BZ228: N/A | CA228: N/A | CB228: N/A | CC228: N/A | CD228: N/A | CE228: N/A | CF228: N/A | CG228: N/A | CH228: N/A | CI228: N/A
BB229: Soap only | BC229: N/A | BD229: N/A | BE229: N/A | BF229: N/A | BG229: N/A | BH229: N/A | BI229: N/A | BJ229: N/A | BK229: N/A | BL229: N/A | BM229: N/A | BN229: N/A | BO229: N/A | BP229: N/A | BQ229: N/A | BR229: N/A | BS229: N/A | BT229: N/A | BU229: N/A | BV229: N/A | BW229: N/A | BX229: N/A | BY229: N/A | BZ229: N/A | CA229: N/A | CB229: N/A | CC229: N/A | CD229: N/A | CE229: N/A | CF229: N/A | CG229: N/A | CH229: N/A | CI229: N/A
BB230: Neither | BC230: N/A | BD230: N/A | BE230: N/A | BF230: N/A | BG230: N/A | BH230: N/A | BI230: N/A | BJ230: N/A | BK230: N/A | BL230: N/A | BM230: N/A | BN230: N/A | BO230: N/A | BP230: N/A | BQ230: N/A | BR230: N/A | BS230: N/A | BT230: N/A | BU230: N/A | BV230: N/A | BW230: N/A | BX230: N/A | BY230: N/A | BZ230: N/A | CA230: N/A | CB230: N/A | CC230: N/A | CD230: N/A | CE230: N/A | CF230: N/A | CG230: N/A | CH230: N/A | CI230: N/A
BA259: Raw numbers of respondents: | BB259: Menstrual health and hygiene | BC259: NATIONAL wealth index quintile | BH259: URBAN wealth index quintile | BM259: RURAL wealth index quintile | BR259: SUB-REGIONS:
BA260: MHH data, raw numbers (weighted) | BC260: Poorest | BD260: Poor | BE260: Middle | BF260: Rich | BG260: Richest | BH260: Poorest | BI260: Poor | BJ260: Middle | BK260: Rich | BL260: Richest | BM260: Poorest | BN260: Poor | BO260: Middle | BP260: Rich | BQ260: Richest | BR260: Atlantida | BS260: Choluteca | BT260: Colon | BU260: Comayagua | BV260: Copan | BW260: Cortes | BX260: El Paraiso | BY260: Francisco Morazan | BZ260: Gracias a Dios | CA260: Intibuca | CB260: Islas de la Bahia | CC260: La Paz | CD260: Lempira | CE260: Ocotepeque | CF260: Olancho | CG260: Santa Barbara | CH260: Valle | CI260: Yoro
BA261: Private place to wash and change | BB261: Yes | BC261: N/A | BD261: N/A | BE261: N/A | BF261: N/A | BG261: N/A | BH261: N/A | BI261: N/A | BJ261: N/A | BK261: N/A | BL261: N/A | BM261: N/A | BN261: N/A | BO261: N/A | BP261: N/A | BQ261: N/A | BR261: N/A | BS261: N/A | BT261: N/A | BU261: N/A | BV261: N/A | BW261: N/A | BX261: N/A | BY261: N/A | BZ261: N/A | CA261: N/A | CB261: N/A | CC261: N/A | CD261: N/A | CE261: N/A | CF261: N/A | CG261: N/A | CH261: N/A | CI261: N/A
BB262: No | BC262: N/A | BD262: N/A | BE262: N/A | BF262: N/A | BG262: N/A | BH262: N/A | BI262: N/A | BJ262: N/A | BK262: N/A | BL262: N/A | BM262: N/A | BN262: N/A | BO262: N/A | BP262: N/A | BQ262: N/A | BR262: N/A | BS262: N/A | BT262: N/A | BU262: N/A | BV262: N/A | BW262: N/A | BX262: N/A | BY262: N/A | BZ262: N/A | CA262: N/A | CB262: N/A | CC262: N/A | CD262: N/A | CE262: N/A | CF262: N/A | CG262: N/A | CH262: N/A | CI262: N/A
BB263: DK/not sure/missing | BC263: N/A | BD263: N/A | BE263: N/A | BF263: N/A | BG263: N/A | BH263: N/A | BI263: N/A | BJ263: N/A | BK263: N/A | BL263: N/A | BM263: N/A | BN263: N/A | BO263: N/A | BP263: N/A | BQ263: N/A | BR263: N/A | BS263: N/A | BT263: N/A | BU263: N/A | BV263: N/A | BW263: N/A | BX263: N/A | BY263: N/A | BZ263: N/A | CA263: N/A | CB263: N/A | CC263: N/A | CD263: N/A | CE263: N/A | CF263: N/A | CG263: N/A | CH263: N/A | CI263: N/A
BA264: Use of menstrual materials | BB264: Materials reusable | BC264: N/A | BD264: N/A | BE264: N/A | BF264: N/A | BG264: N/A | BH264: N/A | BI264: N/A | BJ264: N/A | BK264: N/A | BL264: N/A | BM264: N/A | BN264: N/A | BO264: N/A | BP264: N/A | BQ264: N/A | BR264: N/A | BS264: N/A | BT264: N/A | BU264: N/A | BV264: N/A | BW264: N/A | BX264: N/A | BY264: N/A | BZ264: N/A | CA264: N/A | CB264: N/A | CC264: N/A | CD264: N/A | CE264: N/A | CF264: N/A | CG264: N/A | CH264: N/A | CI264: N/A
BB265: Materials not reusable | BC265: N/A | BD265: N/A | BE265: N/A | BF265: N/A | BG265: N/A | BH265: N/A | BI265: N/A | BJ265: N/A | BK265: N/A | BL265: N/A | BM265: N/A | BN265: N/A | BO265: N/A | BP265: N/A | BQ265: N/A | BR265: N/A | BS265: N/A | BT265: N/A | BU265: N/A | BV265: N/A | BW265: N/A | BX265: N/A | BY265: N/A | BZ265: N/A | CA265: N/A | CB265: N/A | CC265: N/A | CD265: N/A | CE265: N/A | CF265: N/A | CG265: N/A | CH265: N/A | CI265: N/A
BB266: No materials used | BC266: N/A | BD266: N/A | BE266: N/A | BF266: N/A | BG266: N/A | BH266: N/A | BI266: N/A | BJ266: N/A | BK266: N/A | BL266: N/A | BM266: N/A | BN266: N/A | BO266: N/A | BP266: N/A | BQ266: N/A | BR266: N/A | BS266: N/A | BT266: N/A | BU266: N/A | BV266: N/A | BW266: N/A | BX266: N/A | BY266: N/A | BZ266: N/A | CA266: N/A | CB266: N/A | CC266: N/A | CD266: N/A | CE266: N/A | CF266: N/A | CG266: N/A | CH266: N/A | CI266: N/A
BB267: DK/not sure/missing | BC267: N/A | BD267: N/A | BE267: N/A | BF267: N/A | BG267: N/A | BH267: N/A | BI267: N/A | BJ267: N/A | BK267: N/A | BL267: N/A | BM267: N/A | BN267: N/A | BO267: N/A | BP267: N/A | BQ267: N/A | BR267: N/A | BS267: N/A | BT267: N/A | BU267: N/A | BV267: N/A | BW267: N/A | BX267: N/A | BY267: N/A | BZ267: N/A | CA267: N/A | CB267: N/A | CC267: N/A | CD267: N/A | CE267: N/A | CF267: N/A | CG267: N/A | CH267: N/A | CI267: N/A
BA268: Use of menstrual materials with private place to wash and change | BB268: Materials reusable | BC268: N/A | BD268: N/A | BE268: N/A | BF268: N/A | BG268: N/A | BH268: N/A | BI268: N/A | BJ268: N/A | BK268: N/A | BL268: N/A | BM268: N/A | BN268: N/A | BO268: N/A | BP268: N/A | BQ268: N/A | BR268: N/A | BS268: N/A | BT268: N/A | BU268: N/A | BV268: N/A | BW268: N/A | BX268: N/A | BY268: N/A | BZ268: N/A | CA268: N/A | CB268: N/A | CC268: N/A | CD268: N/A | CE268: N/A | CF268: N/A | CG268: N/A | CH268: N/A | CI268: N/A
BB269: Materials not reusable | BC269: N/A | BD269: N/A | BE269: N/A | BF269: N/A | BG269: N/A | BH269: N/A | BI269: N/A | BJ269: N/A | BK269: N/A | BL269: N/A | BM269: N/A | BN269: N/A | BO269: N/A | BP269: N/A | BQ269: N/A | BR269: N/A | BS269: N/A | BT269: N/A | BU269: N/A | BV269: N/A | BW269: N/A | BX269: N/A | BY269: N/A | BZ269: N/A | CA269: N/A | CB269: N/A | CC269: N/A | CD269: N/A | CE269: N/A | CF269: N/A | CG269: N/A | CH269: N/A | CI269: N/A
BB270: No materials used | BC270: N/A | BD270: N/A | BE270: N/A | BF270: N/A | BG270: N/A | BH270: N/A | BI270: N/A | BJ270: N/A | BK270: N/A | BL270: N/A | BM270: N/A | BN270: N/A | BO270: N/A | BP270: N/A | BQ270: N/A | BR270: N/A | BS270: N/A | BT270: N/A | BU270: N/A | BV270: N/A | BW270: N/A | BX270: N/A | BY270: N/A | BZ270: N/A | CA270: N/A | CB270: N/A | CC270: N/A | CD270: N/A | CE270: N/A | CF270: N/A | CG270: N/A | CH270: N/A | CI270: N/A
BA271: Awareness of menstruation before menarche | BB271: Yes | BC271: N/A | BD271: N/A | BE271: N/A | BF271: N/A | BG271: N/A | BH271: N/A | BI271: N/A | BJ271: N/A | BK271: N/A | BL271: N/A | BM271: N/A | BN271: N/A | BO271: N/A | BP271: N/A | BQ271: N/A | BR271: N/A | BS271: N/A | BT271: N/A | BU271: N/A | BV271: N/A | BW271: N/A | BX271: N/A | BY271: N/A | BZ271: N/A | CA271: N/A | CB271: N/A | CC271: N/A | CD271: N/A | CE271: N/A | CF271: N/A | CG271: N/A | CH271: N/A | CI271: N/A
BB272: No | BC272: N/A | BD272: N/A | BE272: N/A | BF272: N/A | BG272: N/A | BH272: N/A | BI272: N/A | BJ272: N/A | BK272: N/A | BL272: N/A | BM272: N/A | BN272: N/A | BO272: N/A | BP272: N/A | BQ272: N/A | BR272: N/A | BS272: N/A | BT272: N/A | BU272: N/A | BV272: N/A | BW272: N/A | BX272: N/A | BY272: N/A | BZ272: N/A | CA272: N/A | CB272: N/A | CC272: N/A | CD272: N/A | CE272: N/A | CF272: N/A | CG272: N/A | CH272: N/A | CI272: N/A
BB273: DK/not sure/missing | BC273: N/A | BD273: N/A | BE273: N/A | BF273: N/A | BG273: N/A | BH273: N/A | BI273: N/A | BJ273: N/A | BK273: N/A | BL273: N/A | BM273: N/A | BN273: N/A | BO273: N/A | BP273: N/A | BQ273: N/A | BR273: N/A | BS273: N/A | BT273: N/A | BU273: N/A | BV273: N/A | BW273: N/A | BX273: N/A | BY273: N/A | BZ273: N/A | CA273: N/A | CB273: N/A | CC273: N/A | CD273: N/A | CE273: N/A | CF273: N/A | CG273: N/A | CH273: N/A | CI273: N/A
BA274: Participation in (all) activities during menstruation | BB274: Yes | BC274: N/A | BD274: N/A | BE274: N/A | BF274: N/A | BG274: N/A | BH274: N/A | BI274: N/A | BJ274: N/A | BK274: N/A | BL274: N/A | BM274: N/A | BN274: N/A | BO274: N/A | BP274: N/A | BQ274: N/A | BR274: N/A | BS274: N/A | BT274: N/A | BU274: N/A | BV274: N/A | BW274: N/A | BX274: N/A | BY274: N/A | BZ274: N/A | CA274: N/A | CB274: N/A | CC274: N/A | CD274: N/A | CE274: N/A | CF274: N/A | CG274: N/A | CH274: N/A | CI274: N/A
BB275: No | BC275: N/A | BD275: N/A | BE275: N/A | BF275: N/A | BG275: N/A | BH275: N/A | BI275: N/A | BJ275: N/A | BK275: N/A | BL275: N/A | BM275: N/A | BN275: N/A | BO275: N/A | BP275: N/A | BQ275: N/A | BR275: N/A | BS275: N/A | BT275: N/A | BU275: N/A | BV275: N/A | BW275: N/A | BX275: N/A | BY275: N/A | BZ275: N/A | CA275: N/A | CB275: N/A | CC275: N/A | CD275: N/A | CE275: N/A | CF275: N/A | CG275: N/A | CH275: N/A | CI275: N/A
BB276: DK/not sure/missing/no such activity | BC276: N/A | BD276: N/A | BE276: N/A | BF276: N/A | BG276: N/A | BH276: N/A | BI276: N/A | BJ276: N/A | BK276: N/A | BL276: N/A | BM276: N/A | BN276: N/A | BO276: N/A | BP276: N/A | BQ276: N/A | BR276: N/A | BS276: N/A | BT276: N/A | BU276: N/A | BV276: N/A | BW276: N/A | BX276: N/A | BY276: N/A | BZ276: N/A | CA276: N/A | CB276: N/A | CC276: N/A | CD276: N/A | CE276: N/A | CF276: N/A | CG276: N/A | CH276: N/A | CI276: N/A
BA277: Participation in specific activities during menstruation | BB277: Did not go to school (amongst those usually attending school) | BC277: N/A | BD277: N/A | BE277: N/A | BF277: N/A | BG277: N/A | BH277: N/A | BI277: N/A | BJ277: N/A | BK277: N/A | BL277: N/A | BM277: N/A | BN277: N/A | BO277: N/A | BP277: N/A | BQ277: N/A | BR277: N/A | BS277: N/A | BT277: N/A | BU277: N/A | BV277: N/A | BW277: N/A | BX277: N/A | BY277: N/A | BZ277: N/A | CA277: N/A | CB277: N/A | CC277: N/A | CD277: N/A | CE277: N/A | CF277: N/A | CG277: N/A | CH277: N/A | CI277: N/A
BB278: Did not go to work (amongst those who usually work) | BC278: N/A | BD278: N/A | BE278: N/A | BF278: N/A | BG278: N/A | BH278: N/A | BI278: N/A | BJ278: N/A | BK278: N/A | BL278: N/A | BM278: N/A | BN278: N/A | BO278: N/A | BP278: N/A | BQ278: N/A | BR278: N/A | BS278: N/A | BT278: N/A | BU278: N/A | BV278: N/A | BW278: N/A | BX278: N/A | BY278: N/A | BZ278: N/A | CA278: N/A | CB278: N/A | CC278: N/A | CD278: N/A | CE278: N/A | CF278: N/A | CG278: N/A | CH278: N/A | CI278: N/A
BB279: Did not participate in social activities | BC279: N/A | BD279: N/A | BE279: N/A | BF279: N/A | BG279: N/A | BH279: N/A | BI279: N/A | BJ279: N/A | BK279: N/A | BL279: N/A | BM279: N/A | BN279: N/A | BO279: N/A | BP279: N/A | BQ279: N/A | BR279: N/A | BS279: N/A | BT279: N/A | BU279: N/A | BV279: N/A | BW279: N/A | BX279: N/A | BY279: N/A | BZ279: N/A | CA279: N/A | CB279: N/A | CC279: N/A | CD279: N/A | CE279: N/A | CF279: N/A | CG279: N/A | CH279: N/A | CI279: N/A
BB280: Did not cook food | BC280: N/A | BD280: N/A | BE280: N/A | BF280: N/A | BG280: N/A | BH280: N/A | BI280: N/A | BJ280: N/A | BK280: N/A | BL280: N/A | BM280: N/A | BN280: N/A | BO280: N/A | BP280: N/A | BQ280: N/A | BR280: N/A | BS280: N/A | BT280: N/A | BU280: N/A | BV280: N/A | BW280: N/A | BX280: N/A | BY280: N/A | BZ280: N/A | CA280: N/A | CB280: N/A | CC280: N/A | CD280: N/A | CE280: N/A | CF280: N/A | CG280: N/A | CH280: N/A | CI280: N/A
BB281: Did not eat with others | BC281: N/A | BD281: N/A | BE281: N/A | BF281: N/A | BG281: N/A | BH281: N/A | BI281: N/A | BJ281: N/A | BK281: N/A | BL281: N/A | BM281: N/A | BN281: N/A | BO281: N/A | BP281: N/A | BQ281: N/A | BR281: N/A | BS281: N/A | BT281: N/A | BU281: N/A | BV281: N/A | BW281: N/A | BX281: N/A | BY281: N/A | BZ281: N/A | CA281: N/A | CB281: N/A | CC281: N/A | CD281: N/A | CE281: N/A | CF281: N/A | CG281: N/A | CH281: N/A | CI281: N/A
BB282: Did not bathe in regular place | BC282: N/A | BD282: N/A | BE282: N/A | BF282: N/A | BG282: N/A | BH282: N/A | BI282: N/A | BJ282: N/A | BK282: N/A | BL282: N/A | BM282: N/A | BN282: N/A | BO282: N/A | BP282: N/A | BQ282: N/A | BR282: N/A | BS282: N/A | BT282: N/A | BU282: N/A | BV282: N/A | BW282: N/A | BX282: N/A | BY282: N/A | BZ282: N/A | CA282: N/A | CB282: N/A | CC282: N/A | CD282: N/A | CE282: N/A | CF282: N/A | CG282: N/A | CH282: N/A | CI282: N/A
BB283: Did not participate in other activities | BC283: N/A | BD283: N/A | BE283: N/A | BF283: N/A | BG283: N/A | BH283: N/A | BI283: N/A | BJ283: N/A | BK283: N/A | BL283: N/A | BM283: N/A | BN283: N/A | BO283: N/A | BP283: N/A | BQ283: N/A | BR283: N/A | BS283: N/A | BT283: N/A | BU283: N/A | BV283: N/A | BW283: N/A | BX283: N/A | BY283: N/A | BZ283: N/A | CA283: N/A | CB283: N/A | CC283: N/A | CD283: N/A | CE283: N/A | CF283: N/A | CG283: N/A | CH283: N/A | CI283: N/A
BB284: DK/not sure/missing/no such activity | BC284: N/A | BD284: N/A | BE284: N/A | BF284: N/A | BG284: N/A | BH284: N/A | BI284: N/A | BJ284: N/A | BK284: N/A | BL284: N/A | BM284: N/A | BN284: N/A | BO284: N/A | BP284: N/A | BQ284: N/A | BR284: N/A | BS284: N/A | BT284: N/A | BU284: N/A | BV284: N/A | BW284: N/A | BX284: N/A | BY284: N/A | BZ284: N/A | CA284: N/A | CB284: N/A | CC284: N/A | CD284: N/A | CE284: N/A | CF284: N/A | CG284: N/A | CH284: N/A | CI284: N/A
BA339: Raw numbers of respondents: | BB339: Basic water, sanitation and hygiene | BC339: NATIONAL wealth index quintile | BH339: URBAN wealth index quintile | BM339: RURAL wealth index quintile | BR339: SUB-REGIONS:
BA340: WatSan data, raw numbers (weighted) | BC340: Poorest | BD340: Poor | BE340: Middle | BF340: Rich | BG340: Richest | BH340: Poorest | BI340: Poor | BJ340: Middle | BK340: Rich | BL340: Richest | BM340: Poorest | BN340: Poor | BO340: Middle | BP340: Rich | BQ340: Richest | BR340: Atlantida | BS340: Choluteca | BT340: Colon | BU340: Comayagua | BV340: Copan | BW340: Cortes | BX340: El Paraiso | BY340: Francisco Morazan | BZ340: Gracias a Dios | CA340: Intibuca | CB340: Islas de la Bahia | CC340: La Paz | CD340: Lempira | CE340: Ocotepeque | CF340: Olancho | CG340: Santa Barbara | CH340: Valle | CI340: Yoro
BA341: Use of Basic Water Sanitation and Hygiene | BB341: Yes | BC341: N/A | BD341: N/A | BE341: N/A | BF341: N/A | BG341: N/A | BH341: N/A | BI341: N/A | BJ341: N/A | BK341: N/A | BL341: N/A | BM341: N/A | BN341: N/A | BO341: N/A | BP341: N/A | BQ341: N/A | BR341: N/A | BS341: N/A | BT341: N/A | BU341: N/A | BV341: N/A | BW341: N/A | BX341: N/A | BY341: N/A | BZ341: N/A | CA341: N/A | CB341: N/A | CC341: N/A | CD341: N/A | CE341: N/A | CF341: N/A | CG341: N/A | CH341: N/A | CI341: N/A
BB342: No | BC342: N/A | BD342: N/A | BE342: N/A | BF342: N/A | BG342: N/A | BH342: N/A | BI342: N/A | BJ342: N/A | BK342: N/A | BL342: N/A | BM342: N/A | BN342: N/A | BO342: N/A | BP342: N/A | BQ342: N/A | BR342: N/A | BS342: N/A | BT342: N/A | BU342: N/A | BV342: N/A | BW342: N/A | BX342: N/A | BY342: N/A | BZ342: N/A | CA342: N/A | CB342: N/A | CC342: N/A | CD342: N/A | CE342: N/A | CF342: N/A | CG342: N/A | CH342: N/A | CI342: N/A
BA343: Use of Basic Water and Sanitation | BB343: Yes | BC343: N/A | BD343: N/A | BE343: N/A | BF343: N/A | BG343: N/A | BH343: N/A | BI343: N/A | BJ343: N/A | BK343: N/A | BL343: N/A | BM343: N/A | BN343: N/A | BO343: N/A | BP343: N/A | BQ343: N/A | BR343: N/A | BS343: N/A | BT343: N/A | BU343: N/A | BV343: N/A | BW343: N/A | BX343: N/A | BY343: N/A | BZ343: N/A | CA343: N/A | CB343: N/A | CC343: N/A | CD343: N/A | CE343: N/A | CF343: N/A | CG343: N/A | CH343: N/A | CI343: N/A
BB344: No | BC344: N/A | BD344: N/A | BE344: N/A | BF344: N/A | BG344: N/A | BH344: N/A | BI344: N/A | BJ344: N/A | BK344: N/A | BL344: N/A | BM344: N/A | BN344: N/A | BO344: N/A | BP344: N/A | BQ344: N/A | BR344: N/A | BS344: N/A | BT344: N/A | BU344: N/A | BV344: N/A | BW344: N/A | BX344: N/A | BY344: N/A | BZ344: N/A | CA344: N/A | CB344: N/A | CC344: N/A | CD344: N/A | CE344: N/A | CF344: N/A | CG344: N/A | CH344: N/A | CI344: N/A
BA345: Use of Basic Water and Hygiene | BB345: Yes | BC345: N/A | BD345: N/A | BE345: N/A | BF345: N/A | BG345: N/A | BH345: N/A | BI345: N/A | BJ345: N/A | BK345: N/A | BL345: N/A | BM345: N/A | BN345: N/A | BO345: N/A | BP345: N/A | BQ345: N/A | BR345: N/A | BS345: N/A | BT345: N/A | BU345: N/A | BV345: N/A | BW345: N/A | BX345: N/A | BY345: N/A | BZ345: N/A | CA345: N/A | CB345: N/A | CC345: N/A | CD345: N/A | CE345: N/A | CF345: N/A | CG345: N/A | CH345: N/A | CI345: N/A
BB346: No | BC346: N/A | BD346: N/A | BE346: N/A | BF346: N/A | BG346: N/A | BH346: N/A | BI346: N/A | BJ346: N/A | BK346: N/A | BL346: N/A | BM346: N/A | BN346: N/A | BO346: N/A | BP346: N/A | BQ346: N/A | BR346: N/A | BS346: N/A | BT346: N/A | BU346: N/A | BV346: N/A | BW346: N/A | BX346: N/A | BY346: N/A | BZ346: N/A | CA346: N/A | CB346: N/A | CC346: N/A | CD346: N/A | CE346: N/A | CF346: N/A | CG346: N/A | CH346: N/A | CI346: N/A
BA347: Use of Basic Sanitation and Hygiene | BB347: Yes | BC347: N/A | BD347: N/A | BE347: N/A | BF347: N/A | BG347: N/A | BH347: N/A | BI347: N/A | BJ347: N/A | BK347: N/A | BL347: N/A | BM347: N/A | BN347: N/A | BO347: N/A | BP347: N/A | BQ347: N/A | BR347: N/A | BS347: N/A | BT347: N/A | BU347: N/A | BV347: N/A | BW347: N/A | BX347: N/A | BY347: N/A | BZ347: N/A | CA347: N/A | CB347: N/A | CC347: N/A | CD347: N/A | CE347: N/A | CF347: N/A | CG347: N/A | CH347: N/A | CI347: N/A
BB348: No | BC348: N/A | BD348: N/A | BE348: N/A | BF348: N/A | BG348: N/A | BH348: N/A | BI348: N/A | BJ348: N/A | BK348: N/A | BL348: N/A | BM348: N/A | BN348: N/A | BO348: N/A | BP348: N/A | BQ348: N/A | BR348: N/A | BS348: N/A | BT348: N/A | BU348: N/A | BV348: N/A | BW348: N/A | BX348: N/A | BY348: N/A | BZ348: N/A | CA348: N/A | CB348: N/A | CC348: N/A | CD348: N/A | CE348: N/A | CF348: N/A | CG348: N/A | CH348: N/A | CI348: N/A
BA349: Use of Basic Water | BB349: Yes | BC349: N/A | BD349: N/A | BE349: N/A | BF349: N/A | BG349: N/A | BH349: N/A | BI349: N/A | BJ349: N/A | BK349: N/A | BL349: N/A | BM349: N/A | BN349: N/A | BO349: N/A | BP349: N/A | BQ349: N/A | BR349: N/A | BS349: N/A | BT349: N/A | BU349: N/A | BV349: N/A | BW349: N/A | BX349: N/A | BY349: N/A | BZ349: N/A | CA349: N/A | CB349: N/A | CC349: N/A | CD349: N/A | CE349: N/A | CF349: N/A | CG349: N/A | CH349: N/A | CI349: N/A
BB350: No | BC350: N/A | BD350: N/A | BE350: N/A | BF350: N/A | BG350: N/A | BH350: N/A | BI350: N/A | BJ350: N/A | BK350: N/A | BL350: N/A | BM350: N/A | BN350: N/A | BO350: N/A | BP350: N/A | BQ350: N/A | BR350: N/A | BS350: N/A | BT350: N/A | BU350: N/A | BV350: N/A | BW350: N/A | BX350: N/A | BY350: N/A | BZ350: N/A | CA350: N/A | CB350: N/A | CC350: N/A | CD350: N/A | CE350: N/A | CF350: N/A | CG350: N/A | CH350: N/A | CI350: N/A
BA351: Use of Basic Sanitation | BB351: Yes | BC351: N/A | BD351: N/A | BE351: N/A | BF351: N/A | BG351: N/A | BH351: N/A | BI351: N/A | BJ351: N/A | BK351: N/A | BL351: N/A | BM351: N/A | BN351: N/A | BO351: N/A | BP351: N/A | BQ351: N/A | BR351: N/A | BS351: N/A | BT351: N/A | BU351: N/A | BV351: N/A | BW351: N/A | BX351: N/A | BY351: N/A | BZ351: N/A | CA351: N/A | CB351: N/A | CC351: N/A | CD351: N/A | CE351: N/A | CF351: N/A | CG351: N/A | CH351: N/A | CI351: N/A
BB352: No | BC352: N/A | BD352: N/A | BE352: N/A | BF352: N/A | BG352: N/A | BH352: N/A | BI352: N/A | BJ352: N/A | BK352: N/A | BL352: N/A | BM352: N/A | BN352: N/A | BO352: N/A | BP352: N/A | BQ352: N/A | BR352: N/A | BS352: N/A | BT352: N/A | BU352: N/A | BV352: N/A | BW352: N/A | BX352: N/A | BY352: N/A | BZ352: N/A | CA352: N/A | CB352: N/A | CC352: N/A | CD352: N/A | CE352: N/A | CF352: N/A | CG352: N/A | CH352: N/A | CI352: N/A
BA353: Access to Basic Hygiene | BB353: Yes | BC353: N/A | BD353: N/A | BE353: N/A | BF353: N/A | BG353: N/A | BH353: N/A | BI353: N/A | BJ353: N/A | BK353: N/A | BL353: N/A | BM353: N/A | BN353: N/A | BO353: N/A | BP353: N/A | BQ353: N/A | BR353: N/A | BS353: N/A | BT353: N/A | BU353: N/A | BV353: N/A | BW353: N/A | BX353: N/A | BY353: N/A | BZ353: N/A | CA353: N/A | CB353: N/A | CC353: N/A | CD353: N/A | CE353: N/A | CF353: N/A | CG353: N/A | CH353: N/A | CI353: N/A
BB354: No | BC354: N/A | BD354: N/A | BE354: N/A | BF354: N/A | BG354: N/A | BH354: N/A | BI354: N/A | BJ354: N/A | BK354: N/A | BL354: N/A | BM354: N/A | BN354: N/A | BO354: N/A | BP354: N/A | BQ354: N/A | BR354: N/A | BS354: N/A | BT354: N/A | BU354: N/A | BV354: N/A | BW354: N/A | BX354: N/A | BY354: N/A | BZ354: N/A | CA354: N/A | CB354: N/A | CC354: N/A | CD354: N/A | CE354: N/A | CF354: N/A | CG354: N/A | CH354: N/A | CI354: N/A
C399: INITIAL (national) Wealth Index | H399: URBAN Wealth Index | M399: RURAL Wealth Index
C400: Component Matrix | H400: Component Matrix | M400: Component Matrix
E401: Component | J401: Component | O401: Component
B402: Note: The INITIAL (national) Wealth Index is based on the first component of the Principal Component Analysis (PCA) which has been obtained at national level. The final national-level (NATIONAL) Wealth Index is based on the URBAN and RURAL specific wealth indexes. Regression procedures are used to establish the relationships between the two sets of scores (urban and rural) and the initial (national) wealth factors. This allows best use of the available information for each area and a better precision of the FINAL (NATIONAL) Wealth Index. For dependency reasons, all WASH variables (contained in the generic MICS and DHS scripts) have been excluded from the sets of asset variables used in the PCAs. The PCA can extracts as many components as there are asset variables in the input. Only the first of the components is used to represent the Wealth Index. The scores represent the weights of the asset variables on the Wealth Index (correlations between the variables and the component). The communalities are the proportion of each variable's variance that can be explained by the component. Proportion of explained variance is the part of the model's total variance that is explained by the component. For more information on the procedure used: The DHS Wealth Index, DHS Comparative Reports No. 6, Shea Oscar Rutstein, Kiersten Johnson, ORC Macro International Inc., 2004. The DHS Wealth Index: Approaches for Rural and Urban Areas, Shea O. Rutstein, ORC Macro International Inc., 2008. MICS Methodological Paper No. 4, Review of options for reporting water, sanitation and hygiene coverage by wealth quintile, UNICEF, 2016. | E402: 1 | J402: 1 | O402: 1
C403: fuel5 | E403: 0.8377467201 | H403: floor1 | J403: -0.6665340949 | M403: fuel5 | O403: -0.7979069874
C404: fuel1 | E404: -0.8302130135 | H404: wall2 | J404: -0.5983327415 | M404: wall6 | O404: -0.7694877786
C405: wall6 | E405: 0.7591104362 | H405: fuel1 | J405: -0.598279748 | M405: fuel1 | O405: 0.7501271264
C406: floor1 | E406: -0.7587243619 | H406: fuel5 | J406: 0.5981658517 | M406: floor1 | O406: 0.6202561982
C407: floor2 | E407: 0.5279835837 | H407: Number of members per sleeping room | J407: 0.5855442721 | M407: wall4 | O407: 0.4772513834
C408: Number of members per sleeping room | E408: 0.5124749839 | H408: wall6 | J408: 0.5538071689 | M408: Number of members per sleeping room | O408: -0.4446460275
C409: wall2 | E409: -0.5082499915 | H409: floor3 | J409: 0.504633102 | M409: wall2 | O409: 0.3462982948
C410: floor4 | E410: 0.4231587297 | H410: house1 | J410: -0.3439638828 | M410: floor4 | O410: -0.3387155794
C411: owner1 | E411: 0.3931287248 | H411: house3 | J411: 0.3259247128 | M411: owner1 | O411: -0.3104773101
C412: owner3 | E412: -0.3912180673 | H412: owner1 | J412: -0.3244498956 | M412: floor2 | O412: -0.3093227154
C413: house3 | E413: -0.279755278 | H413: wall4 | J413: 0.2715997526 | M413: house4 | O413: 0.2764100174
C414: house1 | E414: 0.1950998871 | H414: floor2 | J414: 0.2570219332 | M414: fuel2 | O414: 0.2396005514
C415: wall4 | E415: -0.1746634933 | H415: floor4 | J415: 0.2522762411 | M415: wall5 | O415: 0.2330188278
C416: owner2 | E416: -0.1491082889 | H416: owner3 | J416: 0.2209242124 | M416: owner4 | O416: 0.223791508
C417: house2 | E417: 0.1271980504 | H417: owner4 | J417: 0.1993932101 | M417: owner3 | O417: 0.2044001157
C418: wall1 | E418: -0.09520722383 | H418: floor5 | J418: 0.1625907357 | M418: floor3 | O418: 0.151893845
C419: owner6 | E419: -0.09413805817 | H419: wall5 | J419: 0.1619230899 | M419: house2 | O419: -0.120183039
C420: owner5 | E420: -0.06456433321 | H420: house5 | J420: 0.1220357086 | M420: house3 | O420: 0.115291152
C421: wall3 | E421: 0.04749515676 | H421: owner6 | J421: 0.1113179822 | M421: house1 | O421: -0.1095097092
C422: floor5 | E422: 0.04723274256 | H422: wall1 | J422: -0.07949423741 | M422: wall1 | O422: 0.05624071579
C423: wall5 | E423: -0.04249962527 | H423: owner2 | J423: -0.07666240279 | M423: owner2 | O423: 0.05120224162
C424: house4 | E424: -0.02772703335 | H424: fuel2 | J424: 0.06639652645 | M424: fuel4 | O424: 0.04186725497
C425: fuel2 | E425: -0.01864087421 | H425: owner5 | J425: 0.06527735766 | M425: floor5 | O425: -0.03975008012
C426: fuel3 | E426: 0.01526046237 | H426: floor6 | J426: 0.05402505509 | M426: fuel3 | O426: 0.03068414963
C427: fuel4 | E427: 0.01171590506 | H427: wall3 | J427: 0.05016182765 | M427: wall3 | O427: 0.02519880788
... 133 more rows

Sheet EPHPM03
A2: =A1026 -> Honduras
A3: =A1034 -> 2003
A4: Use of drinking water sources
A5: by wealth quintile and sub-national region
A6: Notes:
A7: WHO/UNICEF JMP customised wealth index excludes water,
A8: sanitation and hygiene assets.
A9: Survey used for analysis: | B9: =A1025 -> EPHPM03
A10: Springs among surface water: | B10: DHS12
A11: =B1027 -> Time to improved source based on: | B11: DHS06
A14: Use of drinking water sources | C14: NATIONAL wealth index quintile | H14: URBAN wealth index quintile | M14: RURAL wealth index quintile | R14: SUB-REGIONS: | BA14: Raw numbers of respondents: | BB14: Use of drinking water sources | BC14: NATIONAL wealth index quintile | BH14: URBAN wealth index quintile | BM14: RURAL wealth index quintile | BR14: SUB-REGIONS:
A15: Weighted percentage (used in graphs) | C15: Poorest | D15: Poor | E15: Middle | F15: Rich | G15: Richest | H15: Poorest | I15: Poor | J15: Middle | K15: Rich | L15: Richest | M15: Poorest | N15: Poor | O15: Middle | P15: Rich | Q15: Richest | R15: Atlantida | S15: Choluteca | T15: Colon | U15: Comayagua | V15: Copan | W15: Cortes | X15: El Paraiso | Y15: Francisco Morazan | Z15: Gracias a Dios | AA15: Intibuca | AB15: Islas de la Bahia | AC15: La Paz | AD15: Lempira | AE15: Ocotepeque | AF15: Olancho | AG15: Santa Barbara | AH15: Valle | AI15: Yoro | BA15: Water data, raw numbers (weighted) | BC15: Poorest | BD15: Poor | BE15: Middle | BF15: Rich | BG15: Richest | BH15: Poorest | BI15: Poor | BJ15: Middle | BK15: Rich | BL15: Richest | BM15: Poorest | BN15: Poor | BO15: Middle | BP15: Rich | BQ15: Richest | BR15: Atlantida | BS15: Choluteca | BT15: Colon | BU15: Comayagua | BV15: Copan | BW15: Cortes | BX15: El Paraiso | BY15: Francisco Morazan | BZ15: Gracias a Dios | CA15: Intibuca | CB15: Islas de la Bahia | CC15: La Paz | CD15: Lempira | CE15: Ocotepeque | CF15: Olancho | CG15: Santa Barbara | CH15: Valle | CI15: Yoro
A16: Water | B16: Improved | C16: =C58+C59+C60+C61+C63+C64*'DHS12'!C25/100+C65+C66+C62*0.5 -> 90.49816482 | D16: =D58+D59+D60+D61+D63+D64*'DHS12'!D25/100+D65+D66+D62*0.5 -> 87.58717739 | E16: =E58+E59+E60+E61+E63+E64*'DHS12'!E25/100+E65+E66+E62*0.5 -> 84.29067071 | F16: =F58+F59+F60+F61+F63+F64*'DHS12'!F25/100+F65+F66+F62*0.5 -> 96.51246656 | G16: =G58+G59+G60+G61+G63+G64*'DHS12'!G25/100+G65+G66+G62*0.5 -> 99.5930999 | H16: =H58+H59+H60+H61+H63+H64*'DHS12'!H25/100+H65+H66+H62*0.5 -> 88.98869693 | I16: =I58+I59+I60+I61+I63+I64*'DHS12'!I25/100+I65+I66+I62*0.5 -> 96.62752348 | J16: =J58+J59+J60+J61+J63+J64*'DHS12'!J25/100+J65+J66+J62*0.5 -> 98.16374758 | K16: =K58+K59+K60+K61+K63+K64*'DHS12'!K25/100+K65+K66+K62*0.5 -> 99.1795385 | L16: =L58+L59+L60+L61+L63+L64*'DHS12'!L25/100+L65+L66+L62*0.5 -> 100 | M16: =M58+M59+M60+M61+M63+M64*'DHS12'!M25/100+M65+M66+M62*0.5 -> 90.17863337 | N16: =N58+N59+N60+N61+N63+N64*'DHS12'!N25/100+N65+N66+N62*0.5 -> 91.0585041 | O16: =O58+O59+O60+O61+O63+O64*'DHS12'!O25/100+O65+O66+O62*0.5 -> 87.44641512 | P16: =P58+P59+P60+P61+P63+P64*'DHS12'!P25/100+P65+P66+P62*0.5 -> 83.27436843 | Q16: =Q58+Q59+Q60+Q61+Q63+Q64*'DHS12'!Q25/100+Q65+Q66+Q62*0.5 -> 85.75837083 | R16: =R58+R59+R60+R61+R63+R64*'DHS12'!R25/100+R65+R66+R62*0.5 -> 87.64610899 | S16: =S58+S59+S60+S61+S63+S64*'DHS12'!S25/100+S65+S66+S62*0.5 -> 88.89961425 | T16: =T58+T59+T60+T61+T63+T64*'DHS12'!T25/100+T65+T66+T62*0.5 -> 87.85249949 | U16: =U58+U59+U60+U61+U63+U64*'DHS12'!U25/100+U65+U66+U62*0.5 -> 87.49919672 | V16: =V58+V59+V60+V61+V63+V64*'DHS12'!V25/100+V65+V66+V62*0.5 -> 96.24737906 | W16: =W58+W59+W60+W61+W63+W64*'DHS12'!W25/100+W65+W66+W62*0.5 -> 95.27956809 | X16: =X58+X59+X60+X61+X63+X64*'DHS12'!X25/100+X65+X66+X62*0.5 -> 93.8504689 | Y16: =Y58+Y59+Y60+Y61+Y63+Y64*'DHS12'!Y25/100+Y65+Y66+Y62*0.5 -> 95.37365636 | Z16: =Z58+Z59+Z60+Z61+Z63+Z65+Z66+Z62*0.5 -> 38.98275451 | AA16: =AA58+AA59+AA60+AA61+AA63+AA64*'DHS12'!AA25/100+AA65+AA66+AA62*0.5 -> 95.51980953 | AB16: N/A | AC16: =AC58+AC59+AC60+AC61+AC63+AC64*'DHS12'!AC25/100+AC65+AC66+AC62*0.5 -> 98.09261949 | AD16: =AD58+AD59+AD60+AD61+AD63+AD64*'DHS12'!AD25/100+AD65+AD66+AD62*0.5 -> 92.92091621 | AE16: =AE58+AE59+AE60+AE61+AE63+AE64*'DHS12'!AE25/100+AE65+AE66+AE62*0.5 -> 90.3939969 | AF16: =AF58+AF59+AF60+AF61+AF63+AF64*'DHS12'!AF25/100+AF65+AF66+AF62*0.5 -> 83.26314694 | AG16: =AG58+AG59+AG60+AG61+AG63+AG64*'DHS12'!AG25/100+AG65+AG66+AG62*0.5 -> 90.49856246 | AH16: =AH58+AH59+AH60+AH61+AH63+AH64*'DHS12'!AH25/100+AH65+AH66+AH62*0.5 -> 94.15341827 | AI16: =AI58+AI59+AI60+AI61+AI63+AI64*'DHS12'!AI25/100+AI65+AI66+AI62*0.5 -> 92.16641434 | BA16: Water | BB16: Improved | BC16: N/A | BD16: N/A | BE16: N/A | BF16: N/A | BG16: N/A | BH16: N/A | BI16: N/A | BJ16: N/A | BK16: N/A | BL16: N/A | BM16: N/A | BN16: N/A | BO16: N/A | BP16: N/A | BQ16: N/A | BR16: N/A | BS16: N/A | BT16: N/A | BU16: N/A | BV16: N/A | BW16: N/A | BX16: N/A | BY16: N/A | BZ16: N/A | CA16: N/A | CB16: N/A | CC16: N/A | CD16: N/A | CE16: N/A | CF16: N/A | CG16: N/A | CH16: N/A | CI16: N/A
B17: Not Improved | C17: =100-C16 -> 9.501835181 | D17: =100-D16 -> 12.41282261 | E17: 15.70932929 | F17: 3.487533444 | G17: 0.406900101 | H17: 11.01130307 | I17: 3.372476524 | J17: 1.836252416 | K17: 0.8204614993 | L17: 0 | M17: 9.821366629 | N17: 8.941495904 | O17: 12.55358488 | P17: 16.72563157 | Q17: 14.24162917 | R17: 12.35389101 | S17: 11.10038575 | T17: 12.14750051 | U17: 12.50080328 | V17: 3.752620943 | W17: 4.720431913 | X17: 6.1495311 | Y17: 4.626343643 | Z17: 61.01724549 | AA17: 4.480190468 | AB17: N/A | AC17: =100-AC16 -> 1.907380505 | AD17: 7.079083788 | AE17: 9.606003104 | AF17: 16.73685306 | AG17: 9.501437536 | AH17: 5.846581727 | AI17: 7.83358566 | BB17: Not Improved | BC17: N/A | BD17: N/A | BE17: N/A | BF17: N/A | BG17: N/A | BH17: N/A | BI17: N/A | BJ17: N/A | BK17: N/A | BL17: N/A | BM17: N/A | BN17: N/A | BO17: N/A | BP17: N/A | BQ17: N/A | BR17: N/A | BS17: N/A | BT17: N/A | BU17: N/A | BV17: N/A | BW17: N/A | BX17: N/A | BY17: N/A | BZ17: N/A | CA17: N/A | CB17: N/A | CC17: N/A | CD17: N/A | CE17: N/A | CF17: N/A | CG17: N/A | CH17: N/A | CI17: N/A
A18: Water ladder | B18: Basic | C18: =C16*'DHS06'!C23/100 -> 89.49581395 | D18: =D16*'DHS06'!D23/100 -> 87.08693646 | E18: =E16*'DHS06'!E23/100 -> 83.81408208 | F18: =F16*'DHS06'!F23/100 -> 96.07992363 | G18: =G16*'DHS06'!G23/100 -> 99.43562264 | H18: =H16*'DHS06'!H23/100 -> 88.76994585 | I18: =I16*'DHS06'!I23/100 -> 95.99821477 | J18: =J16*'DHS06'!J23/100 -> 97.88312664 | K18: =K16*'DHS06'!K23/100 -> 99.09940533 | L18: =L16*'DHS06'!L23/100 -> 99.78020814 | M18: =M16*'DHS06'!M23/100 -> 88.60014259 | N18: =N16*'DHS06'!N23/100 -> 90.65384838 | O18: =O16*'DHS06'!O23/100 -> 86.67491819 | P18: =P16*'DHS06'!P23/100 -> 82.81652749 | Q18: =Q16*'DHS06'!Q23/100 -> 85.29710796 | R18: =R16*'DHS06'!R23/100 -> 87.30854124 | S18: =S16*'DHS06'!S23/100 -> 87.0002452 | T18: =T16*'DHS06'!T23/100 -> 87.85249949 | U18: =U16*'DHS06'!U23/100 -> 85.63819864 | V18: =V16*'DHS06'!V23/100 -> 96.24737906 | W18: =W16*'DHS06'!W23/100 -> 94.99307215 | X18: =X16*'DHS06'!X23/100 -> 93.33068961 | Y18: =Y16*'DHS06'!Y23/100 -> 94.84742808 | Z18: N/A | AA18: =AA16*'DHS06'!AA23/100 -> 95.51980953 | AB18: N/A | AC18: =AC16*'DHS06'!AC23/100 -> 97.7804883 | AD18: =AD16*'DHS06'!AD23/100 -> 92.76754726 | AE18: =AE16*'DHS06'!AE23/100 -> 90.01051395 | AF18: =AF16*'DHS06'!AF23/100 -> 83.26314694 | AG18: =AG16*'DHS06'!AG23/100 -> 90.49856246 | AH18: =AH16*'DHS06'!AH23/100 -> 0 | AI18: =AI16*'DHS06'!AI23/100 -> 0 | BA18: Water ladder | BB18: Basic | BC18: N/A | BD18: N/A | BE18: N/A | BF18: N/A | BG18: N/A | BH18: N/A | BI18: N/A | BJ18: N/A | BK18: N/A | BL18: N/A | BM18: N/A | BN18: N/A | BO18: N/A | BP18: N/A | BQ18: N/A | BR18: N/A | BS18: N/A | BT18: N/A | BU18: N/A | BV18: N/A | BW18: N/A | BX18: N/A | BY18: N/A | BZ18: N/A | CA18: N/A | CB18: N/A | CC18: N/A | CD18: N/A | CE18: N/A | CF18: N/A | CG18: N/A | CH18: N/A | CI18: N/A
B19: Limited | C19: =C16*'DHS06'!C22/100 -> 1.002350866 | D19: =D16*'DHS06'!D22/100 -> 0.5002409345 | E19: =E16*'DHS06'!E22/100 -> 0.4765886277 | F19: =F16*'DHS06'!F22/100 -> 0.4325429252 | G19: =G16*'DHS06'!G22/100 -> 0.1574772549 | H19: =H16*'DHS06'!H22/100 -> 0.2187510836 | I19: =I16*'DHS06'!I22/100 -> 0.629308705 | J19: =J16*'DHS06'!J22/100 -> 0.2806209439 | K19: =K16*'DHS06'!K22/100 -> 0.08013317548 | L19: =L16*'DHS06'!L22/100 -> 0.2197918593 | M19: =M16*'DHS06'!M22/100 -> 1.578490779 | N19: =N16*'DHS06'!N22/100 -> 0.4046557163 | O19: =O16*'DHS06'!O22/100 -> 0.7714969339 | P19: =P16*'DHS06'!P22/100 -> 0.457840941 | Q19: =Q16*'DHS06'!Q22/100 -> 0.4612628758 | R19: =R16*'DHS06'!R22/100 -> 0.3375677561 | S19: =S16*'DHS06'!S22/100 -> 1.899369055 | T19: =T16*'DHS06'!T22/100 -> 0 | U19: =U16*'DHS06'!U22/100 -> 1.86099808 | V19: =V16*'DHS06'!V22/100 -> 0 | W19: =W16*'DHS06'!W22/100 -> 0.2864959418 | X19: =X16*'DHS06'!X22/100 -> 0.5197792874 | Y19: =Y16*'DHS06'!Y22/100 -> 0.5262282733 | Z19: N/A | AA19: =AA16*'DHS06'!AA22/100 -> 0 | AB19: N/A | AC19: =AC16*'DHS06'!AC22/100 -> 0.3121311924 | AD19: =AD16*'DHS06'!AD22/100 -> 0.153368948 | AE19: =AE16*'DHS06'!AE22/100 -> 0.3834829452 | AF19: =AF16*'DHS06'!AF22/100 -> 0 | AG19: =AG16*'DHS06'!AG22/100 -> 0 | AH19: =AH16*'DHS06'!AH22/100 -> 0 | AI19: =AI16*'DHS06'!AI22/100 -> 0 | BB19: Limited | BC19: N/A | BD19: N/A | BE19: N/A | BF19: N/A | BG19: N/A | BH19: N/A | BI19: N/A | BJ19: N/A | BK19: N/A | BL19: N/A | BM19: N/A | BN19: N/A | BO19: N/A | BP19: N/A | BQ19: N/A | BR19: N/A | BS19: N/A | BT19: N/A | BU19: N/A | BV19: N/A | BW19: N/A | BX19: N/A | BY19: N/A | BZ19: N/A | CA19: N/A | CB19: N/A | CC19: N/A | CD19: N/A | CE19: N/A | CF19: N/A | CG19: N/A | CH19: N/A | CI19: N/A
B20: Unimproved | C20: =100-(C18+C19+C21) -> 7.31311522 | D20: =100-(D18+D19+D21) -> 9.084762288 | E20: 10.92123379 | F20: 3.466287316 | G20: 0.406900101 | H20: 10.93724897 | I20: 3.372476524 | J20: 1.836252416 | K20: 0.8204614993 | L20: 0 | M20: 7.992463502 | N20: 6.219210527 | O20: 9.635228468 | P20: 10.23192784 | Q20: 8.971155264 | R20: 8.060493279 | S20: 10.54712354 | T20: 10.27156346 | U20: 11.57532619 | V20: 3.386797884 | W20: 4.200944245 | X20: 3.607020035 | Y20: 3.865168721 | Z20: N/A | AA20: =100-(AA18+AA19+AA21) -> 3.065357159 | AB20: N/A | AC20: =100-(AC18+AC19+AC21) -> 0.4604444355 | AD20: 6.022719747 | AE20: 8.454023368 | AF20: 12.6828431 | AG20: 5.829034266 | AH20: 99.39839614 | AI20: 97.9119343 | BB20: Unimproved | BC20: N/A | BD20: N/A | BE20: N/A | BF20: N/A | BG20: N/A | BH20: N/A | BI20: N/A | BJ20: N/A | BK20: N/A | BL20: N/A | BM20: N/A | BN20: N/A | BO20: N/A | BP20: N/A | BQ20: N/A | BR20: N/A | BS20: N/A | BT20: N/A | BU20: N/A | BV20: N/A | BW20: N/A | BX20: N/A | BY20: N/A | BZ20: N/A | CA20: N/A | CB20: N/A | CC20: N/A | CD20: N/A | CE20: N/A | CF20: N/A | CG20: N/A | CH20: N/A | CI20: N/A
B21: Surface water | C21: =C64*(100-'DHS12'!C25)/100 -> 2.188719961 | D21: =D64*(100-'DHS12'!D25)/100 -> 3.328060319 | E21: =E64*(100-'DHS12'!E25)/100 -> 4.788095495 | F21: =F64*(100-'DHS12'!F25)/100 -> 0.02124612781 | G21: =G64*(100-'DHS12'!G25)/100 -> 0 | H21: =H64*(100-'DHS12'!H25)/100 -> 0.07405410319 | I21: =I64*(100-'DHS12'!I25)/100 -> 0 | J21: =J64*(100-'DHS12'!J25)/100 -> 0 | K21: =K64*(100-'DHS12'!K25)/100 -> 0 | L21: =L64*(100-'DHS12'!L25)/100 -> 0 | M21: =M64*(100-'DHS12'!M25)/100 -> 1.828903128 | N21: =N64*(100-'DHS12'!N25)/100 -> 2.722285377 | O21: =O64*(100-'DHS12'!O25)/100 -> 2.918356409 | P21: =P64*(100-'DHS12'!P25)/100 -> 6.49370373 | Q21: =Q64*(100-'DHS12'!Q25)/100 -> 5.270473902 | R21: =R64*(100-'DHS12'!R25)/100 -> 4.293397727 | S21: =S64*(100-'DHS12'!S25)/100 -> 0.5532622124 | T21: =T64*(100-'DHS12'!T25)/100 -> 1.875937053 | U21: =U64*(100-'DHS12'!U25)/100 -> 0.9254770886 | V21: =V64*(100-'DHS12'!V25)/100 -> 0.3658230584 | W21: =W64*(100-'DHS12'!W25)/100 -> 0.5194876684 | X21: =X64*(100-'DHS12'!X25)/100 -> 2.542511065 | Y21: =Y64*(100-'DHS12'!Y25)/100 -> 0.7611749223 | Z21: N/A | AA21: =AA64*(100-'DHS12'!AA25)/100 -> 1.414833309 | AB21: N/A | AC21: =AC64*(100-'DHS12'!AC25)/100 -> 1.44693607 | AD21: =AD64*(100-'DHS12'!AD25)/100 -> 1.056364041 | AE21: =AE64*(100-'DHS12'!AE25)/100 -> 1.151979735 | AF21: =AF64*(100-'DHS12'!AF25)/100 -> 4.054009962 | AG21: =AG64*(100-'DHS12'!AG25)/100 -> 3.672403269 | AH21: =AH64*(100-'DHS12'!AH25)/100 -> 0.6016038568 | AI21: =AI64*(100-'DHS12'!AI25)/100 -> 2.088065697 | BB21: Surface water | BC21: N/A | BD21: N/A | BE21: N/A | BF21: N/A | BG21: N/A | BH21: N/A | BI21: N/A | BJ21: N/A | BK21: N/A | BL21: N/A | BM21: N/A | BN21: N/A | BO21: N/A | BP21: N/A | BQ21: N/A | BR21: N/A | BS21: N/A | BT21: N/A | BU21: N/A | BV21: N/A | BW21: N/A | BX21: N/A | BY21: N/A | BZ21: N/A | CA21: N/A | CB21: N/A | CC21: N/A | CD21: N/A | CE21: N/A | CF21: N/A | CG21: N/A | CH21: N/A | CI21: N/A
A22: Improved water point at more than 30 minutes | B22: Yes | C22: N/A | D22: N/A | E22: N/A | F22: N/A | G22: N/A | H22: N/A | I22: N/A | J22: N/A | K22: N/A | L22: N/A | M22: N/A | N22: N/A | O22: N/A | P22: N/A | Q22: N/A | R22: N/A | S22: N/A | T22: N/A | U22: N/A | V22: N/A | W22: N/A | X22: N/A | Y22: N/A | Z22: N/A | AA22: N/A | AB22: N/A | AC22: N/A | AD22: N/A | AE22: N/A | AF22: N/A | AG22: N/A | AH22: N/A | AI22: N/A | BA22: Improved water point at more than 30 minutes | BB22: Yes | BC22: N/A | BD22: N/A | BE22: N/A | BF22: N/A | BG22: N/A | BH22: N/A | BI22: N/A | BJ22: N/A | BK22: N/A | BL22: N/A | BM22: N/A | BN22: N/A | BO22: N/A | BP22: N/A | BQ22: N/A | BR22: N/A | BS22: N/A | BT22: N/A | BU22: N/A | BV22: N/A | BW22: N/A | BX22: N/A | BY22: N/A | BZ22: N/A | CA22: N/A | CB22: N/A | CC22: N/A | CD22: N/A | CE22: N/A | CF22: N/A | CG22: N/A | CH22: N/A | CI22: N/A
B23: No | C23: N/A | D23: N/A | E23: N/A | F23: N/A | G23: N/A | H23: N/A | I23: N/A | J23: N/A | K23: N/A | L23: N/A | M23: N/A | N23: N/A | O23: N/A | P23: N/A | Q23: N/A | R23: N/A | S23: N/A | T23: N/A | U23: N/A | V23: N/A | W23: N/A | X23: N/A | Y23: N/A | Z23: N/A | AA23: N/A | AB23: N/A | AC23: N/A | AD23: N/A | AE23: N/A | AF23: N/A | AG23: N/A | AH23: N/A | AI23: N/A | BB23: No | BC23: N/A | BD23: N/A | BE23: N/A | BF23: N/A | BG23: N/A | BH23: N/A | BI23: N/A | BJ23: N/A | BK23: N/A | BL23: N/A | BM23: N/A | BN23: N/A | BO23: N/A | BP23: N/A | BQ23: N/A | BR23: N/A | BS23: N/A | BT23: N/A | BU23: N/A | BV23: N/A | BW23: N/A | BX23: N/A | BY23: N/A | BZ23: N/A | CA23: N/A | CB23: N/A | CC23: N/A | CD23: N/A | CE23: N/A | CF23: N/A | CG23: N/A | CH23: N/A | CI23: N/A
A24: Manually calculated ratios | B24: Improved wells
B25: Improved springs
B26: Other
C27: NATIONAL wealth index quintile | H27: URBAN wealth index quintile | M27: RURAL wealth index quintile | R27: SUB-REGIONS: | BA27: Raw numbers of respondents: | BB27: Use of drinking water sources | BC27: NATIONAL wealth index quintile | BH27: URBAN wealth index quintile | BM27: RURAL wealth index quintile | BR27: SUB-REGIONS:
A28: Percentage based on weighted population | C28: Poorest | D28: Poor | E28: Middle | F28: Rich | G28: Richest | H28: Poorest | I28: Poor | J28: Middle | K28: Rich | L28: Richest | M28: Poorest | N28: Poor | O28: Middle | P28: Rich | Q28: Richest | R28: Atlantida | S28: Choluteca | T28: Colon | U28: Comayagua | V28: Copan | W28: Cortes | X28: El Paraiso | Y28: Francisco Morazan | Z28: Gracias a Dios | AA28: Intibuca | AB28: Islas de la Bahia | AC28: La Paz | AD28: Lempira | AE28: Ocotepeque | AF28: Olancho | AG28: Santa Barbara | AH28: Valle | AI28: Yoro | BA28: Water data, raw numbers (weighted) | BC28: Poorest | BD28: Poor | BE28: Middle | BF28: Rich | BG28: Richest | BH28: Poorest | BI28: Poor | BJ28: Middle | BK28: Rich | BL28: Richest | BM28: Poorest | BN28: Poor | BO28: Middle | BP28: Rich | BQ28: Richest | BR28: Atlantida | BS28: Choluteca | BT28: Colon | BU28: Comayagua | BV28: Copan | BW28: Cortes | BX28: El Paraiso | BY28: Francisco Morazan | BZ28: Gracias a Dios | CA28: Intibuca | CB28: Islas de la Bahia | CC28: La Paz | CD28: Lempira | CE28: Ocotepeque | CF28: Olancho | CG28: Santa Barbara | CH28: Valle | CI28: Yoro
A29: Piped water | B29: Yes | C29: 64.78601227 | D29: 67.30155614 | E29: 60.25786626 | F29: 91.13654524 | G29: 98.49378737 | H29: 72.1895581 | I29: 90.92356061 | J29: 94.87753452 | K29: 97.31826415 | L29: 99.85023027 | M29: 63.26505826 | N29: 66.27781586 | O29: 70.8795728 | P29: 60.13525348 | Q29: 59.83831755 | R29: 79.94417559 | S29: 54.48307172 | T29: 78.91645087 | U29: 74.87876493 | V29: 83.81170693 | W29: 88.88990935 | X29: 65.18231766 | Y29: 80.35155511 | Z29: 11.13299477 | AA29: 68.02107721 | AB29: N/A | AC29: 74.95911274 | AD29: 65.22608503 | AE29: 79.79578333 | AF29: 65.21144658 | AG29: 75.8980983 | AH29: 67.37102214 | AI29: 83.06974785 | BA29: Piped water | BB29: Yes | BC29: N/A | BD29: N/A | BE29: N/A | BF29: N/A | BG29: N/A | BH29: N/A | BI29: N/A | BJ29: N/A | BK29: N/A | BL29: N/A | BM29: N/A | BN29: N/A | BO29: N/A | BP29: N/A | BQ29: N/A | BR29: N/A | BS29: N/A | BT29: N/A | BU29: N/A | BV29: N/A | BW29: N/A | BX29: N/A | BY29: N/A | BZ29: N/A | CA29: N/A | CB29: N/A | CC29: N/A | CD29: N/A | CE29: N/A | CF29: N/A | CG29: N/A | CH29: N/A | CI29: N/A
B30: No | C30: 35.21398773 | D30: 32.69844386 | E30: 39.74213374 | F30: 8.86345476 | G30: 1.506212634 | H30: 27.8104419 | I30: 9.076439393 | J30: 5.122465479 | K30: 2.68173585 | L30: 0.149769732 | M30: 36.73494174 | N30: 33.72218414 | O30: 29.1204272 | P30: 39.86474652 | Q30: 40.16168245 | R30: 20.05582441 | S30: 45.51692828 | T30: 21.08354913 | U30: 25.12123507 | V30: 16.18829307 | W30: 11.11009065 | X30: 34.81768234 | Y30: 19.64844489 | Z30: 88.86700523 | AA30: 31.97892279 | AB30: N/A | AC30: 25.04088726 | AD30: 34.77391497 | AE30: 20.20421667 | AF30: 34.78855342 | AG30: 24.1019017 | AH30: 32.62897786 | AI30: 16.93025215 | BB30: No | BC30: N/A | BD30: N/A | BE30: N/A | BF30: N/A | BG30: N/A | BH30: N/A | BI30: N/A | BJ30: N/A | BK30: N/A | BL30: N/A | BM30: N/A | BN30: N/A | BO30: N/A | BP30: N/A | BQ30: N/A | BR30: N/A | BS30: N/A | BT30: N/A | BU30: N/A | BV30: N/A | BW30: N/A | BX30: N/A | BY30: N/A | BZ30: N/A | CA30: N/A | CB30: N/A | CC30: N/A | CD30: N/A | CE30: N/A | CF30: N/A | CG30: N/A | CH30: N/A | CI30: N/A
A31: Piped water on premises | B31: Yes | C31: 63.85411056 | D31: 65.95754853 | E31: 57.4471358 | F31: 89.81419467 | G31: 98.33731018 | H31: 69.60664522 | I31: 89.3304385 | J31: 94.31134164 | K31: 96.97552759 | L31: 99.85023027 | M31: 62.158877 | N31: 65.45909973 | O31: 69.7243901 | P31: 58.29765871 | Q31: 56.93700898 | R31: 79.38899722 | S31: 52.14384711 | T31: 77.94722555 | U31: 73.50789959 | V31: 83.16161016 | W31: 88.33710482 | X31: 62.36633902 | Y31: 79.62289714 | Z31: 9.642382553 | AA31: 68.02107721 | AB31: N/A | AC31: 74.40302487 | AD31: 61.83964376 | AE31: 78.53683405 | AF31: 64.28599473 | AG31: 74.3472173 | AH31: 62.62581746 | AI31: 80.06822684 | BA31: Piped water on premises | BB31: Yes | BC31: N/A | BD31: N/A | BE31: N/A | BF31: N/A | BG31: N/A | BH31: N/A | BI31: N/A | BJ31: N/A | BK31: N/A | BL31: N/A | BM31: N/A | BN31: N/A | BO31: N/A | BP31: N/A | BQ31: N/A | BR31: N/A | BS31: N/A | BT31: N/A | BU31: N/A | BV31: N/A | BW31: N/A | BX31: N/A | BY31: N/A | BZ31: N/A | CA31: N/A | CB31: N/A | CC31: N/A | CD31: N/A | CE31: N/A | CF31: N/A | CG31: N/A | CH31: N/A | CI31: N/A
B32: No | C32: 36.14588944 | D32: 34.04245147 | E32: 42.5528642 | F32: 10.18580533 | G32: 1.662689821 | H32: 30.39335478 | I32: 10.6695615 | J32: 5.688658363 | K32: 3.024472408 | L32: 0.149769732 | M32: 37.841123 | N32: 34.54090027 | O32: 30.2756099 | P32: 41.70234129 | Q32: 43.06299102 | R32: 20.61100278 | S32: 47.85615289 | T32: 22.05277445 | U32: 26.49210041 | V32: 16.83838984 | W32: 11.66289518 | X32: 37.63366098 | Y32: 20.37710286 | Z32: 90.35761745 | AA32: 31.97892279 | AB32: N/A | AC32: 25.59697513 | AD32: 38.16035624 | AE32: 21.46316595 | AF32: 35.71400527 | AG32: 25.6527827 | AH32: 37.37418254 | AI32: 19.93177316 | BB32: No | BC32: N/A | BD32: N/A | BE32: N/A | BF32: N/A | BG32: N/A | BH32: N/A | BI32: N/A | BJ32: N/A | BK32: N/A | BL32: N/A | BM32: N/A | BN32: N/A | BO32: N/A | BP32: N/A | BQ32: N/A | BR32: N/A | BS32: N/A | BT32: N/A | BU32: N/A | BV32: N/A | BW32: N/A | BX32: N/A | BY32: N/A | BZ32: N/A | CA32: N/A | CB32: N/A | CC32: N/A | CD32: N/A | CE32: N/A | CF32: N/A | CG32: N/A | CH32: N/A | CI32: N/A
A33: Piped water into dwelling | B33: Yes | C33: N/A | D33: N/A | E33: N/A | F33: N/A | G33: N/A | H33: N/A | I33: N/A | J33: N/A | K33: N/A | L33: N/A | M33: N/A | N33: N/A | O33: N/A | P33: N/A | Q33: N/A | R33: N/A | S33: N/A | T33: N/A | U33: N/A | V33: N/A | W33: N/A | X33: N/A | Y33: N/A | Z33: N/A | AA33: N/A | AB33: N/A | AC33: N/A | AD33: N/A | AE33: N/A | AF33: N/A | AG33: N/A | AH33: N/A | AI33: N/A | BA33: Piped water into dwelling | BB33: Yes | BC33: N/A | BD33: N/A | BE33: N/A | BF33: N/A | BG33: N/A | BH33: N/A | BI33: N/A | BJ33: N/A | BK33: N/A | BL33: N/A | BM33: N/A | BN33: N/A | BO33: N/A | BP33: N/A | BQ33: N/A | BR33: N/A | BS33: N/A | BT33: N/A | BU33: N/A | BV33: N/A | BW33: N/A | BX33: N/A | BY33: N/A | BZ33: N/A | CA33: N/A | CB33: N/A | CC33: N/A | CD33: N/A | CE33: N/A | CF33: N/A | CG33: N/A | CH33: N/A | CI33: N/A
B34: No | C34: N/A | D34: N/A | E34: N/A | F34: N/A | G34: N/A | H34: N/A | I34: N/A | J34: N/A | K34: N/A | L34: N/A | M34: N/A | N34: N/A | O34: N/A | P34: N/A | Q34: N/A | R34: N/A | S34: N/A | T34: N/A | U34: N/A | V34: N/A | W34: N/A | X34: N/A | Y34: N/A | Z34: N/A | AA34: N/A | AB34: N/A | AC34: N/A | AD34: N/A | AE34: N/A | AF34: N/A | AG34: N/A | AH34: N/A | AI34: N/A | BB34: No | BC34: N/A | BD34: N/A | BE34: N/A | BF34: N/A | BG34: N/A | BH34: N/A | BI34: N/A | BJ34: N/A | BK34: N/A | BL34: N/A | BM34: N/A | BN34: N/A | BO34: N/A | BP34: N/A | BQ34: N/A | BR34: N/A | BS34: N/A | BT34: N/A | BU34: N/A | BV34: N/A | BW34: N/A | BX34: N/A | BY34: N/A | BZ34: N/A | CA34: N/A | CB34: N/A | CC34: N/A | CD34: N/A | CE34: N/A | CF34: N/A | CG34: N/A | CH34: N/A | CI34: N/A
A35: Water source on premises | B35: Yes | C35: N/A | D35: N/A | E35: N/A | F35: N/A | G35: N/A | H35: N/A | I35: N/A | J35: N/A | K35: N/A | L35: N/A | M35: N/A | N35: N/A | O35: N/A | P35: N/A | Q35: N/A | R35: N/A | S35: N/A | T35: N/A | U35: N/A | V35: N/A | W35: N/A | X35: N/A | Y35: N/A | Z35: N/A | AA35: N/A | AB35: N/A | AC35: N/A | AD35: N/A | AE35: N/A | AF35: N/A | AG35: N/A | AH35: N/A | AI35: N/A | BA35: Water source on premises | BB35: Yes | BC35: N/A | BD35: N/A | BE35: N/A | BF35: N/A | BG35: N/A | BH35: N/A | BI35: N/A | BJ35: N/A | BK35: N/A | BL35: N/A | BM35: N/A | BN35: N/A | BO35: N/A | BP35: N/A | BQ35: N/A | BR35: N/A | BS35: N/A | BT35: N/A | BU35: N/A | BV35: N/A | BW35: N/A | BX35: N/A | BY35: N/A | BZ35: N/A | CA35: N/A | CB35: N/A | CC35: N/A | CD35: N/A | CE35: N/A | CF35: N/A | CG35: N/A | CH35: N/A | CI35: N/A
B36: No | C36: N/A | D36: N/A | E36: N/A | F36: N/A | G36: N/A | H36: N/A | I36: N/A | J36: N/A | K36: N/A | L36: N/A | M36: N/A | N36: N/A | O36: N/A | P36: N/A | Q36: N/A | R36: N/A | S36: N/A | T36: N/A | U36: N/A | V36: N/A | W36: N/A | X36: N/A | Y36: N/A | Z36: N/A | AA36: N/A | AB36: N/A | AC36: N/A | AD36: N/A | AE36: N/A | AF36: N/A | AG36: N/A | AH36: N/A | AI36: N/A | BB36: No | BC36: N/A | BD36: N/A | BE36: N/A | BF36: N/A | BG36: N/A | BH36: N/A | BI36: N/A | BJ36: N/A | BK36: N/A | BL36: N/A | BM36: N/A | BN36: N/A | BO36: N/A | BP36: N/A | BQ36: N/A | BR36: N/A | BS36: N/A | BT36: N/A | BU36: N/A | BV36: N/A | BW36: N/A | BX36: N/A | BY36: N/A | BZ36: N/A | CA36: N/A | CB36: N/A | CC36: N/A | CD36: N/A | CE36: N/A | CF36: N/A | CG36: N/A | CH36: N/A | CI36: N/A
A37: Improved Water source on premises | B37: Yes | C37: N/A | D37: N/A | E37: N/A | F37: N/A | G37: N/A | H37: N/A | I37: N/A | J37: N/A | K37: N/A | L37: N/A | M37: N/A | N37: N/A | O37: N/A | P37: N/A | Q37: N/A | R37: N/A | S37: N/A | T37: N/A | U37: N/A | V37: N/A | W37: N/A | X37: N/A | Y37: N/A | Z37: N/A | AA37: N/A | AB37: N/A | AC37: N/A | AD37: N/A | AE37: N/A | AF37: N/A | AG37: N/A | AH37: N/A | AI37: N/A | BA37: Improved water source on premises | BB37: Yes | BC37: N/A | BD37: N/A | BE37: N/A | BF37: N/A | BG37: N/A | BH37: N/A | BI37: N/A | BJ37: N/A | BK37: N/A | BL37: N/A | BM37: N/A | BN37: N/A | BO37: N/A | BP37: N/A | BQ37: N/A | BR37: N/A | BS37: N/A | BT37: N/A | BU37: N/A | BV37: N/A | BW37: N/A | BX37: N/A | BY37: N/A | BZ37: N/A | CA37: N/A | CB37: N/A | CC37: N/A | CD37: N/A | CE37: N/A | CF37: N/A | CG37: N/A | CH37: N/A | CI37: N/A
B38: No | C38: N/A | D38: N/A | E38: N/A | F38: N/A | G38: N/A | H38: N/A | I38: N/A | J38: N/A | K38: N/A | L38: N/A | M38: N/A | N38: N/A | O38: N/A | P38: N/A | Q38: N/A | R38: N/A | S38: N/A | T38: N/A | U38: N/A | V38: N/A | W38: N/A | X38: N/A | Y38: N/A | Z38: N/A | AA38: N/A | AB38: N/A | AC38: N/A | AD38: N/A | AE38: N/A | AF38: N/A | AG38: N/A | AH38: N/A | AI38: N/A | BB38: No | BC38: N/A | BD38: N/A | BE38: N/A | BF38: N/A | BG38: N/A | BH38: N/A | BI38: N/A | BJ38: N/A | BK38: N/A | BL38: N/A | BM38: N/A | BN38: N/A | BO38: N/A | BP38: N/A | BQ38: N/A | BR38: N/A | BS38: N/A | BT38: N/A | BU38: N/A | BV38: N/A | BW38: N/A | BX38: N/A | BY38: N/A | BZ38: N/A | CA38: N/A | CB38: N/A | CC38: N/A | CD38: N/A | CE38: N/A | CF38: N/A | CG38: N/A | CH38: N/A | CI38: N/A
A39: Piped water on premises available when needed | B39: Yes | C39: N/A | D39: N/A | E39: N/A | F39: N/A | G39: N/A | H39: N/A | I39: N/A | J39: N/A | K39: N/A | L39: N/A | M39: N/A | N39: N/A | O39: N/A | P39: N/A | Q39: N/A | R39: N/A | S39: N/A | T39: N/A | U39: N/A | V39: N/A | W39: N/A | X39: N/A | Y39: N/A | Z39: N/A | AA39: N/A | AB39: N/A | AC39: N/A | AD39: N/A | AE39: N/A | AF39: N/A | AG39: N/A | AH39: N/A | AI39: N/A | BA39: Piped water on premises available when needed | BB39: Yes | BC39: N/A | BD39: N/A | BE39: N/A | BF39: N/A | BG39: N/A | BH39: N/A | BI39: N/A | BJ39: N/A | BK39: N/A | BL39: N/A | BM39: N/A | BN39: N/A | BO39: N/A | BP39: N/A | BQ39: N/A | BR39: N/A | BS39: N/A | BT39: N/A | BU39: N/A | BV39: N/A | BW39: N/A | BX39: N/A | BY39: N/A | BZ39: N/A | CA39: N/A | CB39: N/A | CC39: N/A | CD39: N/A | CE39: N/A | CF39: N/A | CG39: N/A | CH39: N/A | CI39: N/A
B40: No | C40: N/A | D40: N/A | E40: N/A | F40: N/A | G40: N/A | H40: N/A | I40: N/A | J40: N/A | K40: N/A | L40: N/A | M40: N/A | N40: N/A | O40: N/A | P40: N/A | Q40: N/A | R40: N/A | S40: N/A | T40: N/A | U40: N/A | V40: N/A | W40: N/A | X40: N/A | Y40: N/A | Z40: N/A | AA40: N/A | AB40: N/A | AC40: N/A | AD40: N/A | AE40: N/A | AF40: N/A | AG40: N/A | AH40: N/A | AI40: N/A | BB40: No | BC40: N/A | BD40: N/A | BE40: N/A | BF40: N/A | BG40: N/A | BH40: N/A | BI40: N/A | BJ40: N/A | BK40: N/A | BL40: N/A | BM40: N/A | BN40: N/A | BO40: N/A | BP40: N/A | BQ40: N/A | BR40: N/A | BS40: N/A | BT40: N/A | BU40: N/A | BV40: N/A | BW40: N/A | BX40: N/A | BY40: N/A | BZ40: N/A | CA40: N/A | CB40: N/A | CC40: N/A | CD40: N/A | CE40: N/A | CF40: N/A | CG40: N/A | CH40: N/A | CI40: N/A
A41: Water point at more than 30 minutes | B41: Yes | C41: N/A | D41: N/A | E41: N/A | F41: N/A | G41: N/A | H41: N/A | I41: N/A | J41: N/A | K41: N/A | L41: N/A | M41: N/A | N41: N/A | O41: N/A | P41: N/A | Q41: N/A | R41: N/A | S41: N/A | T41: N/A | U41: N/A | V41: N/A | W41: N/A | X41: N/A | Y41: N/A | Z41: N/A | AA41: N/A | AB41: N/A | AC41: N/A | AD41: N/A | AE41: N/A | AF41: N/A | AG41: N/A | AH41: N/A | AI41: N/A | BA41: Water point at more than 30 minutes | BB41: Yes | BC41: N/A | BD41: N/A | BE41: N/A | BF41: N/A | BG41: N/A | BH41: N/A | BI41: N/A | BJ41: N/A | BK41: N/A | BL41: N/A | BM41: N/A | BN41: N/A | BO41: N/A | BP41: N/A | BQ41: N/A | BR41: N/A | BS41: N/A | BT41: N/A | BU41: N/A | BV41: N/A | BW41: N/A | BX41: N/A | BY41: N/A | BZ41: N/A | CA41: N/A | CB41: N/A | CC41: N/A | CD41: N/A | CE41: N/A | CF41: N/A | CG41: N/A | CH41: N/A | CI41: N/A
B42: No | C42: N/A | D42: N/A | E42: N/A | F42: N/A | G42: N/A | H42: N/A | I42: N/A | J42: N/A | K42: N/A | L42: N/A | M42: N/A | N42: N/A | O42: N/A | P42: N/A | Q42: N/A | R42: N/A | S42: N/A | T42: N/A | U42: N/A | V42: N/A | W42: N/A | X42: N/A | Y42: N/A | Z42: N/A | AA42: N/A | AB42: N/A | AC42: N/A | AD42: N/A | AE42: N/A | AF42: N/A | AG42: N/A | AH42: N/A | AI42: N/A | BB42: No | BC42: N/A | BD42: N/A | BE42: N/A | BF42: N/A | BG42: N/A | BH42: N/A | BI42: N/A | BJ42: N/A | BK42: N/A | BL42: N/A | BM42: N/A | BN42: N/A | BO42: N/A | BP42: N/A | BQ42: N/A | BR42: N/A | BS42: N/A | BT42: N/A | BU42: N/A | BV42: N/A | BW42: N/A | BX42: N/A | BY42: N/A | BZ42: N/A | CA42: N/A | CB42: N/A | CC42: N/A | CD42: N/A | CE42: N/A | CF42: N/A | CG42: N/A | CH42: N/A | CI42: N/A
A43: Water source available when needed | B43: Yes | C43: N/A | D43: N/A | E43: N/A | F43: N/A | G43: N/A | H43: N/A | I43: N/A | J43: N/A | K43: N/A | L43: N/A | M43: N/A | N43: N/A | O43: N/A | P43: N/A | Q43: N/A | R43: N/A | S43: N/A | T43: N/A | U43: N/A | V43: N/A | W43: N/A | X43: N/A | Y43: N/A | Z43: N/A | AA43: N/A | AB43: N/A | AC43: N/A | AD43: N/A | AE43: N/A | AF43: N/A | AG43: N/A | AH43: N/A | AI43: N/A | BA43: Water source available when needed | BB43: Yes | BC43: N/A | BD43: N/A | BE43: N/A | BF43: N/A | BG43: N/A | BH43: N/A | BI43: N/A | BJ43: N/A | BK43: N/A | BL43: N/A | BM43: N/A | BN43: N/A | BO43: N/A | BP43: N/A | BQ43: N/A | BR43: N/A | BS43: N/A | BT43: N/A | BU43: N/A | BV43: N/A | BW43: N/A | BX43: N/A | BY43: N/A | BZ43: N/A | CA43: N/A | CB43: N/A | CC43: N/A | CD43: N/A | CE43: N/A | CF43: N/A | CG43: N/A | CH43: N/A | CI43: N/A
B44: No | C44: N/A | D44: N/A | E44: N/A | F44: N/A | G44: N/A | H44: N/A | I44: N/A | J44: N/A | K44: N/A | L44: N/A | M44: N/A | N44: N/A | O44: N/A | P44: N/A | Q44: N/A | R44: N/A | S44: N/A | T44: N/A | U44: N/A | V44: N/A | W44: N/A | X44: N/A | Y44: N/A | Z44: N/A | AA44: N/A | AB44: N/A | AC44: N/A | AD44: N/A | AE44: N/A | AF44: N/A | AG44: N/A | AH44: N/A | AI44: N/A | BB44: No | BC44: N/A | BD44: N/A | BE44: N/A | BF44: N/A | BG44: N/A | BH44: N/A | BI44: N/A | BJ44: N/A | BK44: N/A | BL44: N/A | BM44: N/A | BN44: N/A | BO44: N/A | BP44: N/A | BQ44: N/A | BR44: N/A | BS44: N/A | BT44: N/A | BU44: N/A | BV44: N/A | BW44: N/A | BX44: N/A | BY44: N/A | BZ44: N/A | CA44: N/A | CB44: N/A | CC44: N/A | CD44: N/A | CE44: N/A | CF44: N/A | CG44: N/A | CH44: N/A | CI44: N/A
A45: Improved water source available when needed | B45: Yes | C45: N/A | D45: N/A | E45: N/A | F45: N/A | G45: N/A | H45: N/A | I45: N/A | J45: N/A | K45: N/A | L45: N/A | M45: N/A | N45: N/A | O45: N/A | P45: N/A | Q45: N/A | R45: N/A | S45: N/A | T45: N/A | U45: N/A | V45: N/A | W45: N/A | X45: N/A | Y45: N/A | Z45: N/A | AA45: N/A | AB45: N/A | AC45: N/A | AD45: N/A | AE45: N/A | AF45: N/A | AG45: N/A | AH45: N/A | AI45: N/A | BA45: Improved water source available when needed | BB45: Yes | BC45: N/A | BD45: N/A | BE45: N/A | BF45: N/A | BG45: N/A | BH45: N/A | BI45: N/A | BJ45: N/A | BK45: N/A | BL45: N/A | BM45: N/A | BN45: N/A | BO45: N/A | BP45: N/A | BQ45: N/A | BR45: N/A | BS45: N/A | BT45: N/A | BU45: N/A | BV45: N/A | BW45: N/A | BX45: N/A | BY45: N/A | BZ45: N/A | CA45: N/A | CB45: N/A | CC45: N/A | CD45: N/A | CE45: N/A | CF45: N/A | CG45: N/A | CH45: N/A | CI45: N/A
B46: No | C46: N/A | D46: N/A | E46: N/A | F46: N/A | G46: N/A | H46: N/A | I46: N/A | J46: N/A | K46: N/A | L46: N/A | M46: N/A | N46: N/A | O46: N/A | P46: N/A | Q46: N/A | R46: N/A | S46: N/A | T46: N/A | U46: N/A | V46: N/A | W46: N/A | X46: N/A | Y46: N/A | Z46: N/A | AA46: N/A | AB46: N/A | AC46: N/A | AD46: N/A | AE46: N/A | AF46: N/A | AG46: N/A | AH46: N/A | AI46: N/A | BB46: No | BC46: N/A | BD46: N/A | BE46: N/A | BF46: N/A | BG46: N/A | BH46: N/A | BI46: N/A | BJ46: N/A | BK46: N/A | BL46: N/A | BM46: N/A | BN46: N/A | BO46: N/A | BP46: N/A | BQ46: N/A | BR46: N/A | BS46: N/A | BT46: N/A | BU46: N/A | BV46: N/A | BW46: N/A | BX46: N/A | BY46: N/A | BZ46: N/A | CA46: N/A | CB46: N/A | CC46: N/A | CD46: N/A | CE46: N/A | CF46: N/A | CG46: N/A | CH46: N/A | CI46: N/A
A47: Microbiological quality at point of collection | B47: Not contaminated (No E. coli in 100 mL) | C47: N/A | D47: N/A | E47: N/A | F47: N/A | G47: N/A | H47: N/A | I47: N/A | J47: N/A | K47: N/A | L47: N/A | M47: N/A | N47: N/A | O47: N/A | P47: N/A | Q47: N/A | R47: N/A | S47: N/A | T47: N/A | U47: N/A | V47: N/A | W47: N/A | X47: N/A | Y47: N/A | Z47: N/A | AA47: N/A | AB47: N/A | AC47: N/A | AD47: N/A | AE47: N/A | AF47: N/A | AG47: N/A | AH47: N/A | AI47: N/A | BA47: Microbiological quality at point of collection | BB47: Not contaminated (No E. coli in 100 mL) | BC47: N/A | BD47: N/A | BE47: N/A | BF47: N/A | BG47: N/A | BH47: N/A | BI47: N/A | BJ47: N/A | BK47: N/A | BL47: N/A | BM47: N/A | BN47: N/A | BO47: N/A | BP47: N/A | BQ47: N/A | BR47: N/A | BS47: N/A | BT47: N/A | BU47: N/A | BV47: N/A | BW47: N/A | BX47: N/A | BY47: N/A | BZ47: N/A | CA47: N/A | CB47: N/A | CC47: N/A | CD47: N/A | CE47: N/A | CF47: N/A | CG47: N/A | CH47: N/A | CI47: N/A
B48: Contaminated (E. coli detected in 100 mL) | C48: N/A | D48: N/A | E48: N/A | F48: N/A | G48: N/A | H48: N/A | I48: N/A | J48: N/A | K48: N/A | L48: N/A | M48: N/A | N48: N/A | O48: N/A | P48: N/A | Q48: N/A | R48: N/A | S48: N/A | T48: N/A | U48: N/A | V48: N/A | W48: N/A | X48: N/A | Y48: N/A | Z48: N/A | AA48: N/A | AB48: N/A | AC48: N/A | AD48: N/A | AE48: N/A | AF48: N/A | AG48: N/A | AH48: N/A | AI48: N/A | BB48: Contaminated (E. coli detected in 100 mL) | BC48: N/A | BD48: N/A | BE48: N/A | BF48: N/A | BG48: N/A | BH48: N/A | BI48: N/A | BJ48: N/A | BK48: N/A | BL48: N/A | BM48: N/A | BN48: N/A | BO48: N/A | BP48: N/A | BQ48: N/A | BR48: N/A | BS48: N/A | BT48: N/A | BU48: N/A | BV48: N/A | BW48: N/A | BX48: N/A | BY48: N/A | BZ48: N/A | CA48: N/A | CB48: N/A | CC48: N/A | CD48: N/A | CE48: N/A | CF48: N/A | CG48: N/A | CH48: N/A | CI48: N/A
B49: Highly contaminated (>100 CFU/100 mL) | C49: N/A | D49: N/A | E49: N/A | F49: N/A | G49: N/A | H49: N/A | I49: N/A | J49: N/A | K49: N/A | L49: N/A | M49: N/A | N49: N/A | O49: N/A | P49: N/A | Q49: N/A | R49: N/A | S49: N/A | T49: N/A | U49: N/A | V49: N/A | W49: N/A | X49: N/A | Y49: N/A | Z49: N/A | AA49: N/A | AB49: N/A | AC49: N/A | AD49: N/A | AE49: N/A | AF49: N/A | AG49: N/A | AH49: N/A | AI49: N/A | BB49: Highly contaminated (>100 CFU/100 mL) | BC49: N/A | BD49: N/A | BE49: N/A | BF49: N/A | BG49: N/A | BH49: N/A | BI49: N/A | BJ49: N/A | BK49: N/A | BL49: N/A | BM49: N/A | BN49: N/A | BO49: N/A | BP49: N/A | BQ49: N/A | BR49: N/A | BS49: N/A | BT49: N/A | BU49: N/A | BV49: N/A | BW49: N/A | BX49: N/A | BY49: N/A | BZ49: N/A | CA49: N/A | CB49: N/A | CC49: N/A | CD49: N/A | CE49: N/A | CF49: N/A | CG49: N/A | CH49: N/A | CI49: N/A
A50: Microbiological quality of improved water sources at point of collection | B50: Not contaminated (No E. coli in 100 mL) | C50: N/A | D50: N/A | E50: N/A | F50: N/A | G50: N/A | H50: N/A | I50: N/A | J50: N/A | K50: N/A | L50: N/A | M50: N/A | N50: N/A | O50: N/A | P50: N/A | Q50: N/A | R50: N/A | S50: N/A | T50: N/A | U50: N/A | V50: N/A | W50: N/A | X50: N/A | Y50: N/A | Z50: N/A | AA50: N/A | AB50: N/A | AC50: N/A | AD50: N/A | AE50: N/A | AF50: N/A | AG50: N/A | AH50: N/A | AI50: N/A | BA50: Microbiological quality of improved water sources at point of collection | BB50: Not contaminated (No E. coli in 100 mL) | BC50: N/A | BD50: N/A | BE50: N/A | BF50: N/A | BG50: N/A | BH50: N/A | BI50: N/A | BJ50: N/A | BK50: N/A | BL50: N/A | BM50: N/A | BN50: N/A | BO50: N/A | BP50: N/A | BQ50: N/A | BR50: N/A | BS50: N/A | BT50: N/A | BU50: N/A | BV50: N/A | BW50: N/A | BX50: N/A | BY50: N/A | BZ50: N/A | CA50: N/A | CB50: N/A | CC50: N/A | CD50: N/A | CE50: N/A | CF50: N/A | CG50: N/A | CH50: N/A | CI50: N/A
B51: Contaminated (E. coli detected in 100 mL) | C51: N/A | D51: N/A | E51: N/A | F51: N/A | G51: N/A | H51: N/A | I51: N/A | J51: N/A | K51: N/A | L51: N/A | M51: N/A | N51: N/A | O51: N/A | P51: N/A | Q51: N/A | R51: N/A | S51: N/A | T51: N/A | U51: N/A | V51: N/A | W51: N/A | X51: N/A | Y51: N/A | Z51: N/A | AA51: N/A | AB51: N/A | AC51: N/A | AD51: N/A | AE51: N/A | AF51: N/A | AG51: N/A | AH51: N/A | AI51: N/A | BB51: Contaminated (E. coli detected in 100 mL) | BC51: N/A | BD51: N/A | BE51: N/A | BF51: N/A | BG51: N/A | BH51: N/A | BI51: N/A | BJ51: N/A | BK51: N/A | BL51: N/A | BM51: N/A | BN51: N/A | BO51: N/A | BP51: N/A | BQ51: N/A | BR51: N/A | BS51: N/A | BT51: N/A | BU51: N/A | BV51: N/A | BW51: N/A | BX51: N/A | BY51: N/A | BZ51: N/A | CA51: N/A | CB51: N/A | CC51: N/A | CD51: N/A | CE51: N/A | CF51: N/A | CG51: N/A | CH51: N/A | CI51: N/A
B52: Highly contaminated (>100 CFU/100 mL) | C52: N/A | D52: N/A | E52: N/A | F52: N/A | G52: N/A | H52: N/A | I52: N/A | J52: N/A | K52: N/A | L52: N/A | M52: N/A | N52: N/A | O52: N/A | P52: N/A | Q52: N/A | R52: N/A | S52: N/A | T52: N/A | U52: N/A | V52: N/A | W52: N/A | X52: N/A | Y52: N/A | Z52: N/A | AA52: N/A | AB52: N/A | AC52: N/A | AD52: N/A | AE52: N/A | AF52: N/A | AG52: N/A | AH52: N/A | AI52: N/A | BB52: Highly contaminated (>100 CFU/100 mL) | BC52: N/A | BD52: N/A | BE52: N/A | BF52: N/A | BG52: N/A | BH52: N/A | BI52: N/A | BJ52: N/A | BK52: N/A | BL52: N/A | BM52: N/A | BN52: N/A | BO52: N/A | BP52: N/A | BQ52: N/A | BR52: N/A | BS52: N/A | BT52: N/A | BU52: N/A | BV52: N/A | BW52: N/A | BX52: N/A | BY52: N/A | BZ52: N/A | CA52: N/A | CB52: N/A | CC52: N/A | CD52: N/A | CE52: N/A | CF52: N/A | CG52: N/A | CH52: N/A | CI52: N/A
A53: Microbiological quality of piped on premises at point of collection | B53: Not contaminated (No E. coli in 100 mL) | C53: N/A | D53: N/A | E53: N/A | F53: N/A | G53: N/A | H53: N/A | I53: N/A | J53: N/A | K53: N/A | L53: N/A | M53: N/A | N53: N/A | O53: N/A | P53: N/A | Q53: N/A | R53: N/A | S53: N/A | T53: N/A | U53: N/A | V53: N/A | W53: N/A | X53: N/A | Y53: N/A | Z53: N/A | AA53: N/A | AB53: N/A | AC53: N/A | AD53: N/A | AE53: N/A | AF53: N/A | AG53: N/A | AH53: N/A | AI53: N/A | BA53: Microbiological quality of piped on premises at point of collection | BB53: Not contaminated (No E. coli in 100 mL) | BC53: N/A | BD53: N/A | BE53: N/A | BF53: N/A | BG53: N/A | BH53: N/A | BI53: N/A | BJ53: N/A | BK53: N/A | BL53: N/A | BM53: N/A | BN53: N/A | BO53: N/A | BP53: N/A | BQ53: N/A | BR53: N/A | BS53: N/A | BT53: N/A | BU53: N/A | BV53: N/A | BW53: N/A | BX53: N/A | BY53: N/A | BZ53: N/A | CA53: N/A | CB53: N/A | CC53: N/A | CD53: N/A | CE53: N/A | CF53: N/A | CG53: N/A | CH53: N/A | CI53: N/A
B54: Contaminated (E. coli detected in 100 mL) | C54: N/A | D54: N/A | E54: N/A | F54: N/A | G54: N/A | H54: N/A | I54: N/A | J54: N/A | K54: N/A | L54: N/A | M54: N/A | N54: N/A | O54: N/A | P54: N/A | Q54: N/A | R54: N/A | S54: N/A | T54: N/A | U54: N/A | V54: N/A | W54: N/A | X54: N/A | Y54: N/A | Z54: N/A | AA54: N/A | AB54: N/A | AC54: N/A | AD54: N/A | AE54: N/A | AF54: N/A | AG54: N/A | AH54: N/A | AI54: N/A | BB54: Contaminated (E. coli detected in 100 mL) | BC54: N/A | BD54: N/A | BE54: N/A | BF54: N/A | BG54: N/A | BH54: N/A | BI54: N/A | BJ54: N/A | BK54: N/A | BL54: N/A | BM54: N/A | BN54: N/A | BO54: N/A | BP54: N/A | BQ54: N/A | BR54: N/A | BS54: N/A | BT54: N/A | BU54: N/A | BV54: N/A | BW54: N/A | BX54: N/A | BY54: N/A | BZ54: N/A | CA54: N/A | CB54: N/A | CC54: N/A | CD54: N/A | CE54: N/A | CF54: N/A | CG54: N/A | CH54: N/A | CI54: N/A
B55: Highly contaminated (>100 CFU/100 mL) | C55: N/A | D55: N/A | E55: N/A | F55: N/A | G55: N/A | H55: N/A | I55: N/A | J55: N/A | K55: N/A | L55: N/A | M55: N/A | N55: N/A | O55: N/A | P55: N/A | Q55: N/A | R55: N/A | S55: N/A | T55: N/A | U55: N/A | V55: N/A | W55: N/A | X55: N/A | Y55: N/A | Z55: N/A | AA55: N/A | AB55: N/A | AC55: N/A | AD55: N/A | AE55: N/A | AF55: N/A | AG55: N/A | AH55: N/A | AI55: N/A | BB55: Highly contaminated (>100 CFU/100 mL) | BC55: N/A | BD55: N/A | BE55: N/A | BF55: N/A | BG55: N/A | BH55: N/A | BI55: N/A | BJ55: N/A | BK55: N/A | BL55: N/A | BM55: N/A | BN55: N/A | BO55: N/A | BP55: N/A | BQ55: N/A | BR55: N/A | BS55: N/A | BT55: N/A | BU55: N/A | BV55: N/A | BW55: N/A | BX55: N/A | BY55: N/A | BZ55: N/A | CA55: N/A | CB55: N/A | CC55: N/A | CD55: N/A | CE55: N/A | CF55: N/A | CG55: N/A | CH55: N/A | CI55: N/A
C56: NATIONAL wealth index quintile | H56: URBAN wealth index quintile | M56: RURAL wealth index quintile | R56: SUB-REGIONS: | BA56: Raw numbers of respondents: | BB56: Use of drinking water sources | BC56: NATIONAL wealth index quintile | BH56: URBAN wealth index quintile | BM56: RURAL wealth index quintile | BR56: SUB-REGIONS:
A57: Percentage based on weighted population | C57: Poorest | D57: Poor | E57: Middle | F57: Rich | G57: Richest | H57: Poorest | I57: Poor | J57: Middle | K57: Rich | L57: Richest | M57: Poorest | N57: Poor | O57: Middle | P57: Rich | Q57: Richest | R57: Atlantida | S57: Choluteca | T57: Colon | U57: Comayagua | V57: Copan | W57: Cortes | X57: El Paraiso | Y57: Francisco Morazan | Z57: Gracias a Dios | AA57: Intibuca | AB57: Islas de la Bahia | AC57: La Paz | AD57: Lempira | AE57: Ocotepeque | AF57: Olancho | AG57: Santa Barbara | AH57: Valle | AI57: Yoro | BA57: Water data, raw numbers (weighted) | BC57: Poorest | BD57: Poor | BE57: Middle | BF57: Rich | BG57: Richest | BH57: Poorest | BI57: Poor | BJ57: Middle | BK57: Rich | BL57: Richest | BM57: Poorest | BN57: Poor | BO57: Middle | BP57: Rich | BQ57: Richest | BR57: Atlantida | BS57: Choluteca | BT57: Colon | BU57: Comayagua | BV57: Copan | BW57: Cortes | BX57: El Paraiso | BY57: Francisco Morazan | BZ57: Gracias a Dios | CA57: Intibuca | CB57: Islas de la Bahia | CC57: La Paz | CD57: Lempira | CE57: Ocotepeque | CF57: Olancho | CG57: Santa Barbara | CH57: Valle | CI57: Yoro
A58: Water | B58: Servicio dentro la vivienda | C58: 11.63555293 | D58: 14.79190368 | E58: 14.40757153 | F58: 34.11121674 | G58: 83.5946066 | H58: 11.53135422 | I58: 29.93515017 | J58: 51.23614836 | K58: 77.61811918 | L58: 93.06970232 | M58: 11.18337067 | N58: 12.21403247 | O58: 14.08106992 | P58: 13.68003478 | Q58: 19.28669225 | R58: 41.74866133 | S58: 11.38162412 | T58: 26.12874158 | U58: 23.25959665 | V58: 32.53520791 | W58: 50.67053042 | X58: 15.47654062 | Y58: 44.18529162 | Z58: 0.7215109945 | AA58: 10.89802921 | AB58: N/A | AC58: 12.77282997 | AD58: 10.01044804 | AE58: 29.06959177 | AF58: 17.56721283 | AG58: 26.71371612 | AH58: 8.931129667 | AI58: 35.71664128
B59: Servicio fuera de vivienda pero dentro propiedad | C59: 52.21855764 | D59: 51.16564485 | E59: 47.77716241 | F59: 55.70297793 | G59: 14.81003129 | H59: 64.90688401 | I59: 59.39528833 | J59: 43.07519328 | K59: 19.50295471 | L59: 6.780527944 | M59: 50.97550634 | N59: 53.24506726 | O59: 55.64332018 | P59: 44.61762393 | Q59: 41.63003106 | R59: 37.64033589 | S59: 42.18351408 | T59: 51.81848398 | U59: 52.34168134 | V59: 52.03520383 | W59: 39.39471406 | X59: 46.8897984 | Y59: 37.41520664 | Z59: 8.92561974 | AA59: 57.76671356 | AB59: N/A | AC59: 65.20335889 | AD59: 52.58013752 | AE59: 49.46724228 | AF59: 47.28562021 | AG59: 49.23352034 | AH59: 53.69468779 | AI59: 44.35158556
B60: Servicio fuera de la propiedad a menos de 100 mts | C60: 0.6014401181 | D60: 1.043871485 | E60: 2.108353641 | F60: 1.150690623 | G60: 0.1043895478 | H60: 2.569014214 | I60: 1.393003316 | J60: 0.4413920742 | K60: 0.2288339706 | L60: 0 | M60: 0.8934541089 | N60: 0.4245194752 | O60: 1.155182697 | P60: 0.919417068 | Q60: 1.964738736 | R60: 0.3636437613 | S60: 1.700205364 | T60: 0.6132473022 | U60: 0.5514147123 | V60: 0.6611097529 | W60: 0.3716377925 | X60: 2.315360212 | Y60: 0.6319354603 | Z60: 0.9000160074 | AA60: 0 | AB60: N/A | AC60: 0 | AD60: 1.860677645 | AE60: 1.258949282 | AF60: 0.9336119714 | AG60: 1.328095032 | AH60: 4.745204679 | AI60: 2.036830806
B61: Servicio fuera de la propiedad a más de 100 mts | C61: 0.3304615843 | D61: 0.3001361245 | E61: 0.9341744699 | F61: 0.1716599452 | G61: 0.0521947739 | H61: 0.2674004577 | I61: 0.2001187922 | J61: 0.1248008092 | K61: 0.1144169853 | L61: 0 | M61: 0.2127271536 | N61: 0.3941966555 | O61: 0 | P61: 0.9181777028 | Q61: 1.139361999 | R61: 0.1915346138 | S61: 0.7027797751 | T61: 0.355978021 | U61: 0.8584905115 | V61: 0 | W61: 0.1919812631 | X61: 0.5006184242 | Y61: 0.1148202534 | Z61: 0.5913302282 | AA61: 0 | AB61: N/A | AC61: 0.5827936895 | AD61: 1.566886438 | AE61: 0 | AF61: 0 | AG61: 0.2561623233 | AH61: 0 | AI61: 0.9646901991
B62: Pozo malacate | C62: 3.304616009 | D62: 4.431118945 | E62: 5.497526261 | F62: 1.006212139 | G62: 0.2475026416 | H62: 2.753482364 | I62: 0.8292710216 | J62: 1.103965206 | K62: 0.3995332041 | L62: 0 | M62: 5.093295984 | N62: 1.316010543 | O62: 2.964140498 | P62: 7.307167435 | Q62: 5.523439208 | R62: 3.217160006 | S62: 17.1600014 | T62: 1.067934063 | U62: 1.355912734 | V62: 0.9968892619 | W62: 0.9022590061 | X62: 4.335484131 | Y62: 1.852300992 | Z62: 31.18178109 | AA62: 0.8896899989 | AB62: N/A | AC62: 0 | AD62: 0.6855128167 | AE62: 0 | AF62: 3.071643333 | AG62: 0 | AH62: 8.461511344 | AI62: 0.114842625
B63: Pozo con bomba | C63: 3.691255996 | D63: 2.227541688 | E63: 2.793214363 | F63: 0.5590649057 | G63: 0.03914608043 | H63: 1.375873853 | I63: 0.5049520623 | J63: 0.3782360743 | K63: 0.08581273897 | L63: 0 | M63: 4.941347951 | N63: 2.210708805 | O63: 1.952168233 | P63: 2.488567841 | Q63: 3.51588956 | R63: 1.03032399 | S63: 10.51762615 | T63: 2.46430089 | U63: 0 | V63: 0 | W63: 1.600068532 | X63: 3.128865151 | Y63: 0.5976541907 | Z63: 9.723564693 | AA63: 0 | AB63: N/A | AC63: 0 | AD63: 0 | AE63: 0 | AF63: 0.6224079809 | AG63: 1.10238116 | AH63: 11.62008877 | AI63: 0.5263619544
B64: Rio, riachuelo, manantial, ojo de agua | C64: 22.45817004 | D64: 18.93551561 | E64: 15.96031832 | F64: 0.09560757514 | G64: 0 | H64: 1.703244373 | I64: 0 | J64: 0.1684521071 | K64: 0 | L64: 0 | M64: 21.07214473 | N64: 24.39167698 | O64: 16.05096025 | P64: 23.30093691 | Q64: 18.44665866 | R64: 9.230805112 | S64: 13.73934494 | T64: 7.101761699 | U64: 10.73553423 | V64: 10.88323599 | W64: 1.706888053 | X64: 25.91405509 | Y64: 6.089399378 | Z64: 45.42635494 | AA64: 27.82505508 | AB64: N/A | AC64: 20.98057301 | AD64: 27.6163742 | AE64: 11.7501933 | AF64: 19.1266111 | AG64: 15.53709076 | AH64: 11.06951097 | AI64: 10.60094892
B65: Carro cisterna | C65: 0.09913847528 | D65: 0.2311750838 | E65: 2.0114409 | F65: 3.992504801 | G65: 0.7645907384 | H65: 4.731922581 | I65: 4.512364888 | J65: 2.187542279 | K65: 1.200800345 | L65: 0.149769732 | M65: 0.1823375602 | N65: 0.2425825572 | O65: 0 | P65: 0.1825627311 | Q65: 1.918097913 | R65: 0.1256220222 | S65: 0.1388102868 | T65: 0.711956042 | U65: 0 | V65: 0 | W65: 1.176828374 | X65: 0 | Y65: 6.137081269 | Z65: 0 | AA65: 0 | AB65: N/A | AC65: 0 | AD65: 0 | AE65: 0 | AF65: 0 | AG65: 0 | AH65: 0 | AI65: 0
B66: Pick-up con drones o barriles | C66: 0 | D66: 0.003889720644 | E66: 0.3377674452 | F66: 0.2468840928 | G66: 0.1043895478 | H66: 0.6003161468 | I66: 0.2720104076 | J66: 0 | K66: 0.2288339706 | L66: 0 | M66: 0 | N66: 0 | O66: 0 | P66: 0.007167476828 | Q66: 0.3656549578 | R66: 0 | S66: 0.5089710517 | T66: 0 | U66: 0 | V66: 0 | W66: 0.2352777591 | X66: 0 | Y66: 0.03729196249 | Z66: 2.529822303 | AA66: 0 | AB66: N/A | AC66: 0 | AD66: 0 | AE66: 0 | AF66: 0.2458711347 | AG66: 0 | AH66: 0.463644586 | AI66: 0
B67: Otro | C67: 5.660807215 | D67: 6.869202815 | E67: 8.172470665 | F67: 2.963181247 | G67: 0.2831487803 | H67: 9.560507784 | I67: 2.957841014 | J67: 1.284269813 | K67: 0.6206948973 | L67: 0 | M67: 5.44581551 | N67: 5.561205255 | O67: 8.153158219 | P67: 6.578344124 | Q67: 6.209435661 | R67: 6.451913276 | S67: 1.967122837 | T67: 9.737596431 | U67: 10.89736982 | V67: 2.888353253 | W67: 3.749814742 | X67: 1.43927797 | Y67: 2.939018225 | Z67: 0 | AA67: 2.620512159 | AB67: N/A | AC67: 0.4604444355 | AD67: 5.679963339 | AE67: 8.454023368 | AF67: 11.14702144 | AG67: 5.829034266 | AH67: 1.014222198 | AI67: 5.688098651
A108: =A1026 -> Honduras
A109: =A1034 -> 2003
A110: Use of sanitation facilities
A111: by wealth quintile and sub-national region
A112: Notes:
A113: WHO/UNICEF JMP customised wealth index excludes water,
A114: sanitation and hygiene assets.
A115: Survey used for analysis: | B115: =A1025 -> EPHPM03
A116: Ratio of Improved latrines based on: | B116: 50% Rule
A117: =B1029 -> 
A120: Use of sanitation facilities | C120: NATIONAL wealth index quintile | H120: URBAN wealth index quintile | M120: RURAL wealth index quintile | R120: SUB-REGIONS: | BA120: Raw numbers of respondents: | BB120: Use of sanitation facilities | BC120: NATIONAL wealth index quintile | BH120: URBAN wealth index quintile | BM120: RURAL wealth index quintile | BR120: SUB-REGIONS:
A121: Weighted percentage (used in graphs) | C121: Poorest | D121: Poor | E121: Middle | F121: Rich | G121: Richest | H121: Poorest | I121: Poor | J121: Middle | K121: Rich | L121: Richest | M121: Poorest | N121: Poor | O121: Middle | P121: Rich | Q121: Richest | R121: Atlantida | S121: Choluteca | T121: Colon | U121: Comayagua | V121: Copan | W121: Cortes | X121: El Paraiso | Y121: Francisco Morazan | Z121: Gracias a Dios | AA121: Intibuca | AB121: Islas de la Bahia | AC121: La Paz | AD121: Lempira | AE121: Ocotepeque | AF121: Olancho | AG121: Santa Barbara | AH121: Valle | AI121: Yoro | BA121: Sanitation data, raw numbers (weighted) | BC121: Poorest | BD121: Poor | BE121: Middle | BF121: Rich | BG121: Richest | BH121: Poorest | BI121: Poor | BJ121: Middle | BK121: Rich | BL121: Richest | BM121: Poorest | BN121: Poor | BO121: Middle | BP121: Rich | BQ121: Richest | BR121: Atlantida | BS121: Choluteca | BT121: Colon | BU121: Comayagua | BV121: Copan | BW121: Cortes | BX121: El Paraiso | BY121: Francisco Morazan | BZ121: Gracias a Dios | CA121: Intibuca | CB121: Islas de la Bahia | CC121: La Paz | CD121: Lempira | CE121: Ocotepeque | CF121: Olancho | CG121: Santa Barbara | CH121: Valle | CI121: Yoro
A122: Sanitation | B122: Improved | C122: =C153+C154+C157+C158+C159*0.5 -> 56.18679969 | D122: =D153+D154+D157+D158+D159*0.5 -> 59.76385951 | E122: 55.70712371 | F122: 82.87847085 | G122: 95.70085459 | H122: 65.49618653 | I122: 81.55767976 | J122: 89.61532791 | K122: 93.7334093 | L122: 97.98436831 | M122: 56.91835373 | N122: 55.44387206 | O122: 59.8071991 | P122: 56.0532856 | Q122: 57.05196701 | R122: 80.19217023 | S122: 52.55273385 | T122: 75.86722113 | U122: 56.56782383 | V122: 62.63655962 | W122: 86.63147538 | X122: 67.88013392 | Y122: 80.02638758 | Z122: 19.31772865 | AA122: 64.97764103 | AB122: N/A | AC122: 75.76991812 | AD122: 51.79496616 | AE122: 58.85688733 | AF122: 56.07129408 | AG122: 61.24341878 | AH122: 46.35312417 | AI122: 68.02315864 | BA122: Sanitation | BB122: Improved | BC122: N/A | BD122: N/A | BE122: N/A | BF122: N/A | BG122: N/A | BH122: N/A | BI122: N/A | BJ122: N/A | BK122: N/A | BL122: N/A | BM122: N/A | BN122: N/A | BO122: N/A | BP122: N/A | BQ122: N/A | BR122: N/A | BS122: N/A | BT122: N/A | BU122: N/A | BV122: N/A | BW122: N/A | BX122: N/A | BY122: N/A | BZ122: N/A | CA122: N/A | CB122: N/A | CC122: N/A | CD122: N/A | CE122: N/A | CF122: N/A | CG122: N/A | CH122: N/A | CI122: N/A
B123: Not Improved | C123: =100-C122 -> 43.81320031 | D123: =100-D122 -> 40.23614049 | E123: 44.29287629 | F123: 17.12152915 | G123: 4.29914541 | H123: 34.50381347 | I123: 18.44232024 | J123: 10.38467209 | K123: 6.266590696 | L123: 2.015631686 | M123: 43.08164627 | N123: 44.55612794 | O123: 40.1928009 | P123: 43.9467144 | Q123: 42.94803299 | R123: 19.80782977 | S123: 47.44726615 | T123: 24.13277887 | U123: 43.43217617 | V123: 37.36344038 | W123: 13.36852462 | X123: 32.11986608 | Y123: 19.97361242 | Z123: 80.68227135 | AA123: 35.02235897 | AB123: N/A | AC123: 24.23008188 | AD123: 48.20503384 | AE123: 41.14311267 | AF123: 43.92870592 | AG123: 38.75658122 | AH123: 53.64687583 | AI123: 31.97684136 | BB123: Not Improved | BC123: N/A | BD123: N/A | BE123: N/A | BF123: N/A | BG123: N/A | BH123: N/A | BI123: N/A | BJ123: N/A | BK123: N/A | BL123: N/A | BM123: N/A | BN123: N/A | BO123: N/A | BP123: N/A | BQ123: N/A | BR123: N/A | BS123: N/A | BT123: N/A | BU123: N/A | BV123: N/A | BW123: N/A | BX123: N/A | BY123: N/A | BZ123: N/A | CA123: N/A | CB123: N/A | CC123: N/A | CD123: N/A | CE123: N/A | CF123: N/A | CG123: N/A | CH123: N/A | CI123: N/A
A124: Sanitation ladder | B124: Basic | C124: =C122*C129/100 -> 54.13567577 | D124: =D122*D129/100 -> 57.21090013 | E124: 49.33759197 | F124: 70.80567292 | G124: 93.7876355 | H124: 51.24141852 | I124: 67.84200849 | J124: 83.31984477 | K124: 91.19614944 | L124: 97.09504142 | M124: 54.76680094 | N124: 53.20344346 | O124: 57.51928171 | P124: 53.63873349 | Q124: 51.48666715 | R124: 76.73240457 | S124: 48.72773039 | T124: 71.50381282 | U124: 55.10205832 | V124: 61.55347785 | W124: 76.9883105 | X124: 66.32421874 | Y124: 71.84676433 | Z124: 15.43109447 | AA124: 62.48911118 | AB124: N/A | AC124: 72.63499964 | AD124: 51.3222488 | AE124: 55.66094973 | AF124: 52.87357266 | AG124: 60.53349949 | AH124: 41.93860473 | AI124: 64.12348301 | BA124: Sanitation ladder | BB124: Basic | BC124: N/A | BD124: N/A | BE124: N/A | BF124: N/A | BG124: N/A | BH124: N/A | BI124: N/A | BJ124: N/A | BK124: N/A | BL124: N/A | BM124: N/A | BN124: N/A | BO124: N/A | BP124: N/A | BQ124: N/A | BR124: N/A | BS124: N/A | BT124: N/A | BU124: N/A | BV124: N/A | BW124: N/A | BX124: N/A | BY124: N/A | BZ124: N/A | CA124: N/A | CB124: N/A | CC124: N/A | CD124: N/A | CE124: N/A | CF124: N/A | CG124: N/A | CH124: N/A | CI124: N/A
B125: Limited | C125: =C122*C128/100 -> 2.051123916 | D125: =D122*D128/100 -> 2.552959381 | E125: 6.369531742 | F125: 12.07279793 | G125: 1.913219093 | H125: 14.25476801 | I125: 13.71567127 | J125: 6.295483147 | K125: 2.537259861 | L125: 0.8893268924 | M125: 2.151552786 | N125: 2.240428591 | O125: 2.287917394 | P125: 2.41455211 | Q125: 5.565299859 | R125: 3.459765661 | S125: 3.825003465 | T125: 4.36340831 | U125: 1.465765506 | V125: 1.083081774 | W125: 9.64316488 | X125: 1.555915186 | Y125: 8.179623247 | Z125: 3.886634182 | AA125: 2.488529853 | AB125: N/A | AC125: 3.134918478 | AD125: 0.4727173638 | AE125: 3.195937594 | AF125: 3.197721424 | AG125: 0.7099192916 | AH125: 4.41451944 | AI125: 3.899675635 | BB125: Limited | BC125: N/A | BD125: N/A | BE125: N/A | BF125: N/A | BG125: N/A | BH125: N/A | BI125: N/A | BJ125: N/A | BK125: N/A | BL125: N/A | BM125: N/A | BN125: N/A | BO125: N/A | BP125: N/A | BQ125: N/A | BR125: N/A | BS125: N/A | BT125: N/A | BU125: N/A | BV125: N/A | BW125: N/A | BX125: N/A | BY125: N/A | BZ125: N/A | CA125: N/A | CB125: N/A | CC125: N/A | CD125: N/A | CE125: N/A | CF125: N/A | CG125: N/A | CH125: N/A | CI125: N/A
B126: Unimproved | C126: =100-(C124+C125+C127) -> 12.19558232 | D126: =100-(D124+D125+D127) -> 10.66021431 | E126: 13.45137087 | F126: 13.26212828 | G126: 3.467921352 | H126: 18.17749483 | I126: 14.16604059 | J126: 9.131486945 | K126: 4.917058528 | L126: 1.547701182 | M126: 14.17411374 | N126: 9.336922429 | O126: 10.3824967 | P126: 11.03853124 | Q126: 12.71653454 | R126: 3.919995591 | S126: 22.4288239 | T126: 4.768522867 | U126: 14.62432289 | V126: 10.65119268 | W126: 6.810681332 | X126: 16.86435852 | Y126: 11.34577014 | Z126: 16.28850846 | AA126: 7.985925718 | AB126: N/A | AC126: 4.263173432 | AD126: 3.352908168 | AE126: 3.176333799 | AF126: 14.55440003 | AG126: 7.684694001 | AH126: 14.57080595 | AI126: 14.008425 | BB126: Unimproved | BC126: N/A | BD126: N/A | BE126: N/A | BF126: N/A | BG126: N/A | BH126: N/A | BI126: N/A | BJ126: N/A | BK126: N/A | BL126: N/A | BM126: N/A | BN126: N/A | BO126: N/A | BP126: N/A | BQ126: N/A | BR126: N/A | BS126: N/A | BT126: N/A | BU126: N/A | BV126: N/A | BW126: N/A | BX126: N/A | BY126: N/A | BZ126: N/A | CA126: N/A | CB126: N/A | CC126: N/A | CD126: N/A | CE126: N/A | CF126: N/A | CG126: N/A | CH126: N/A | CI126: N/A
B127: Open defecation | C127: =C160 -> 31.61761799 | D127: =D160 -> 29.57592617 | E127: 30.84150542 | F127: 3.85940087 | G127: 0.8312240583 | H127: 16.32631864 | I127: 4.276279646 | J127: 1.253185142 | K127: 1.349532168 | L127: 0.4679305046 | M127: 28.90753253 | N127: 35.21920552 | O127: 29.8103042 | P127: 32.90818316 | Q127: 30.23149845 | R127: 15.88783418 | S127: 25.01844224 | T127: 19.364256 | U127: 28.80785328 | V127: 26.7122477 | W127: 6.557843288 | X127: 15.25550755 | Y127: 8.627842276 | Z127: 64.39376289 | AA127: 27.03643325 | AB127: N/A | AC127: 19.96690845 | AD127: 44.85212567 | AE127: 37.96677887 | AF127: 29.37430589 | AG127: 31.07188721 | AH127: 39.07606988 | AI127: 17.96841636 | BB127: Open defecation | BC127: N/A | BD127: N/A | BE127: N/A | BF127: N/A | BG127: N/A | BH127: N/A | BI127: N/A | BJ127: N/A | BK127: N/A | BL127: N/A | BM127: N/A | BN127: N/A | BO127: N/A | BP127: N/A | BQ127: N/A | BR127: N/A | BS127: N/A | BT127: N/A | BU127: N/A | BV127: N/A | BW127: N/A | BX127: N/A | BY127: N/A | BZ127: N/A | CA127: N/A | CB127: N/A | CC127: N/A | CD127: N/A | CE127: N/A | CF127: N/A | CG127: N/A | CH127: N/A | CI127: N/A
A128: Shared among Improved Sanitation | B128: Yes | C128: 3.650544127 | D128: 4.271744499 | E128: 11.43396269 | F128: 14.56686858 | G128: 1.999166153 | H128: 21.76427173 | I128: 16.81714256 | J128: 7.025007098 | K128: 2.706889549 | L128: 0.9076211928 | M128: 3.780068546 | N128: 4.040894886 | O128: 3.825488283 | P128: 4.307601391 | Q128: 9.754790501 | R128: 4.314343471 | S128: 7.278410055 | T128: 5.751374896 | U128: 2.591164741 | V128: 1.72915272 | W128: 11.13124859 | X128: 2.292151026 | Y128: 10.22115766 | Z128: 20.11951949 | AA128: 3.829824864 | AB128: N/A | AC128: 4.137418326 | AD128: 0.9126704752 | AE128: 5.430014633 | AF128: 5.702956345 | AG128: 1.159176456 | AH128: 9.523671854 | AI128: 5.732864678 | BA128: Shared among improved sanitation facilities | BB128: Yes | BC128: N/A | BD128: N/A | BE128: N/A | BF128: N/A | BG128: N/A | BH128: N/A | BI128: N/A | BJ128: N/A | BK128: N/A | BL128: N/A | BM128: N/A | BN128: N/A | BO128: N/A | BP128: N/A | BQ128: N/A | BR128: N/A | BS128: N/A | BT128: N/A | BU128: N/A | BV128: N/A | BW128: N/A | BX128: N/A | BY128: N/A | BZ128: N/A | CA128: N/A | CB128: N/A | CC128: N/A | CD128: N/A | CE128: N/A | CF128: N/A | CG128: N/A | CH128: N/A | CI128: N/A
B129: No | C129: 96.34945587 | D129: 95.7282555 | E129: 88.56603731 | F129: 85.43313142 | G129: 98.00083385 | H129: 78.23572827 | I129: 83.18285744 | J129: 92.9749929 | K129: 97.29311045 | L129: 99.09237881 | M129: 96.21993145 | N129: 95.95910511 | O129: 96.17451172 | P129: 95.69239861 | Q129: 90.2452095 | R129: 95.68565653 | S129: 92.72158995 | T129: 94.2486251 | U129: 97.40883526 | V129: 98.27084728 | W129: 88.86875141 | X129: 97.70784897 | Y129: 89.77884234 | Z129: 79.88048051 | AA129: 96.17017514 | AB129: N/A | AC129: 95.86258167 | AD129: 99.08732952 | AE129: 94.56998537 | AF129: 94.29704366 | AG129: 98.84082354 | AH129: 90.47632815 | AI129: 94.26713532 | BB129: No | BC129: N/A | BD129: N/A | BE129: N/A | BF129: N/A | BG129: N/A | BH129: N/A | BI129: N/A | BJ129: N/A | BK129: N/A | BL129: N/A | BM129: N/A | BN129: N/A | BO129: N/A | BP129: N/A | BQ129: N/A | BR129: N/A | BS129: N/A | BT129: N/A | BU129: N/A | BV129: N/A | BW129: N/A | BX129: N/A | BY129: N/A | BZ129: N/A | CA129: N/A | CB129: N/A | CC129: N/A | CD129: N/A | CE129: N/A | CF129: N/A | CG129: N/A | CH129: N/A | CI129: N/A
A130: Manually calculated ratios | B130: Improved latrines
B131: Other
B132: Other
C133: NATIONAL wealth index quintile | H133: URBAN wealth index quintile | M133: RURAL wealth index quintile | R133: SUB-REGIONS: | BA133: Raw numbers of respondents: | BB133: Use of sanitation facilities | BC133: NATIONAL wealth index quintile | BH133: URBAN wealth index quintile | BM133: RURAL wealth index quintile | BR133: SUB-REGIONS:
A134: Percentage based on weighted population | C134: Poorest | D134: Poor | E134: Middle | F134: Rich | G134: Richest | H134: Poorest | I134: Poor | J134: Middle | K134: Rich | L134: Richest | M134: Poorest | N134: Poor | O134: Middle | P134: Rich | Q134: Richest | R134: Atlantida | S134: Choluteca | T134: Colon | U134: Comayagua | V134: Copan | W134: Cortes | X134: El Paraiso | Y134: Francisco Morazan | Z134: Gracias a Dios | AA134: Intibuca | AB134: Islas de la Bahia | AC134: La Paz | AD134: Lempira | AE134: Ocotepeque | AF134: Olancho | AG134: Santa Barbara | AH134: Valle | AI134: Yoro | BA134: Sanitation data, raw numbers (weighted) | BC134: Poorest | BD134: Poor | BE134: Middle | BF134: Rich | BG134: Richest | BH134: Poorest | BI134: Poor | BJ134: Middle | BK134: Rich | BL134: Richest | BM134: Poorest | BN134: Poor | BO134: Middle | BP134: Rich | BQ134: Richest | BR134: Atlantida | BS134: Choluteca | BT134: Colon | BU134: Comayagua | BV134: Copan | BW134: Cortes | BX134: El Paraiso | BY134: Francisco Morazan | BZ134: Gracias a Dios | CA134: Intibuca | CB134: Islas de la Bahia | CC134: La Paz | CD134: Lempira | CE134: Ocotepeque | CF134: Olancho | CG134: Santa Barbara | CH134: Valle | CI134: Yoro
A135: Sanitation type | B135: Sewer connection | C135: 0.9219879548 | D135: 2.691538664 | E135: 8.213953362 | F135: 39.71014984 | G135: 77.06558407 | H135: 15.98178461 | I135: 37.26212896 | J135: 52.0428546 | K135: 68.57549439 | L135: 88.55327777 | M135: 0 | N135: 1.873950528 | O135: 2.371164711 | P135: 3.523460905 | Q135: 8.302036773 | R135: 17.97989073 | S135: 6.822752386 | T135: 3.586157177 | U135: 17.16151295 | V135: 15.35393887 | W135: 48.14833213 | X135: 13.38394359 | Y135: 48.70817972 | Z135: 0.7116412051 | AA135: 13.37361987 | AB135: N/A | AC135: 9.587877859 | AD135: 1.719724298 | AE135: 18.07565784 | AF135: 10.90635513 | AG135: 6.887651313 | AH135: 6.822503747 | AI135: 19.19139329 | BA135: Sanitation type | BB135: Sewer connection | BC135: N/A | BD135: N/A | BE135: N/A | BF135: N/A | BG135: N/A | BH135: N/A | BI135: N/A | BJ135: N/A | BK135: N/A | BL135: N/A | BM135: N/A | BN135: N/A | BO135: N/A | BP135: N/A | BQ135: N/A | BR135: N/A | BS135: N/A | BT135: N/A | BU135: N/A | BV135: N/A | BW135: N/A | BX135: N/A | BY135: N/A | BZ135: N/A | CA135: N/A | CB135: N/A | CC135: N/A | CD135: N/A | CE135: N/A | CF135: N/A | CG135: N/A | CH135: N/A | CI135: N/A
B136: Septic tank connection | C136: 7.917859873 | D136: 10.21793932 | E136: 9.974335753 | F136: 13.61050265 | G136: 11.58640416 | H136: 5.622591898 | I136: 12.16604406 | J136: 17.24012 | K136: 15.04220016 | L136: 7.168935922 | M136: 4.941348057 | N136: 11.17699173 | O136: 10.33584593 | P136: 10.44867407 | Q136: 13.09038991 | R136: 28.47637346 | S136: 6.164107321 | T136: 20.44957613 | U136: 6.706060483 | V136: 4.188602232 | W136: 18.84515418 | X136: 5.949244603 | Y136: 5.831974743 | Z136: 0.7693539226 | AA136: 2.453736861 | AB136: N/A | AC136: 5.605437219 | AD136: 2.177848883 | AE136: 4.791616635 | AF136: 3.311736138 | AG136: 13.68778009 | AH136: 7.717213103 | AI136: 13.85051501 | BB136: Septic tank connection | BC136: N/A | BD136: N/A | BE136: N/A | BF136: N/A | BG136: N/A | BH136: N/A | BI136: N/A | BJ136: N/A | BK136: N/A | BL136: N/A | BM136: N/A | BN136: N/A | BO136: N/A | BP136: N/A | BQ136: N/A | BR136: N/A | BS136: N/A | BT136: N/A | BU136: N/A | BV136: N/A | BW136: N/A | BX136: N/A | BY136: N/A | BZ136: N/A | CA136: N/A | CB136: N/A | CC136: N/A | CD136: N/A | CE136: N/A | CF136: N/A | CG136: N/A | CH136: N/A | CI136: N/A
B137: Improved latrines | C137: N/A | D137: N/A | E137: N/A | F137: N/A | G137: N/A | H137: N/A | I137: N/A | J137: N/A | K137: N/A | L137: N/A | M137: N/A | N137: N/A | O137: N/A | P137: N/A | Q137: N/A | R137: N/A | S137: N/A | T137: N/A | U137: N/A | V137: N/A | W137: N/A | X137: N/A | Y137: N/A | Z137: N/A | AA137: N/A | AB137: N/A | AC137: N/A | AD137: N/A | AE137: N/A | AF137: N/A | AG137: N/A | AH137: N/A | AI137: N/A | BB137: Improved latrines | BC137: N/A | BD137: N/A | BE137: N/A | BF137: N/A | BG137: N/A | BH137: N/A | BI137: N/A | BJ137: N/A | BK137: N/A | BL137: N/A | BM137: N/A | BN137: N/A | BO137: N/A | BP137: N/A | BQ137: N/A | BR137: N/A | BS137: N/A | BT137: N/A | BU137: N/A | BV137: N/A | BW137: N/A | BX137: N/A | BY137: N/A | BZ137: N/A | CA137: N/A | CB137: N/A | CC137: N/A | CD137: N/A | CE137: N/A | CF137: N/A | CG137: N/A | CH137: N/A | CI137: N/A
B138: Unimproved facilities | C138: N/A | D138: N/A | E138: N/A | F138: N/A | G138: N/A | H138: N/A | I138: N/A | J138: N/A | K138: N/A | L138: N/A | M138: N/A | N138: N/A | O138: N/A | P138: N/A | Q138: N/A | R138: N/A | S138: N/A | T138: N/A | U138: N/A | V138: N/A | W138: N/A | X138: N/A | Y138: N/A | Z138: N/A | AA138: N/A | AB138: N/A | AC138: N/A | AD138: N/A | AE138: N/A | AF138: N/A | AG138: N/A | AH138: N/A | AI138: N/A | BB138: Unimproved facilities | BC138: N/A | BD138: N/A | BE138: N/A | BF138: N/A | BG138: N/A | BH138: N/A | BI138: N/A | BJ138: N/A | BK138: N/A | BL138: N/A | BM138: N/A | BN138: N/A | BO138: N/A | BP138: N/A | BQ138: N/A | BR138: N/A | BS138: N/A | BT138: N/A | BU138: N/A | BV138: N/A | BW138: N/A | BX138: N/A | BY138: N/A | BZ138: N/A | CA138: N/A | CB138: N/A | CC138: N/A | CD138: N/A | CE138: N/A | CF138: N/A | CG138: N/A | CH138: N/A | CI138: N/A
B139: Open defecation | C139: 31.53925493 | D139: 29.41964692 | E139: 28.2735648 | F139: 3.846952415 | G139: 0.8298966134 | H139: 14.81591197 | I139: 4.253374611 | J139: 1.248814016 | K139: 1.349532168 | L139: 0.4679305046 | M139: 28.90050462 | N139: 34.95008321 | O139: 29.66530905 | P139: 32.77801399 | Q139: 27.97168972 | R139: 15.77228394 | S139: 24.33192631 | T139: 19.364256 | U139: 27.92131126 | V139: 26.26726634 | W139: 6.390574176 | X139: 15.25550755 | Y139: 8.398255635 | Z139: 64.36206918 | AA139: 26.78299284 | AB139: N/A | AC139: 19.05194916 | AD139: 44.31400423 | AE139: 37.96677887 | AF139: 29.08735833 | AG139: 30.11844931 | AH139: 39.07606988 | AI139: 17.72043765 | BB139: Open defecation | BC139: N/A | BD139: N/A | BE139: N/A | BF139: N/A | BG139: N/A | BH139: N/A | BI139: N/A | BJ139: N/A | BK139: N/A | BL139: N/A | BM139: N/A | BN139: N/A | BO139: N/A | BP139: N/A | BQ139: N/A | BR139: N/A | BS139: N/A | BT139: N/A | BU139: N/A | BV139: N/A | BW139: N/A | BX139: N/A | BY139: N/A | BZ139: N/A | CA139: N/A | CB139: N/A | CC139: N/A | CD139: N/A | CE139: N/A | CF139: N/A | CG139: N/A | CH139: N/A | CI139: N/A
A140: Septic tank emptying practices | B140: Not emptied/treated and disposed in situ | C140: N/A | D140: N/A | E140: N/A | F140: N/A | G140: N/A | H140: N/A | I140: N/A | J140: N/A | K140: N/A | L140: N/A | M140: N/A | N140: N/A | O140: N/A | P140: N/A | Q140: N/A | R140: N/A | S140: N/A | T140: N/A | U140: N/A | V140: N/A | W140: N/A | X140: N/A | Y140: N/A | Z140: N/A | AA140: N/A | AB140: N/A | AC140: N/A | AD140: N/A | AE140: N/A | AF140: N/A | AG140: N/A | AH140: N/A | AI140: N/A | BA140: Septic tank emptying practices | BB140: Not emptied/treated and disposed in situ | BC140: N/A | BD140: N/A | BE140: N/A | BF140: N/A | BG140: N/A | BH140: N/A | BI140: N/A | BJ140: N/A | BK140: N/A | BL140: N/A | BM140: N/A | BN140: N/A | BO140: N/A | BP140: N/A | BQ140: N/A | BR140: N/A | BS140: N/A | BT140: N/A | BU140: N/A | BV140: N/A | BW140: N/A | BX140: N/A | BY140: N/A | BZ140: N/A | CA140: N/A | CB140: N/A | CC140: N/A | CD140: N/A | CE140: N/A | CF140: N/A | CG140: N/A | CH140: N/A | CI140: N/A
B141: Emptied and buried on site | C141: N/A | D141: N/A | E141: N/A | F141: N/A | G141: N/A | H141: N/A | I141: N/A | J141: N/A | K141: N/A | L141: N/A | M141: N/A | N141: N/A | O141: N/A | P141: N/A | Q141: N/A | R141: N/A | S141: N/A | T141: N/A | U141: N/A | V141: N/A | W141: N/A | X141: N/A | Y141: N/A | Z141: N/A | AA141: N/A | AB141: N/A | AC141: N/A | AD141: N/A | AE141: N/A | AF141: N/A | AG141: N/A | AH141: N/A | AI141: N/A | BB141: Emptied and buried on site | BC141: N/A | BD141: N/A | BE141: N/A | BF141: N/A | BG141: N/A | BH141: N/A | BI141: N/A | BJ141: N/A | BK141: N/A | BL141: N/A | BM141: N/A | BN141: N/A | BO141: N/A | BP141: N/A | BQ141: N/A | BR141: N/A | BS141: N/A | BT141: N/A | BU141: N/A | BV141: N/A | BW141: N/A | BX141: N/A | BY141: N/A | BZ141: N/A | CA141: N/A | CB141: N/A | CC141: N/A | CD141: N/A | CE141: N/A | CF141: N/A | CG141: N/A | CH141: N/A | CI141: N/A
B142: Emptied and discharged locally | C142: N/A | D142: N/A | E142: N/A | F142: N/A | G142: N/A | H142: N/A | I142: N/A | J142: N/A | K142: N/A | L142: N/A | M142: N/A | N142: N/A | O142: N/A | P142: N/A | Q142: N/A | R142: N/A | S142: N/A | T142: N/A | U142: N/A | V142: N/A | W142: N/A | X142: N/A | Y142: N/A | Z142: N/A | AA142: N/A | AB142: N/A | AC142: N/A | AD142: N/A | AE142: N/A | AF142: N/A | AG142: N/A | AH142: N/A | AI142: N/A | BB142: Emptied and discharged locally | BC142: N/A | BD142: N/A | BE142: N/A | BF142: N/A | BG142: N/A | BH142: N/A | BI142: N/A | BJ142: N/A | BK142: N/A | BL142: N/A | BM142: N/A | BN142: N/A | BO142: N/A | BP142: N/A | BQ142: N/A | BR142: N/A | BS142: N/A | BT142: N/A | BU142: N/A | BV142: N/A | BW142: N/A | BX142: N/A | BY142: N/A | BZ142: N/A | CA142: N/A | CB142: N/A | CC142: N/A | CD142: N/A | CE142: N/A | CF142: N/A | CG142: N/A | CH142: N/A | CI142: N/A
B143: Emptied and removed offsite | C143: N/A | D143: N/A | E143: N/A | F143: N/A | G143: N/A | H143: N/A | I143: N/A | J143: N/A | K143: N/A | L143: N/A | M143: N/A | N143: N/A | O143: N/A | P143: N/A | Q143: N/A | R143: N/A | S143: N/A | T143: N/A | U143: N/A | V143: N/A | W143: N/A | X143: N/A | Y143: N/A | Z143: N/A | AA143: N/A | AB143: N/A | AC143: N/A | AD143: N/A | AE143: N/A | AF143: N/A | AG143: N/A | AH143: N/A | AI143: N/A | BB143: Emptied and removed offsite | BC143: N/A | BD143: N/A | BE143: N/A | BF143: N/A | BG143: N/A | BH143: N/A | BI143: N/A | BJ143: N/A | BK143: N/A | BL143: N/A | BM143: N/A | BN143: N/A | BO143: N/A | BP143: N/A | BQ143: N/A | BR143: N/A | BS143: N/A | BT143: N/A | BU143: N/A | BV143: N/A | BW143: N/A | BX143: N/A | BY143: N/A | BZ143: N/A | CA143: N/A | CB143: N/A | CC143: N/A | CD143: N/A | CE143: N/A | CF143: N/A | CG143: N/A | CH143: N/A | CI143: N/A
A144: Latrine emptying practices | B144: Not emptied/treated and disposed in situ | C144: N/A | D144: N/A | E144: N/A | F144: N/A | G144: N/A | H144: N/A | I144: N/A | J144: N/A | K144: N/A | L144: N/A | M144: N/A | N144: N/A | O144: N/A | P144: N/A | Q144: N/A | R144: N/A | S144: N/A | T144: N/A | U144: N/A | V144: N/A | W144: N/A | X144: N/A | Y144: N/A | Z144: N/A | AA144: N/A | AB144: N/A | AC144: N/A | AD144: N/A | AE144: N/A | AF144: N/A | AG144: N/A | AH144: N/A | AI144: N/A | BA144: Latrine emptying practices | BB144: Not emptied/treated and disposed in situ | BC144: N/A | BD144: N/A | BE144: N/A | BF144: N/A | BG144: N/A | BH144: N/A | BI144: N/A | BJ144: N/A | BK144: N/A | BL144: N/A | BM144: N/A | BN144: N/A | BO144: N/A | BP144: N/A | BQ144: N/A | BR144: N/A | BS144: N/A | BT144: N/A | BU144: N/A | BV144: N/A | BW144: N/A | BX144: N/A | BY144: N/A | BZ144: N/A | CA144: N/A | CB144: N/A | CC144: N/A | CD144: N/A | CE144: N/A | CF144: N/A | CG144: N/A | CH144: N/A | CI144: N/A
B145: Emptied and buried on site | C145: N/A | D145: N/A | E145: N/A | F145: N/A | G145: N/A | H145: N/A | I145: N/A | J145: N/A | K145: N/A | L145: N/A | M145: N/A | N145: N/A | O145: N/A | P145: N/A | Q145: N/A | R145: N/A | S145: N/A | T145: N/A | U145: N/A | V145: N/A | W145: N/A | X145: N/A | Y145: N/A | Z145: N/A | AA145: N/A | AB145: N/A | AC145: N/A | AD145: N/A | AE145: N/A | AF145: N/A | AG145: N/A | AH145: N/A | AI145: N/A | BB145: Emptied and buried on site | BC145: N/A | BD145: N/A | BE145: N/A | BF145: N/A | BG145: N/A | BH145: N/A | BI145: N/A | BJ145: N/A | BK145: N/A | BL145: N/A | BM145: N/A | BN145: N/A | BO145: N/A | BP145: N/A | BQ145: N/A | BR145: N/A | BS145: N/A | BT145: N/A | BU145: N/A | BV145: N/A | BW145: N/A | BX145: N/A | BY145: N/A | BZ145: N/A | CA145: N/A | CB145: N/A | CC145: N/A | CD145: N/A | CE145: N/A | CF145: N/A | CG145: N/A | CH145: N/A | CI145: N/A
B146: Emptied and discharged locally | C146: N/A | D146: N/A | E146: N/A | F146: N/A | G146: N/A | H146: N/A | I146: N/A | J146: N/A | K146: N/A | L146: N/A | M146: N/A | N146: N/A | O146: N/A | P146: N/A | Q146: N/A | R146: N/A | S146: N/A | T146: N/A | U146: N/A | V146: N/A | W146: N/A | X146: N/A | Y146: N/A | Z146: N/A | AA146: N/A | AB146: N/A | AC146: N/A | AD146: N/A | AE146: N/A | AF146: N/A | AG146: N/A | AH146: N/A | AI146: N/A | BB146: Emptied and discharged locally | BC146: N/A | BD146: N/A | BE146: N/A | BF146: N/A | BG146: N/A | BH146: N/A | BI146: N/A | BJ146: N/A | BK146: N/A | BL146: N/A | BM146: N/A | BN146: N/A | BO146: N/A | BP146: N/A | BQ146: N/A | BR146: N/A | BS146: N/A | BT146: N/A | BU146: N/A | BV146: N/A | BW146: N/A | BX146: N/A | BY146: N/A | BZ146: N/A | CA146: N/A | CB146: N/A | CC146: N/A | CD146: N/A | CE146: N/A | CF146: N/A | CG146: N/A | CH146: N/A | CI146: N/A
B147: Emptied and removed offsite | C147: N/A | D147: N/A | E147: N/A | F147: N/A | G147: N/A | H147: N/A | I147: N/A | J147: N/A | K147: N/A | L147: N/A | M147: N/A | N147: N/A | O147: N/A | P147: N/A | Q147: N/A | R147: N/A | S147: N/A | T147: N/A | U147: N/A | V147: N/A | W147: N/A | X147: N/A | Y147: N/A | Z147: N/A | AA147: N/A | AB147: N/A | AC147: N/A | AD147: N/A | AE147: N/A | AF147: N/A | AG147: N/A | AH147: N/A | AI147: N/A | BB147: Emptied and removed offsite | BC147: N/A | BD147: N/A | BE147: N/A | BF147: N/A | BG147: N/A | BH147: N/A | BI147: N/A | BJ147: N/A | BK147: N/A | BL147: N/A | BM147: N/A | BN147: N/A | BO147: N/A | BP147: N/A | BQ147: N/A | BR147: N/A | BS147: N/A | BT147: N/A | BU147: N/A | BV147: N/A | BW147: N/A | BX147: N/A | BY147: N/A | BZ147: N/A | CA147: N/A | CB147: N/A | CC147: N/A | CD147: N/A | CE147: N/A | CF147: N/A | CG147: N/A | CH147: N/A | CI147: N/A
A148: Shared among improved sanitation facilities | B148: Yes | C148: 2.468548048 | D148: 2.953234836 | E148: 6.836282701 | F148: 12.47469425 | G148: 1.917810994 | H148: 14.54222068 | I148: 14.10129164 | J148: 6.439631811 | K148: 2.543736975 | L148: 0.893745282 | M148: 2.67428419 | N148: 2.559246029 | O148: 2.656920361 | P148: 2.831194094 | Q148: 5.966628438 | R148: 3.551435284 | S148: 5.284172098 | T148: 4.637663937 | U148: 1.74060156 | V148: 1.098561721 | W148: 9.894528316 | X148: 1.919298168 | Y148: 7.920006008 | Z148: 6.738706778 | AA148: 2.768182241 | AB148: N/A | AC148: 3.159567328 | AD148: 0.483777324 | AE148: 3.316708928 | AF148: 3.97081406 | AG148: 0.7675244448 | AH148: 5.705603991 | AI148: 4.338588965 | BA148: Shared among improved sanitation facilities | BB148: Yes | BC148: N/A | BD148: N/A | BE148: N/A | BF148: N/A | BG148: N/A | BH148: N/A | BI148: N/A | BJ148: N/A | BK148: N/A | BL148: N/A | BM148: N/A | BN148: N/A | BO148: N/A | BP148: N/A | BQ148: N/A | BR148: N/A | BS148: N/A | BT148: N/A | BU148: N/A | BV148: N/A | BW148: N/A | BX148: N/A | BY148: N/A | BZ148: N/A | CA148: N/A | CB148: N/A | CC148: N/A | CD148: N/A | CE148: N/A | CF148: N/A | CG148: N/A | CH148: N/A | CI148: N/A
